Workbook

Sheet Kuntakortti
A1: Valtiovarainministeriö/Kunta- ja aluehallinto-osasto, 1.6.2021
A2: KUNTIEN LOPULLISET TP:T 2018-2019 ja TPennakko 2020 | G2: Valitse kunta valikosta:
A4: =INDEX(Luvut!$B$3:'Luvut'!$B$297,$A$7) -> KOKO MAA (Manner-Suomi) | D4: 2018 | G4: 2019 | J4: 2020
A6: Asukasluku | D6: =VLOOKUP($A$4,Luvut!$B$3:$AT$297,2) -> 5488130 | G6: =VLOOKUP($A$4,Luvut!$B$3:$ED$297,46) -> 5495408 | I6: =((G6/D6)-1)*100 -> 0.1326134767 | J6: =VLOOKUP($A$4,Luvut!$B$3:$ED$297,90) -> 5503664 | L6: =((J6/G6)-1)*100 -> 0.1502345231 | Q6: Kunta
A7: 96 | R7: 2018 | S7: 2019 | T7: 2020
A8: Tunnuslukuja | Q8: Vuosikate | R8: =D36 -> 2065203 | S8: =G36 -> 1747616 | T8: =J36 -> 4072987
I9: muutos% | L9: muutos% | N9: Konsernivelka, € | O9: Konsernivelka, € | P9: Konsernivelka, € | Q9: Poistot | R9: =D38 -> 2192453 | S9: =G38 -> 2305725 | T9: =J38 -> 2397525
A10: Lainat, euro/as | D10: =E67 -> 3048.393715 | G10: =H67 -> 3351.896165 | I10: =((G10/D10)-1)*100 -> 9.956143403 | J10: =K67 -> 3458.31159 | L10: =((J10/G10)-1)*100 -> 3.174782871 | N10: 2018 | O10: 2019 | P10: 2020 | Q10: Tilikauden tulos | R10: =D41 -> -107421 | S10: =G41 -> -164092 | T10: =J41 -> 1756706
A11: Konsernilainat, euro/as | D11: =VLOOKUP($A$4,Luvut!$B$3:$FM$297,167) -> 6557.643678 | G11: =VLOOKUP($A$4,Luvut!$B$3:$FM$297,168) -> 7105.3243 | I11: =((G11/D11)-1)*100 -> 8.351789888 | J11: =VLOOKUP($A$4,Luvut!$B$3:$FN$297,169) -> 7480.922891 | L11: =((J11/G11)-1)*100 -> 5.286156901 | N11: =D11*D6 -> 35989201000 | O11: =G11*G6 -> 39046656000 | P11: =J11*J6 -> 41172486000 | Q11: Taseen kertynyt ali-/ylijäämä | R11: =D47 -> 11261407 | S11: =G47 -> 11087957 | T11: =J47 -> 12581318
A12: Lainanhoitokate | D12: =VLOOKUP($A$4,Luvut!$B$3:$AT$297,4) -> 1.121866706 | G12: =VLOOKUP($A$4,Luvut!$B$3:$ED$297,48) -> 0.7093755419 | J12: =VLOOKUP($A$4,Luvut!$B$3:$ED$297,92) -> 1.988638614 | Q12: Toiminnan ja investointien rahavirta | R12: =D60 -> -1214884 | S12: =G60 -> -1434149 | T12: =J60 -> 381794
A13: Suhteellinen velkaantuneisuus, % | D13: =VLOOKUP($A$4,Luvut!$B$3:$AT$297,5) -> 58.68132053 | G13: =VLOOKUP($A$4,Luvut!$B$3:$ED$297,49) -> 62.06715478 | J13: =VLOOKUP($A$4,Luvut!$B$3:$ED$297,93) -> 59.95643965 | Q13: Lainakanta | R13: =D67 -> 16729981 | S13: =G67 -> 18420037 | T13: =J67 -> 19033385
A14: Rahoitusvarallisuus, euro/as | D14: =VLOOKUP($A$4,Luvut!$B$3:$AT$297,6) -> -2782.626505 | G14: =VLOOKUP($A$4,Luvut!$B$3:$ED$297,50) -> -3029.554312 | J14: =VLOOKUP($A$4,Luvut!$B$3:$ED$297,94) -> -2940.769277 | Q14: Lainanhoitokate | R14: =D12 -> 1.121866706 | S14: =G12 -> 0.7093755419 | T14: =J12 -> 1.988638614
A15: Omavaraisuusaste, % | D15: =VLOOKUP($A$4,Luvut!$B$3:$AT$297,10) -> 59.51387859 | G15: =VLOOKUP($A$4,Luvut!$B$3:$ED$297,54) -> 57.82762771 | J15: =VLOOKUP($A$4,Luvut!$B$3:$ED$297,98) -> 57.95873446 | Q15: Veroprosentti | R15: =D72 -> 19.87 | S15: =G72 -> 19.9 | T15: =J72 -> 19.98
A17: Rahavarat, euro/as | D17: =VLOOKUP($A$4,Luvut!$B$3:$AT$297,11) -> 888.605044 | G17: =VLOOKUP($A$4,Luvut!$B$3:$ED$297,55) -> 920.9359887 | J17: =VLOOKUP($A$4,Luvut!$B$3:$ED$297,99) -> 1172.770903 | Q17: Asukasluku | R17: =D6 -> 5488130 | S17: =G6 -> 5495408 | T17: =J6 -> 5503664
A18: Kassan riittävyys, pv | D18: =VLOOKUP($A$4,Luvut!$B$3:$AT$297,12) -> 41.79885351 | G18: =VLOOKUP($A$4,Luvut!$B$3:$ED$297,56) -> 41.94892614 | J18: =VLOOKUP($A$4,Luvut!$B$3:$ED$297,100) -> 52.56590898
A19: Kassastamaksut, euro/as | D19: =VLOOKUP($A$4,Luvut!$B$3:$AT$297,13) -> 7759.563093 | G19: =VLOOKUP($A$4,Luvut!$B$3:$ED$297,57) -> 8013.116588 | J19: =VLOOKUP($A$4,Luvut!$B$3:$ED$297,101) -> 8143.326882 | N19: 2018 - 2019 | O19: 2019 - 2020
A20: Tuloslaskelma | D20: 1000 | E20: euro/as | G20: 1000 | H20: euro/as | I20: muut.% | J20: 1000 | K20: euro/as | L20: muut.% | N20: €/as | O20: €/as
A22: Henkilöstömenot (palkat+sivukulut) | D22: =VLOOKUP($A$4,Luvut!$B$3:$AX$297,14) -> 13574638 | E22: =D22*1000/$D$6 -> 2473.454164 | G22: =VLOOKUP($A$4,Luvut!$B$3:$ED$297,58) -> 13513374 | H22: =G22*1000/$G$6 -> 2459.030158 | I22: =((G22/D22)-1)*100 -> -0.4513122192 | J22: =VLOOKUP($A$4,Luvut!$B$3:$ED$297,102) -> 13613209 | K22: =J22*1000/$J$6 -> 2473.481121 | L22: =((J22/G22)-1)*100 -> 0.7387866272 | N22: =((H22/E22)-1)*100 -> -0.5831523573 | O22: =((K22/H22)-1)*100 -> 0.5876692221
A23: Palvelujen ostot | D23: =VLOOKUP($A$4,Luvut!$B$3:$EF$297,134) -> 18314272 | E23: =D23*1000/$D$6 -> 3337.069639 | G23: =VLOOKUP($A$4,Luvut!$B$3:$EF$297,135) -> 19288076 | H23: =G23*1000/$G$6 -> 3509.853318 | I23: =((G23/D23)-1)*100 -> 5.317186509 | J23: =VLOOKUP($A$4,Luvut!$B$3:$EG$297,136) -> 19605831 | K23: =J23*1000/$J$6 -> 3562.32339 | L23: =((J23/G23)-1)*100 -> 1.647416777 | N23: =((H23/E23)-1)*100 -> 5.177706695 | O23: =((K23/H23)-1)*100 -> 1.494936344
A24: Toimintatuotot, sis. valmistus omaan käyt. | D24: =VLOOKUP($A$4,Luvut!$B$3:$AT$297,15) -> 7812168 | E24: =D24*1000/$D$6 -> 1423.466281 | G24: =VLOOKUP($A$4,Luvut!$B$3:$ED$297,59) -> 7546090 | H24: =G24*1000/$G$6 -> 1373.16283 | I24: -3.405943139 | J24: =VLOOKUP($A$4,Luvut!$B$3:$ED$297,103) -> 7208017 | K24: =J24*1000/$J$6 -> 1309.676063 | L24: -4.480108241 | N24: -3.533870228 | O24: -4.623396826
A25: Toimintakulut | D25: =VLOOKUP($A$4,Luvut!$B$3:$AT$297,16) -> 36914895 | E25: =D25*1000/$D$6 -> 6726.315703 | G25: =VLOOKUP($A$4,Luvut!$B$3:$ED$297,60) -> 37903026 | H25: =G25*1000/$G$6 -> 6897.217823 | I25: 2.676781283 | J25: =VLOOKUP($A$4,Luvut!$B$3:$ED$297,104) -> 38429313 | K25: =J25*1000/$J$6 -> 6982.496206 | L25: 1.388509192 | N25: 2.540798365 | O25: 1.236417143
A26: Toimintakate | D26: =VLOOKUP($A$4,Luvut!$B$3:$AT$297,17) -> -29102727 | E26: -5302.849422 | G26: =VLOOKUP($A$4,Luvut!$B$3:$ED$297,61) -> -30356936 | H26: -5524.054993 | I26: 4.309592706 | J26: =VLOOKUP($A$4,Luvut!$B$3:$ED$297,105) -> -31221279 | K26: =J26*1000/$J$6 -> -5672.817054 | L26: =((J26/G26)-1)*100 -> 2.847266931 | N26: 4.171447328 | O26: =((K26/H26)-1)*100 -> 2.692986612
A28: Verotulot | D28: =VLOOKUP($A$4,Luvut!$B$3:$AT$297,18) -> 22321220 | E28: 4067.181353 | G28: =VLOOKUP($A$4,Luvut!$B$3:$ED$297,62) -> 22912315 | H28: 4169.356488 | I28: 2.648130344 | J28: =VLOOKUP($A$4,Luvut!$B$3:$ED$297,106) -> 23825588 | K28: =J28*1000/$J$6 -> 4329.041162 | L28: 3.985948168 | N28: 2.512185371 | O28: 3.829959723
A29: Valtionosuudet, | D29: =VLOOKUP($A$4,Luvut!$B$3:$AT$297,19) -> 8456755 | E29: 1540.917398 | G29: =VLOOKUP($A$4,Luvut!$B$3:$ED$297,63) -> 8640795 | H29: 1572.366419 | I29: 2.176248455 | J29: =VLOOKUP($A$4,Luvut!$B$3:$ED$297,107) -> 11005673 | K29: =J29*1000/$J$6 -> 1999.699291 | L29: 27.36875484 | N29: 2.040928432 | O29: 27.17769005
A30: josta hark.var. korotus | G30: =VLOOKUP($A$4,Luvut!$B$3:$EJ$297,138) -> 10000 | H30: 1.819701103 | J30: =VLOOKUP($A$4,Luvut!$B$3:$EJ$297,139) -> 60000 | K30: =J30*1000/$J$6 -> 10.90182831
A31: Verorahoitus | D31: =SUM(D28:D29) -> 30777975 | E31: 5608.098751 | G31: =SUM(G28:G29) -> 31553110 | H31: 5741.722908 | I31: 2.518473031 | J31: =SUM(J28:J29) -> 34831261 | K31: =J31*1000/$J$6 -> 6328.740454 | L31: 10.38931186 | N31: 2.382699774 | O31: 10.22371779
A32: Käyttökate | D32: =D31+D26 -> 1675248 | E32: 305.249329 | G32: =G26+G31 -> 1196174 | H32: 217.6679147 | J32: =J26+J31 -> 3609982 | K32: =J32*1000/$J$6 -> 655.9233994
A34: Korkotuotot/-menot, netto | D34: =VLOOKUP($A$4,Luvut!$B$3:$AT$297,22) -> 77497 | E34: 14.12083897 | G34: =VLOOKUP($A$4,Luvut!$B$3:$ED$297,66) -> 68795 | H34: 12.51863374 | J34: =VLOOKUP($A$4,Luvut!$B$3:$ED$297,110) -> 58142 | K34: =J34*1000/$J$6 -> 10.56423503
A35: Muut rahoituskulut/-tuotot, netto | D35: =VLOOKUP($A$4,Luvut!$B$3:$AT$297,23) -> 312458 | E35: 56.93341812 | G35: =VLOOKUP($A$4,Luvut!$B$3:$ED$297,67) -> 482647 | H35: 87.82732783 | J35: =VLOOKUP($A$4,Luvut!$B$3:$ED$297,111) -> 404863 | K35: =J35*1000/$J$6 -> 73.56244858
A36: Vuosikate | D36: =VLOOKUP($A$4,Luvut!$B$3:$AT$297,24) -> 2065203 | E36: 376.3035861 | G36: =VLOOKUP($A$4,Luvut!$B$3:$ED$297,68) -> 1747616 | H36: 318.0138763 | J36: =VLOOKUP($A$4,Luvut!$B$3:$ED$297,112) -> 4072987 | K36: =J36*1000/$J$6 -> 740.050083
A38: Suunnitelman mukaiset poistot ja arvonalen. | D38: =VLOOKUP($A$4,Luvut!$B$3:$AT$297,25) -> 2192453 | E38: 399.4899902 | G38: =VLOOKUP($A$4,Luvut!$B$3:$ED$297,69) -> 2305725 | H38: 419.5730326 | I38: 5.166450546 | J38: =VLOOKUP($A$4,Luvut!$B$3:$ED$297,113) -> 2397525 | K38: =J38*1000/$J$6 -> 435.623432 | L38: 3.981394139
A39: Satunnaiset tuotot | D39: =VLOOKUP($A$4,Luvut!$B$3:$AT$297,26) -> 45943 | E39: 8.3713396 | G39: =VLOOKUP($A$4,Luvut!$B$3:$ED$297,70) -> 403902 | H39: 73.4980915 | J39: =VLOOKUP($A$4,Luvut!$B$3:$ED$297,114) -> 90574 | K39: =J39*1000/$J$6 -> 16.45703662
A40: Satunnaiset kulut | D40: =VLOOKUP($A$4,Luvut!$B$3:$AT$297,27) -> 26114 | E40: 4.75826921 | G40: =VLOOKUP($A$4,Luvut!$B$3:$ED$297,71) -> 9885 | H40: 1.79877454 | J40: =VLOOKUP($A$4,Luvut!$B$3:$ED$297,115) -> 9330 | K40: =J40*1000/$J$6 -> 1.695234302
A41: Tilikauden tulos | D41: =VLOOKUP($A$4,Luvut!$B$3:$AT$297,28) -> -107421 | E41: -19.57333372 | G41: =VLOOKUP($A$4,Luvut!$B$3:$ED$297,72) -> -164092 | H41: -29.85983934 | J41: =VLOOKUP($A$4,Luvut!$B$3:$ED$297,116) -> 1756706 | K41: =J41*1000/$J$6 -> 319.1884534
A43: Poistoeron lisäys(-) tai vähennys(+) | D43: =VLOOKUP($A$4,Luvut!$B$3:$AT$297,29) -> -11544 | E43: -2.103448716 | G43: =VLOOKUP($A$4,Luvut!$B$3:$ED$297,73) -> -4535 | H43: -0.8252344503 | J43: =VLOOKUP($A$4,Luvut!$B$3:$ED$297,117) -> -25237 | K43: =J43*1000/$J$6 -> -4.585490684
A44: Varausten lisäys(-) tai vähennys(+) | D44: =VLOOKUP($A$4,Luvut!$B$3:$AT$297,30) -> 49922 | E44: 9.096358869 | G44: =VLOOKUP($A$4,Luvut!$B$3:$ED$297,74) -> 8374 | H44: 1.523817704 | J44: =VLOOKUP($A$4,Luvut!$B$3:$ED$297,118) -> -96451 | K44: =J44*1000/$J$6 -> -17.5248707
A45: Rahastojen lisäys(-) tai vähennys(+) | D45: =VLOOKUP($A$4,Luvut!$B$3:$AT$297,31) -> 44732 | E45: 8.150681562 | G45: =VLOOKUP($A$4,Luvut!$B$3:$ED$297,75) -> 28188 | H45: 5.12937347 | J45: =VLOOKUP($A$4,Luvut!$B$3:$ED$297,119) -> -61014 | K45: =J45*1000/$J$6 -> -11.08606921
A46: Tilikauden yli-/alijäämä | D46: =VLOOKUP($A$4,Luvut!$B$3:$AT$297,32) -> -24311 | E46: -4.429742007 | G46: =VLOOKUP($A$4,Luvut!$B$3:$ED$297,76) -> -132065 | H46: -24.03188262 | J46: =VLOOKUP($A$4,Luvut!$B$3:$ED$297,120) -> 1574004 | K46: =J46*1000/$J$6 -> 285.9920228
A47: Taseen kertynyt yli-/alijäämä | D47: =VLOOKUP($A$4,Luvut!$B$3:$AU$297,33) -> 11261407 | E47: 2051.957042 | G47: =VLOOKUP($A$4,Luvut!$B$3:$ED$297,77) -> 11087957 | H47: 2017.676758 | I47: -1.540216067 | J47: =VLOOKUP($A$4,Luvut!$B$3:$ED$297,121) -> 12581318 | K47: =J47*1000/$J$6 -> 2285.989479 | L47: 13.46831522 | N47: -1.670614084 | O47: 13.29810235
A49: Rahoituslaskelma | D49: 1000 | E49: euro/as | G49: 1000 | H49: euro/as | J49: 1000 | K49: euro/as
A51: Toiminnan rahavirta | D51: =VLOOKUP($A$4,Luvut!$B$3:$AT$297,34) -> 1569289 | E51: 285.9423884 | G51: =VLOOKUP($A$4,Luvut!$B$3:$ED$297,78) -> 1298911 | H51: =G51*1000/$G$6 -> 236.362978 | J51: =VLOOKUP($A$4,Luvut!$B$3:$ED$297,122) -> 3702496 | K51: =J51*1000/$J$6 -> 672.7329285
A52: Investoinnit, netto | D52: =D53+D54+D55 -> -2784173 | E52: -507.3081359 | G52: =G53+G54+G55 -> -2733060 | H52: -497.3352297 | I52: -1.835841379 | J52: =J53+J54+J55 -> -3320702 | K52: -603.3620512 | L52: 21.50124769
A53: - Investointimenot | D53: =VLOOKUP($A$4,Luvut!$B$3:$EP$297,140) -> -3649545 | E53: -664.9888031 | G53: =VLOOKUP($A$4,Luvut!$B$3:$EP$297,143) -> -4048365 | H53: -736.6814257 | I53: 10.92793759 | J53: =VLOOKUP($A$4,Luvut!$B$3:$FM$297,146) -> -4312042 | K53: -783.4856924 | L53: 6.513172602
A54: + Rahoitusosuudet investointimenoihin | D54: =VLOOKUP($A$4,Luvut!$B$3:$EP$297,141) -> 120782 | E54: 22.0078606 | G54: =VLOOKUP($A$4,Luvut!$B$3:$EP$297,144) -> 138051 | H54: 25.1211557 | I54: =((G54/D54)-1)*100 -> 14.29766025 | J54: =VLOOKUP($A$4,Luvut!$B$3:$FM$297,147) -> 185133 | K54: 33.63813634 | L54: 34.10478736
A55: + Investointihyödykkeiden luovutustulot | D55: =VLOOKUP($A$4,Luvut!$B$3:$EP$297,142) -> 744590 | E55: 135.6728066 | G55: =VLOOKUP($A$4,Luvut!$B$3:$EP$297,145) -> 1177254 | H55: 214.2250403 | I55: =((G55/D55)-1)*100 -> 58.10768342 | J55: =VLOOKUP($A$4,Luvut!$B$3:$FM$297,148) -> 806207 | K55: 146.4855049 | L55: -31.51800716
A56: Saamisten muutos | D56: =VLOOKUP($A$4,Luvut!$B$3:$AT$297,36) -> -95006 | E56: -17.31117885 | G56: =VLOOKUP($A$4,Luvut!$B$3:$ED$297,80) -> -66136 | H56: -12.03477522 | J56: =VLOOKUP($A$4,Luvut!$B$3:$ED$297,124) -> -31312 | K56: -5.6893008
A57: Pitkäaikaisten lainojen vähennys | D57: =VLOOKUP($A$4,Luvut!$B$3:$AT$297,37) -> -1822844 | E57: -332.1430068 | G57: =VLOOKUP($A$4,Luvut!$B$3:$ED$297,81) -> -1779142 | H57: -323.750666 | J57: =VLOOKUP($A$4,Luvut!$B$3:$ED$297,125) -> -1966295 | K57: -357.2701749
A58: Pitkäaikaisten lainojen lisäys | D58: =VLOOKUP($A$4,Luvut!$B$3:$EY$297,149) -> 2263664 | E58: 412.4654482 | G58: =VLOOKUP($A$4,Luvut!$B$3:$EY$297,151) -> 2830766 | H58: 515.1148013 | J58: =VLOOKUP($A$4,Luvut!$B$3:$EY$297,153) -> 3338105 | K58: 606.5241265
A59: ± Lyhytaikaisten lainojen muutos | D59: =VLOOKUP($A$4,Luvut!$B$3:$EY$297,150) -> 148751 | E59: 27.10413201 | G59: =VLOOKUP($A$4,Luvut!$B$3:$EY$297,152) -> 632620 | H59: 115.1179312 | J59: =VLOOKUP($A$4,Luvut!$B$3:$EY$297,154) -> -762131 | K59: -138.4770219 | N59: 2018 - 2019 | O59: 2019 - 2020
A60: Toiminnan ja investointien rahavirta | D60: =VLOOKUP($A$4,Luvut!$B$3:$AT$297,38) -> -1214884 | E60: -221.3657475 | G60: =VLOOKUP($A$4,Luvut!$B$3:$ED$297,82) -> -1434149 | H60: -260.9722517 | J60: =VLOOKUP($A$4,Luvut!$B$3:$ED$297,126) -> 381794 | K60: 69.37087729 | N60: €/as | O60: €/as
A62: Verotulot | D62: =VLOOKUP($A$4,Luvut!$B$3:$AT$297,39) -> 22321220 | E62: 4067.181353 | G62: =VLOOKUP($A$4,Luvut!$B$3:$ED$297,83) -> 22912315 | H62: 4169.356488 | I62: =((G62/D62)-1)*100 -> 2.648130344 | J62: =SUM(J63:J65) -> 23825588 | K62: =J62*1000/$J$6 -> 4329.041162 | L62: =((J62/G62)-1)*100 -> 3.985948168 | N62: =((H62/E62)-1)*100 -> 2.512185371 | O62: =((K62/H62)-1)*100 -> 3.829959723
A63: Kunnallisvero | D63: =VLOOKUP($A$4,Luvut!$B$3:$AT$297,40) -> 18664568 | E63: 3400.897573 | G63: =VLOOKUP($A$4,Luvut!$B$3:$ED$297,84) -> 19142606 | H63: 3483.382126 | I63: =((G63/D63)-1)*100 -> 2.56120581 | J63: =VLOOKUP($A$4,Luvut!$B$3:$ED$297,128) -> 20124065 | K63: =J63*1000/$J$6 -> 3656.485025 | L63: =((J63/G63)-1)*100 -> 5.127091891 | N63: =((H63/E63)-1)*100 -> 2.425375958 | O63: =((K63/H63)-1)*100 -> 4.969391626
A64: Yhteisövero | D64: =VLOOKUP($A$4,Luvut!$B$3:$AT$297,41) -> 1866127 | E64: 340.029664 | G64: =VLOOKUP($A$4,Luvut!$B$3:$ED$297,85) -> 1902907 | H64: 346.2721967 | I64: 1.970926952 | J64: =VLOOKUP($A$4,Luvut!$B$3:$ED$297,129) -> 1956930 | K64: =J64*1000/$J$6 -> 355.5685812 | L64: 2.838972162 | N64: 1.835878852 | O64: 2.684704286
A65: Kiinteistövero | D65: =VLOOKUP($A$4,Luvut!$B$3:$AT$297,42) -> 1790525 | E65: 326.2541157 | G65: =VLOOKUP($A$4,Luvut!$B$3:$ED$297,86) -> 1866802 | H65: 339.7021659 | I65: 4.260035464 | J65: =VLOOKUP($A$4,Luvut!$B$3:$ED$297,130) -> 1744593 | K65: =J65*1000/$J$6 -> 316.9875559 | L65: -6.546436098 | N65: 4.121955719 | O65: -6.686625002
A67: Lainakanta, | D67: =VLOOKUP($A$4,Luvut!$B$3:$FG$297,155) -> 16729981 | E67: 3048.393715 | G67: =VLOOKUP($A$4,Luvut!$B$3:$FG$297,159) -> 18420037 | H67: 3351.896165 | I67: 10.10196007 | J67: =VLOOKUP($A$4,Luvut!$B$3:$FM$297,163) -> 19033385 | K67: =J67*1000/$J$6 -> 3458.31159 | L67: 3.329787014 | N67: 9.956143403 | O67: 3.174782871
A68: josta pitkäaikainen laina | D68: =VLOOKUP($A$4,Luvut!$B$3:$FG$297,156) -> 11682746 | E68: 2128.729822 | G68: =VLOOKUP($A$4,Luvut!$B$3:$FG$297,160) -> 12599485 | H68: 2292.729675 | J68: =VLOOKUP($A$4,Luvut!$B$3:$FM$297,164) -> 13927122 | K68: =J68*1000/$J$6 -> 2530.518215 | N68: 7.704117794 | O68: 10.3714163
A69: josta lyhytaikainen laina | D69: =VLOOKUP($A$4,Luvut!$B$3:$FG$297,157) -> 5047235 | E69: 919.6638928 | G69: =VLOOKUP($A$4,Luvut!$B$3:$FG$297,161) -> 5820552 | H69: 1059.16649 | J69: =VLOOKUP($A$4,Luvut!$B$3:$FM$297,165) -> 5106263 | K69: =J69*1000/$J$6 -> 927.7933755 | N69: 15.16886744 | O69: -12.40344321
A70: Lainasaamiset | D70: =VLOOKUP($A$4,Luvut!$B$3:$FG$297,158) -> 5765559 | E70: 1050.550734 | G70: =VLOOKUP($A$4,Luvut!$B$3:$FG$297,162) -> 5548348 | H70: 1009.633498 | J70: =VLOOKUP($A$4,Luvut!$B$3:$FM$297,166) -> 5670611 | K70: =J70*1000/$J$6 -> 1030.333792 | N70: -3.894836782 | O70: 2.050278105
A72: Tuloveroprosentti | D72: =VLOOKUP($A$4,Luvut!$B$3:$AT$297,43) -> 19.87 | G72: =VLOOKUP($A$4,Luvut!$B$3:$ED$297,87) -> 19.9 | J72: =VLOOKUP($A$4,Luvut!$B$3:$ED$297,131) -> 19.98
A73: Veroprosenttiyksikön tuotto | D73: =D63/D72 -> 939334.0715 | E73: =D73*1000/$D$6 -> 171.1574018 | G73: =G63/G72 -> 961940 | H73: =G73*1000/$G$6 -> 175.0443279 | J73: =J63/J72 -> 1007210.46 | K73: =J73*1000/$J$6 -> 183.0072585
A75: Sijoitus vuosikatteen (euro/as) mukaan | D75: =VLOOKUP($A$4,Luvut!$B$3:$AT$297,45) -> - | G75: =VLOOKUP($A$4,Luvut!$B$3:$ED$297,89) -> - | J75: =VLOOKUP($A$4,Luvut!$B$3:$ED$297,133) -> -
A76: Lähde: Tilastokeskus
A78: Rahoitusvarallisuus = ((saamiset + rahoitusarvopaperit + rahat ja pankkisaamiset) - (vieras pääoma - saadut ennakot))
A79: Kunnat vuoden 2020 kuntajaolla

Sheet Luvut
C1: 2018 | E1: 92 | F1: 93 | G1: 94 | H1: 95 | I1: 96 | J1: 97 | K1: 98 | L1: 99 | M1: 100 | N1: 101 | O1: 102 | P1: 103 | Q1: 104 | R1: 105 | S1: 106 | T1: 107 | U1: 108 | W1: 110 | X1: 111 | Y1: 112 | Z1: 113 | AA1: 114 | AB1: 115 | AC1: 116 | AD1: 117 | AE1: 118 | AF1: 119 | AG1: 120 | AH1: 121 | AI1: 122 | AK1: 124 | AL1: 125 | AM1: 126 | AN1: 127 | AO1: 128 | AP1: 129 | AQ1: 130 | AR1: 131 | AS1: 132 | AT1: 133 | AU1: 2019 | AW1: 92 | AX1: 93 | AY1: 94 | AZ1: 95 | BA1: 96 | BB1: 97 | BC1: 98 | BD1: 99 | BE1: 100 | BF1: 101 | BG1: 102 | BH1: 103 | BI1: 104 | BJ1: 105 | BK1: 106 | BL1: 107 | BM1: 108 | BN1: 109 | BO1: 110 | BP1: 111 | BQ1: 112 | BR1: 113 | BS1: 114 | BT1: 115 | BU1: 116 | BV1: 117 | BW1: 118 | BX1: 119 | BY1: 120 | BZ1: 121 | CA1: 122 | CB1: 123 | CC1: 124 | CD1: 125 | CE1: 126 | CF1: 127 | CG1: 128 | CH1: 129 | CI1: 130 | CJ1: 131 | CK1: 132 | CL1: 133 | CM1: 2020 | CO1: 92 | CP1: 93 | CQ1: 94 | CR1: 95 | CS1: 96 | CT1: 97 | CU1: 98 | CV1: 99 | CW1: 100 | CX1: 101 | CY1: 102 | CZ1: 103 | DA1: 104 | DB1: 105 | DC1: 106 | DD1: 107 | DE1: 108 | DF1: summana | DG1: 110 | DH1: 111 | DI1: 112 | DJ1: 113 | DK1: 114 | DL1: 115 | DM1: 116 | DN1: 117 | DO1: 118 | DP1: 119 | DQ1: 120 | DR1: 121 | DS1: 122 | DT1: 123 | DU1: 124 | DV1: 125 | DW1: 126 | DX1: 127 | DY1: 128 | DZ1: 129 | EA1: 130 | EB1: 131 | EC1: 132 | ED1: 133 | EE1: Erillistiedot | EF1: 135 | EG1: 136 | EH1: 137 | EI1: 138 | EJ1: 139 | EK1: 2018 | EL1: 144 | EM1: 145 | EN1: 2019 | EO1: 147 | EP1: 148 | EQ1: 2020 | ER1: 147 | ES1: 148 | ET1: 2018 | EU1: 152 | EV1: 2019 | EW1: 154 | EX1: 2020 | EZ1: 2018 | FA1: 160 | FB1: 161 | FC1: 162 | FD1: 2019 | FE1: 164 | FF1: 165 | FG1: 166 | FH1: 2020 | FI1: 164 | FJ1: 165 | FK1: 166 | FL1: 2018 | FM1: 2019 | FN1: 2020 | FO1: Yhden vero%:n | FP1: Yhden vero%:n
A2: Kunta nro | B2: Kunta | C2: Asukasluku | E2: Lainanhoitokate | F2: Suhteellinen velkaantuneisuus-% | G2: Rahoitusvarallisuus, e/as | K2: Omavaraisuusaste, % | L2: Rahavarat e/as | M2: Kassan riittävyys, pv | N2: Kassasta maksut, €/as | O2: Henkilöstökulut | P2: Toimintatuotot | Q2: Toimintakulut | R2: Toimintakate | S2: Verotulot | T2: Valtionosuudet | U2: Alv-takaisinperintä | W2: Korkotuotot/-menot, netto | X2: Muut rahoitustuotot/-menot, netto (sis Osinkotuotot) | Y2: Vuosikate | Z2: Suunnitelman mukaiset poistot ja arvonalet | AA2: Satunnaiset tuotot | AB2: Satunnaiset kulut | AC2: Tilikauden tulos | AD2: Poistoeron lisäys(-) tai vähennys(+) | AE2: Varausten lisäys(-) tai vähennys(+) | AF2: Rahastojen lisäys(-) tai vähennys(+) | AG2: Tilikauden yli- tai alijäämä | AH2: Kumulat yli/alij | AI2: Tulorah (toiminnan rahavirta) | AK2: Saamisten muutos | AL2: Pitkäaikaisten lainojen vähennys | AM2: Toim ja inv rahavirta | AN2: Verotulot | AO2: Kunnallisvero | AP2: Osuus yhteisöveron tuotosta | AQ2: Kiinteistövero | AR2: Tuloveroprosentti | AT2: Sijoitus vuosikatteen mukaan | AU2: Asukasluku | AW2: Lainanhoitokate | AX2: Suht. velkaantuneisuus-% | AY2: Rahoitusvarallisuus, e/as | BC2: Omavaraisuusaste, % | BD2: Rahavarat e/as | BE2: Kassan riittävyys, pv | BF2: Kassasta maksut, €/as | BG2: Henkilöstökulut | BH2: Toimintatuotot | BI2: Toimintakulut | BJ2: Toimintakate | BK2: Verotulot | BL2: Valtionosuudet | BO2: Korkotuotot/-menot, netto | BP2: Muut rahoitustuotot/-menot, netto (sis Osinkotuotot) | BQ2: Vuosikate | BR2: Suunnitelman mukaiset poistot ja arvonalet | BS2: Satu. tuotot | BT2: Satu. kulut | BU2: Tilikauden tulos | BV2: Poistoeron lisäys(-) tai vähennys(+) | BW2: Varausten lisäys(-) tai vähennys(+) | BX2: Rahastojen lisäys(-) tai vähennys(+) | BY2: Tilikauden yli- tai alijäämä | BZ2: Kumulat yli/alij | CA2: Tulorah (toiminnan rahavirta) | CC2: Saamisten muutos | CD2: Pitkäaikaisten lainojen vähennys | CE2: Toim ja inv rahavirta | CF2: Verotulot | CG2: Kunnallisvero | CH2: Osuus yhteisöveron tuotosta | CI2: Kiinteistövero | CJ2: Tuloveroprosentti | CL2: Sijoitus vuosikatteen mukaan | CM2: Asukasluku | CO2: Lainanhoitokate | CP2: Suht. velkaantuneisuus-% | CQ2: Rahoitusvarallisuus, e/as | CU2: Omavaraisuusaste, % | CV2: Rahavarat e/as | CW2: Kassan riittävyys, pv | CX2: Kassasta maksut, €/as | CY2: Henkilöstökulut | CZ2: Toimintatuotot | DA2: Toimintakulut | DB2: Toimintakate | DC2: Verotulot | DD2: Valtionosuudet | DE2: Alv-takaisinperintä | DF2: Käyttökate | DG2: Korkotuotot/-menot, netto | DH2: Muut rahoitustuotot/-menot, netto (sis Osinkotuotot) | DI2: Vuosikate | DJ2: Suunnitelman mukaiset poistot ja arvonalet | DK2: Satu. tuotot | DL2: Satu. kulut | DM2: Tilikauden tulos | DN2: Poistoeron lisäys(-) tai vähennys(+) | DO2: Varausten lisäys(-) tai vähennys(+) | DP2: Rahastojen lisäys(-) tai vähennys(+) | DQ2: Tilikauden yli- tai alijäämä | DR2: Kumulat yli/alij | DS2: Toiminnan rahavirta | DU2: Saamisten muutos | DV2: Pitkäaikaisten lainojen vähennys | DW2: Toim ja inv rahavirta | DX2: Verotulot | DY2: Kunnallisvero | DZ2: Osuus yhteisöveron tuotosta | EA2: Kiinteistövero | EB2: Tuloveroprosentti | ED2: Sijoitus vuosikatteen mukaan | EE2: Palvelujen ostot 2018 | EF2: Palvelujen ostot 2019 | EG2: Palvelujen ostot 2020 | EH2: Harkvar2018 | EI2: Harkvar2019 | EJ2: Harkvar2020 | EK2: - Investointimenot | EL2: + Rahoitusos. investointimenoihin | EM2: + Investointihyödykk. luovutustulot | EN2: - Investointimenot | EO2: + Rahoitusosuudet investointimenoihin | EP2: + Investointihyödykkeiden luovutustulot | EQ2: - Investointimenot | ER2: + Rahoitusosuudet investointimenoihin | ES2: + Investointihyödykkeiden luovutustulot | ET2: Pitkäaikaisten lainojen lisäys | EU2: ± Lyhytaikaisten lainojen muutos | EV2: Pitkäaikaisten lainojen lisäys | EW2: ± Lyhytaikaisten lainojen muutos | EX2: Pitkäaikaisten lainojen lisäys | EY2: ± Lyhytaikaisten lainojen muutos | EZ2: Lainakanta | FA2: josta pitkäaik | FB2: josta lyhytaik | FC2: Lainasaamiset | FD2: Lainakanta | FE2: josta pitkäaik | FF2: josta lyhytaik | FG2: Lainasaamiset | FH2: Lainakanta | FI2: josta pitkäaik | FJ2: josta lyhytaik | FK2: Lainasaamiset | FL2: Konsernilainat €/as | FM2: Konsernilainat €/as | FN2: Konsernilainat €/as | FO2: tuotto | FP2: tuotto, €/as
A3: 20 | B3: Akaa | C3: 16611 | E3: 0.4041204437 | F3: 62.29812932 | G3: -3676.900849 | K3: 25.82998042 | L3: 248.6304256 | M3: 12.61453879 | N3: 7194.088255 | O3: 44053 | P3: 20752 | Q3: 108994 | R3: -88242 | S3: 59625 | T3: 29905 | W3: 62 | X3: 878 | Y3: 2228 | Z3: 4577 | AA3: 0 | AB3: 0 | AC3: -2349 | AD3: 27 | AE3: 0 | AF3: 0 | AG3: -2322 | AH3: -8886 | AI3: 1932 | AK3: 398 | AL3: -5988 | AM3: -1357 | AN3: 59625 | AO3: 54693 | AP3: 1613 | AQ3: 3319 | AR3: 21.75 | AT3: 206 | AU3: 16475 | AW3: 0.8032317577 | AX3: 59.0755326 | AY3: -3668.710167 | BC3: 25.89965286 | BD3: 178.6949924 | BE3: 8.835897478 | BF3: 7381.669196 | BG3: 44817 | BH3: 21733 | BI3: 110542 | BJ3: -88791 | BK3: 62993 | BL3: 31449 | BO3: 85 | BP3: 321 | BQ3: 6057 | BR3: 6043 | BS3: 0 | BT3: 0 | BU3: 14 | BV3: 26 | BW3: 0 | BX3: 0 | BY3: 40 | BZ3: -8846 | CA3: 5908 | CC3: -1750 | CD3: -5507 | CE3: 778 | CF3: 62993 | CG3: 57840 | CH3: 1596 | CI3: 3557 | CJ3: 22.25 | CL3: 66 | CM3: 16391 | CO3: 3.29270562 | CP3: 54.56404061 | CQ3: -3487.706668 | CU3: 33.64537859 | CV3: 528.5827588 | CW3: 23.68773502 | CX3: 8144.835581 | CY3: 44739 | CZ3: 28305 | DA3: 112143 | DB3: -83838 | DC3: 64150 | DD3: 36698 | DG3: 99 | DH3: 378 | DI3: 17487 | DJ3: 5748 | DK3: 0 | DL3: 0 | DM3: 11739 | DN3: 20 | DO3: 0 | DP3: 0 | DQ3: 11759 | DR3: 2911 | DS3: 12838 | DU3: 620 | DV3: -5166 | DW3: 3234 | DX3: 64150 | DY3: 59104 | DZ3: 1773 | EA3: 3273 | EB3: 22.25 | ED3: 22.79411765 | EE3: 50584 | EF3: 49394 | EG3: 50719 | EI3: 1000 | EK3: -3773 | EL3: 130 | EM3: 354 | EN3: -5323 | EO3: 34 | EP3: 159 | EQ3: -16001 | ER3: 115 | ES3: 6282 | ET3: 7500 | EU3: -56 | EV3: 0 | EW3: 5020 | EX3: 12000 | EY3: -8000 | EZ3: 54097 | FA3: 38470 | FB3: 15627 | FC3: 7639 | FD3: 53609 | FE3: 33398 | FF3: 20211 | FG3: 7639 | FH3: 52444 | FI3: 40805 | FJ3: 11639 | FK3: 7647 | FL3: 4285.714286 | FM3: 4463.186646 | FN3: 4623.207858 | FO3: =(DY3/EB3) -> 2656.359551 | FP3: =(FO3/CM3)*1000 -> 162.0620798 | FV3: 4670 | FW3: =FV3*-1 -> -4670
A4: 5 | B4: Alajärvi | C4: 9700 | E4: 0.7670940171 | F4: 39.34223807 | G4: -2770.927835 | K4: 47.73535822 | L4: 405.5670103 | M4: 14.024476 | N4: 10555.25773 | O4: 41606 | P4: 29186 | Q4: 90428 | R4: -61242 | S4: 28893 | T4: 35055 | W4: -193 | X4: 147 | Y4: 2660 | Z4: 3573 | AA4: 0 | AB4: 0 | AC4: -913 | AD4: 0 | AE4: 0 | AF4: 0 | AG4: -913 | AH4: 7731 | AI4: 2602 | AK4: 911 | AL4: -3532 | AM4: -4891 | AN4: 28893 | AO4: 24613 | AP4: 2142 | AQ4: 2138 | AR4: 21.75 | AT4: 123 | AU4: 9562 | AW4: 0.3420010823 | AX4: 38.19911387 | AY4: -3405.772851 | BC4: 43.1400054 | BD4: 352.5413093 | BE4: 10.2928284 | BF4: 12501.67329 | BG4: 45948 | BH4: 44709 | BI4: 107678 | BJ4: -62969 | BK4: 29512 | BL4: 34792 | BO4: -202 | BP4: 150 | BQ4: 1283 | BR4: 3246 | BS4: 0 | BT4: 0 | BU4: -1963 | BV4: 0 | BW4: 0 | BX4: 0 | BY4: -1963 | BZ4: 5768 | CA4: 1301 | CC4: 125 | CD4: -3838 | CE4: -5586 | CF4: 29512 | CG4: 25292 | CH4: 2066 | CI4: 2154 | CJ4: 21.75 | CL4: 162 | CM4: 9419 | CO4: 1.347094096 | CP4: 37.5669431 | CQ4: -3337.721626 | CU4: 44.05983514 | CV4: 478.6070708 | CW4: 14.1801322 | CX4: 12319.46066 | CY4: 45160 | CZ4: 43439 | DA4: 106079 | DB4: -62640 | DC4: 29583 | DD4: 38640 | DG4: -186 | DH4: 252 | DI4: 5649 | DJ4: 3584 | DK4: 0 | DL4: 0 | DM4: 2065 | DN4: 0 | DO4: 0 | DP4: 0 | DQ4: 2065 | DR4: 7833 | DS4: 5646 | DU4: -298 | DV4: -4144 | DW4: 322 | DX4: 29583 | DY4: 25512 | DZ4: 2144 | EA4: 1927 | EB4: 21.75 | ED4: 184.9779412 | EE4: 38046 | EF4: 49572 | EG4: 48993 | EK4: -8209 | EL4: 576 | EM4: 140 | EN4: -7703 | EO4: 779 | EP4: 37 | EQ4: -5620 | ER4: 275 | ES4: 21 | ET4: 4000 | EU4: 2000 | EV4: 8070 | EW4: 0 | EX4: 4000 | EY4: 0 | EZ4: 23626 | FA4: 15945 | FB4: 7681 | FC4: 451 | FD4: 27858 | FE4: 19714 | FF4: 8144 | FG4: 543 | FH4: 27715 | FI4: 19420 | FJ4: 8295 | FK4: 536 | FL4: 4713.505155 | FM4: 5270.550094 | FN4: 5437.30757 | FO4: 1172.965517 | FP4: 124.5318523 | FV4: 3040 | FW4: -3040
A5: 9 | B5: Alavieska | C5: 2573 | E5: 2.195777351 | F5: 57.30781567 | G5: -3238.631947 | K5: 41.54699739 | L5: 672.7555383 | M5: 33.43998095 | N5: 7343.179168 | O5: 4254 | P5: 2153 | Q5: 17572 | R5: -15419 | S5: 7528 | T5: 9025 | W5: -28 | X5: 10 | Y5: 1116 | Z5: 719 | AA5: 0 | AB5: 0 | AC5: 397 | AD5: 0 | AE5: 0 | AF5: 0 | AG5: 397 | AH5: 107 | AI5: 1028 | AK5: 605 | AL5: -493 | AM5: 553 | AN5: 7528 | AO5: 6537 | AP5: 259 | AQ5: 732 | AR5: 21.5 | AT5: 63 | AU5: 2519 | AW5: 1.149043108 | AX5: 56.66544253 | AY5: -3183.009131 | BC5: 43.54897566 | BD5: 720.1270345 | BE5: 34.64549212 | BF5: 7586.74077 | BG5: 4470 | BH5: 2190 | BI5: 17586 | BJ5: -15396 | BK5: 7962 | BL5: 8909 | BO5: -26 | BP5: 11 | BQ5: 1460 | BR5: 745 | BS5: 0 | BT5: 0 | BU5: 715 | BV5: 0 | BW5: 0 | BX5: 0 | BY5: 715 | BZ5: 823 | CA5: 1460 | CC5: -313 | CD5: -344 | CE5: 324 | CF5: 7962 | CG5: 6931 | CH5: 263 | CI5: 768 | CJ5: 22 | CL5: 17 | CM5: 2517 | CO5: 0.4954407295 | CP5: 56.15236781 | CQ5: -2744.139849 | CU5: 45.63175868 | CV5: 1490.26619 | CW5: 56.91129401 | CX5: 9557.806913 | CY5: 4572 | CZ5: 2476 | DA5: 18348 | DB5: -15872 | DC5: 7716 | DD5: 10101 | DG5: 15 | DH5: 11 | DI5: 1971 | DJ5: 705 | DK5: 0 | DL5: 0 | DM5: 1266 | DN5: 0 | DO5: 0 | DP5: 0 | DQ5: 1266 | DR5: 2090 | DS5: 1843 | DU5: 233 | DV5: -3963 | DW5: 1594 | DX5: 7716 | DY5: 6711 | DZ5: 305 | EA5: 700 | EB5: 22 | ED5: 96.33088235 | EE5: 11724 | EF5: 11440 | EG5: 12132 | EK5: -796 | EL5: 144 | EM5: 177 | EN5: -1151 | EO5: 0 | EP5: 15 | EQ5: -1061 | ER5: 11 | ES5: 801 | ET5: 0 | EU5: 1500 | EV5: 0 | EW5: 1000 | EX5: 0 | EY5: 4500 | EZ5: 8807 | FA5: 3963 | FB5: 4844 | FC5: 84 | FD5: 9463 | FE5: 833 | FF5: 8630 | FG5: 84 | FH5: 10000 | FI5: 0 | FJ5: 10000 | FK5: 774 | FL5: 3589.972794 | FM5: 4017.467249 | FN5: 4469.209376 | FO5: 305.0454545 | FP5: 121.1940622 | FV5: 792 | FW5: -792
A6: 10 | B6: Alavus | C6: 11544 | E6: 0.1395472467 | F6: 55.82281353 | G6: -2585.49896 | K6: 50.60492718 | L6: 1225.831601 | M6: 46.87292412 | N6: 9545.564796 | O6: 23328 | P6: 11762 | Q6: 82024 | R6: -70262 | S6: 33901 | T6: 38294 | W6: -32 | X6: 999 | Y6: 2900 | Z6: 3286 | AA6: 0 | AB6: 0 | AC6: -386 | AD6: 0 | AE6: 0 | AF6: 0 | AG6: -386 | AH6: 14779 | AI6: 2686 | AK6: 694 | AL6: -22323 | AM6: -2411 | AN6: 33901 | AO6: 28747 | AP6: 2398 | AQ6: 2756 | AR6: 21.25 | AT6: 138 | AU6: 11468 | AW6: 0.2171916409 | AX6: 63.28590826 | AY6: -2337.286362 | BC6: 50.38705717 | BD6: 1263.167074 | BE6: 54.93049784 | BF6: 8393.442623 | BG6: 24125 | BH6: 11960 | BI6: 84410 | BJ6: -72208 | BK6: 34663 | BL6: 38072 | BO6: -71 | BP6: 620 | BQ6: 1076 | BR6: 3653 | BS6: 9142 | BT6: 0 | BU6: 6565 | BV6: 0 | BW6: 0 | BX6: 0 | BY6: 6565 | BZ6: 21344 | CA6: 886 | CC6: -9544 | CD6: -3177 | CE6: 1926 | CF6: 34663 | CG6: 29279 | CH6: 2585 | CI6: 2799 | CJ6: 21.25 | CL6: 183 | CM6: 11332 | CO6: 1.280664794 | CP6: 63.14536943 | CQ6: -2458.612778 | CU6: 49.57660418 | CV6: 2285.91599 | CW6: 98.13852589 | CX6: 8501.853159 | CY6: 23589 | CZ6: 11612 | DA6: 85363 | DB6: -73751 | DC6: 35072 | DD6: 43125 | DG6: -106 | DH6: 837 | DI6: 5177 | DJ6: 4032 | DK6: 0 | DL6: 0 | DM6: 1145 | DN6: 0 | DO6: 0 | DP6: 0 | DQ6: 1145 | DR6: 22489 | DS6: 5031 | DU6: 9535 | DV6: -3978 | DW6: -1397 | DX6: 35072 | DY6: 29760 | DZ6: 2810 | EA6: 2502 | EB6: 21.25 | ED6: 240.3823529 | EE6: 51990 | EF6: 53095 | EG6: 54746 | EK6: -5594 | EL6: 131 | EM6: 366 | EN6: -8782 | EO6: 156 | EP6: 9666 | EQ6: -6980 | ER6: 262 | ES6: 290 | ET6: 23000 | EU6: -1000 | EV6: 8000 | EW6: 2000 | EX6: 7400 | EY6: -3000 | EZ6: 38419 | FA6: 34242 | FB6: 4177 | FC6: 8286 | FD6: 45243 | FE6: 38265 | FF6: 6978 | FG6: 7374 | FH6: 45665 | FI6: 41500 | FJ6: 4165 | FK6: 7195 | FL6: 6158.350658 | FM6: 6850.453436 | FN6: 7135.72185 | FO6: 1400.470588 | FP6: 123.5854737 | FV6: 2706 | FW6: -2706
A7: 16 | B7: Asikkala | C7: 8149 | E7: 48.33870968 | F7: 27.15997717 | G7: -1227.267149 | K7: 72.14943275 | L7: 359.3078905 | M7: 20.99027791 | N7: 6248.00589 | O7: 13175 | P7: 6194 | Q7: 49448 | R7: -43254 | S7: 28838 | T7: 17538 | W7: -41 | X7: -126 | Y7: 2955 | Z7: 2255 | AA7: 0 | AB7: 0 | AC7: 700 | AD7: 94 | AE7: 0 | AF7: 0 | AG7: 794 | AH7: 10946 | AI7: 2847 | AK7: 765 | AL7: -20 | AM7: 1928 | AN7: 28838 | AO7: 24509 | AP7: 1436 | AQ7: 2893 | AR7: 20.75 | AT7: 90 | AU7: 8083 | AW7: 2.166910688 | AX7: 21.97468075 | AY7: -1233.947792 | BC7: 75.35789158 | BD7: 123.2215761 | BE7: 6.70478228 | BF7: 6708.029197 | BG7: 13729 | BH7: 6112 | BI7: 52010 | BJ7: -45898 | BK7: 29745 | BL7: 18410 | BO7: -40 | BP7: 147 | BQ7: 2364 | BR7: 2215 | BS7: 0 | BT7: 182 | BU7: -33 | BV7: 94 | BW7: 0 | BX7: 0 | BY7: 61 | BZ7: 11007 | CA7: 2079 | CC7: 396 | CD7: -15 | CE7: 145 | CF7: 29745 | CG7: 25296 | CH7: 1538 | CI7: 2911 | CJ7: 20.75 | CL7: 90 | CM7: 8059 | CO7: 160.9259259 | CP7: 10.14380494 | CQ7: -381.0646482 | CU7: 87.02895676 | CV7: 110.8077925 | CW7: 6.111965347 | CX7: 6617.322248 | CY7: 13872 | CZ7: 5611 | DA7: 50709 | DB7: -45098 | DC7: 31883 | DD7: 21892 | DG7: -44 | DH7: 13 | DI7: 8646 | DJ7: 2509 | DK7: 0 | DL7: 0 | DM7: 6137 | DN7: 94 | DO7: -5000 | DP7: 0 | DQ7: 1231 | DR7: 12238 | DS7: 8594 | DU7: -1107 | DV7: -10 | DW7: 6563 | DX7: 31883 | DY7: 27480 | DZ7: 1731 | EA7: 2672 | EB7: 20.75 | ED7: 21.78676471 | EE7: 32499 | EF7: 34689 | EG7: 33295 | EK7: -1179 | EL7: 95 | EM7: 165 | EN7: -2006 | EO7: 0 | EP7: 72 | EQ7: -2276 | ER7: 19 | ES7: 226 | ET7: 0 | EU7: -1500 | EV7: 0 | EW7: -3000 | EX7: 0 | EY7: -5500 | EZ7: 10470 | FA7: 1455 | FB7: 9015 | FC7: 810 | FD7: 7455 | FE7: 1445 | FF7: 6010 | FG7: 810 | FH7: 1945 | FI7: 1435 | FJ7: 510 | FK7: 791 | FL7: 2835.68536 | FM7: 2404.676482 | FN7: 1623.526492 | FO7: 1324.337349 | FP7: 164.3302332 | FV7: 380 | FW7: -380
A8: 18 | B8: Askola | C8: 4958 | E8: -0.01378122308 | F8: 81.33990148 | G8: -3928.801936 | K8: 22.15593713 | L8: 793.6668011 | M8: 42.15535206 | N8: 6871.924163 | O8: 13618 | P8: 4412 | Q8: 30745 | R8: -26333 | S8: 18547 | T8: 7491 | W8: -182 | X8: 279 | Y8: -198 | Z8: 1255 | AA8: 2228 | AB8: 0 | AC8: 775 | AD8: 0 | AE8: 0 | AF8: 0 | AG8: 775 | AH8: -699 | AI8: 1965 | AK8: 125 | AL8: -979 | AM8: 189 | AN8: 18547 | AO8: 16454 | AP8: 949 | AQ8: 1144 | AR8: 20.75 | AT8: 264 | AU8: 4943 | AW8: 0.7301846222 | AX8: 84.09020889 | AY8: -3763.301639 | BC8: 27.0308983 | BD8: 1226.178434 | BE8: 61.51845054 | BF8: 7275.136557 | BG8: 13781 | BH8: 4448 | BI8: 30316 | BJ8: -25868 | BK8: 19707 | BL8: 8303 | BO8: -231 | BP8: 319 | BQ8: 2230 | BR8: 1274 | BS8: 2496 | BT8: 0 | BU8: 3452 | BV8: 0 | BW8: 0 | BX8: 0 | BY8: 3452 | BZ8: 2648 | CA8: 4638 | CC8: -1278 | CD8: -1238 | CE8: 1046 | CF8: 19707 | CG8: 17550 | CH8: 957 | CI8: 1200 | CJ8: 21.5 | CL8: 43 | CM8: 4878 | CO8: 2.606299213 | CP8: 81.2996118 | CQ8: -3670.561706 | CU8: 33.04351969 | CV8: 1757.892579 | CW8: 87.32910156 | CX8: 7347.273473 | CY8: 13415 | CZ8: 4111 | DA8: 30586 | DB8: -26475 | DC8: 20456 | DD8: 9951 | DG8: -173 | DH8: 366 | DI8: 4125 | DJ8: 2141 | DK8: 0 | DL8: 0 | DM8: 1984 | DN8: 0 | DO8: 0 | DP8: 0 | DQ8: 1984 | DR8: 4631 | DS8: 4098 | DU8: 1047 | DV8: -1473 | DW8: 694 | DX8: 20456 | DY8: 18369 | DZ8: 1008 | EA8: 1079 | EB8: 21.5 | ED8: 72.15441176 | EE8: 13333 | EF8: 12858 | EG8: 13433 | EI8: 680 | EK8: -2145 | EL8: 13 | EM8: 356 | EN8: -4153 | EO8: 308 | EP8: 253 | EQ8: -3582 | ER8: 114 | ES8: 64 | ET8: 5000 | EU8: -2243 | EV8: 5000 | EW8: -2000 | EX8: 0 | EY8: 3500 | EZ8: 21209 | FA8: 15576 | FB8: 5633 | FC8: 0 | FD8: 22972 | FE8: 18999 | FF8: 3973 | FG8: 0 | FH8: 24997 | FI8: 17473 | FJ8: 7524 | FK8: 0 | FL8: 5681.323114 | FM8: 6031.762088 | FN8: 6696.391964 | FO8: 854.372093 | FP8: 175.1480306 | FV8: 699 | FW8: -699
A9: 19 | B9: Aura | C9: 3984 | E9: 1.144032922 | F9: 60.2366658 | G9: -3204.568273 | K9: 27.08311928 | L9: 26.85742972 | M9: 1.582006724 | N9: 6196.536145 | O9: 6172 | P9: 2672 | Q9: 22180 | R9: -19508 | S9: 14314 | T9: 6000 | W9: -15 | X9: 28 | Y9: 819 | Z9: 804 | AA9: 0 | AB9: 0 | AC9: 15 | AD9: 28 | AE9: 0 | AF9: 0 | AG9: 43 | AH9: 179 | AI9: 643 | AK9: -215 | AL9: -714 | AM9: -977 | AN9: 14314 | AO9: 12992 | AP9: 571 | AQ9: 751 | AR9: 21.75 | AT9: 163 | AU9: 3941 | AW9: 0.354077863 | AX9: 64.10344237 | AY9: -3314.640954 | BC9: 24.50479389 | BD9: 248.9215935 | BE9: 14.53952978 | BF9: 6248.921594 | BG9: 6514 | BH9: 2647 | BI9: 22749 | BJ9: -20102 | BK9: 14707 | BL9: 6002 | BO9: -13 | BP9: 16 | BQ9: 610 | BR9: 847 | BS9: 0 | BT9: 0 | BU9: -237 | BV9: 28 | BW9: 0 | BX9: 0 | BY9: -209 | BZ9: -30 | CA9: 747 | CC9: 44 | CD9: -714 | CE9: -317 | CF9: 14707 | CG9: 13353 | CH9: 603 | CI9: 751 | CJ9: 21.75 | CL9: 153 | CM9: 3959 | CO9: 2.545967742 | CP9: 55.66220266 | CQ9: -2722.909826 | CU9: 32.43833906 | CV9: 799.9494822 | CW9: 45.56924351 | CX9: 6407.426118 | CY9: 6688 | CZ9: 2657 | DA9: 23226 | DB9: -20569 | DC9: 15595 | DD9: 8107 | DG9: -26 | DH9: 24 | DI9: 3131 | DJ9: 893 | DK9: 0 | DL9: 0 | DM9: 2238 | DN9: 28 | DO9: 0 | DP9: 0 | DQ9: 2266 | DR9: 2236 | DS9: 2883 | DU9: 203 | DV9: -1214 | DW9: 2177 | DX9: 15595 | DY9: 14340 | DZ9: 541 | EA9: 714 | EB9: 21.5 | ED9: 91.29411765 | EE9: 12947 | EF9: 12935 | EG9: 13287 | EJ9: 540 | EK9: -1759 | EL9: 0 | EM9: 139 | EN9: -1132 | EO9: 22 | EP9: 46 | EQ9: -888 | ER9: 1 | ES9: 181 | ET9: 0 | EU9: 200 | EV9: 5000 | EW9: -2700 | EX9: 0 | EY9: 500 | EZ9: 11462 | FA9: 1548 | FB9: 9914 | FC9: 0 | FD9: 13047 | FE9: 5333 | FF9: 7714 | FG9: 0 | FH9: 12333 | FI9: 4357 | FJ9: 7976 | FK9: 0 | FL9: 3577.058233 | FM9: 3948.236488 | FN9: 3688.305128 | FO9: 666.9767442 | FP9: 168.4710139 | FV9: 607 | FW9: -607
A10: 46 | B10: Enonkoski | C10: 1405 | F10: 13.2867759 | G10: 1288.967972 | K10: 87.91235446 | L10: 1987.900356 | M10: 86.86477505 | N10: 8353.024911 | O10: 2372 | P10: 1385 | Q10: 10931 | R10: -9546 | S10: 4481 | T10: 5335 | W10: 17 | X10: 52 | Y10: 339 | Z10: 595 | AA10: 0 | AB10: 0 | AC10: -256 | AD10: 0 | AE10: 0 | AF10: 1 | AG10: -255 | AH10: 5864 | AI10: 339 | AK10: 147 | AL10: 0 | AM10: -357 | AN10: 4481 | AO10: 3379 | AP10: 569 | AQ10: 533 | AR10: 21 | AT10: 143 | AU10: 1361 | AW10: 7.608847497 | AX10: 10.68259685 | AY10: 1544.452608 | BC10: 89.9853205 | BD10: 2108.008817 | BE10: 93.26549697 | BF10: 8249.816312 | BG10: 2446 | BH10: 1423 | BI10: 10689 | BJ10: -9244 | BK10: 4713 | BL10: 5247 | BO10: 12 | BP10: 89 | BQ10: 817 | BR10: 655 | BS10: 0 | BT10: 0 | BU10: 162 | BV10: 0 | BW10: 0 | BX10: 0 | BY10: 162 | BZ10: 6025 | CA10: 817 | CC10: 54 | CD10: 0 | CE10: 267 | CF10: 4713 | CG10: 3580 | CH10: 597 | CI10: 536 | CJ10: 21 | CL10: 15 | CM10: 1369 | CP10: 11.05704698 | CQ10: 2508.400292 | CU10: 88.43225663 | CV10: 3284.879474 | CW10: 151.813263 | CX10: 7897.735573 | CY10: 2445 | CZ10: 1564 | DA10: 10567 | DB10: -9003 | DC10: 4642 | DD10: 5745 | DG10: 8 | DH10: 110 | DI10: 1502 | DJ10: 573 | DK10: 0 | DL10: 0 | DM10: 929 | DN10: 0 | DO10: 0 | DP10: 0 | DQ10: 929 | DR10: 6955 | DS10: 1433 | DU10: -279 | DV10: 0 | DW10: 1288 | DX10: 4642 | DY10: 3472 | DZ10: 680 | EA10: 490 | EB10: 21 | ED10: 17.75735294 | EE10: 7560 | EF10: 7318 | EG10: 7242 | EK10: -780 | EL10: 80 | EM10: 4 | EN10: -558 | EO10: 0 | EP10: 8 | EQ10: -275 | ER10: 0 | ES10: 130 | ET10: 0 | EU10: 0 | EV10: 0 | EW10: 0 | EX10: 0 | EY10: 0 | EZ10: 0 | FA10: 0 | FB10: 0 | FC10: 286 | FD10: 0 | FE10: 0 | FF10: 0 | FG10: 261 | FH10: 0 | FI10: 0 | FJ10: 0 | FK10: 236 | FL10: 770.1067616 | FM10: 590.7421014 | FN10: 824.6895544 | FO10: 165.3333333 | FP10: 120.7694181 | FV10: 63 | FW10: -63
A11: 47 | B11: Enontekiö | C11: 1852 | E11: 0.8892261002 | F11: 34.84302914 | G11: -2738.12095 | K11: 54.99221553 | L11: 183.0453564 | M11: 6.478950675 | N11: 10312.09503 | O11: 7223 | P11: 2808 | Q11: 17628 | R11: -14820 | S11: 6362 | T11: 8604 | W11: -5 | X11: 394 | Y11: 535 | Z11: 354 | AA11: 0 | AB11: 0 | AC11: 181 | AD11: 0 | AE11: 0 | AF11: 0 | AG11: 181 | AH11: 1446 | AI11: 487 | AK11: 174 | AL11: -608 | AM11: 171 | AN11: 6362 | AO11: 5155 | AP11: 384 | AQ11: 823 | AR11: 21.25 | AT11: 115 | AU11: 1838 | AW11: 0.6010039813 | AX11: 37.61112377 | AY11: -3074.537541 | BC11: 53.8997764 | BD11: 26.6594124 | BE11: 0.8930443901 | BF11: 10896.0827 | BG11: 6826 | BH11: 2496 | BI11: 17495 | BJ11: -14999 | BK11: 6263 | BL11: 8789 | BO11: -32 | BP11: 376 | BQ11: 397 | BR11: 366 | BS11: 0 | BT11: 0 | BU11: 31 | BV11: -40 | BW11: 41 | BX11: 0 | BY11: 32 | BZ11: 1478 | CA11: 323 | CC11: -116 | CD11: -600 | CE11: -615 | CF11: 6263 | CG11: 5043 | CH11: 391 | CI11: 829 | CJ11: 21.25 | CL11: 121 | CM11: 1808 | CO11: 1.924713584 | CP11: 38.81160358 | CQ11: -3367.809735 | CU11: 53.76991366 | CV11: 118.3628319 | CW11: 3.86377127 | CX11: 11181.41593 | CY11: 6553 | CZ11: 2399 | DA11: 17630 | DB11: -15231 | DC11: 6394 | DD11: 9753 | DG11: -14 | DH11: 255 | DI11: 1157 | DJ11: 510 | DK11: 0 | DL11: 0 | DM11: 647 | DN11: 2 | DO11: 0 | DP11: 0 | DQ11: 649 | DR11: 2127 | DS11: 1028 | DU11: 5 | DV11: -592 | DW11: -384 | DX11: 6394 | DY11: 5173 | DZ11: 456 | EA11: 765 | EB11: 21.25 | ED11: 162.8161765 | EE11: 8489 | EF11: 8657 | EG11: 9033 | EK11: -522 | EL11: 97 | EM11: 109 | EN11: -1632 | EO11: 480 | EP11: 214 | EQ11: -1675 | ER11: 119 | ES11: 144 | ET11: 0 | EU11: 50 | EV11: 0 | EW11: 792 | EX11: 0 | EY11: 1442 | EZ11: 3953 | FA11: 2595 | FB11: 1358 | FC11: 1751 | FD11: 4145 | FE11: 1995 | FF11: 2150 | FG11: 1614 | FH11: 4995 | FI11: 1403 | FJ11: 3592 | FK11: 1652 | FL11: 5075.053996 | FM11: 4935.255713 | FN11: 5577.433628 | FO11: 243.4352941 | FP11: 134.6434149 | FV11: 874 | FW11: -874
A12: 49 | B12: Espoo | C12: 283632 | E12: 3.24498695 | F12: 54.03828645 | G12: -198.7786992 | K12: 72.12528071 | L12: 2995.264991 | M12: 143.6256168 | N12: 7611.954928 | O12: 641447 | P12: 392012 | Q12: 1767910 | R12: -1375898 | S12: 1501986 | T12: 43067 | W12: 6717 | X12: 19657 | Y12: 195529 | Z12: 161134 | AA12: 0 | AB12: 0 | AC12: 34395 | AD12: -1606 | AE12: 0 | AF12: 12468 | AG12: 45257 | AH12: 525559 | AI12: 133450 | AK12: -5982 | AL12: -54463 | AM12: -72387 | AN12: 1501986 | AO12: 1259684 | AP12: 125298 | AQ12: 117004 | AR12: 18 | AT12: 14 | AU12: 289731 | AW12: 1.26798289 | AX12: 62.60994252 | AY12: -612.4336022 | BC12: 68.23903248 | BD12: 3083.725939 | BE12: 140.1805034 | BF12: 8029.361718 | BG12: 672439 | BH12: 418078 | BI12: 1886234 | BJ12: -1455718 | BK12: 1521184 | BL12: 60874 | BO12: 6894 | BP12: 38178 | BQ12: 171412 | BR12: 178942 | BS12: 0 | BT12: 0 | BU12: -7530 | BV12: -2232 | BW12: 0 | BX12: 15025 | BY12: 5263 | BZ12: 511808 | CA12: 85823 | CC12: -46854 | CD12: -57850 | CE12: -115870 | CF12: 1521184 | CG12: 1272287 | CH12: 128604 | CI12: 120293 | CJ12: 18 | CL12: 16 | CM12: 292796 | CO12: 4.047942201 | CP12: 70.48585349 | CQ12: -741.8987964 | CU12: 64.44527828 | CV12: 3875.722346 | CW12: 167.7636391 | CX12: 8432.331726 | CY12: 687990 | CZ12: 416164 | DA12: 1942554 | DB12: -1526390 | DC12: 1605340 | DD12: 205087 | DG12: 6090 | DH12: 14289 | DI12: 304416 | DJ12: 175319 | DK12: 0 | DL12: 0 | DM12: 129097 | DN12: -1232 | DO12: 0 | DP12: 15019 | DQ12: 142884 | DR12: 637571 | DS12: 235436 | DU12: -27450 | DV12: -68170 | DW12: -35607 | DX12: 1605340 | DY12: 1356824 | DZ12: 136178 | EA12: 112338 | EB12: 18 | ED12: 26.82352941 | EE12: 819880 | EF12: 881701 | EG12: 918495 | EK12: -306855 | EL12: 36316 | EM12: 64702 | EN12: -351520 | EO12: 57414 | EP12: 92413 | EQ12: -424525 | ER12: 82341 | ES12: 71141 | ET12: 100000 | EU12: -52872 | EV12: 220000 | EW12: 28508 | EX12: 285000 | EY12: 34749 | EZ12: 798266 | FA12: 674452 | FB12: 123814 | FC12: 308687 | FD12: 988922 | FE12: 829753 | FF12: 159169 | FG12: 337799 | FH12: 1240501 | FI12: 1038677 | FJ12: 201824 | FK12: 359897 | FL12: 12349.20954 | FM12: 13125.06774 | FN12: 14637.84341 | FO12: 75379.11111 | FP12: 257.4458364 | FV12: 55179 | FW12: -55179
A13: 50 | B13: Eura | C13: 11748 | E13: -0.2377666248 | F13: 56.97462715 | G13: -3319.799115 | K13: 43.377878 | L13: 184.7974123 | M13: 9.461671642 | N13: 7128.873 | O13: 35905 | P13: 10999 | Q13: 77829 | R13: -66830 | S13: 43565 | T13: 22881 | W13: -11 | X13: -19 | Y13: -414 | Z13: 3515 | AA13: 0 | AB13: 0 | AC13: -3929 | AD13: 23 | AE13: 0 | AF13: 0 | AG13: -3906 | AH13: 3931 | AI13: -790 | AK13: 879 | AL13: -1559 | AM13: -4362 | AN13: 43565 | AO13: 38473 | AP13: 1964 | AQ13: 3128 | AR13: 20.5 | AT13: 263 | AU13: 11632 | AW13: -0.08052813909 | AX13: 68.53173739 | AY13: -4063.961486 | BC13: 35.61180927 | BD13: 175.3782669 | BE13: 8.463575707 | BF13: 7563.359697 | BG13: 35650 | BH13: 10626 | BI13: 78529 | BJ13: -67900 | BK13: 43287 | BL13: 24118 | BO13: -38 | BP13: 10 | BQ13: -523 | BR13: 3726 | BS13: 0 | BT13: 0 | BU13: -4249 | BV13: 21 | BW13: 0 | BX13: 0 | BY13: -4228 | BZ13: -290 | CA13: -627 | CC13: -1212 | CD13: -1279 | CE13: -8289 | CF13: 43287 | CG13: 38036 | CH13: 2057 | CI13: 3194 | CJ13: 20.5 | CL13: 244 | CM13: 11483 | CO13: 5.64360587 | CP13: 61.10211648 | CQ13: -3832.622137 | CU13: 38.99856236 | CV13: 295.9157015 | CW13: 14.7461597 | CX13: 7324.566751 | CY13: 34910 | CZ13: 10855 | DA13: 77313 | DB13: -66458 | DC13: 45835 | DD13: 28546 | DG13: -129 | DH13: 132 | DI13: 7926 | DJ13: 4174 | DK13: 0 | DL13: 0 | DM13: 3752 | DN13: 20 | DO13: 0 | DP13: 0 | DQ13: 3772 | DR13: 3482 | DS13: 7993 | DU13: -511 | DV13: -1281 | DW13: 2931 | DX13: 45835 | DY13: 40534 | DZ13: 2487 | EA13: 2814 | EB13: 21 | ED13: 138.6397059 | EE13: 29661 | EF13: 30278 | EG13: 29917 | EI13: 900 | EK13: -4158 | EL13: 75 | EM13: 511 | EN13: -7966 | EO13: 7 | EP13: 297 | EQ13: -5340 | ER13: 13 | ES13: 265 | ET13: 0 | EU13: 4000 | EV13: 5080 | EW13: 6000 | EX13: 0 | EY13: 0 | EZ13: 31082 | FA13: 11828 | FB13: 19254 | FC13: 3023 | FD13: 40882 | FE13: 15601 | FF13: 25281 | FG13: 2942 | FH13: 39601 | FI13: 14317 | FJ13: 25284 | FK13: 2789 | FL13: 4619.16922 | FM13: 5432.685695 | FN13: 5253.505182 | FO13: 1930.190476 | FP13: 168.0911326 | FV13: 818 | FW13: -818
A14: 51 | B14: Eurajoki | C14: 9454 | E14: 3.436170213 | F14: 34.30761996 | G14: 259.2553417 | K14: 79.67747012 | L14: 2576.581341 | M14: 124.0621076 | N14: 7580.495029 | O14: 26361 | P14: 8094 | Q14: 64344 | R14: -56250 | S14: 50340 | T14: 11737 | W14: -51 | X14: -724 | Y14: 5052 | Z14: 5212 | AA14: 0 | AB14: 0 | AC14: -160 | AD14: 3 | AE14: 0 | AF14: 0 | AG14: -157 | AH14: 75565 | AI14: 5052 | AK14: 1048 | AL14: -1388 | AM14: 2484 | AN14: 50340 | AO14: 28914 | AP14: 2214 | AQ14: 19212 | AR14: 18 | AT14: 38 | AU14: 9402 | AW14: 1.551227383 | AX14: 31.89414263 | AY14: 562.3271644 | BC14: 80.06324017 | BD14: 2437.034673 | BE14: 110.4277415 | BF14: 8055.201021 | BG14: 27266 | BH14: 8388 | BI14: 70036 | BJ14: -61648 | BK14: 52060 | BL14: 11120 | BO14: 28 | BP14: 1770 | BQ14: 3330 | BR14: 4915 | BS14: 0 | BT14: 0 | BU14: -1585 | BV14: 3 | BW14: -112 | BX14: 0 | BY14: -1694 | BZ14: 73816 | CA14: 3330 | CC14: -3037 | CD14: -1088 | CE14: -773 | CF14: 52060 | CG14: 28952 | CH14: 2581 | CI14: 20527 | CJ14: 18 | CL14: 71 | CM14: 9452 | CO14: 2.249007374 | CP14: 30.31164994 | CQ14: 552.1582734 | CU14: 80.76027527 | CV14: 2492.065171 | CW14: 109.4549262 | CX14: 8310.304697 | CY14: 27445 | CZ14: 7086 | DA14: 69110 | DB14: -62024 | DC14: 51185 | DD14: 14150 | DG14: -63 | DH14: 610 | DI14: 3858 | DJ14: 4715 | DK14: 0 | DL14: 0 | DM14: -857 | DN14: 3 | DO14: 166 | DP14: 0 | DQ14: -688 | DR14: 73022 | DS14: 3771 | DU14: 1586 | DV14: -1656 | DW14: 180 | DX14: 51185 | DY14: 28776 | DZ14: 2667 | EA14: 19742 | EB14: 18 | ED14: 255.4926471 | EE14: 31318 | EF14: 35296 | EG14: 34270 | EK14: -4044 | EL14: 16 | EM14: 1460 | EN14: -4201 | EO14: 24 | EP14: 74 | EQ14: -7380 | ER14: 0 | ES14: 3789 | ET14: 0 | EU14: -425 | EV14: 0 | EW14: -442 | EX14: 0 | EY14: 0 | EZ14: 13642 | FA14: 12023 | FB14: 1619 | FC14: 3622 | FD14: 12112 | FE14: 10456 | FF14: 1656 | FG14: 105 | FH14: 10455 | FI14: 8866 | FJ14: 1589 | FK14: 0 | FL14: 1704.146393 | FM14: 1570.729632 | FN14: 1696.360559 | FO14: 1598.666667 | FP14: 169.13528 | FV14: 701 | FW14: -701
A15: 52 | B15: Evijärvi | C15: 2473 | F15: 36.48106415 | G15: -57.01577032 | K15: 65.70426473 | L15: 2420.946219 | M15: 110.9097599 | N15: 7967.24626 | O15: 4036 | P15: 1829 | Q15: 18407 | R15: -16578 | S15: 7975 | T15: 8389 | W15: 51 | X15: -293 | Y15: -456 | Z15: 514 | AA15: 0 | AB15: 0 | AC15: -970 | AD15: 0 | AE15: 0 | AF15: 0 | AG15: -970 | AH15: 4177 | AI15: -521 | AK15: 78 | AL15: 0 | AM15: -1308 | AN15: 7975 | AO15: 6586 | AP15: 639 | AQ15: 750 | AR15: 21.5 | AT15: 284 | AU15: 2425 | AW15: -0.2546269009 | AX15: 48.0081497 | AY15: -688.6597938 | BC15: 57.20260444 | BD15: 2752.57732 | BE15: 115.857863 | BF15: 8671.752577 | BG15: 4135 | BH15: 1744 | BI15: 19558 | BJ15: -17814 | BK15: 8047 | BL15: 8860 | BO15: 58 | BP15: 579 | BQ15: -270 | BR15: 619 | BS15: 0 | BT15: 0 | BU15: -889 | BV15: 0 | BW15: 0 | BX15: 0 | BY15: -889 | BZ15: 3287 | CA15: -275 | CC15: -101 | CD15: 0 | CE15: -1492 | CF15: 8047 | CG15: 6699 | CH15: 584 | CI15: 764 | CJ15: 21.5 | CL15: 262 | CM15: 2408 | CO15: 296 | CP15: 54.41501671 | CQ15: -1184.800664 | CU15: 52.14906161 | CV15: 3031.146179 | CW15: 124.0228574 | CX15: 8920.681063 | CY15: 4217 | CZ15: 1630 | DA15: 19394 | DB15: -17764 | DC15: 8100 | DD15: 9715 | DG15: 69 | DH15: 175 | DI15: 295 | DJ15: 744 | DK15: 0 | DL15: 0 | DM15: -449 | DN15: 0 | DO15: 0 | DP15: 0 | DQ15: -449 | DR15: 2838 | DS15: 295 | DU15: 181 | DV15: 0 | DW15: -1230 | DX15: 8100 | DY15: 6733 | DZ15: 674 | EA15: 693 | EB15: 21.5 | ED15: 287.7279412 | EE15: 12714 | EF15: 13692 | EG15: 13237 | EK15: -956 | EL15: 75 | EM15: 94 | EN15: -1384 | EO15: 160 | EP15: 7 | EQ15: -1591 | ER15: 61 | ES15: 5 | ET15: 0 | EU15: 550 | EV15: 0 | EW15: 1000 | EX15: 0 | EY15: 3200 | EZ15: 5500 | FA15: 0 | FB15: 5500 | FC15: 194 | FD15: 6500 | FE15: 0 | FF15: 6500 | FG15: 187 | FH15: 9700 | FI15: 0 | FJ15: 9700 | FK15: 180 | FL15: 3319.854428 | FM15: 3919.587629 | FN15: 5443.521595 | FO15: 313.1627907 | FP15: 130.0509928 | FV15: 500 | FW15: -500
A16: 61 | B16: Forssa | C16: 17028 | E16: 1.528272657 | F16: 45.47908232 | G16: -1777.073056 | K16: 59.29433559 | L16: 1039.640592 | M16: 52.93005292 | N16: 7169.250646 | O16: 29324 | P16: 18368 | Q16: 112690 | R16: -94322 | S16: 60239 | T16: 39953 | W16: -359 | X16: 42 | Y16: 5553 | Z16: 8099 | AA16: 0 | AB16: -2000 | AC16: -546 | AD16: 93 | AE16: 0 | AF16: 0 | AG16: -453 | AH16: 8609 | AI16: 3837 | AK16: 245 | AL16: -3507 | AM16: -1029 | AN16: 60239 | AO16: 51271 | AP16: 3659 | AQ16: 5309 | AR16: 20.5 | AT16: 102 | AU16: 16901 | AW16: 0.7907403007 | AX16: 51.88099151 | AY16: -1892.077392 | BC16: 56.36317406 | BD16: 1346.015029 | BE16: 61.88381764 | BF16: 7938.997692 | BG16: 29784 | BH16: 18319 | BI16: 114153 | BJ16: -95834 | BK16: 60706 | BL16: 40832 | BO16: -244 | BP16: 60 | BQ16: 5520 | BR16: 6058 | BS16: 100 | BT16: 125 | BU16: -563 | BV16: 94 | BW16: 0 | BX16: 0 | BY16: -469 | BZ16: 8139 | CA16: 3972 | CC16: -1499 | CD16: -13513 | CE16: -1854 | CF16: 60706 | CG16: 51722 | CH16: 3679 | CI16: 5305 | CJ16: 20.5 | CL16: 81 | CM16: 16800 | CO16: 2.778869779 | CP16: 48.44376179 | CQ16: -1605.47619 | CU16: 57.94461182 | CV16: 1689.107143 | CW16: 81.69875688 | CX16: 7546.309524 | CY16: 29500 | CZ16: 18363 | DA16: 116977 | DB16: -98614 | DC16: 61562 | DD16: 48333 | DG16: -434 | DH16: 27 | DI16: 10874 | DJ16: 7583 | DK16: 0 | DL16: -664 | DM16: 3955 | DN16: 88 | DO16: -3000 | DP16: 0 | DQ16: 1043 | DR16: 9182 | DS16: 10453 | DU16: 673 | DV16: -3634 | DW16: 4895 | DX16: 61562 | DY16: 52863 | DZ16: 3955 | EA16: 4744 | EB16: 20.5 | ED16: 160.8014706 | EE16: 75016 | EF16: 75782 | EG16: 78558 | EK16: -5510 | EL16: 43 | EM16: 601 | EN16: -6173 | EO16: 164 | EP16: 183 | EQ16: -5724 | ER16: 34 | ES16: 132 | ET16: 6383 | EU16: -1160 | EV16: 10152 | EW16: 12068 | EX16: 10000 | EY16: -7201 | EZ16: 44942 | FA16: 24067 | FB16: 20875 | FC16: 639 | FD16: 53650 | FE16: 20810 | FF16: 32840 | FG16: 517 | FH16: 52814 | FI16: 27174 | FJ16: 25640 | FK16: 395 | FL16: 4002.877613 | FM16: 4080.527779 | FN16: 4027.797619 | FO16: 2578.682927 | FP16: 153.4930314 | FV16: 2820 | FW16: -2820
A17: 69 | B17: Haapajärvi | C17: 7147 | E17: 0.06125461255 | F17: 73.09428142 | G17: -3316.216594 | K17: 37.02465047 | L17: 1864.838394 | M17: 81.37704918 | N17: 8364.348678 | O17: 14583 | P17: 5885 | Q17: 52269 | R17: -46384 | S17: 23161 | T17: 23467 | W17: -295 | X17: 84 | Y17: 33 | Z17: 2056 | AA17: 0 | AB17: 0 | AC17: -2023 | AD17: 85 | AE17: 0 | AF17: 0 | AG17: -1938 | AH17: -2084 | AI17: 27 | AK17: 748 | AL17: -5121 | AM17: -1272 | AN17: 23161 | AO17: 19358 | AP17: 1560 | AQ17: 2243 | AR17: 22 | AT17: 252 | AU17: 7010 | AW17: 0.03024061206 | AX17: 83.36246806 | AY17: -3805.848787 | BC17: 31.8881097 | BD17: 2208.131241 | BE17: 89.96839071 | BF17: 8958.345221 | BG17: 14390 | BH17: 5171 | BI17: 53348 | BJ17: -48177 | BK17: 23573 | BL17: 23313 | BO17: -328 | BP17: 1455 | BQ17: -164 | BR17: 2114 | BS17: 0 | BT17: 0 | BU17: -2278 | BV17: 85 | BW17: 0 | BX17: 0 | BY17: -2193 | BZ17: -4277 | CA17: -353 | CC17: 116 | CD17: -5040 | CE17: -3717 | CF17: 23573 | CG17: 20118 | CH17: 1237 | CI17: 2218 | CJ17: 22.5 | CL17: 237 | CM17: 6896 | CO17: 0.7367638863 | CP17: 79.92397454 | CQ17: -3960.991879 | CU17: 32.31287447 | CV17: 2273.346868 | CW17: 91.32427343 | CX17: 9085.991879 | CY17: 14155 | CZ17: 5280 | DA17: 52922 | DB17: -47642 | DC17: 23624 | DD17: 27656 | DG17: -315 | DH17: 325 | DI17: 3648 | DJ17: 2384 | DK17: 0 | DL17: 0 | DM17: 1264 | DN17: 85 | DO17: 0 | DP17: 0 | DQ17: 1349 | DR17: -2928 | DS17: 3115 | DU17: -974 | DV17: -5065 | DW17: 690 | DX17: 23624 | DY17: 20221 | DZ17: 1388 | EA17: 2015 | EB17: 22.5 | ED17: 215.1985294 | EE17: 33873 | EF17: 34825 | EG17: 34495 | EJ17: 970 | EK17: -1372 | EL17: 64 | EM17: 9 | EN17: -3878 | EO17: 177 | EP17: 337 | EQ17: -3874 | ER17: 46 | ES17: 1403 | ET17: 5890 | EU17: -1040 | EV17: 8005 | EW17: 2000 | EX17: 11360 | EY17: -3500 | EZ17: 34091 | FA17: 22649 | FB17: 11442 | FC17: 1132 | FD17: 39056 | FE17: 25816 | FF17: 13240 | FG17: 1132 | FH17: 41851 | FI17: 31156 | FJ17: 10695 | FK17: 1132 | FL17: 5898.139079 | FM17: 7411.269615 | FN17: 9184.019722 | FO17: 898.7111111 | FP17: 130.323537 | FV17: 5099 | FW17: -5099
A18: 71 | B18: Haapavesi | C18: 6854 | E18: 0.1634326319 | F18: 64.90134809 | G18: -2563.174788 | K18: 34.61799479 | L18: 1126.495477 | M18: 45.51520584 | N18: 9033.702947 | O18: 28185 | P18: 11262 | Q18: 55683 | R18: -44421 | S18: 20219 | T18: 24524 | W18: -163 | X18: 145 | Y18: 304 | Z18: 1671 | AA18: 0 | AB18: 0 | AC18: -1367 | AD18: 0 | AE18: 0 | AF18: 0 | AG18: -1367 | AH18: 3637 | AI18: 304 | AK18: 224 | AL18: -3365 | AM18: 28 | AN18: 20219 | AO18: 17246 | AP18: 1309 | AQ18: 1664 | AR18: 22 | AT18: 234 | AU18: 6758 | AW18: 0.3188675731 | AX18: 57.88160289 | AY18: -2593.666765 | BC18: 34.19378295 | BD18: 1190.440959 | BE18: 44.61634886 | BF18: 9738.828056 | BG18: 30204 | BH18: 16163 | BI18: 61497 | BJ18: -45334 | BK18: 21361 | BL18: 24589 | BO18: -153 | BP18: 528 | BQ18: 991 | BR18: 1565 | BS18: 0 | BT18: 0 | BU18: -574 | BV18: 0 | BW18: 0 | BX18: 0 | BY18: -574 | BZ18: 3063 | CA18: 963 | CC18: 681 | CD18: -2833 | CE18: 255 | CF18: 21361 | CG18: 18344 | CH18: 1310 | CI18: 1707 | CJ18: 22 | CL18: 155 | CM18: 6667 | CO18: 1.172669135 | CP18: 63.4162785 | CQ18: -3268.336583 | CU18: 33.09811828 | CV18: 1354.732263 | CW18: 44.36746339 | CX18: 11145.04275 | CY18: 30266 | CZ18: 16857 | DA18: 62065 | DB18: -45208 | DC18: 21576 | DD18: 26831 | DG18: -83 | DH18: 120 | DI18: 3236 | DJ18: 1360 | DK18: 0 | DL18: 0 | DM18: 1876 | DN18: 0 | DO18: 0 | DP18: 0 | DQ18: 1876 | DR18: 4938 | DS18: 2711 | DU18: -187 | DV18: -2723 | DW18: -4281 | DX18: 21576 | DY18: 18864 | DZ18: 1224 | EA18: 1488 | EB18: 22 | ED18: 234.3382353 | EE18: 20573 | EF18: 23684 | EG18: 24087 | EK18: -1843 | EL18: 43 | EM18: 1524 | EN18: -970 | EO18: 90 | EP18: 172 | EQ18: -7931 | ER18: 196 | ES18: 743 | ET18: 7000 | EU18: -6289 | EV18: 0 | EW18: 2011 | EX18: 22000 | EY18: -15700 | EZ18: 28246 | FA18: 11166 | FB18: 17080 | FC18: 0 | FD18: 27424 | FE18: 9251 | FF18: 18173 | FG18: 0 | FH18: 31001 | FI18: 28950 | FJ18: 2051 | FK18: 0 | FL18: 5428.6548 | FM18: 5545.723587 | FN18: 6462.126894 | FO18: 857.4545455 | FP18: 128.6117512 | FV18: 1987 | FW18: -1987
A19: 72 | B19: Hailuoto | C19: 974 | E19: 0.2949152542 | F19: 37.73695296 | G19: -591.37577 | K19: 70.11494253 | L19: 2139.63039 | M19: 74.5745098 | N19: 10472.27926 | O19: 3710 | P19: 1631 | Q19: 8465 | R19: -6834 | S19: 3469 | T19: 3446 | W19: -13 | X19: 0 | Y19: 68 | Z19: 398 | AA19: 0 | AB19: 0 | AC19: -330 | AD19: 259 | AE19: 0 | AF19: 0 | AG19: -71 | AH19: 3376 | AI19: -47 | AK19: -64 | AL19: -276 | AM19: -852 | AN19: 3469 | AO19: 3032 | AP19: 98 | AQ19: 339 | AR19: 20.5 | AT19: 222 | AU19: 959 | AW19: -0.1309285237 | AX19: 42.87563243 | AY19: -2590.198123 | BC19: 66.99122225 | BD19: 739.3117831 | BE19: 24.16067594 | BF19: 11168.92596 | BG19: 3781 | BH19: 1482 | BI19: 8551 | BJ19: -7069 | BK19: 3591 | BL19: 3426 | BO19: -12 | BP19: -2 | BQ19: -66 | BR19: 367 | BS19: 0 | BT19: 0 | BU19: -433 | BV19: 106 | BW19: 0 | BX19: 0 | BY19: -327 | BZ19: 3048 | CA19: -70 | CC19: 115 | CD19: -276 | CE19: -1922 | CF19: 3591 | CG19: 3153 | CH19: 98 | CI19: 340 | CJ19: 20.5 | CL19: 253 | CM19: 949 | CO19: 1.483050847 | CP19: 37.28431262 | CQ19: -2390.937829 | CU19: 68.67342308 | CV19: 653.3192835 | CW19: 24.90370859 | CX19: 9575.342466 | CY19: 3726 | CZ19: 1419 | DA19: 8347 | DB19: -6928 | DC19: 3605 | DD19: 3843 | DG19: -13 | DH19: 0 | DI19: 507 | DJ19: 509 | DK19: 0 | DL19: 0 | DM19: -2 | DN19: 92 | DO19: 0 | DP19: 0 | DQ19: 90 | DR19: 3138 | DS19: 507 | DU19: 34 | DV19: -336 | DW19: 166 | DX19: 3605 | DY19: 3176 | DZ19: 121 | EA19: 308 | EB19: 20.5 | ED19: 213.1838235 | EE19: 3593 | EF19: 3566 | EG19: 3413 | EK19: -1438 | EL19: 0 | EM19: 633 | EN19: -1864 | EO19: 8 | EP19: 4 | EQ19: -383 | ER19: 31 | ES19: 11 | ET19: 0 | EU19: 0 | EV19: 900 | EW19: 0 | EX19: 0 | EY19: 0 | EZ19: 1956 | FA19: 1680 | FB19: 276 | FC19: 0 | FD19: 2580 | FE19: 2244 | FF19: 336 | FG19: 0 | FH19: 2244 | FI19: 1908 | FJ19: 336 | FK19: 0 | FL19: 2798.767967 | FM19: 3734.098019 | FN19: 4181.243414 | FO19: 154.9268293 | FP19: 163.2527179 | FV19: 0 | FW19: 0
A20: 74 | B20: Halsua | C20: 1165 | E20: 2 | F20: 57.36355435 | G20: -3425.751073 | K20: 39.12627169 | L20: 157.9399142 | M20: 7.170617126 | N20: 8039.484979 | O20: 2110 | P20: 1130 | Q20: 8862 | R20: -7732 | S20: 3411 | T20: 4327 | W20: -22 | X20: 1 | Y20: -15 | Z20: 129 | AA20: 0 | AB20: 53 | AC20: -144 | AD20: 0 | AE20: 0 | AF20: 0 | AG20: -144 | AH20: 326 | AI20: -196 | AK20: -209 | AL20: -7 | AM20: -505 | AN20: 3411 | AO20: 2623 | AP20: 432 | AQ20: 356 | AR20: 22 | AT20: 241 | AU20: 1127 | AW20: -0.2599061033 | AX20: 62.41025075 | AY20: -4189.88465 | BC20: 34.2870435 | BD20: 364.6850044 | BE20: 15.29360791 | BF20: 8703.637977 | BG20: 2089 | BH20: 1052 | BI20: 9229 | BJ20: -8177 | BK20: 3852 | BL20: 4149 | BO20: -24 | BP20: 2 | BQ20: -198 | BR20: 123 | BS20: 0 | BT20: 0 | BU20: -321 | BV20: 0 | BW20: 0 | BX20: 0 | BY20: -321 | BZ20: 5 | CA20: -268 | CC20: 354 | CD20: -7 | CE20: -731 | CF20: 3852 | CG20: 3017 | CH20: 414 | CI20: 421 | CJ20: 22 | CL20: 268 | CM20: 1103 | CO20: 59.82352941 | CP20: 54.73608838 | CQ20: -3742.520399 | CU20: 39.28976628 | CV20: 316.4097915 | CW20: 13.85523167 | CX20: 8335.448776 | CY20: 2052 | CZ20: 912 | DA20: 8764 | DB20: -7852 | DC20: 4000 | DD20: 4864 | DG20: -9 | DH20: 4 | DI20: 1007 | DJ20: 492 | DK20: 0 | DL20: 0 | DM20: 515 | DN20: 0 | DO20: 0 | DP20: 0 | DQ20: 515 | DR20: 520 | DS20: 1001 | DU20: -401 | DV20: -7 | DW20: 594 | DX20: 4000 | DY20: 3206 | DZ20: 440 | EA20: 354 | EB20: 23.5 | ED20: 59.05882353 | EE20: 5620 | EF20: 5999 | EG20: 5548 | EJ20: 160 | EK20: -526 | EL20: 0 | EM20: 217 | EN20: -548 | EO20: 14 | EP20: 71 | EQ20: -413 | ER20: 0 | ES20: 6 | ET20: 0 | EU20: 450 | EV20: 0 | EW20: 550 | EX20: 0 | EY20: -250 | EZ20: 4396 | FA20: 989 | FB20: 3407 | FC20: 95 | FD20: 4939 | FE20: 982 | FF20: 3957 | FG20: 95 | FH20: 4682 | FI20: 975 | FJ20: 3707 | FK20: 95 | FL20: 12171.67382 | FM20: 12808.34073 | FN20: 12410.6981 | FO20: 136.4255319 | FP20: 123.6858857 | FV20: 188 | FW20: -188
A21: 75 | B21: Hamina | C21: 20286 | E21: 0.6800935204 | F21: 74.08869988 | G21: -4571.083506 | K21: 46.922434 | L21: 596.0268165 | M21: 25.7243323 | N21: 8456.965395 | O21: 58562 | P21: 29958 | Q21: 141148 | R21: -111190 | S21: 81202 | T21: 37357 | W21: -244 | X21: 2245 | Y21: 9370 | Z21: 8918 | AA21: 0 | AB21: 0 | AC21: 452 | AD21: 0 | AE21: 0 | AF21: 0 | AG21: 452 | AH21: 6576 | AI21: 9488 | AK21: -66 | AL21: -14159 | AM21: -4842 | AN21: 81202 | AO21: 69190 | AP21: 5404 | AQ21: 6608 | AR21: 21 | AT21: 55 | AU21: 20111 | AW21: 0.8703051524 | AX21: 68.65713958 | AY21: -4744.418477 | BC21: 48.58124283 | BD21: 174.481627 | BE21: 7.468003475 | BF21: 8527.820596 | BG21: 35340 | BH21: 24531 | BI21: 140655 | BJ21: -115782 | BK21: 85455 | BL21: 38153 | BO21: -33 | BP21: 2279 | BQ21: 10072 | BR21: 11140 | BS21: 0 | BT21: 0 | BU21: -1068 | BV21: 0 | BW21: 0 | BX21: 0 | BY21: -1068 | BZ21: 5507 | CA21: 9663 | CC21: 2150 | CD21: -16895 | CE21: -2304 | CF21: 85455 | CG21: 71246 | CH21: 7415 | CI21: 6794 | CJ21: 21 | CL21: 34 | CM21: 19877 | CO21: 0.7058621164 | CP21: 61.5686855 | CQ21: -4331.488655 | CU21: 50.6851525 | CV21: 513.1559088 | CW21: 18.97437466 | CX21: 9871.308548 | CY21: 34495 | CZ21: 26458 | DA21: 144562 | DB21: -118104 | DC21: 89199 | DD21: 46900 | DG21: -259 | DH21: 2220 | DI21: 19956 | DJ21: 9728 | DK21: 0 | DL21: 0 | DM21: 10228 | DN21: 0 | DO21: -1500 | DP21: 0 | DQ21: 8728 | DR21: 14236 | DS21: 23443 | DU21: -736 | DV21: -28506 | DW21: 2729 | DX21: 89199 | DY21: 74460 | DZ21: 8528 | EA21: 6211 | EB21: 21 | ED21: 35.88970588 | EE21: 60359 | EF21: 93085 | EG21: 97229 | EK21: -15636 | EL21: 567 | EM21: 739 | EN21: -13086 | EO21: 129 | EP21: 990 | EQ21: -21782 | ER21: 63 | ES21: 1005 | ET21: 15000 | EU21: -2994 | EV21: 17600 | EW21: 2620 | EX21: 28530 | EY21: -2616 | EZ21: 83868 | FA21: 63449 | FB21: 20419 | FC21: 15926 | FD21: 87192 | FE21: 69298 | FF21: 17894 | FG21: 16138 | FH21: 84601 | FI21: 61303 | FJ21: 23298 | FK21: 9487 | FL21: 7567.386375 | FM21: 7896.52429 | FN21: 8526.035116 | FO21: 3545.714286 | FP21: 178.3827683 | FV21: 9905 | FW21: -9905
A22: 77 | B22: Hankasalmi | C22: 4939 | E22: 1.625167336 | F22: 46.23763117 | G22: -2479.449281 | K22: 48.94791781 | L22: 832.9621381 | M22: 36.37533005 | N22: 8358.16967 | O22: 15779 | P22: 6723 | Q22: 39080 | R22: -32357 | S22: 14586 | T22: 18812 | W22: -61 | X22: 173 | Y22: 1153 | Z22: 1661 | AA22: 0 | AB22: 0 | AC22: -508 | AD22: 22 | AE22: 0 | AF22: 0 | AG22: -486 | AH22: -872 | AI22: -154 | AK22: -24 | AL22: -686 | AM22: -164 | AN22: 14586 | AO22: 12406 | AP22: 873 | AQ22: 1307 | AR22: 22 | AT22: 148 | AU22: 4875 | AW22: 0.1120448179 | AX22: 44.8739882 | AY22: -2919.384615 | BC22: 48.12586629 | BD22: 230.3589744 | BE22: 9.72675067 | BF22: 8644.307692 | BG22: 15590 | BH22: 5265 | BI22: 39124 | BJ22: -33859 | BK22: 15412 | BL22: 18486 | BO22: -61 | BP22: 176 | BQ22: 154 | BR22: 1654 | BS22: 0 | BT22: 0 | BU22: -1500 | BV22: 22 | BW22: 0 | BX22: 0 | BY22: -1478 | BZ22: -2350 | CA22: 181 | CC22: -30 | CD22: -726 | CE22: -1967 | CF22: 15412 | CG22: 13140 | CH22: 949 | CI22: 1323 | CJ22: 22 | CL22: 217 | CM22: 4782 | CO22: 4.562626263 | CP22: 25.53324516 | CQ22: -1607.486407 | CU22: 63.65611105 | CV22: 201.3801757 | CW22: 8.692625383 | CX22: 8455.876202 | CY22: 14940 | CZ22: 5573 | DA22: 37257 | DB22: -31684 | DC22: 15424 | DD22: 20588 | DG22: -59 | DH22: 189 | DI22: 4458 | DJ22: 2667 | DK22: 645 | DL22: 0 | DM22: 2436 | DN22: 0 | DO22: 0 | DP22: 0 | DQ22: 2436 | DR22: 86 | DS22: 4257 | DU22: 251 | DV22: -931 | DW22: 6494 | DX22: 15424 | DY22: 13086 | DZ22: 1057 | EA22: 1281 | EB22: 22 | ED22: 53.01470588 | EE22: 18935 | EF22: 19217 | EG22: 17914 | EJ22: 670 | EK22: -1445 | EL22: 0 | EM22: 1435 | EN22: -2173 | EO22: 0 | EP22: 25 | EQ22: -2189 | ER22: 505 | ES22: 3921 | ET22: 0 | EU22: 1000 | EV22: 4000 | EW22: -2000 | EX22: 0 | EY22: -6000 | EZ22: 11916 | FA22: 3390 | FB22: 8526 | FC22: 0 | FD22: 13189 | FE22: 6258 | FF22: 6931 | FG22: 0 | FH22: 6258 | FI22: 5501 | FJ22: 757 | FK22: 0 | FL22: 4444.421948 | FM22: 5201.230769 | FN22: 4111.877875 | FO22: 594.8181818 | FP22: 124.3869054 | FV22: 985 | FW22: -985
A23: 78 | B23: Hanko | C23: 8379 | E23: 0.8788584741 | F23: 103.1626147 | G23: -7629.43072 | K23: 38.30902849 | L23: 247.4042248 | M23: 10.19283876 | N23: 8859.410431 | O23: 27512 | P23: 16376 | Q23: 65760 | R23: -49384 | S23: 38680 | T23: 12372 | W23: 991 | X23: 1088 | Y23: 3747 | Z23: 3600 | AA23: 0 | AB23: 0 | AC23: 147 | AD23: 10 | AE23: 0 | AF23: 0 | AG23: 157 | AH23: 6142 | AI23: 3333 | AK23: 206 | AL23: -4371 | AM23: 433 | AN23: 38680 | AO23: 33003 | AP23: 2734 | AQ23: 2943 | AR23: 21.75 | AT23: 59 | AU23: 8199 | AW23: 0.4355288449 | AX23: 107.6355333 | AY23: -7875.716551 | BC23: 37.19105694 | BD23: 275.0335407 | BE23: 10.77802949 | BF23: 9314.062691 | BG23: 28636 | BH23: 15813 | BI23: 68052 | BJ23: -52014 | BK23: 39454 | BL23: 12613 | BO23: 993 | BP23: 2209 | BQ23: 3255 | BR23: 3535 | BS23: 0 | BT23: 0 | BU23: -280 | BV23: 10 | BW23: 0 | BX23: 0 | BY23: -270 | BZ23: 5871 | CA23: 3147 | CC23: -2986 | CD23: -3763 | CE23: -745 | CF23: 39454 | CG23: 33381 | CH23: 3254 | CI23: 2819 | CJ23: 21.75 | CL23: 58 | CM23: 8042 | CO23: 1.910141767 | CP23: 94.43092691 | CQ23: -7602.21338 | CU23: 41.50965168 | CV23: 345.3121114 | CW23: 13.33322371 | CX23: 9452.996767 | CY23: 28818 | CZ23: 17762 | DA23: 67029 | DB23: -49267 | DC23: 40162 | DD23: 15883 | DG23: 1058 | DH23: 220 | DI23: 8056 | DJ23: 3557 | DK23: 0 | DL23: 0 | DM23: 4499 | DN23: 10 | DO23: 0 | DP23: 0 | DQ23: 4509 | DR23: 11446 | DS23: 6141 | DU23: 679 | DV23: -3883 | DW23: 3459 | DX23: 40162 | DY23: 34419 | DZ23: 3162 | EA23: 2581 | EB23: 21.75 | ED23: 37.90441176 | EE23: 29106 | EF23: 30240 | EG23: 29149 | EK23: -3358 | EL23: 0 | EM23: 458 | EN23: -3993 | EO23: 0 | EP23: 101 | EQ23: -4645 | ER23: 84 | ES23: 1879 | ET23: 3800 | EU23: -1000 | EV23: 4700 | EW23: 3000 | EX23: 10000 | EY23: -9000 | EZ23: 60350 | FA23: 20087 | FB23: 40263 | FC23: 30823 | FD23: 64286 | FE23: 20903 | FF23: 43383 | FG23: 30766 | FH23: 61403 | FI23: 25020 | FJ23: 36383 | FK23: 30755 | FL23: 8482.515813 | FM23: 9489.693865 | FN23: 9473.389704 | FO23: 1582.482759 | FP23: 196.7772642 | FV23: 13300 | FW23: -13300
A24: 79 | B24: Harjavalta | C24: 7018 | E24: -0.02264705882 | F24: 47.10165108 | G24: -2870.475919 | K24: 48.20670788 | L24: 126.6742662 | M24: 5.722738576 | N24: 8079.367341 | O24: 15573 | P24: 5875 | Q24: 50463 | R24: -44588 | S24: 33349 | T24: 11079 | W24: -106 | X24: 75 | Y24: -191 | Z24: 2373 | AA24: 0 | AB24: 0 | AC24: -2564 | AD24: 0 | AE24: 0 | AF24: 0 | AG24: -2564 | AH24: 4391 | AI24: -238 | AK24: -281 | AL24: -3286 | AM24: -2321 | AN24: 33349 | AO24: 24048 | AP24: 7408 | AQ24: 1893 | AR24: 20.75 | AT24: 261 | AU24: 6931 | AW24: -0.379412471 | AX24: 53.97834135 | AY24: -3538.883278 | BC24: 40.30043473 | BD24: 113.1149906 | BE24: 4.759259567 | BF24: 8675.082961 | BG24: 16471 | BH24: 5957 | BI24: 51801 | BJ24: -45821 | BK24: 34223 | BL24: 10331 | BO24: -70 | BP24: 73 | BQ24: -1264 | BR24: 2389 | BS24: 0 | BT24: 0 | BU24: -3653 | BV24: 0 | BW24: 0 | BX24: 0 | BY24: -3653 | BZ24: 738 | CA24: -1367 | CC24: 691 | CD24: -4429 | CE24: -4462 | CF24: 34223 | CG24: 24706 | CH24: 7273 | CI24: 2244 | CJ24: 21.5 | CL24: 269 | CM24: 6869 | CO24: 0.9230219256 | CP24: 48.73704722 | CQ24: -3457.562964 | CU24: 42.02168205 | CV24: 118.7945844 | CW24: 4.97104231 | CX24: 8722.521473 | CY24: 15848 | CZ24: 6797 | DA24: 51130 | DB24: -44333 | DC24: 34754 | DD24: 13375 | DG24: -49 | DH24: 73 | DI24: 3820 | DJ24: 2689 | DK24: 0 | DL24: 0 | DM24: 1131 | DN24: 0 | DO24: 0 | DP24: 0 | DQ24: 1131 | DR24: 1868 | DS24: 3746 | DU24: -243 | DV24: -4143 | DW24: 570 | DX24: 34754 | DY24: 24952 | DZ24: 7229 | EA24: 2573 | EB24: 21.5 | ED24: 205.125 | EE24: 30754 | EF24: 31361 | EG24: 31216 | EK24: -2860 | EL24: 71 | EM24: 706 | EN24: -3832 | EO24: 0 | EP24: 737 | EQ24: -4599 | ER24: 62 | ES24: 1361 | ET24: 6000 | EU24: -1500 | EV24: 4000 | EW24: 4000 | EX24: 6000 | EY24: -3500 | EZ24: 17643 | FA24: 12500 | FB24: 5143 | FC24: 25 | FD24: 21214 | FE24: 12071 | FF24: 9143 | FG24: 24 | FH24: 19572 | FI24: 13929 | FJ24: 5643 | FK24: 21 | FL24: 3533.342833 | FM24: 4071.129707 | FN24: 3821.225797 | FO24: 1160.55814 | FP24: 168.9559091 | FV24: 0 | FW24: 0
A25: 81 | B25: Hartola | C25: 2780 | E25: 0.1577922078 | F25: 71.88056623 | G25: -4974.820144 | K25: 27.14472212 | L25: 127.6978417 | M25: 5.557580956 | N25: 8386.690647 | O25: 4307 | P25: 2650 | Q25: 21133 | R25: -18483 | S25: 9796 | T25: 8888 | W25: -119 | X25: 33 | Y25: 115 | Z25: 786 | AA25: 0 | AB25: 0 | AC25: -671 | AD25: 0 | AE25: 0 | AF25: 0 | AG25: -671 | AH25: 292 | AI25: 201 | AK25: 373 | AL25: -1412 | AM25: -394 | AN25: 9796 | AO25: 7218 | AP25: 1260 | AQ25: 1318 | AR25: 21.5 | AT25: 236 | AU25: 2697 | AW25: -0.1294929779 | AX25: 63.16551624 | AY25: -4007.786429 | BC25: 26.30267457 | BD25: 469.7812384 | BE25: 17.4110538 | BF25: 9848.350019 | BG25: 4331 | BH25: 2730 | BI25: 20989 | BJ25: -18256 | BK25: 9355 | BL25: 8632 | BO25: -109 | BP25: 56 | BQ25: -322 | BR25: 750 | BS25: 0 | BT25: 0 | BU25: -1072 | BV25: 0 | BW25: 0 | BX25: 0 | BY25: -1072 | BZ25: -780 | CA25: -323 | CC25: 139 | CD25: -4897 | CE25: 3029 | CF25: 9355 | CG25: 6734 | CH25: 1293 | CI25: 1328 | CJ25: 21.5 | CL25: 265 | CM25: 2655 | CO25: 2.791738382 | CP25: 57.36413757 | CQ25: -3447.834275 | CU25: 33.79608897 | CV25: 887.3822976 | CW25: 38.19578929 | CX25: 8479.849341 | CY25: 3983 | CZ25: 2062 | DA25: 19683 | DB25: -17621 | DC25: 10263 | DD25: 10534 | DG25: -64 | DH25: 61 | DI25: 3173 | DJ25: 1130 | DK25: 0 | DL25: 0 | DM25: 2043 | DN25: 0 | DO25: 0 | DP25: 0 | DQ25: 2043 | DR25: 1262 | DS25: 3154 | DU25: -590 | DV25: -1091 | DW25: 1513 | DX25: 10263 | DY25: 7580 | DZ25: 1467 | EA25: 1216 | EB25: 21.5 | ED25: 11 | EE25: 15436 | EF25: 15234 | EG25: 14448 | EJ25: 370 | EK25: -641 | EL25: 0 | EM25: 46 | EN25: -555 | EO25: 52 | EP25: 3855 | EQ25: -1674 | ER25: 13 | ES25: 20 | ET25: 0 | EU25: 500 | EV25: 1500 | EW25: 2000 | EX25: 2700 | EY25: -1500 | EZ25: 12556 | FA25: 9883 | FB25: 2673 | FC25: 22 | FD25: 11159 | FE25: 6574 | FF25: 4585 | FG25: 22 | FH25: 11269 | FI25: 8126 | FJ25: 3143 | FK25: 22 | FL25: 10175.89928 | FM25: 9944.382647 | FN25: 9859.13371 | FO25: 352.5581395 | FP25: 132.7902597 | FV25: 1545 | FW25: -1545
A26: 82 | B26: Hattula | C26: 9475 | E26: 0.2783080666 | F26: 76.6255804 | G26: -3950.290237 | K26: 37.13222964 | L26: 42.21635884 | M26: 2.445069668 | N26: 6302.058047 | O26: 21791 | P26: 6627 | Q26: 52354 | R26: -45727 | S26: 37674 | T26: 9329 | W26: 41 | X26: 11 | Y26: 1328 | Z26: 1985 | AA26: 0 | AB26: 0 | AC26: -657 | AD26: 0 | AE26: 0 | AF26: 0 | AG26: -657 | AH26: 4853 | AI26: 731 | AK26: -1402 | AL26: -5184 | AM26: 1198 | AN26: 37674 | AO26: 34059 | AP26: 1307 | AQ26: 2308 | AR26: 20.5 | AT26: 204 | AU26: 9422 | AW26: 0.1119562516 | AX26: 79.09412227 | AY26: -4075.249416 | BC26: 34.74477603 | BD26: 52.96115474 | BE26: 3.150089071 | BF26: 6136.595203 | BG26: 21700 | BH26: 6861 | BI26: 53143 | BJ26: -46279 | BK26: 36891 | BL26: 9721 | BO26: 49 | BP26: 33 | BQ26: 415 | BR26: 2093 | BS26: 0 | BT26: 0 | BU26: -1678 | BV26: 0 | BW26: 0 | BX26: 0 | BY26: -1678 | BZ26: 3175 | CA26: 444 | CC26: -136 | CD26: -2938 | CE26: -945 | CF26: 36891 | CG26: 33409 | CH26: 1229 | CI26: 2253 | CJ26: 20.5 | CL26: 215 | CM26: 9389 | CO26: 1.477094972 | CP26: 63.95442225 | CQ26: -3821.599744 | CU26: 40.19678276 | CV26: 54.21237618 | CW26: 3.054820198 | CX26: 6477.473639 | CY26: 22056 | CZ26: 6459 | DA26: 54593 | DB26: -48134 | DC26: 39278 | DD26: 14030 | DG26: 49 | DH26: -87 | DI26: 5136 | DJ26: 2149 | DK26: 0 | DL26: 0 | DM26: 2987 | DN26: 0 | DO26: -2000 | DP26: 0 | DQ26: 987 | DR26: 4233 | DS26: 4831 | DU26: 1566 | DV26: -3428 | DW26: 2390 | DX26: 39278 | DY26: 35704 | DZ26: 1266 | EA26: 2308 | EB26: 20.75 | ED26: 210.1617647 | EE26: 24662 | EF26: 25877 | EG26: 26379 | EK26: -2008 | EL26: 0 | EM26: 2475 | EN26: -1584 | EO26: 18 | EP26: 177 | EQ26: -2545 | ER26: 23 | ES26: 81 | ET26: 0 | EU26: 4556 | EV26: 3400 | EW26: 1141 | EX26: 6000 | EY26: -7157 | EZ26: 34533 | FA26: 22996 | FB26: 11537 | FC26: 4398 | FD26: 36137 | FE26: 23118 | FF26: 13019 | FG26: 4398 | FH26: 31551 | FI26: 25390 | FJ26: 6161 | FK26: 4398 | FL26: 4755.989446 | FM26: 5353.534281 | FN26: 5014.485036 | FO26: 1720.674699 | FP26: 183.2649589 | FV26: 1420 | FW26: -1420
A27: 86 | B27: Hausjärvi | C27: 8417 | E27: 0.3262642741 | F27: 51.44377342 | G27: -2944.87347 | K27: 42.09485741 | L27: 57.85909469 | M27: 3.140936158 | N27: 6723.654509 | O27: 17338 | P27: 6456 | Q27: 49778 | R27: -43322 | S27: 31690 | T27: 13374 | W27: -241 | X27: 52 | Y27: 1553 | Z27: 2479 | AA27: 0 | AB27: 0 | AC27: -926 | AD27: 0 | AE27: 0 | AF27: 0 | AG27: -926 | AH27: 5064 | AI27: 1197 | AK27: -122 | AL27: -5270 | AM27: 3 | AN27: 31690 | AO27: 28947 | AP27: 1665 | AQ27: 1078 | AR27: 21.5 | AT27: 177 | AU27: 8260 | AW27: 0.7058994902 | AX27: 53.65632097 | AY27: -2979.05569 | BC27: 40.44674746 | BD27: 322.6392252 | BE27: 17.03516576 | BF27: 6912.953995 | BG27: 18038 | BH27: 6733 | BI27: 50434 | BJ27: -43693 | BK27: 32653 | BL27: 13454 | BO27: -215 | BP27: 4 | BQ27: 2203 | BR27: 2198 | BS27: 0 | BT27: 0 | BU27: 5 | BV27: 0 | BW27: 0 | BX27: 0 | BY27: 5 | BZ27: 5068 | CA27: 1936 | CC27: 139 | CD27: -4175 | CE27: 173 | CF27: 32653 | CG27: 29779 | CH27: 1143 | CI27: 1731 | CJ27: 21.5 | CL27: 100 | CM27: 8175 | CO27: 1.334507042 | CP27: 65.06901909 | CQ27: -3201.46789 | CU27: 37.85623999 | CV27: 1003.058104 | CW27: 48.51127283 | CX27: 7547.033639 | CY27: 18362 | CZ27: 6473 | DA27: 50730 | DB27: -44257 | DC27: 32854 | DD27: 16695 | DG27: -156 | DH27: -2 | DI27: 5134 | DJ27: 2054 | DK27: 0 | DL27: 0 | DM27: 3080 | DN27: 0 | DO27: 0 | DP27: 0 | DQ27: 3080 | DR27: 7938 | DS27: 4982 | DU27: -986 | DV27: -3804 | DW27: -1405 | DX27: 32854 | DY27: 30132 | DZ27: 1174 | EA27: 1548 | EB27: 21.5 | ED27: 167.8529412 | EE27: 25980 | EF27: 26103 | EG27: 26229 | EK27: -1313 | EL27: 0 | EM27: 119 | EN27: -2278 | EO27: 180 | EP27: 335 | EQ27: -7003 | ER27: 449 | ES27: 167 | ET27: 0 | EU27: 3200 | EV27: 5000 | EW27: 800 | EX27: 5000 | EY27: 5000 | EZ27: 21707 | FA27: 14499 | FB27: 7208 | FC27: 109 | FD27: 23332 | FE27: 15694 | FF27: 7638 | FG27: 95 | FH27: 29528 | FI27: 16656 | FJ27: 12872 | FK27: 82 | FL27: 2871.094214 | FM27: 3190.072639 | FN27: 4015.902141 | FO27: 1401.488372 | FP27: 171.4358865 | FV27: 3465 | FW27: -3465
A28: 111 | B28: Heinola | C28: 18889 | E28: 1.301274499 | F28: 63.10696058 | G28: 99.05235852 | K28: 59.79664329 | L28: 4188.945947 | M28: 191.6736906 | N28: 7976.917783 | O28: 55088 | P28: 24265 | Q28: 124841 | R28: -100576 | S28: 68917 | T28: 42965 | W28: -512 | X28: 755 | Y28: 11549 | Z28: 5777 | AA28: 0 | AB28: 0 | AC28: 5772 | AD28: 245 | AE28: 0 | AF28: 0 | AG28: 6017 | AH28: 26145 | AI28: 8097 | AK28: -790 | AL28: -8736 | AM28: -2748 | AN28: 68917 | AO28: 59686 | AP28: 2988 | AQ28: 6243 | AR28: 20.5 | AT28: 18 | AU28: 18667 | AW28: 0.7729489448 | AX28: 76.7328235 | AY28: -493.4911877 | BC28: 55.86936958 | BD28: 4490.973375 | BE28: 194.8512144 | BF28: 8412.599775 | BG28: 55428 | BH28: 19955 | BI28: 127649 | BJ28: -107188 | BK28: 68404 | BL28: 43449 | BO28: -433 | BP28: 4190 | BQ28: 8422 | BR28: 6367 | BS28: 0 | BT28: 0 | BU28: 2055 | BV28: 100 | BW28: 0 | BX28: 0 | BY28: 2155 | BZ28: 26269 | CA28: 7881 | CC28: 337 | CD28: -8288 | CE28: -12092 | CF28: 68404 | CG28: 58899 | CH28: 3277 | CI28: 6228 | CJ28: 20.5 | CL28: 42 | CM28: 18497 | CO28: 2.092229629 | CP28: 82.8199257 | CQ28: -537.8710061 | CU28: 55.40757598 | CV28: 5402.822079 | CW28: 210.9012697 | CX28: 9350.489269 | CY28: 54455 | CZ28: 20048 | DA28: 127087 | DB28: -107039 | DC28: 72997 | DD28: 52020 | DG28: -406 | DH28: 2959 | DI28: 20531 | DJ28: 8994 | DK28: 9105 | DL28: 0 | DM28: 20642 | DN28: 14 | DO28: -18690 | DP28: -1 | DQ28: 1965 | DR28: 28035 | DS28: 28683 | DU28: -1740 | DV28: -9553 | DW28: -1213 | DX28: 72997 | DY28: 63745 | DZ28: 3729 | EA28: 5523 | EB28: 20.5 | ED28: 16 | EE28: 51881 | EF28: 54168 | EG28: 52211 | EK28: -14833 | EL28: 0 | EM28: 3988 | EN28: -20643 | EO28: 0 | EP28: 670 | EQ28: -31482 | ER28: 607 | ES28: 979 | ET28: 8000 | EU28: 0 | EV28: 24000 | EW28: -1500 | EX28: 35000 | EY28: -6500 | EZ28: 66202 | FA28: 49910 | FB28: 16292 | FC28: 3623 | FD28: 80414 | FE28: 64361 | FF28: 16053 | FG28: 3438 | FH28: 99361 | FI28: 86308 | FJ28: 13053 | FK28: 3393 | FL28: 4399.068241 | FM28: 5175.711148 | FN28: 6265.880954 | FO28: 3109.512195 | FP28: 168.1090012 | FV28: 6262 | FW28: -6262
A29: 90 | B29: Heinävesi | C29: 3329 | E29: 65.25 | F29: 66.37046013 | G29: -3664.463803 | K29: 37.32392167 | L29: 1882.246921 | M29: 78.52669528 | N29: 8748.873536 | O29: 5898 | P29: 4662 | Q29: 28358 | R29: -23696 | S29: 11515 | T29: 13532 | W29: 151 | X29: 310 | Y29: 1812 | Z29: 1373 | AA29: 68 | AB29: 1875 | AC29: -1368 | AD29: 157 | AE29: 0 | AF29: 0 | AG29: -1211 | AH29: 1385 | AI29: -200 | AK29: -114 | AL29: -13 | AM29: -894 | AN29: 11515 | AO29: 8128 | AP29: 2051 | AQ29: 1336 | AR29: 21 | AT29: 33 | AU29: 3254 | AW29: 0.7577681256 | AX29: 61.48824196 | AY29: -3410.26429 | BC29: 39.3666473 | BD29: 1780.57775 | BE29: 71.22490907 | BF29: 9124.769514 | BG29: 6098 | BH29: 4498 | BI29: 28788 | BJ29: -24290 | BK29: 11954 | BL29: 13570 | BO29: 138 | BP29: 314 | BQ29: 1686 | BR29: 1440 | BS29: 0 | BT29: 0 | BU29: 246 | BV29: 157 | BW29: 0 | BX29: 0 | BY29: 403 | BZ29: 1788 | CA29: 1686 | CC29: -14 | CD29: -13 | CE29: 1132 | CF29: 11954 | CG29: 8393 | CH29: 2190 | CI29: 1371 | CJ29: 21 | CL29: 26 | CM29: 3196 | CO29: 89.37931034 | CP29: 52.32098925 | CQ29: -3010.012516 | CU29: 44.43380654 | CV29: 1543.491865 | CW29: 58.19849376 | CX29: 9680.225282 | CY29: 6139 | CZ29: 4161 | DA29: 28755 | DB29: -24594 | DC29: 12194 | DD29: 14537 | DG29: 128 | DH29: 311 | DI29: 2576 | DJ29: 1546 | DK29: 575 | DL29: 342 | DM29: 1263 | DN29: 285 | DO29: 0 | DP29: 0 | DQ29: 1548 | DR29: 3336 | DS29: 2506 | DU29: -43 | DV29: -13 | DW29: 1427 | DX29: 12194 | DY29: 8430 | DZ29: 2534 | EA29: 1230 | EB29: 21 | ED29: 83.23529412 | EE29: 20480 | EF29: 20748 | EG29: 20691 | EK29: -732 | EL29: 31 | EM29: 7 | EN29: -571 | EO29: 10 | EP29: 7 | EQ29: -2135 | ER29: 0 | ES29: 1056 | ET29: 0 | EU29: 800 | EV29: 0 | EW29: -1200 | EX29: 7000 | EY29: -9500 | EZ29: 18184 | FA29: 1971 | FB29: 16213 | FC29: 54 | FD29: 16971 | FE29: 1958 | FF29: 15013 | FG29: 54 | FH29: 14457 | FI29: 8944 | FJ29: 5513 | FK29: 65 | FL29: 6389.306098 | FM29: 6162.261832 | FN29: 5609.824781 | FO29: 401.4285714 | FP29: 125.6034329 | FV29: 225 | FW29: -225
A30: 91 | B30: Helsinki | C30: 648042 | E30: 6.265299304 | F30: 45.77649168 | G30: -907.3300805 | K30: 80.59812863 | L30: 1915.644356 | M30: 90.65390119 | N30: 7712.963049 | O30: 1761795 | P30: 1318252 | Q30: 4292821 | R30: -2974569 | S30: 3416582 | T30: 197308 | W30: 60870 | X30: 51805 | Y30: 751996 | Z30: 346801 | AA30: 0 | AB30: 18412 | AC30: 386783 | AD30: -1308 | AE30: 1015 | AF30: 20105 | AG30: 406595 | AH30: 5752870 | AI30: 626404 | AK30: -14884 | AL30: -105849 | AM30: 150717 | AN30: 3416582 | AO30: 2580483 | AP30: 574753 | AQ30: 261346 | AR30: 18 | AT30: 1 | AU30: 653835 | AW30: 4.224142039 | AX30: 43.74717515 | AY30: -1006.538347 | BC30: 81.56712286 | BD30: 1700.80372 | BE30: 76.67420035 | BF30: 8096.509058 | BG30: 1764146 | BH30: 1205175 | BI30: 4500217 | BJ30: -3118484 | BK30: 3493732 | BL30: 232776 | BO30: 61221 | BP30: 72167 | BQ30: 741412 | BR30: 364436 | BS30: 0 | BT30: 0 | BU30: 376976 | BV30: -271 | BW30: -2699 | BX30: 5222 | BY30: 379228 | BZ30: 6102098 | CA30: 551214 | CC30: -33664 | CD30: -86541 | CE30: -32942 | CF30: 3493732 | CG30: 2632935 | CH30: 586905 | CI30: 273892 | CJ30: 18 | CL30: 4 | CM30: 656920 | CO30: 9.051615295 | CP30: 44.65248997 | CQ30: -938.3395238 | CU30: 80.77829932 | CV30: 2009.635877 | CW30: 85.34453107 | CX30: 8594.77562 | CY30: 1847157 | CZ30: 1338032 | DA30: 4662369 | DB30: -3324337 | DC30: 3565598 | DD30: 479558 | DG30: 55195 | DH30: 87363 | DI30: 863377 | DJ30: 375929 | DK30: 9280 | DL30: 0 | DM30: 496728 | DN30: -2141 | DO30: 2192 | DP30: 1822 | DQ30: 498601 | DR30: 6540699 | DS30: 729089 | DU30: 6176 | DV30: -81541 | DW30: -8780 | DX30: 3565598 | DY30: 2791940 | DZ30: 519324 | EA30: 254334 | EB30: 18 | ED30: 5 | EE30: 1772721 | EF30: 1967058 | EG30: 2014469 | EK30: -625292 | EL30: 11933 | EM30: 137672 | EN30: -780382 | EO30: 15034 | EP30: 181192 | EQ30: -1046592 | ER30: 25687 | ES30: 283036 | ET30: 0 | EU30: 0 | EV30: 0 | EW30: 0 | EX30: 60000 | EY30: 0 | EZ30: 1100107 | FA30: 1013566 | FB30: 86541 | FC30: 1943955 | FD30: 1013566 | FE30: 932025 | FF30: 81541 | FG30: 1950332 | FH30: 992024 | FI30: 913103 | FJ30: 78921 | FK30: 1894619 | FL30: 7690.586413 | FM30: 7909.125391 | FN30: 8451.742982 | FO30: 155107.7778 | FP30: 236.1136482 | FV30: 116591 | FW30: -116591
A31: 97 | B31: Hirvensalmi | C31: 2152 | E31: 12.69343066 | F31: 23.15174003 | G31: 3139.869888 | K31: 76.81066719 | L31: 4936.802974 | M31: 227.9694297 | N31: 7904.275093 | O31: 3557 | P31: 3044 | Q31: 16271 | R31: -13227 | S31: 7628 | T31: 7115 | W31: -4 | X31: 223 | Y31: 1735 | Z31: 1038 | AA31: 0 | AB31: 0 | AC31: 697 | AD31: 0 | AE31: 0 | AF31: 0 | AG31: 697 | AH31: 5705 | AI31: 1599 | AK31: -32 | AL31: -133 | AM31: 1369 | AN31: 7628 | AO31: 5457 | AP31: 882 | AQ31: 1289 | AR31: 20 | AT31: 8 | AU31: 2136 | AW31: 4.83753258 | AX31: 25.1273539 | AY31: 3723.314607 | BC31: 76.89669556 | BD31: 5670.411985 | BE31: 246.0281596 | BF31: 8412.453184 | BG31: 3653 | BH31: 2784 | BI31: 17110 | BJ31: -14326 | BK31: 7821 | BL31: 6866 | BO31: -1 | BP31: 335 | BQ31: 695 | BR31: 666 | BS31: 952 | BT31: 0 | BU31: 981 | BV31: 0 | BW31: 0 | BX31: 0 | BY31: 981 | BZ31: 6686 | CA31: 666 | CC31: 19 | CD31: -133 | CE31: 1568 | CF31: 7821 | CG31: 5569 | CH31: 935 | CI31: 1317 | CJ31: 20 | CL31: 82 | CM31: 2156 | CO31: 8.316176471 | CP31: 22.94039589 | CQ31: 3662.337662 | CU31: 78.07560773 | CV31: 5389.146568 | CW31: 223.148382 | CX31: 8814.935065 | CY31: 3656 | CZ31: 2779 | DA31: 17390 | DB31: -14611 | DC31: 7863 | DD31: 7444 | DG31: -3 | DH31: 435 | DI31: 1128 | DJ31: 826 | DK31: 0 | DL31: 0 | DM31: 302 | DN31: 0 | DO31: 0 | DP31: 0 | DQ31: 302 | DR31: 6988 | DS31: 1128 | DU31: -195 | DV31: -133 | DW31: -50 | DX31: 7863 | DY31: 5595 | DZ31: 1068 | EA31: 1200 | EB31: 20 | ED31: 219.2279412 | EE31: 11129 | EF31: 11862 | EG31: 12160 | EK31: -601 | EL31: 60 | EM31: 311 | EN31: -654 | EO31: 21 | EP31: 1535 | EQ31: -1470 | ER31: 277 | ES31: 15 | ET31: 0 | EU31: 0 | EV31: 0 | EW31: 0 | EX31: 0 | EY31: 0 | EZ31: 300 | FA31: 167 | FB31: 133 | FC31: 38 | FD31: 166 | FE31: 33 | FF31: 133 | FG31: 38 | FH31: 33 | FI31: 0 | FJ31: 33 | FK31: 38 | FL31: 3827.137546 | FM31: 3953.183521 | FN31: 3645.640074 | FO31: 279.75 | FP31: 129.7541744 | FV31: 301 | FW31: -301
A32: 98 | B32: Hollola | C32: 23602 | E32: 1.098837878 | F32: 47.41029376 | G32: -2227.819676 | K32: 56.35856926 | L32: 407.5925769 | M32: 23.36489643 | N32: 6367.299381 | O32: 31085 | P32: 15322 | Q32: 132514 | R32: -117192 | S32: 89740 | T32: 36417 | W32: -620 | X32: 560 | Y32: 8905 | Z32: 10437 | AA32: 0 | AB32: 583 | AC32: -2115 | AD32: 6 | AE32: 0 | AF32: 0 | AG32: -2109 | AH32: 15851 | AI32: 7372 | AK32: 1639 | AL32: -8046 | AM32: 3504 | AN32: 89740 | AO32: 81565 | AP32: 2799 | AQ32: 5376 | AR32: 21 | AT32: 80 | AU32: 23410 | AW32: 1.352869655 | AX32: 42.65919136 | AY32: -2104.357112 | BC32: 58.59485155 | BD32: 419.1371209 | BE32: 22.91745855 | BF32: 6675.480564 | BG32: 31886 | BH32: 13768 | BI32: 137188 | BJ32: -123350 | BK32: 92604 | BL32: 37747 | BO32: -653 | BP32: 1199 | BQ32: 7547 | BR32: 8992 | BS32: 787 | BT32: 0 | BU32: -658 | BV32: 6 | BW32: 0 | BX32: 0 | BY32: -652 | BZ32: 16371 | CA32: 7714 | CC32: 2434 | CD32: -8912 | CE32: 1907 | CF32: 92604 | CG32: 83879 | CH32: 2949 | CI32: 5776 | CJ32: 21 | CL32: 84 | CM32: 23251 | CO32: 2.109207521 | CP32: 42.01515894 | CQ32: -1899.402176 | CU32: 60.21259043 | CV32: 776.009634 | CW32: 39.54873559 | CX32: 7161.88551 | CY32: 32173 | CZ32: 12710 | DA32: 136342 | DB32: -123632 | DC32: 98231 | DD32: 48255 | DG32: -323 | DH32: 1148 | DI32: 23679 | DJ32: 9495 | DK32: 0 | DL32: 0 | DM32: 14184 | DN32: 6 | DO32: -6000 | DP32: 0 | DQ32: 8190 | DR32: 24560 | DS32: 23585 | DU32: -2241 | DV32: -11054 | DW32: 5104 | DX32: 98231 | DY32: 89541 | DZ32: 3406 | EA32: 5284 | EB32: 21 | ED32: 33.875 | EE32: 90432 | EF32: 95795 | EG32: 95234 | EK32: -8954 | EL32: 0 | EM32: 5086 | EN32: -9542 | EO32: 0 | EP32: 3735 | EQ32: -18805 | ER32: 90 | ES32: 234 | ET32: 0 | EU32: 0 | EV32: 1250 | EW32: 3000 | EX32: 19000 | EY32: -3000 | EZ32: 45145 | FA32: 37601 | FB32: 7544 | FC32: 1948 | FD32: 40484 | FE32: 26730 | FF32: 13754 | FG32: 1761 | FH32: 45429 | FI32: 37336 | FJ32: 8093 | FK32: 1760 | FL32: 2780.442335 | FM32: 2525.331055 | FN32: 2682.766333 | FO32: 4263.857143 | FP32: 183.3838176 | FV32: 3784 | FW32: -3784
A33: 99 | B33: Honkajoki | C33: 1666 | E33: -2.76816609 | F33: 40.01510479 | G33: -3163.265306 | K33: 26.11671888 | L33: 411.7647059 | M33: 14.56348514 | N33: 10319.92797 | O33: 6397 | P33: 6131 | Q33: 16695 | R33: -10564 | S33: 5274 | T33: 4484 | W33: -25 | X33: 5 | Y33: -826 | Z33: 286 | AA33: 0 | AB33: 0 | AC33: -1112 | AD33: 5 | AE33: 0 | AF33: 0 | AG33: -1107 | AH33: -2641 | AI33: -827 | AK33: 393 | AL33: -263 | AM33: -1025 | AN33: 5274 | AO33: 3950 | AP33: 691 | AQ33: 633 | AR33: 22 | AT33: 294 | AU33: 1620 | AW33: 1.245283019 | AX33: 37.46654253 | AY33: -2843.82716 | BC33: 30.07698146 | BD33: 752.4691358 | BE33: 26.26689887 | BF33: 10456.17284 | BG33: 6078 | BH33: 6439 | BI33: 16375 | BJ33: -9929 | BK33: 5851 | BL33: 4896 | BO33: -23 | BP33: 6 | BQ33: 801 | BR33: 278 | BS33: 0 | BT33: 0 | BU33: 523 | BV33: 5 | BW33: 0 | BX33: 0 | BY33: 528 | BZ33: -2112 | CA33: 393 | CC33: -211 | CD33: -262 | CE33: 664 | CF33: 5851 | CG33: 4529 | CH33: 659 | CI33: 663 | CJ33: 22.5 | CL33: 35 | CM33: 1595 | CO33: 2.957070707 | CP33: 44.15363897 | CQ33: -3608.777429 | CU33: 30.8101173 | CV33: 614.4200627 | CW33: 19.11914052 | CX33: 11729.78056 | CY33: 5871 | CZ33: 6102 | DA33: 15923 | DB33: -9821 | DC33: 5824 | DD33: 5161 | DG33: -23 | DH33: 5 | DI33: 1146 | DJ33: 557 | DK33: 0 | DL33: 0 | DM33: 589 | DN33: 5 | DO33: 0 | DP33: 0 | DQ33: 594 | DR33: -1519 | DS33: 1144 | DU33: -193 | DV33: -371 | DW33: -1160 | DX33: 5824 | DY33: 4507 | DZ33: 692 | EA33: 625 | EB33: 22.5 | ED33: 124.5367647 | EE33: 9137 | EF33: 9165 | EG33: 8657 | EI33: 230 | EK33: -208 | EL33: 8 | EM33: 2 | EN33: -284 | EO33: 0 | EP33: 555 | EQ33: -2398 | ER33: 0 | ES33: 94 | ET33: 0 | EU33: 0 | EV33: 2000 | EW33: 0 | EX33: 1700 | EY33: -1000 | EZ33: 2829 | FA33: 1567 | FB33: 1262 | FC33: 1 | FD33: 4566 | FE33: 3195 | FF33: 1371 | FG33: 1 | FH33: 4895 | FI33: 4368 | FJ33: 527 | FK33: 0 | FL33: 2899.759904 | FM33: 4048.765432 | FN33: 4284.639498 | FO33: 200.3111111 | FP33: 125.5869035 | FV33: 435 | FW33: -435
A34: 102 | B34: Huittinen | C34: 10091 | E34: 0.08405232396 | F34: 53.90114176 | G34: -2876.721831 | K34: 49.3967197 | L34: 565.8507581 | M34: 26.05904124 | N34: 7925.676345 | O34: 31593 | P34: 11583 | Q34: 70540 | R34: -58957 | S34: 32665 | T34: 26259 | W34: -193 | X34: 335 | Y34: 109 | Z34: 3715 | AA34: 0 | AB34: 0 | AC34: -3606 | AD34: 17 | AE34: 0 | AF34: 0 | AG34: -3589 | AH34: 4648 | AI34: -331 | AK34: 344 | AL34: -3400 | AM34: -4933 | AN34: 32665 | AO34: 28530 | AP34: 1921 | AQ34: 2214 | AR34: 20.75 | AT34: 248 | AU34: 10044 | AW34: 0.1810855653 | AX34: 53.9851132 | AY34: -3113.998407 | BC34: 46.58058216 | BD34: 350.7566706 | BE34: 16.44303927 | BF34: 7786.041418 | BG34: 31568 | BH34: 11100 | BI34: 70130 | BJ34: -59030 | BK34: 33622 | BL34: 26079 | BO34: -217 | BP34: 93 | BQ34: 547 | BR34: 4456 | BS34: 0 | BT34: 0 | BU34: -3909 | BV34: 15 | BW34: 0 | BX34: 0 | BY34: -3894 | BZ34: 725 | CA34: 533 | CC34: -233 | CD34: -4248 | CE34: -2350 | CF34: 33622 | CG34: 29044 | CH34: 2108 | CI34: 2470 | CJ34: 21 | CL34: 212 | CM34: 9937 | CO34: 2.257829374 | CP34: 51.59652429 | CQ34: -2802.757371 | CU34: 48.88063003 | CV34: 902.4856597 | CW34: 42.53550776 | CX34: 7744.289021 | CY34: 31766 | CZ34: 10473 | DA34: 68148 | DB34: -57675 | DC34: 35970 | DD34: 29973 | DG34: -180 | DH34: 93 | DI34: 8181 | DJ34: 3855 | DK34: 0 | DL34: 0 | DM34: 4326 | DN34: 14 | DO34: 0 | DP34: 0 | DQ34: 4340 | DR34: 5065 | DS34: 7955 | DU34: 3721 | DV34: -3522 | DW34: 3231 | DX34: 35970 | DY34: 31147 | DZ34: 2209 | EA34: 2614 | EB34: 21 | ED34: 76.18382353 | EE34: 28583 | EF34: 28534 | EG34: 26368 | EK34: -5696 | EL34: 416 | EM34: 678 | EN34: -3578 | EO34: 432 | EP34: 263 | EQ34: -5097 | ER34: 158 | ES34: 215 | ET34: 5500 | EU34: 0 | EV34: 6500 | EW34: 0 | EX34: 4700 | EY34: 0 | EZ34: 25430 | FA34: 21517 | FB34: 3913 | FC34: 140 | FD34: 27681 | FE34: 23771 | FF34: 3910 | FG34: 140 | FH34: 28859 | FI34: 25440 | FJ34: 3419 | FK34: 140 | FL34: 3040.33297 | FM34: 3260.454002 | FN34: 3382.20791 | FO34: 1483.190476 | FP34: 149.2593817 | FV34: 1775 | FW34: -1775
A35: 103 | B35: Humppila | C35: 2235 | E35: -0.3909465021 | F35: 53.91840932 | G35: -2576.733781 | K35: 44.62827373 | L35: 212.0805369 | M35: 9.827321784 | N35: 7876.957494 | O35: 3596 | P35: 1512 | Q35: 14787 | R35: -13275 | S35: 7252 | T35: 5821 | W35: -26 | X35: 2 | Y35: -226 | Z35: 324 | AA35: 662 | AB35: 0 | AC35: 112 | AD35: 2 | AE35: 0 | AF35: 0 | AG35: 114 | AH35: -278 | AI35: 415 | AK35: -124 | AL35: -450 | AM35: -1802 | AN35: 7252 | AO35: 6326 | AP35: 379 | AQ35: 547 | AR35: 22 | AT35: 275 | AU35: 2184 | AW35: 0.3873459082 | AX35: 48.50315847 | AY35: -2325.091575 | BC35: 46.79270763 | BD35: 350.7326007 | BE35: 18.25 | BF35: 7014.652015 | BG35: 3461 | BH35: 1095 | BI35: 14250 | BJ35: -13155 | BK35: 7768 | BL35: 5701 | BO35: -39 | BP35: 3 | BQ35: 278 | BR35: 378 | BS35: 0 | BT35: 0 | BU35: -100 | BV35: 0 | BW35: 0 | BX35: 0 | BY35: -100 | BZ35: -378 | CA35: 283 | CC35: 411 | CD35: -650 | CE35: 946 | CF35: 7768 | CG35: 6757 | CH35: 409 | CI35: 602 | CJ35: 22 | CL35: 169 | CM35: 2174 | CO35: 1.38150289 | CP35: 42.37333156 | CQ35: -1983.440662 | CU35: 51.4926504 | CV35: 314.1674333 | CW35: 16.57987497 | CX35: 6916.283349 | CY35: 3224 | CZ35: 1240 | DA35: 14115 | DB35: -12875 | DC35: 7583 | DD35: 6236 | DG35: -33 | DH35: 3 | DI35: 914 | DJ35: 355 | DK35: 0 | DL35: 0 | DM35: 559 | DN35: 2 | DO35: 0 | DP35: 0 | DQ35: 561 | DR35: 184 | DS35: 893 | DU35: -167 | DV35: -650 | DW35: 705 | DX35: 7583 | DY35: 6564 | DZ35: 458 | EA35: 561 | EB35: 22 | ED35: 250.4558824 | EE35: 10070 | EF35: 9827 | EG35: 9813 | EI35: 310 | EK35: -2323 | EL35: 105 | EM35: 1 | EN35: -372 | EO35: 35 | EP35: 1000 | EQ35: -229 | ER35: 14 | ES35: 27 | ET35: 2000 | EU35: 200 | EV35: 0 | EW35: 0 | EX35: 0 | EY35: 0 | EZ35: 6525 | FA35: 4875 | FB35: 1650 | FC35: 377 | FD35: 5875 | FE35: 4225 | FF35: 1650 | FG35: 373 | FH35: 5225 | FI35: 3575 | FJ35: 1650 | FK35: 369 | FL35: 3998.210291 | FM35: 3704.212454 | FN35: 3332.566697 | FO35: 298.3636364 | FP35: 137.2417831 | FV35: 958 | FW35: -958
A36: 105 | B36: Hyrynsalmi | C36: 2287 | E36: 1.790744467 | F36: 26.69128438 | G36: -1425.010931 | K36: 67.01103134 | L36: 714.9103629 | M36: 27.72602676 | N36: 9411.456056 | O36: 4204 | P36: 2063 | Q36: 20238 | R36: -18175 | S36: 7717 | T36: 11343 | W36: -14 | X36: 2 | Y36: 873 | Z36: 486 | AA36: 0 | AB36: 0 | AC36: 387 | AD36: 52 | AE36: 0 | AF36: 0 | AG36: 439 | AH36: 580 | AI36: 878 | AK36: 80 | AL36: -480 | AM36: 168 | AN36: 7717 | AO36: 5826 | AP36: 701 | AQ36: 1190 | AR36: 21.75 | AT36: 76 | AU36: 2271 | AW36: 2.146862483 | AX36: 21.48141212 | AY36: -1128.137384 | BC36: 72.25973713 | BD36: 586.0854249 | BE36: 22.92661633 | BF36: 9330.691325 | BG36: 4287 | BH36: 2209 | BI36: 20376 | BJ36: -18167 | BK36: 8145 | BL36: 11004 | BO36: -11 | BP36: 20 | BQ36: 991 | BR36: 488 | BS36: 0 | BT36: 0 | BU36: 503 | BV36: 52 | BW36: 0 | BX36: 0 | BY36: 555 | BZ36: 1136 | CA36: 986 | CC36: 49 | CD36: -465 | CE36: 693 | CF36: 8145 | CG36: 6197 | CH36: 772 | CI36: 1176 | CJ36: 21.75 | CL36: 47 | CM36: 2199 | CO36: 1.839662447 | CP36: 22.41443976 | CQ36: -884.9477035 | CU36: 72.06944768 | CV36: 961.8008186 | CW36: 36.12254925 | CX36: 9718.508413 | CY36: 4132 | CZ36: 2245 | DA36: 20473 | DB36: -18228 | DC36: 8051 | DD36: 11034 | DG36: -2 | DH36: 8 | DI36: 863 | DJ36: 477 | DK36: 0 | DL36: 0 | DM36: 386 | DN36: 52 | DO36: 0 | DP36: 0 | DQ36: 438 | DR36: 1573 | DS36: 860 | DU36: -26 | DV36: -465 | DW36: 620 | DX36: 8051 | DY36: 6147 | DZ36: 845 | EA36: 1059 | EB36: 21.75 | ED36: 258.5147059 | EE36: 14189 | EF36: 14267 | EG36: 14701 | EJ36: 315 | EK36: -785 | EL36: 57 | EM36: 18 | EN36: -333 | EO36: 34 | EP36: 6 | EQ36: -422 | ER36: 179 | ES36: 3 | ET36: 0 | EU36: 0 | EV36: 0 | EW36: 0 | EX36: 0 | EY36: 0 | EZ36: 3710 | FA36: 1344 | FB36: 2366 | FC36: 0 | FD36: 3243 | FE36: 878 | FF36: 2365 | FG36: 0 | FH36: 2778 | FI36: 413 | FJ36: 2365 | FK36: 0 | FL36: 4822.474858 | FM36: 5142.228093 | FN36: 5429.740791 | FO36: 282.6206897 | FP36: 128.5223691 | FV36: 734 | FW36: -734
A37: 106 | B37: Hyvinkää | C37: 46504 | E37: 1.553455992 | F37: 39.06294065 | G37: -1973.013074 | K37: 55.50698024 | L37: 976.0020643 | M37: 40.67654201 | N37: 8757.891794 | O37: 121194 | P37: 145372 | Q37: 378991 | R37: -233619 | S37: 199497 | T37: 51806 | W37: -1770 | X37: 995 | Y37: 16909 | Z37: 19199 | AA37: 0 | AB37: 0 | AC37: -2290 | AD37: 0 | AE37: 0 | AF37: 0 | AG37: -2290 | AH37: 27870 | AI37: 10629 | AK37: 1939 | AL37: -10231 | AM37: 1771 | AN37: 199497 | AO37: 174257 | AP37: 13476 | AQ37: 11764 | AR37: 19.75 | AT37: 89 | AU37: 46470 | AW37: 0.08358259461 | AX37: 66.09423026 | AY37: -2797.245535 | BC37: 47.21259544 | BD37: 1114.202711 | BE37: 55.47058081 | BF37: 7331.525716 | BG37: 79193 | BH37: 41121 | BI37: 295137 | BJ37: -251376 | BK37: 199029 | BL37: 52983 | BO37: -1758 | BP37: 1031 | BQ37: -91 | BR37: 19285 | BS37: 0 | BT37: 0 | BU37: -19376 | BV37: 0 | BW37: 0 | BX37: 0 | BY37: -19376 | BZ37: 8494 | CA37: -3204 | CC37: 4624 | CD37: -7851 | CE37: -37123 | CF37: 199029 | CG37: 171907 | CH37: 14104 | CI37: 13018 | CJ37: 19.75 | CL37: 232 | CM37: 46576 | CO37: 1.592202756 | CP37: 60.48068373 | CQ37: -3020.632944 | CU37: 46.46445347 | CV37: 995.405359 | CW37: 47.9052038 | CX37: 7584.206458 | CY37: 76639 | CZ37: 41806 | DA37: 304225 | DB37: -262419 | DC37: 210988 | DD37: 73266 | DG37: -1773 | DH37: 1100 | DI37: 21162 | DJ37: 20445 | DK37: 0 | DL37: 0 | DM37: 717 | DN37: -10952 | DO37: 11000 | DP37: 0 | DQ37: 765 | DR37: 9259 | DS37: 23282 | DU37: 3150 | DV37: -12610 | DW37: -10485 | DX37: 210988 | DY37: 183623 | DZ37: 14846 | EA37: 12519 | EB37: 19.75 | ED37: 241.3897059 | EE37: 218216 | EF37: 187375 | EG37: 193427 | EK37: -19129 | EL37: 403 | EM37: 9868 | EN37: -38329 | EO37: 73 | EP37: 4337 | EQ37: -36723 | ER37: 246 | ES37: 2710 | ET37: 0 | EU37: 1534 | EV37: 42636 | EW37: -7020 | EX37: 0 | EY37: 26677 | EZ37: 111782 | FA37: 86827 | FB37: 24955 | FC37: 3227 | FD37: 139547 | FE37: 116853 | FF37: 22694 | FG37: 3173 | FH37: 153614 | FI37: 104243 | FJ37: 49371 | FK37: 3120 | FL37: 5582.100464 | FM37: 6487.540349 | FN37: 6856.535555 | FO37: 9297.367089 | FP37: 199.6171223 | FV37: 14443 | FW37: -14443
A38: 108 | B38: Hämeenkyrö | C38: 10510 | E38: 2.365892083 | F38: 83.9080301 | G38: -4728.639391 | K38: 35.53853468 | L38: 815.3187441 | M38: 39.11708793 | N38: 7607.706946 | O38: 30813 | P38: 13513 | Q38: 67038 | R38: -53525 | S38: 37419 | T38: 21575 | W38: -193 | X38: 498 | Y38: 5774 | Z38: 5352 | AA38: 0 | AB38: 0 | AC38: 422 | AD38: 77 | AE38: 0 | AF38: 0 | AG38: 499 | AH38: 808 | AI38: 5466 | AK38: 570 | AL38: -2306 | AM38: -3839 | AN38: 37419 | AO38: 33656 | AP38: 1656 | AQ38: 2107 | AR38: 22 | AT38: 31 | AU38: 10404 | AW38: 0.582766977 | AX38: 82.62695367 | AY38: -4711.168781 | BC38: 34.91935396 | BD38: 754.9980777 | BE38: 30.07747343 | BF38: 9162.149173 | BG38: 31469 | BH38: 12205 | BI38: 68308 | BJ38: -56051 | BK38: 37870 | BL38: 21841 | BO38: -202 | BP38: 314 | BQ38: 3772 | BR38: 5687 | BS38: 0 | BT38: 0 | BU38: -1915 | BV38: 77 | BW38: 0 | BX38: 0 | BY38: -1838 | BZ38: -733 | CA38: 3739 | CC38: -55 | CD38: -22321 | CE38: 326 | CF38: 37870 | CG38: 33825 | CH38: 1901 | CI38: 2144 | CJ38: 22 | CL38: 69 | CM38: 10344 | CO38: 28.26136364 | CP38: 75.228725 | CQ38: -4269.914927 | CU38: 36.87410937 | CV38: 1049.980665 | CW38: 54.4908661 | CX38: 7033.159319 | CY38: 33006 | CZ38: 12353 | DA38: 69742 | DB38: -57389 | DC38: 39012 | DD38: 25531 | DG38: -252 | DH38: 295 | DI38: 7197 | DJ38: 5319 | DK38: 0 | DL38: 0 | DM38: 1878 | DN38: 77 | DO38: 0 | DP38: 0 | DQ38: 1955 | DR38: 1222 | DS38: 7108 | DU38: -224 | DV38: 0 | DW38: 4881 | DX38: 39012 | DY38: 35286 | DZ38: 1779 | EA38: 1947 | EB38: 22 | ED38: 135.6176471 | EE38: 28622 | EF38: 29133 | EG38: 28467 | EK38: -10428 | EL38: 490 | EM38: 633 | EN38: -4443 | EO38: 970 | EP38: 60 | EQ38: -2634 | ER38: 261 | ES38: 146 | ET38: 1800 | EU38: 4250 | EV38: 0 | EW38: 21265 | EX38: 31154 | EY38: -33821 | EZ38: 51471 | FA38: 32915 | FB38: 18556 | FC38: 248 | FD38: 50415 | FE38: 10594 | FF38: 39821 | FG38: 223 | FH38: 47748 | FI38: 40123 | FJ38: 7625 | FK38: 190 | FL38: 6383.349191 | FM38: 6448.28912 | FN38: 6354.118329 | FO38: 1603.909091 | FP38: 155.05695 | FV38: 704 | FW38: -704
A39: 109 | B39: Hämeenlinna | C39: 67532 | E39: 0.4647930171 | F39: 65.28118101 | G39: -2422.969851 | K39: 53.26297967 | L39: 1574.660901 | M39: 73.41616763 | N39: 7828.673814 | O39: 148166 | P39: 99058 | Q39: 455555 | R39: -356497 | S39: 281231 | T39: 91264 | W39: -3939 | X39: 1652 | Y39: 13711 | Z39: 25569 | AA39: 0 | AB39: 0 | AC39: -11858 | AD39: 741 | AE39: -542 | AF39: 7489 | AG39: -4170 | AH39: -2233 | AI39: -473 | AK39: 3675 | AL39: -36582 | AM39: -21109 | AN39: 281231 | AO39: 237794 | AP39: 15868 | AQ39: 27569 | AR39: 20.75 | AT39: 166 | AU39: 67633 | AW39: 0.2986175225 | AX39: 72.2271552 | AY39: -2797.850162 | BC39: 49.87104604 | BD39: 1690.920113 | BE39: 76.64492662 | BF39: 8052.533527 | BG39: 152590 | BH39: 86214 | BI39: 465332 | BJ39: -370118 | BK39: 283424 | BL39: 90981 | BO39: -3608 | BP39: 6073 | BQ39: 6752 | BR39: 18370 | BS39: 0 | BT39: 0 | BU39: -11618 | BV39: 98 | BW39: 45 | BX39: 0 | BY39: -11475 | BZ39: -13709 | CA39: 2947 | CC39: 2248 | CD39: -45697 | CE39: -26363 | CF39: 283424 | CG39: 239750 | CH39: 15997 | CI39: 27677 | CJ39: 20.75 | CL39: 181 | CM39: 67848 | CO39: 0.9478083885 | CP39: 72.61027326 | CQ39: -2692.518571 | CU39: 48.3952064 | CV39: 2288.040915 | CW39: 104.4345807 | CX39: 7996.72798 | CY39: 156297 | CZ39: 90314 | DA39: 477071 | DB39: -386757 | DC39: 298979 | DD39: 122902 | DG39: -4014 | DH39: 2014 | DI39: 33124 | DJ39: 21931 | DK39: 0 | DL39: 0 | DM39: 11193 | DN39: 18 | DO39: -73 | DP39: 2764 | DQ39: 13902 | DR39: 195 | DS39: 32075 | DU39: 2221 | DV39: -35278 | DW39: 4003 | DX39: 298979 | DY39: 255175 | DZ39: 18457 | EA39: 25347 | EB39: 21 | ED39: 232.3235294 | EE39: 236210 | EF39: 242400 | EG39: 248354 | EJ39: 2600 | EK39: -36177 | EL39: 271 | EM39: 15270 | EN39: -36604 | EO39: 524 | EP39: 6770 | EQ39: -32863 | ER39: 284 | ES39: 4507 | ET39: 49570 | EU39: 2613 | EV39: 60000 | EW39: 19440 | EX39: 62648 | EY39: 2818 | EZ39: 237865 | FA39: 165589 | FB39: 72276 | FC39: 40934 | FD39: 271609 | FE39: 180363 | FF39: 91246 | FG39: 39923 | FH39: 301795 | FI39: 209646 | FJ39: 92149 | FK39: 39112 | FL39: 6404.71184 | FM39: 6972.956988 | FN39: 7509.491805 | FO39: 12151.19048 | FP39: 179.094306 | FV39: 20186 | FW39: -20186
A40: 139 | B40: Ii | C40: 9862 | E40: 0.3060174188 | F40: 69.67873866 | G40: -4279.050902 | K40: 40.7825643 | L40: 263.0298114 | M40: 12.20414792 | N40: 7866.659907 | O40: 19093 | P40: 7955 | Q40: 66096 | R40: -58141 | S40: 32090 | T40: 27439 | W40: -305 | X40: 132 | Y40: 1215 | Z40: 3148 | AA40: 0 | AB40: 0 | AC40: -1933 | AD40: 83 | AE40: 0 | AF40: 0 | AG40: -1850 | AH40: 4089 | AI40: 1080 | AK40: -320 | AL40: -4721 | AM40: -4683 | AN40: 32090 | AO40: 26489 | AP40: 1373 | AQ40: 4228 | AR40: 21.25 | AT40: 208 | AU40: 9844 | AW40: 0.09796986486 | AX40: 75.71811621 | AY40: -4954.896384 | BC40: 36.19836251 | BD40: 264.221861 | BE40: 11.38095352 | BF40: 8473.892727 | BG40: 20207 | BH40: 8576 | BI40: 69652 | BJ40: -61055 | BK40: 33886 | BL40: 27652 | BO40: -275 | BP40: 83 | BQ40: 291 | BR40: 3362 | BS40: 0 | BT40: 0 | BU40: -3071 | BV40: -618 | BW40: 700 | BX40: 0 | BY40: -2989 | BZ40: 1701 | CA40: 117 | CC40: 515 | CD40: -5466 | CE40: -7135 | CF40: 33886 | CG40: 28154 | CH40: 1453 | CI40: 4279 | CJ40: 21.25 | CL40: 219 | CM40: 9848 | CO40: 0.6617936118 | CP40: 76.11730928 | CQ40: -4867.790414 | CU40: 34.97501007 | CV40: 835.1949634 | CW40: 35.78346067 | CX40: 8519.191714 | CY40: 20964 | CZ40: 8079 | DA40: 70952 | DB40: -62873 | DC40: 34439 | DD40: 33759 | DG40: -300 | DH40: 53 | DI40: 5078 | DJ40: 4039 | DK40: 0 | DL40: 0 | DM40: 1039 | DN40: 84 | DO40: 0 | DP40: 0 | DQ40: 1123 | DR40: 2824 | DS40: 5018 | DU40: -185 | DV40: -7831 | DW40: 320 | DX40: 34439 | DY40: 28922 | DZ40: 1521 | EA40: 3996 | EB40: 21.25 | ED40: 222.25 | EE40: 39588 | EF40: 42085 | EG40: 42611 | EJ40: 700 | EK40: -6429 | EL40: 255 | EM40: 411 | EN40: -8004 | EO40: 571 | EP40: 181 | EQ40: -4805 | ER40: 50 | ES40: 57 | ET40: 10000 | EU40: -2129 | EV40: 10000 | EW40: 1745 | EX40: 19100 | EY40: -7590 | EZ40: 38285 | FA40: 23564 | FB40: 14721 | FC40: 890 | FD40: 44564 | FE40: 28098 | FF40: 16466 | FG40: 890 | FH40: 48243 | FI40: 39367 | FJ40: 8876 | FK40: 890 | FL40: 5780.267694 | FM40: 6390.999594 | FN40: 7036.454102 | FO40: 1361.035294 | FP40: 138.2042338 | FV40: 2843 | FW40: -2843
A41: 140 | B41: Iisalmi | C41: 21472 | E41: 1.18706974 | F41: 47.23215753 | G41: -1915.23845 | K41: 54.64421354 | L41: 1361.773472 | M41: 62.07851281 | N41: 8006.752981 | O41: 42171 | P41: 29285 | Q41: 147305 | R41: -118020 | S41: 75247 | T41: 53714 | W41: -292 | X41: 915 | Y41: 11564 | Z41: 9398 | AA41: 0 | AB41: 0 | AC41: 2166 | AD41: -788 | AE41: 0 | AF41: 400 | AG41: 1778 | AH41: 11156 | AI41: 10850 | AK41: 67 | AL41: -9689 | AM41: -1940 | AN41: 75247 | AO41: 63744 | AP41: 5766 | AQ41: 5737 | AR41: 20.5 | AT41: 36 | AU41: 21368 | AW41: 1.027872281 | AX41: 43.352244 | AY41: -2076.001498 | BC41: 56.34755063 | BD41: 1034.444028 | BE41: 45.95635606 | BF41: 8215.883564 | BG41: 42402 | BH41: 28723 | BI41: 153787 | BJ41: -125064 | BK41: 77076 | BL41: 54428 | BO41: -307 | BP41: 1766 | BQ41: 7899 | BR41: 7372 | BS41: 0 | BT41: 0 | BU41: 527 | BV41: -281 | BW41: 0 | BX41: 764 | BY41: 1010 | BZ41: 12166 | CA41: 7455 | CC41: 1279 | CD41: -9773 | CE41: -3225 | CF41: 77076 | CG41: 65351 | CH41: 5852 | CI41: 5873 | CJ41: 20.5 | CL41: 65 | CM41: 21124 | CO41: 1.453562142 | CP41: 44.19214285 | CQ41: -1964.306003 | CU41: 55.92596517 | CV41: 1362.384018 | CW41: 59.31468986 | CX41: 8383.592123 | CY41: 41798 | CZ41: 28373 | DA41: 155530 | DB41: -127157 | DC41: 77027 | DD41: 62862 | DG41: -266 | DH41: 1198 | DI41: 13664 | DJ41: 8722 | DK41: 0 | DL41: 0 | DM41: 4942 | DN41: -439 | DO41: 0 | DP41: -1740 | DQ41: 2763 | DR41: 14929 | DS41: 13429 | DU41: -1073 | DV41: -9303 | DW41: 2354 | DX41: 77027 | DY41: 66202 | DZ41: 5504 | EA41: 5321 | EB41: 20.5 | ED41: 161.8088235 | EE41: 88678 | EF41: 93305 | EG41: 95161 | EK41: -13805 | EL41: 123 | EM41: 892 | EN41: -11482 | EO41: 46 | EP41: 756 | EQ41: -11823 | ER41: 259 | ES41: 489 | ET41: 17342 | EU41: 0 | EV41: 3500 | EW41: 0 | EX41: 15300 | EY41: 0 | EZ41: 61618 | FA41: 51962 | FB41: 9656 | FC41: 1810 | FD41: 55346 | FE41: 46043 | FF41: 9303 | FG41: 1697 | FH41: 61342 | FI41: 51920 | FJ41: 9422 | FK41: 1589 | FL41: 5082.805514 | FM41: 4729.221265 | FN41: 5217.288392 | FO41: 3229.365854 | FP41: 152.8766263 | FV41: 4886 | FW41: -4886
A42: 142 | B42: Iitti | C42: 6765 | E42: 0.4433887569 | F42: 34.54880207 | G42: -1332.002956 | K42: 62.39620707 | L42: 704.6563193 | M42: 39.47176788 | N42: 6516.038433 | O42: 9725 | P42: 3652 | Q42: 41517 | R42: -37865 | S42: 23236 | T42: 14934 | W42: -60 | X42: 253 | Y42: 498 | Z42: 1625 | AA42: 62 | AB42: 0 | AC42: -1065 | AD42: 70 | AE42: 0 | AF42: 0 | AG42: -995 | AH42: 825 | AI42: 476 | AK42: 162 | AL42: -1201 | AM42: -369 | AN42: 23236 | AO42: 19362 | AP42: 1421 | AQ42: 2453 | AR42: 20.75 | AT42: 221 | AU42: 6711 | AW42: -0.947000269 | AX42: 39.45327016 | AY42: -1694.233348 | BC42: 55.2876997 | BD42: 744.4494114 | BE42: 38.57139835 | BF42: 7044.702727 | BG42: 10526 | BH42: 3514 | BI42: 44515 | BJ42: -41001 | BK42: 24311 | BL42: 15231 | BO42: -51 | BP42: 135 | BQ42: -1375 | BR42: 1689 | BS42: 0 | BT42: 0 | BU42: -3064 | BV42: 70 | BW42: 0 | BX42: 0 | BY42: -2994 | BZ42: -2169 | CA42: -1387 | CC42: 51 | CD42: -1383 | CE42: -2360 | CF42: 24311 | CG42: 19979 | CH42: 1389 | CI42: 2943 | CJ42: 20.75 | CL42: 272 | CM42: 6625 | CO42: 3.978723404 | CP42: 22.73332501 | CQ42: -929.0566038 | CU42: 69.96660562 | CV42: 426.1132075 | CW42: 23.02044236 | CX42: 6756.226415 | CY42: 10059 | CZ42: 3076 | DA42: 41613 | DB42: -38537 | DC42: 25383 | DD42: 19607 | DG42: -42 | DH42: -98 | DI42: 6313 | DJ42: 1616 | DK42: 0 | DL42: 0 | DM42: 4697 | DN42: 70 | DO42: 0 | DP42: 0 | DQ42: 4767 | DR42: 2598 | DS42: 6291 | DU42: -1328 | DV42: -1553 | DW42: 5214 | DX42: 25383 | DY42: 21217 | DZ42: 1433 | EA42: 2733 | EB42: 21.25 | ED42: 46.97058824 | EE42: 28908 | EF42: 31041 | EG42: 28779 | EJ42: 920 | EK42: -1271 | EL42: 286 | EM42: 140 | EN42: -1312 | EO42: 202 | EP42: 137 | EQ42: -1221 | ER42: 108 | ES42: 36 | ET42: 1800 | EU42: 0 | EV42: 1700 | EW42: 0 | EX42: 0 | EY42: 0 | EZ42: 9577 | FA42: 8194 | FB42: 1383 | FC42: 0 | FD42: 9894 | FE42: 8341 | FF42: 1553 | FG42: 0 | FH42: 8341 | FI42: 6788 | FJ42: 1553 | FK42: 0 | FL42: 2999.408721 | FM42: 2905.528237 | FN42: 2637.433962 | FO42: 998.4470588 | FP42: 150.70899 | FV42: 555 | FW42: -555
A43: 143 | B43: Ikaalinen | C43: 7003 | E43: 0.3441164577 | F43: 71.68885208 | G43: -4206.34014 | K43: 35.88510715 | L43: 261.8877624 | M43: 12.0974067 | N43: 7901.613594 | O43: 22783 | P43: 6913 | Q43: 49168 | R43: -42255 | S43: 24827 | T43: 17767 | W43: -88 | X43: 484 | Y43: 735 | Z43: 2326 | AA43: 0 | AB43: 0 | AC43: -1591 | AD43: 2 | AE43: 0 | AF43: 0 | AG43: -1589 | AH43: -1377 | AI43: 666 | AK43: 59 | AL43: -2357 | AM43: -2833 | AN43: 24827 | AO43: 20257 | AP43: 1663 | AQ43: 2907 | AR43: 21.25 | AT43: 214 | AU43: 6942 | AW43: 0.02425188342 | AX43: 71.24969658 | AY43: -4397.147796 | BC43: 33.15343677 | BD43: 136.127917 | BE43: 6.434807753 | BF43: 7721.549986 | BG43: 22421 | BH43: 7275 | BI43: 49603 | BJ43: -42328 | BK43: 24486 | BL43: 17675 | BO43: -157 | BP43: 239 | BQ43: -85 | BR43: 2185 | BS43: 0 | BT43: 0 | BU43: -2270 | BV43: 2 | BW43: 0 | BX43: 0 | BY43: -2268 | BZ43: -3610 | CA43: -140 | CC43: 444 | CD43: -2357 | CE43: -1454 | CF43: 24486 | CG43: 19957 | CH43: 1770 | CI43: 2759 | CJ43: 21.75 | CL43: 236 | CM43: 6866 | CO43: 2.415968064 | CP43: 57.23899465 | CQ43: -3814.011069 | CU43: 39.76385487 | CV43: 149.5776289 | CW43: 7.223057209 | CX43: 7558.549374 | CY43: 21971 | CZ43: 7091 | DA43: 48036 | DB43: -40945 | DC43: 25705 | DD43: 20996 | DG43: -120 | DH43: 268 | DI43: 5904 | DJ43: 2529 | DK43: 0 | DL43: 0 | DM43: 3375 | DN43: 2 | DO43: 0 | DP43: 0 | DQ43: 3377 | DR43: -521 | DS43: 5756 | DU43: 179 | DV43: -2357 | DW43: 4719 | DX43: 25705 | DY43: 21116 | DZ43: 1945 | EA43: 2644 | EB43: 22 | ED43: 69.13235294 | EE43: 20893 | EF43: 21752 | EG43: 20687 | EJ43: 960 | EK43: -3679 | EL43: 90 | EM43: 90 | EN43: -1448 | EO43: 4 | EP43: 130 | EQ43: -1344 | ER43: 143 | ES43: 164 | ET43: 10000 | EU43: -5800 | EV43: 0 | EW43: 3300 | EX43: 0 | EY43: -3200 | EZ43: 28771 | FA43: 20714 | FB43: 8057 | FC43: 0 | FD43: 29714 | FE43: 18357 | FF43: 11357 | FG43: 0 | FH43: 24157 | FI43: 16000 | FJ43: 8157 | FK43: 0 | FL43: 6533.057261 | FM43: 6869.922213 | FN43: 6293.183804 | FO43: 959.8181818 | FP43: 139.792919 | FV43: 744 | FW43: -744
A44: 145 | B44: Ilmajoki | C44: 12187 | E44: 0.6312364425 | F44: 69.05965622 | G44: -4119.553623 | K44: 42.511039 | L44: 67.94124887 | M44: 3.622655079 | N44: 6845.409042 | O44: 26920 | P44: 10214 | Q44: 75765 | R44: -65551 | S44: 39149 | T44: 28873 | W44: -351 | X44: 128 | Y44: 2248 | Z44: 3023 | AA44: 0 | AB44: 0 | AC44: -775 | AD44: 0 | AE44: 0 | AF44: 0 | AG44: -775 | AH44: 8934 | AI44: 1601 | AK44: -235 | AL44: -3778 | AM44: -1126 | AN44: 39149 | AO44: 35062 | AP44: 1571 | AQ44: 2516 | AR44: 20.75 | AT44: 178 | AU44: 12269 | AW44: -0.05465122485 | AX44: 73.74586738 | AY44: -4509.739995 | BC44: 37.88096713 | BD44: 95.85133263 | BE44: 4.609536082 | BF44: 7589.860624 | BG44: 28326 | BH44: 9963 | BI44: 80786 | BJ44: -70749 | BK44: 40904 | BL44: 29288 | BO44: -335 | BP44: 155 | BQ44: -737 | BR44: 3135 | BS44: 0 | BT44: 0 | BU44: -3872 | BV44: 0 | BW44: 0 | BX44: 0 | BY44: -3872 | BZ44: 5062 | CA44: -1265 | CC44: 318 | CD44: -7390 | CE44: -5129 | CF44: 40904 | CG44: 36607 | CH44: 1626 | CI44: 2671 | CJ44: 20.75 | CL44: 248 | CM44: 12294 | CO44: 1.200123026 | CP44: 77.26935077 | CQ44: -4987.880267 | CU44: 35.15090275 | CV44: 291.1176184 | CW44: 13.39569725 | CX44: 7932.243371 | CY44: 28181 | CZ44: 9395 | DA44: 81860 | DB44: -72465 | DC44: 43264 | DD44: 34908 | DG44: -326 | DH44: 128 | DI44: 5509 | DJ44: 3209 | DK44: 0 | DL44: 0 | DM44: 2300 | DN44: 0 | DO44: 0 | DP44: 0 | DQ44: 2300 | DR44: 5854 | DS44: 3768 | DU44: -108 | DV44: -4533 | DW44: -6276 | DX44: 43264 | DY44: 39060 | DZ44: 1764 | EA44: 2440 | EB44: 21 | ED44: 244.4117647 | EE44: 40794 | EF44: 44362 | EG44: 44764 | EK44: -3539 | EL44: 0 | EM44: 812 | EN44: -4482 | EO44: 0 | EP44: 618 | EQ44: -10801 | ER44: 43 | ES44: 714 | ET44: 3450 | EU44: 173 | EV44: 13450 | EW44: -1077 | EX44: 15001 | EY44: -3207 | EZ44: 43476 | FA44: 34784 | FB44: 8692 | FC44: 1058 | FD44: 48459 | FE44: 40844 | FF44: 7615 | FG44: 1073 | FH44: 55720 | FI44: 51312 | FJ44: 4408 | FK44: 879 | FL44: 5690.161648 | FM44: 6111.826555 | FN44: 6754.107695 | FO44: 1860 | FP44: 151.2933138 | FV44: 2979 | FW44: -2979
A45: 146 | B45: Ilomantsi | C45: 4973 | E45: 0.5871172122 | F45: 31.29568858 | G45: -2014.679268 | K45: 64.26216941 | L45: 369.3947316 | M45: 14.4726845 | N45: 9316.106978 | O45: 10416 | P45: 6019 | Q45: 43575 | R45: -37556 | S45: 17060 | T45: 21278 | W45: -114 | X45: 327 | Y45: 995 | Z45: 2083 | AA45: 0 | AB45: 0 | AC45: -1088 | AD45: 49 | AE45: 0 | AF45: 0 | AG45: -1039 | AH45: 5163 | AI45: 992 | AK45: -449 | AL45: -1777 | AM45: 9 | AN45: 17060 | AO45: 12588 | AP45: 3121 | AQ45: 1351 | AR45: 20.75 | AT45: 171 | AU45: 4857 | AW45: 0.6798020357 | AX45: 26.09300968 | AY45: -1906.526663 | BC45: 67.08320549 | BD45: 195.1822112 | BE45: 7.138112429 | BF45: 9980.440601 | BG45: 10243 | BH45: 5691 | BI45: 44058 | BJ45: -38269 | BK45: 17290 | BL45: 21552 | BO45: -104 | BP45: 337 | BQ45: 806 | BR45: 1903 | BS45: 0 | BT45: 0 | BU45: -1097 | BV45: 94 | BW45: 0 | BX45: 0 | BY45: -1003 | BZ45: 4159 | CA45: 533 | CC45: 562 | CD45: -1777 | CE45: 834 | CF45: 17290 | CG45: 12804 | CH45: 3002 | CI45: 1484 | CJ45: 21 | CL45: 143 | CM45: 4749 | CO45: 2.489298454 | CP45: 27.25229235 | CQ45: -1105.074753 | CU45: 67.49566371 | CV45: 1198.77869 | CW45: 47.96512165 | CX45: 9122.341546 | CY45: 9406 | CZ45: 4923 | DA45: 41159 | DB45: -36236 | DC45: 17462 | DD45: 22633 | DG45: -88 | DH45: 328 | DI45: 4099 | DJ45: 1689 | DK45: 0 | DL45: 0 | DM45: 2410 | DN45: 43 | DO45: -500 | DP45: 0 | DQ45: 1953 | DR45: 6112 | DS45: 4425 | DU45: 108 | DV45: -1594 | DW45: 4004 | DX45: 17462 | DY45: 12966 | DZ45: 3160 | EA45: 1336 | EB45: 21 | ED45: 67.11764706 | EE45: 29737 | EF45: 30618 | EG45: 28552 | EK45: -1015 | EL45: 0 | EM45: 32 | EN45: -2521 | EO45: 0 | EP45: 2822 | EQ45: -547 | ER45: 10 | ES45: 116 | ET45: 1000 | EU45: 0 | EV45: 0 | EW45: 0 | EX45: 2000 | EY45: 0 | EZ45: 10864 | FA45: 9087 | FB45: 1777 | FC45: 1017 | FD45: 9086 | FE45: 7493 | FF45: 1593 | FG45: 1017 | FH45: 9492 | FI45: 8016 | FJ45: 1476 | FK45: 1017 | FL45: 3916.147195 | FM45: 3959.234095 | FN45: 4336.913034 | FO45: 617.4285714 | FP45: 130.0123334 | FV45: 0 | FW45: 0
A46: 153 | B46: Imatra | C46: 26932 | E46: 0.6991108288 | F46: 57.45967517 | G46: -2693.153126 | K46: 58.18237866 | L46: 669.3153126 | M46: 31.70487127 | N46: 7705.443339 | O46: 37348 | P46: 20345 | Q46: 171119 | R46: -150774 | S46: 103034 | T46: 56039 | W46: -368 | X46: 162 | Y46: 8093 | Z46: 8355 | AA46: 0 | AB46: 0 | AC46: -262 | AD46: 0 | AE46: 0 | AF46: 380 | AG46: 118 | AH46: 65900 | AI46: 9830 | AK46: 1224 | AL46: -11883 | AM46: -9584 | AN46: 103034 | AO46: 89509 | AP46: 3740 | AQ46: 9785 | AR46: 20 | AT46: 111 | AU46: 26508 | AW46: 1.125910077 | AX46: 63.76255006 | AY46: -3333.672853 | BC46: 54.55650014 | BD46: 613.3620039 | BE46: 25.68328962 | BF46: 8716.840199 | BG46: 37857 | BH46: 20192 | BI46: 170102 | BJ46: -149910 | BK46: 105975 | BL46: 56103 | BO46: -291 | BP46: 1748 | BQ46: 13625 | BR46: 11611 | BS46: 7 | BT46: 0 | BU46: 2021 | BV46: 0 | BW46: -2678 | BX46: 1301 | BY46: 644 | BZ46: 66544 | CA46: 13466 | CC46: 941 | CD46: -30146 | CE46: -15838 | CF46: 105975 | CG46: 90624 | CH46: 3372 | CI46: 11979 | CJ46: 20 | CL46: 27 | CM46: 26075 | CO46: 1.65864005 | CP46: 66.59649159 | CQ46: -3743.815916 | CU46: 51.39698766 | CV46: 734.189837 | CW46: 31.6672105 | CX46: 8462.358581 | CY46: 35448 | CZ46: 19623 | DA46: 183132 | DB46: -163509 | DC46: 105746 | DD46: 68907 | DG46: -245 | DH46: 1876 | DI46: 12775 | DJ46: 8453 | DK46: 0 | DL46: 0 | DM46: 4322 | DN46: 0 | DO46: 0 | DP46: 91 | DQ46: 4413 | DR46: 70957 | DS46: 19249 | DU46: -1024 | DV46: -7496 | DW46: -9660 | DX46: 105746 | DY46: 90701 | DZ46: 3804 | EA46: 11241 | EB46: 20 | ED46: 231.3161765 | EE46: 115382 | EF46: 115371 | EG46: 123273 | EJ46: 1600 | EK46: -23806 | EL46: 223 | EM46: 4169 | EN46: -30000 | EO46: 256 | EP46: 440 | EQ46: -29494 | ER46: 444 | ES46: 141 | ET46: 13844 | EU46: 0 | EV46: 49156 | EW46: 8300 | EX46: 27000 | EY46: -8300 | EZ46: 63108 | FA46: 52462 | FB46: 10646 | FC46: 0 | FD46: 90418 | FE46: 75378 | FF46: 15040 | FG46: 0 | FH46: 101622 | FI46: 91299 | FJ46: 10323 | FK46: 0 | FL46: 8160.329719 | FM46: 8994.039535 | FN46: 9461.208054 | FO46: 4535.05 | FP46: 173.9232982 | FV46: 11458 | FW46: -11458
A47: 148 | B47: Inari | C47: 6930 | E47: 1.806088993 | F47: 33.87436378 | G47: -1128.282828 | K47: 71.90630403 | L47: 1387.590188 | M47: 56.19880232 | N47: 9012.121212 | O47: 25667 | P47: 8901 | Q47: 57447 | R47: -48546 | S47: 27992 | T47: 23428 | W47: -137 | X47: 860 | Y47: 3597 | Z47: 1967 | AA47: 0 | AB47: 0 | AC47: 1630 | AD47: 0 | AE47: 0 | AF47: 23 | AG47: 1653 | AH47: 10966 | AI47: 3558 | AK47: 1412 | AL47: -1876 | AM47: 1652 | AN47: 27992 | AO47: 21115 | AP47: 2487 | AQ47: 4390 | AR47: 19 | AT47: 40 | AU47: 6907 | AW47: 1.138860222 | AX47: 33.39602409 | AY47: -1578.253945 | BC47: 72.20226999 | BD47: 925.2931808 | BE47: 34.81924024 | BF47: 9699.580136 | BG47: 26306 | BH47: 9595 | BI47: 59133 | BJ47: -49538 | BK47: 27653 | BL47: 23367 | BO47: -31 | BP47: 877 | BQ47: 2328 | BR47: 2056 | BS47: 0 | BT47: 0 | BU47: 272 | BV47: 0 | BW47: 0 | BX47: 7 | BY47: 279 | BZ47: 11245 | CA47: 1879 | CC47: -370 | CD47: -1838 | CE47: -1931 | CF47: 27653 | CG47: 20440 | CH47: 2705 | CI47: 4508 | CJ47: 19 | CL47: 77 | CM47: 6862 | CO47: 1.637853555 | CP47: 30.46931297 | CQ47: -1196.444185 | CU47: 73.81672762 | CV47: 1172.835908 | CW47: 43.34415393 | CX47: 9876.420869 | CY47: 27188 | CZ47: 9849 | DA47: 60049 | DB47: -50200 | DC47: 28245 | DD47: 27129 | DG47: -15 | DH47: 899 | DI47: 6058 | DJ47: 2617 | DK47: 0 | DL47: 0 | DM47: 3441 | DN47: 0 | DO47: 0 | DP47: -66 | DQ47: 3375 | DR47: 14620 | DS47: 5231 | DU47: -2112 | DV47: -3645 | DW47: 2908 | DX47: 28245 | DY47: 20976 | DZ47: 3041 | EA47: 4228 | EB47: 19 | ED47: 63.08823529 | EE47: 23649 | EF47: 24454 | EG47: 24586 | EK47: -2641 | EL47: 428 | EM47: 307 | EN47: -4636 | EO47: 49 | EP47: 777 | EQ47: -3635 | ER47: 272 | ES47: 1040 | ET47: 1163 | EU47: 0 | EV47: 2000 | EW47: 0 | EX47: 2500 | EY47: 0 | EZ47: 13119 | FA47: 11491 | FB47: 1628 | FC47: 5675 | FD47: 13280 | FE47: 9943 | FF47: 3337 | FG47: 6826 | FH47: 12136 | FI47: 10710 | FJ47: 1426 | FK47: 7042 | FL47: 6018.470418 | FM47: 6604.604025 | FN47: 6662.78053 | FO47: 1104 | FP47: 160.8860391 | FV47: 1630 | FW47: -1630
A48: 149 | B48: Inkoo | C48: 5403 | E48: 1.162650602 | F48: 53.54371849 | G48: -2817.693874 | K48: 43.80962795 | L48: 749.9537294 | M48: 37.0597374 | N48: 7386.266889 | O48: 11977 | P48: 5358 | Q48: 35441 | R48: -30083 | S48: 25975 | T48: 6946 | W48: -122 | X48: 57 | Y48: 2773 | Z48: 1953 | AA48: 0 | AB48: 0 | AC48: 820 | AD48: 0 | AE48: -15 | AF48: 0 | AG48: 805 | AH48: 8185 | AI48: 2773 | AK48: 213 | AL48: -2368 | AM48: 811 | AN48: 25975 | AO48: 21994 | AP48: 1042 | AQ48: 2939 | AR48: 20.75 | AT48: 43 | AU48: 5386 | AW48: 0.3133703159 | AX48: 51.43509196 | AY48: -3095.61827 | BC48: 43.90101552 | BD48: 302.6364649 | BE48: 14.4795444 | BF48: 7628.852581 | BG48: 12535 | BH48: 4425 | BI48: 36613 | BJ48: -32188 | BK48: 25953 | BL48: 6867 | BO48: -111 | BP48: 60 | BQ48: 581 | BR48: 1563 | BS48: 0 | BT48: 0 | BU48: -982 | BV48: 0 | BW48: -15 | BX48: 0 | BY48: -997 | BZ48: 7188 | CA48: 501 | CC48: 367 | CD48: -2311 | CE48: -1307 | CF48: 25953 | CG48: 21925 | CH48: 1129 | CI48: 2899 | CJ48: 20.75 | CL48: 177 | CM48: 5321 | CO48: 2.377777778 | CP48: 42.45930048 | CQ48: -2597.06822 | CU48: 51.81027147 | CV48: 153.7305018 | CW48: 7.202788768 | CX48: 7790.264988 | CY48: 12692 | CZ48: 5024 | DA48: 35889 | DB48: -30865 | DC48: 26759 | DD48: 9188 | DG48: -93 | DH48: 54 | DI48: 5043 | DJ48: 1635 | DK48: 0 | DL48: 0 | DM48: 3408 | DN48: -45 | DO48: -3170 | DP48: 0 | DQ48: 193 | DR48: 7804 | DS48: 4647 | DU48: -1761 | DV48: -2067 | DW48: 2406 | DX48: 26759 | DY48: 22802 | DZ48: 1306 | EA48: 2651 | EB48: 20.75 | ED48: 47.97794118 | EE48: 20582 | EF48: 21357 | EG48: 20388 | EK48: -1976 | EL48: 14 | EM48: 0 | EN48: -1903 | EO48: 10 | EP48: 85 | EQ48: -3379 | ER48: 11 | ES48: 1127 | ET48: 3900 | EU48: 0 | EV48: 0 | EW48: 1000 | EX48: 0 | EY48: 0 | EZ48: 16676 | FA48: 14368 | FB48: 2308 | FC48: 0 | FD48: 15365 | FE48: 12158 | FF48: 3207 | FG48: 134 | FH48: 13297 | FI48: 10130 | FJ48: 3167 | FK48: 130 | FL48: 3387.747548 | FM48: 3340.326773 | FN48: 3121.405751 | FO48: 1098.891566 | FP48: 206.5197456 | FV48: 2239 | FW48: -2239
A49: 151 | B49: Isojoki | C49: 1976 | E49: 0.2205882353 | F49: 20.96015061 | G49: -317.3076923 | K49: 74.99672903 | L49: 1176.11336 | M49: 50.51271363 | N49: 8498.481781 | O49: 3114 | P49: 1856 | Q49: 15828 | R49: -13972 | S49: 6172 | T49: 7907 | W49: -19 | X49: 13 | Y49: 101 | Z49: 494 | AA49: 0 | AB49: 0 | AC49: -393 | AD49: 2 | AE49: 0 | AF49: 0 | AG49: -391 | AH49: 2005 | AI49: 141 | AK49: -116 | AL49: -525 | AM49: 45 | AN49: 6172 | AO49: 5099 | AP49: 619 | AQ49: 454 | AR49: 22 | AT49: 231 | AU49: 1951 | AW49: 0.3102111159 | AX49: 17.22317624 | AY49: -413.1214762 | BC49: 77.69961308 | BD49: 790.8764736 | BE49: 34.6517566 | BF49: 8330.599692 | BG49: 3108 | BH49: 1792 | BI49: 15649 | BJ49: -13857 | BK49: 6099 | BL49: 7832 | BO49: -16 | BP49: 16 | BQ49: 74 | BR49: 493 | BS49: 0 | BT49: 0 | BU49: -419 | BV49: 3 | BW49: 0 | BX49: 0 | BY49: -416 | BZ49: 1589 | CA49: 82 | CC49: 29 | CD49: -225 | CE49: -201 | CF49: 6099 | CG49: 4983 | CH49: 659 | CI49: 457 | CJ49: 22 | CL49: 216 | CM49: 1925 | CO49: 7.592436975 | CP49: 11.88342138 | CQ49: 303.8961039 | CU49: 83.53984698 | CV49: 1127.272727 | CW49: 50.26016879 | CX49: 8186.493506 | CY49: 2898 | CZ49: 1863 | DA49: 15054 | DB49: -13191 | DC49: 6914 | DD49: 8070 | DG49: -13 | DH49: 14 | DI49: 1794 | DJ49: 501 | DK49: 0 | DL49: 0 | DM49: 1293 | DN49: 3 | DO49: 0 | DP49: 0 | DQ49: 1296 | DR49: 2885 | DS49: 1780 | DU49: -57 | DV49: -225 | DW49: 1373 | DX49: 6914 | DY49: 5528 | DZ49: 805 | EA49: 581 | EB49: 22 | ED49: 54.02205882 | EE49: 11424 | EF49: 11351 | EG49: 11023 | EK49: -409 | EL49: 49 | EM49: 264 | EN49: -352 | EO49: 22 | EP49: 47 | EQ49: -456 | ER49: 35 | ES49: 14 | ET49: 0 | EU49: 0 | EV49: 0 | EW49: 0 | EX49: 0 | EY49: 0 | EZ49: 1062 | FA49: 837 | FB49: 225 | FC49: 130 | FD49: 837 | FE49: 612 | FF49: 225 | FG49: 108 | FH49: 612 | FI49: 387 | FJ49: 225 | FK49: 90 | FL49: 1946.862348 | FM49: 2182.470528 | FN49: 2203.116883 | FO49: 251.2727273 | FP49: 130.5312869 | FV49: 172 | FW49: -172
A50: 152 | B50: Isokyrö | C50: 4601 | E50: 4.457597173 | F50: 21.40714742 | G50: -352.9667464 | K50: 77.01829373 | L50: 809.3892632 | M50: 43.5562534 | N50: 6782.655944 | O50: 11601 | P50: 3771 | Q50: 28880 | R50: -25109 | S50: 14644 | T50: 12925 | W50: -9 | X50: 56 | Y50: 2507 | Z50: 1145 | AA50: 0 | AB50: 0 | AC50: 1362 | AD50: 0 | AE50: 0 | AF50: 0 | AG50: 1362 | AH50: 11337 | AI50: 2485 | AK50: -110 | AL50: -550 | AM50: 773 | AN50: 14644 | AO50: 13175 | AP50: 574 | AQ50: 895 | AR50: 21.5 | AT50: 32 | AU50: 4522 | AW50: 1.549235575 | AX50: 29.11651004 | AY50: -1199.911544 | BC50: 70.74132492 | BD50: 673.5957541 | BE50: 30.16414347 | BF50: 8150.818222 | BG50: 11382 | BH50: 3445 | BI50: 30726 | BJ50: -27281 | BK50: 15214 | BL50: 13158 | BO50: -7 | BP50: 83 | BQ50: 1167 | BR50: 1265 | BS50: 0 | BT50: 0 | BU50: -98 | BV50: 0 | BW50: 0 | BX50: 0 | BY50: -98 | BZ50: 11238 | CA50: 1167 | CC50: 569 | CD50: -450 | CE50: -3730 | CF50: 15214 | CG50: 13658 | CH50: 627 | CI50: 929 | CJ50: 21.5 | CL50: 104 | CM50: 4471 | CO50: 4.093795094 | CP50: 27.74347502 | CQ50: -960.1878774 | CU50: 71.86527715 | CV50: 934.9138895 | CW50: 45.41584807 | CX50: 7513.755312 | CY50: 11108 | CZ50: 3249 | DA50: 30765 | DB50: -27516 | DC50: 15363 | DD50: 14913 | DG50: -12 | DH50: 71 | DI50: 2819 | DJ50: 1453 | DK50: 0 | DL50: 0 | DM50: 1366 | DN50: 0 | DO50: 0 | DP50: 0 | DQ50: 1366 | DR50: 12604 | DS50: 2929 | DU50: -37 | DV50: -675 | DW50: 1121 | DX50: 15363 | DY50: 13852 | DZ50: 676 | EA50: 835 | EB50: 21.5 | ED50: 164.8308824 | EE50: 14206 | EF50: 16036 | EG50: 16196 | EK50: -1755 | EL50: 0 | EM50: 43 | EN50: -5598 | EO50: 615 | EP50: 86 | EQ50: -2084 | ER50: 154 | ES50: 122 | ET50: 0 | EU50: 0 | EV50: 2700 | EW50: 0 | EX50: 1100 | EY50: 0 | EZ50: 1325 | FA50: 875 | FB50: 450 | FC50: 431 | FD50: 3575 | FE50: 2955 | FF50: 620 | FG50: 503 | FH50: 4000 | FI50: 3270 | FJ50: 730 | FK50: 491 | FL50: 2069.11541 | FM50: 2654.798762 | FN50: 2853.276672 | FO50: 644.2790698 | FP50: 144.1017825 | FV50: 1420 | FW50: -1420
A51: 165 | B51: Janakkala | C51: 16447 | E51: 0.6018269118 | F51: 60.35583495 | G51: -2810.299751 | K51: 44.48922077 | L51: 621.9979328 | M51: 33.11002536 | N51: 6856.812793 | O51: 42786 | P51: 16010 | Q51: 97437 | R51: -81427 | S51: 63292 | T51: 23120 | W51: -428 | X51: 89 | Y51: 4646 | Z51: 5527 | AA51: 0 | AB51: 0 | AC51: -881 | AD51: 0 | AE51: 0 | AF51: 0 | AG51: -881 | AH51: 3477 | AI51: 3413 | AK51: -1217 | AL51: -8046 | AM51: -2652 | AN51: 63292 | AO51: 57504 | AP51: 2130 | AQ51: 3658 | AR51: 21 | AT51: 119 | AU51: 16413 | AW51: 0.2526420667 | AX51: 62.07965634 | AY51: -3162.432218 | BC51: 41.20137603 | BD51: 373.4844331 | BE51: 19.03969706 | BF51: 7159.873271 | BG51: 43972 | BH51: 15788 | BI51: 101624 | BJ51: -85532 | BK51: 62814 | BL51: 24290 | BO51: -368 | BP51: 138 | BQ51: 1342 | BR51: 6091 | BS51: 333 | BT51: 0 | BU51: -4416 | BV51: 0 | BW51: 0 | BX51: 0 | BY51: -4416 | BZ51: -939 | CA51: 1215 | CC51: -653 | CD51: -8013 | CE51: -5722 | CF51: 62814 | CG51: 57028 | CH51: 1999 | CI51: 3787 | CJ51: 21 | CL51: 192 | CM51: 16237 | CO51: 1.158479662 | CP51: 61.58862612 | CQ51: -3281.640697 | CU51: 40.86789413 | CV51: 602.3280163 | CW51: 28.58755976 | CX51: 7690.398473 | CY51: 45651 | CZ51: 16087 | DA51: 104148 | DB51: -88061 | DC51: 66705 | DD51: 31634 | DG51: -336 | DH51: 81 | DI51: 10023 | DJ51: 6478 | DK51: 0 | DL51: 0 | DM51: 3545 | DN51: 0 | DO51: 0 | DP51: 0 | DQ51: 3545 | DR51: 2607 | DS51: 9313 | DU51: -1359 | DV51: -8597 | DW51: -1525 | DX51: 66705 | DY51: 60799 | DZ51: 2485 | EA51: 3421 | EB51: 21 | ED51: 177.9264706 | EE51: 41575 | EF51: 43180 | EG51: 43620 | EK51: -7017 | EL51: 220 | EM51: 732 | EN51: -7676 | EO51: 284 | EP51: 455 | EQ51: -11950 | ER51: 391 | ES51: 721 | ET51: 6500 | EU51: 355 | EV51: 11000 | EW51: -422 | EX51: 12000 | EY51: 1145 | EZ51: 45811 | FA51: 37627 | FB51: 8184 | FC51: 1003 | FD51: 48374 | FE51: 39987 | FF51: 8387 | FG51: 1003 | FH51: 52921 | FI51: 42949 | FJ51: 9972 | FK51: 1003 | FL51: 4244.847085 | FM51: 4467.921769 | FN51: 4741.085176 | FO51: 2895.190476 | FP51: 178.3082143 | FV51: 5623 | FW51: -5623
A52: 167 | B52: Joensuu | C52: 76551 | E52: 1.093995161 | F52: 55.73092137 | G52: -2027.863777 | K52: 56.4438425 | L52: 1163.799297 | M52: 62.58475579 | N52: 6787.383574 | O52: 102354 | P52: 79777 | Q52: 455718 | R52: -375941 | S52: 260636 | T52: 142927 | W52: -1002 | X52: 1855 | Y52: 28475 | Z52: 32926 | AA52: 0 | AB52: 0 | AC52: -4451 | AD52: -3096 | AE52: 5046 | AF52: 101 | AG52: -2400 | AH52: 29196 | AI52: 23865 | AK52: 152 | AL52: -25911 | AM52: -9490 | AN52: 260636 | AO52: 218368 | AP52: 21169 | AQ52: 21099 | AR52: 20.5 | AT52: 85 | AU52: 76850 | AW52: 0.911671647 | AX52: 58.08642749 | AY52: -2220.130124 | BC52: 54.38398863 | BD52: 1224.528302 | BE52: 62.80492042 | BF52: 7116.525699 | BG52: 105733 | BH52: 73023 | BI52: 466038 | BJ52: -387072 | BK52: 268565 | BL52: 145271 | BO52: -1070 | BP52: 3991 | BQ52: 29685 | BR52: 35429 | BS52: 0 | BT52: 0 | BU52: -5744 | BV52: -3167 | BW52: 5867 | BX52: 4 | BY52: -3040 | BZ52: 26156 | CA52: 27098 | CC52: 3595 | CD52: -31215 | CE52: -17644 | CF52: 268565 | CG52: 225883 | CH52: 21103 | CI52: 21579 | CJ52: 20.5 | CL52: 61 | CM52: 76935 | CO52: 1.531630592 | CP52: 53.04203979 | CQ52: -1946.96822 | CU52: 55.38979862 | CV52: 1374.121011 | CW52: 70.52439481 | CX52: 7111.782674 | CY52: 99636 | CZ52: 75524 | DA52: 471379 | DB52: -395855 | DC52: 273994 | DD52: 171380 | DG52: -1036 | DH52: 3239 | DI52: 51722 | DJ52: 39427 | DK52: 0 | DL52: 0 | DM52: 12295 | DN52: 2724 | DO52: -10533 | DP52: 3 | DQ52: 4489 | DR52: 30645 | DS52: 53720 | DU52: -244 | DV52: -33301 | DW52: 13655 | DX52: 273994 | DY52: 231975 | DZ52: 22082 | EA52: 19937 | EB52: 20.5 | ED52: 146.6985294 | EE52: 301762 | EF52: 310419 | EG52: 318211 | EK52: -40426 | EL52: 1534 | EM52: 5537 | EN52: -53298 | EO52: 1310 | EP52: 7246 | EQ52: -44787 | ER52: 1116 | ES52: 3606 | ET52: 62000 | EU52: -30336 | EV52: 52000 | EW52: -3465 | EX52: 20000 | EY52: -93 | EZ52: 234631 | FA52: 175297 | FB52: 59334 | FC52: 24753 | FD52: 251951 | FE52: 193996 | FF52: 57955 | FG52: 22439 | FH52: 238557 | FI52: 179596 | FJ52: 58961 | FK52: 20510 | FL52: 6623.584277 | FM52: 7174.886142 | FN52: 7124.884643 | FO52: 11315.85366 | FP52: 147.0832996 | FV52: 9446 | FW52: -9446
A53: 169 | B53: Jokioinen | C53: 5195 | E53: 1.125084976 | F53: 55.8326703 | G53: -3094.321463 | K53: 50.08844417 | L53: 102.0211742 | M53: 5.834187828 | N53: 6382.67565 | O53: 9454 | P53: 4355 | Q53: 31045 | R53: -26690 | S53: 18793 | T53: 9530 | W53: -135 | X53: 22 | Y53: 1520 | Z53: 1551 | AA53: 0 | AB53: 0 | AC53: -31 | AD53: 0 | AE53: 0 | AF53: 0 | AG53: -31 | AH53: 6162 | AI53: 1390 | AK53: 163 | AL53: -1336 | AM53: 858 | AN53: 18793 | AO53: 16786 | AP53: 1021 | AQ53: 986 | AR53: 21.25 | AT53: 113 | AU53: 5133 | AW53: 0.7576726701 | AX53: 55.90725623 | AY53: -2938.047925 | BC53: 49.96971692 | BD53: 169.6863433 | BE53: 9.418308399 | BF53: 6576.076369 | BG53: 9238 | BH53: 4377 | BI53: 31296 | BJ53: -26919 | BK53: 19094 | BL53: 9480 | BO53: -125 | BP53: 33 | BQ53: 1563 | BR53: 1560 | BS53: 0 | BT53: 0 | BU53: 3 | BV53: 0 | BW53: 0 | BX53: 0 | BY53: 3 | BZ53: 6166 | CA53: 1457 | CC53: -829 | CD53: -1391 | CE53: 535 | CF53: 19094 | CG53: 17212 | CH53: 869 | CI53: 1013 | CJ53: 21.25 | CL53: 87 | CM53: 5061 | CO53: 2.679644809 | CP53: 41.72437769 | CQ53: -2404.267931 | CU53: 57.90229885 | CV53: 126.2596325 | CW53: 6.772409187 | CX53: 6804.781664 | CY53: 9580 | CZ53: 4423 | DA53: 32072 | DB53: -27649 | DC53: 20308 | DD53: 11224 | DG53: -111 | DH53: 33 | DI53: 3805 | DJ53: 1423 | DK53: 0 | DL53: 0 | DM53: 2382 | DN53: 0 | DO53: 0 | DP53: 0 | DQ53: 2382 | DR53: 8549 | DS53: 3688 | DU53: 274 | DV53: -1346 | DW53: 2891 | DX53: 20308 | DY53: 18058 | DZ53: 1348 | EA53: 902 | EB53: 21.25 | ED53: 103.3823529 | EE53: 19091 | EF53: 19460 | EG53: 19812 | EK53: -639 | EL53: 28 | EM53: 79 | EN53: -940 | EO53: 0 | EP53: 18 | EQ53: -902 | ER53: 0 | ES53: 105 | ET53: 0 | EU53: -600 | EV53: 1100 | EW53: 1300 | EX53: 730 | EY53: -3100 | EZ53: 15085 | FA53: 9049 | FB53: 6036 | FC53: 416 | FD53: 16094 | FE53: 8748 | FF53: 7346 | FG53: 0 | FH53: 12378 | FI53: 8155 | FJ53: 4223 | FK53: 0 | FL53: 3610.202117 | FM53: 3743.814533 | FN53: 2979.450701 | FO53: 849.7882353 | FP53: 167.9091554 | FV53: 2224 | FW53: -2224
A54: 171 | B54: Joroinen | C54: 4812 | E54: -0.3099838969 | F54: 74.96743378 | G54: -2056.525353 | K54: 45.70873873 | L54: 2766.001663 | M54: 117.2588159 | N54: 8609.9335 | O54: 8573 | P54: 3896 | Q54: 33104 | R54: -29208 | S54: 16215 | T54: 12205 | W54: 0 | X54: -142 | Y54: -930 | Z54: 925 | AA54: 0 | AB54: 0 | AC54: -1855 | AD54: 31 | AE54: 100 | AF54: 0 | AG54: -1724 | AH54: 4856 | AI54: -933 | AK54: 0 | AL54: -2324 | AM54: -6607 | AN54: 16215 | AO54: 13705 | AP54: 1385 | AQ54: 1125 | AR54: 20.75 | AT54: 286 | AU54: 4767 | AW54: 0.2918081575 | AX54: 78.87573609 | AY54: -3024.124187 | BC54: 43.37194337 | BD54: 2325.361863 | BE54: 98.34771512 | BF54: 8630.165723 | BG54: 8569 | BH54: 3947 | BI54: 32751 | BJ54: -28726 | BK54: 16984 | BL54: 12353 | BO54: -27 | BP54: 202 | BQ54: 786 | BR54: 1050 | BS54: 0 | BT54: 0 | BU54: -264 | BV54: 31 | BW54: 0 | BX54: 0 | BY54: -233 | BZ54: 4624 | CA54: 769 | CC54: 17 | CD54: -2845 | CE54: -4452 | CF54: 16984 | CG54: 14427 | CH54: 1439 | CI54: 1118 | CJ54: 21.25 | CL54: 145 | CM54: 4689 | CO54: 0.9226190476 | CP54: 75.94285555 | CQ54: -2596.289187 | CU54: 44.80695371 | CV54: 3013.222435 | CW54: 137.7720934 | CX54: 7982.938793 | CY54: 8220 | CZ54: 4154 | DA54: 32700 | DB54: -28546 | DC54: 17770 | DD54: 13852 | DG54: -59 | DH54: 81 | DI54: 3098 | DJ54: 1151 | DK54: 0 | DL54: 0 | DM54: 1947 | DN54: 31 | DO54: 0 | DP54: 0 | DQ54: 1978 | DR54: 6601 | DS54: 3016 | DU54: -319 | DV54: -3371 | DW54: 2248 | DX54: 17770 | DY54: 15027 | DZ54: 1736 | EA54: 1007 | EB54: 21.25 | ED54: 151.7352941 | EE54: 21720 | EF54: 21723 | EG54: 22105 | EI54: 660 | EK54: -5723 | EL54: 45 | EM54: 4 | EN54: -5347 | EO54: 106 | EP54: 20 | EQ54: -1107 | ER54: 54 | ES54: 285 | ET54: 5000 | EU54: 0 | EV54: 5000 | EW54: 0 | EX54: 3350 | EY54: 0 | EZ54: 20635 | FA54: 17790 | FB54: 2845 | FC54: 302 | FD54: 22790 | FE54: 19419 | FF54: 3371 | FG54: 302 | FH54: 22769 | FI54: 19166 | FJ54: 3603 | FK54: 302 | FL54: 6479.426434 | FM54: 7215.019929 | FN54: 7288.76093 | FO54: 707.1529412 | FP54: 150.8110346 | FV54: 1768 | FW54: -1768
A55: 172 | B55: Joutsa | C55: 4467 | E55: 0.9417334304 | F55: 46.94442858 | G55: -3017.23752 | K55: 36.88640045 | L55: 343.6310723 | M55: 15.60219994 | N55: 8038.952317 | O55: 12163 | P55: 4954 | Q55: 33843 | R55: -28889 | S55: 14898 | T55: 15166 | W55: -71 | X55: 114 | Y55: 1218 | Z55: 1267 | AA55: 169 | AB55: 82 | AC55: 38 | AD55: 23 | AE55: 0 | AF55: 0 | AG55: 61 | AH55: 3841 | AI55: 1401 | AK55: -53 | AL55: -1298 | AM55: 759 | AN55: 14898 | AO55: 11668 | AP55: 1476 | AQ55: 1754 | AR55: 21 | AT55: 124 | AU55: 4377 | AW55: 0.4824692412 | AX55: 45.24847181 | AY55: -3326.479324 | BC55: 36.0875603 | BD55: 25.13136852 | BE55: 1.048713595 | BF55: 8746.858579 | BG55: 12045 | BH55: 4581 | BI55: 34675 | BJ55: -30088 | BK55: 15570 | BL55: 15185 | BO55: -63 | BP55: 177 | BQ55: 781 | BR55: 1380 | BS55: 0 | BT55: 0 | BU55: -599 | BV55: 17 | BW55: 0 | BX55: 0 | BY55: -582 | BZ55: 3259 | CA55: 788 | CC55: 107 | CD55: -1530 | CE55: -1108 | CF55: 15570 | CG55: 12176 | CH55: 1618 | CI55: 1776 | CJ55: 21 | CL55: 136 | CM55: 4297 | CO55: 0.5 | CP55: 55.1067768 | CQ55: -4171.28229 | CU55: 30.22578767 | CV55: 171.5150105 | CW55: 6.508080515 | CX55: 9619.269258 | CY55: 12396 | CZ55: 4689 | DA55: 35741 | DB55: -31052 | DC55: 15062 | DD55: 16480 | DG55: -37 | DH55: 193 | DI55: 646 | DJ55: 1107 | DK55: 0 | DL55: 70 | DM55: -531 | DN55: 6 | DO55: 0 | DP55: 0 | DQ55: -525 | DR55: 2734 | DS55: 572 | DU55: 33 | DV55: -1356 | DW55: -3609 | DX55: 15062 | DY55: 11730 | DZ55: 1766 | EA55: 1566 | EB55: 21 | ED55: 285.7132353 | EE55: 16717 | EF55: 17072 | EG55: 17101 | EK55: -671 | EL55: 0 | EM55: 29 | EN55: -1983 | EO55: 53 | EP55: 34 | EQ55: -4193 | ER55: 0 | ES55: 12 | ET55: 0 | EU55: -1000 | EV55: 50 | EW55: 2800 | EX55: 771 | EY55: 4700 | EZ55: 11169 | FA55: 7180 | FB55: 3989 | FC55: 965 | FD55: 12488 | FE55: 5649 | FF55: 6839 | FG55: 965 | FH55: 16604 | FI55: 4293 | FJ55: 12311 | FK55: 889 | FL55: 5179.53884 | FM55: 5977.381768 | FN55: 7281.591808 | FO55: 558.5714286 | FP55: 129.9910236 | FV55: 2380 | FW55: -2380
A56: 176 | B56: Juuka | C56: 4709 | E56: 2.986504723 | F56: 16.42651297 | G56: 147.8020811 | K56: 81.22016472 | L56: 1361.860268 | M56: 58.19274562 | N56: 8541.940964 | O56: 8123 | P56: 6177 | Q56: 38135 | R56: -31958 | S56: 13654 | T56: 20074 | W56: 55 | X56: 361 | Y56: 2186 | Z56: 1906 | AA56: 0 | AB56: 0 | AC56: 280 | AD56: 121 | AE56: -369 | AF56: 0 | AG56: 32 | AH56: 10200 | AI56: 2450 | AK56: 976 | AL56: -714 | AM56: 1300 | AN56: 13654 | AO56: 10804 | AP56: 1646 | AQ56: 1204 | AR56: 20.75 | AT56: 53 | AU56: 4606 | AW56: 3.623166791 | AX56: 15.22425931 | AY56: 68.17194963 | BC56: 82.62632229 | BD56: 1166.521928 | BE56: 47.22009535 | BF56: 9016.934433 | BG56: 8054 | BH56: 6003 | BI56: 38879 | BJ56: -32876 | BK56: 13877 | BL56: 20319 | BO56: 19 | BP56: 460 | BQ56: 1799 | BR56: 1824 | BS56: 0 | BT56: 165 | BU56: -190 | BV56: -967 | BW56: 1221 | BX56: 0 | BY56: 64 | BZ56: 10263 | CA56: 1315 | CC56: -223 | CD56: -714 | CE56: -371 | CF56: 13877 | CG56: 10964 | CH56: 1703 | CI56: 1210 | CJ56: 20.75 | CL56: 60 | CM56: 4527 | CO56: 4.641200546 | CP56: 21.43079913 | CQ56: -242.5447316 | CU56: 76.42337719 | CV56: 1370.223106 | CW56: 50.5931711 | CX56: 9885.354539 | CY56: 8188 | CZ56: 6003 | DA56: 38729 | DB56: -32726 | DC56: 14021 | DD56: 21659 | DG56: 25 | DH56: 404 | DI56: 3383 | DJ56: 2736 | DK56: 0 | DL56: 0 | DM56: 647 | DN56: 884 | DO56: -839 | DP56: 0 | DQ56: 692 | DR56: 10957 | DS56: 3832 | DU56: -571 | DV56: -714 | DW56: -1425 | DX56: 14021 | DY56: 10958 | DZ56: 1933 | EA56: 1130 | EB56: 20.75 | ED56: 106.4044118 | EE56: 27089 | EF56: 27768 | EG56: 27551 | EK56: -1348 | EL56: 32 | EM56: 166 | EN56: -1899 | EO56: 0 | EP56: 213 | EQ56: -5288 | ER56: 0 | ES56: 31 | ET56: 0 | EU56: 0 | EV56: 0 | EW56: 0 | EX56: 0 | EY56: 3000 | EZ56: 3928 | FA56: 3214 | FB56: 714 | FC56: 2880 | FD56: 3214 | FE56: 2500 | FF56: 714 | FG56: 2880 | FH56: 5500 | FI56: 1786 | FJ56: 3714 | FK56: 2861 | FL56: 2344.234445 | FM56: 2359.09683 | FN56: 3161.475591 | FO56: 528.0963855 | FP56: 116.6548234 | FV56: 0 | FW56: 0
A57: 177 | B57: Juupajoki | C57: 1884 | E57: 0.8657718121 | F57: 37.36769815 | G57: -1824.840764 | K57: 65.77453366 | L57: 359.3418259 | M57: 18.98179444 | N57: 6909.766454 | O57: 3113 | P57: 1227 | Q57: 12117 | R57: -10890 | S57: 6911 | T57: 4239 | W57: -13 | X57: 106 | Y57: 353 | Z57: 513 | AA57: 0 | AB57: 0 | AC57: -160 | AD57: 11 | AE57: 0 | AF57: 0 | AG57: -149 | AH57: 2128 | AI57: 353 | AK57: -167 | AL57: -413 | AM57: 14 | AN57: 6911 | AO57: 5424 | AP57: 1003 | AQ57: 484 | AR57: 21 | AT57: 176 | AU57: 1844 | AW57: 1.725856698 | AX57: 36.0711788 | AY57: -1814.533623 | BC57: 66.38049203 | BD57: 375.813449 | BE57: 19.64621359 | BF57: 6982.104121 | BG57: 3125 | BH57: 1297 | BI57: 12059 | BJ57: -10762 | BK57: 7159 | BL57: 4413 | BO57: -32 | BP57: 21 | BQ57: 799 | BR57: 517 | BS57: 0 | BT57: 0 | BU57: 282 | BV57: 10 | BW57: 0 | BX57: 0 | BY57: 292 | BZ57: 2419 | CA57: 799 | CC57: -93 | CD57: -13 | CE57: 88 | CF57: 7159 | CG57: 5542 | CH57: 1114 | CI57: 503 | CJ57: 21 | CL57: 48 | CM57: 1800 | CO57: 27.65909091 | CP57: 32.14682158 | CQ57: -1302.777778 | CU57: 68.34735926 | CV57: 916.6666667 | CW57: 47.76729061 | CX57: 7004.444444 | CY57: 3062 | CZ57: 1401 | DA57: 12362 | DB57: -10961 | DC57: 7135 | DD57: 4977 | DG57: -31 | DH57: 66 | DI57: 1186 | DJ57: 967 | DK57: 0 | DL57: 0 | DM57: 219 | DN57: 11 | DO57: 0 | DP57: 0 | DQ57: 230 | DR57: 2651 | DS57: 1186 | DU57: 255 | DV57: -13 | DW57: 993 | DX57: 7135 | DY57: 5452 | DZ57: 1196 | EA57: 487 | EB57: 21 | ED57: 154.7573529 | EE57: 7931 | EF57: 7889 | EG57: 8235 | EK57: -467 | EL57: 128 | EM57: 0 | EN57: -711 | EO57: 0 | EP57: 0 | EQ57: -193 | ER57: 0 | ES57: 0 | ET57: 0 | EU57: 315 | EV57: 447 | EW57: -400 | EX57: 0 | EY57: 0 | EZ57: 3176 | FA57: 1863 | FB57: 1313 | FC57: 67 | FD57: 3210 | FE57: 2297 | FF57: 913 | FG57: 63 | FH57: 3197 | FI57: 1284 | FJ57: 1913 | FK57: 59 | FL57: 3399.681529 | FM57: 3667.570499 | FN57: 3953.333333 | FO57: 259.6190476 | FP57: 144.2328042 | FV57: 532 | FW57: -532
A58: 178 | B58: Juva | C58: 6225 | E58: 0.8781800391 | F58: 52.71314417 | G58: -3486.425703 | K58: 65.43216952 | L58: 91.56626506 | M58: 4.150871873 | N58: 8051.726908 | O58: 8170 | P58: 4397 | Q58: 44114 | R58: -39717 | S58: 19482 | T58: 21548 | W58: -85 | X58: 480 | Y58: 1708 | Z58: 1740 | AA58: 0 | AB58: 131 | AC58: -163 | AD58: 10 | AE58: 0 | AF58: 0 | AG58: -153 | AH58: 5080 | AI58: 1567 | AK58: -266 | AL58: -1957 | AM58: -2271 | AN58: 19482 | AO58: 15564 | AP58: 2405 | AQ58: 1513 | AR58: 20.75 | AT58: 122 | AU58: 6116 | AW58: 0.3992199965 | AX58: 54.32022707 | AY58: -3712.393721 | BC58: 64.35142726 | BD58: 138.8162198 | BE58: 6.133664542 | BF58: 8260.627861 | BG58: 8124 | BH58: 4440 | BI58: 44986 | BJ58: -40546 | BK58: 19813 | BL58: 21196 | BO58: -90 | BP58: 662 | BQ58: 1035 | BR58: 1811 | BS58: 12 | BT58: 0 | BU58: -764 | BV58: -461 | BW58: 475 | BX58: 0 | BY58: -750 | BZ58: 4330 | CA58: 1848 | CC58: 588 | CD58: -2113 | CE58: -1000 | CF58: 19813 | CG58: 15734 | CH58: 2553 | CI58: 1526 | CJ58: 20.75 | CL58: 139 | CM58: 5932 | CO58: 2.426318161 | CP58: 53.82728065 | CQ58: -3519.049225 | CU58: 62.80269894 | CV58: 513.4861767 | CW58: 21.69642683 | CX58: 8638.401888 | CY58: 7750 | CZ58: 4466 | DA58: 44690 | DB58: -40224 | DC58: 20217 | DD58: 24634 | DG58: -72 | DH58: 756 | DI58: 5311 | DJ58: 4703 | DK58: 0 | DL58: 0 | DM58: 608 | DN58: 143 | DO58: 0 | DP58: 0 | DQ58: 751 | DR58: 5081 | DS58: 5543 | DU58: -1491 | DV58: -2146 | DW58: 1832 | DX58: 20217 | DY58: 15868 | DZ58: 2957 | EA58: 1392 | EB58: 20.75 | ED58: 61.07352941 | EE58: 34031 | EF58: 34179 | EG58: 35155 | EJ58: 640 | EK58: -3957 | EL58: 0 | EM58: 119 | EN58: -3325 | EO58: 225 | EP58: 252 | EQ58: -4308 | ER58: 525 | ES58: 72 | ET58: 0 | EU58: 1500 | EV58: 3500 | EW58: 0 | EX58: 2000 | EY58: 1000 | EZ58: 19200 | FA58: 9262 | FB58: 9938 | FC58: 1037 | FD58: 20587 | FE58: 10441 | FF58: 10146 | FG58: 1037 | FH58: 21442 | FI58: 10667 | FJ58: 10775 | FK58: 1037 | FL58: 5124.97992 | FM58: 5626.716808 | FN58: 5859.238031 | FO58: 764.7228916 | FP58: 128.9148502 | FV58: 941 | FW58: -941
A59: 179 | B59: Jyväskylä | C59: 141305 | E59: 1.703221025 | F59: 54.37257466 | G59: -3051.590531 | K59: 50.41485076 | L59: 47.68408761 | M59: 2.652229522 | N59: 6562.287251 | O59: 340413 | P59: 175549 | Q59: 827099 | R59: -651550 | S59: 513761 | T59: 173454 | W59: 2845 | X59: 10542 | Y59: 49052 | Z59: 49087 | AA59: 0 | AB59: 0 | AC59: -35 | AD59: 340 | AE59: 0 | AF59: -5 | AG59: 300 | AH59: 51010 | AI59: 32590 | AK59: 1719 | AL59: -26281 | AM59: -14819 | AN59: 513761 | AO59: 438821 | AP59: 25942 | AQ59: 48998 | AR59: 20 | AT59: 96 | AU59: 142400 | AW59: 0.4500199773 | AX59: 58.36972226 | AY59: -3323.946629 | BC59: 46.82326243 | BD59: 17.20505618 | BE59: 0.9353590293 | BF59: 6713.83427 | BG59: 355050 | BH59: 168753 | BI59: 855710 | BJ59: -686957 | BK59: 524204 | BL59: 173607 | BO59: 3631 | BP59: 7722 | BQ59: 22207 | BR59: 53776 | BS59: 0 | BT59: 0 | BU59: -31569 | BV59: 340 | BW59: 0 | BX59: 75 | BY59: -31154 | BZ59: 19856 | CA59: 12604 | CC59: 1131 | CD59: -26686 | CE59: -42549 | CF59: 524204 | CG59: 448187 | CH59: 26652 | CI59: 49365 | CJ59: 20 | CL59: 152 | CM59: 143420 | CO59: 2.07885536 | CP59: 52.18416373 | CQ59: -3237.825966 | CU59: 48.4840759 | CV59: 3.604797099 | CW59: 0.1925333328 | CX59: 6833.886487 | CY59: 366064 | CZ59: 159297 | DA59: 878285 | DB59: -718988 | DC59: 549126 | DD59: 230220 | DG59: 3554 | DH59: 7888 | DI59: 71800 | DJ59: 55716 | DK59: 0 | DL59: 0 | DM59: 16084 | DN59: 340 | DO59: 0 | DP59: -16 | DQ59: 16408 | DR59: 36040 | DS59: 64148 | DU59: 5206 | DV59: -31686 | DW59: 10049 | DX59: 549126 | DY59: 472627 | DZ59: 29183 | EA59: 47316 | EB59: 20 | ED59: 227.2867647 | EE59: 351647 | EF59: 363032 | EG59: 370285 | EK59: -67501 | EL59: 1674 | EM59: 18418 | EN59: -68107 | EO59: 1059 | EP59: 11895 | EQ59: -64563 | ER59: 594 | ES59: 9870 | ET59: 20000 | EU59: -18421 | EV59: 23000 | EW59: 69578 | EX59: 50000 | EY59: -42458 | EZ59: 341144 | FA59: 242386 | FB59: 98758 | FC59: 158852 | FD59: 407036 | FE59: 233700 | FF59: 173336 | FG59: 7797 | FH59: 382892 | FI59: 221112 | FJ59: 161780 | FK59: 157212 | FL59: 7781.76993 | FM59: 8539.002809 | FN59: 8552.405522 | FO59: 23631.35 | FP59: 164.7702552 | FV59: 25477 | FW59: -25477
A60: 181 | B60: Jämijärvi | C60: 1809 | E60: 0.7698924731 | F60: 52.24079155 | G60: -3105.583195 | K60: 27.77141548 | L60: 71.31011609 | M60: 3.713913867 | N60: 7008.291874 | O60: 2216 | P60: 722 | Q60: 11318 | R60: -10596 | S60: 5770 | T60: 5535 | W60: -34 | X60: 7 | Y60: 682 | Z60: 349 | AA60: 408 | AB60: 0 | AC60: 741 | AD60: 0 | AE60: 0 | AF60: 0 | AG60: 741 | AH60: -1125 | AI60: 584 | AK60: -177 | AL60: -896 | AM60: 852 | AN60: 5770 | AO60: 4775 | AP60: 274 | AQ60: 721 | AR60: 22.5 | AT60: 81 | AU60: 1739 | AW60: 0.8628678773 | AX60: 53.20884984 | AY60: -2789.534215 | BC60: 28.39790576 | BD60: 512.3634273 | BE60: 24.82557252 | BF60: 7533.06498 | BG60: 2500 | BH60: 1184 | BI60: 12056 | BJ60: -10872 | BK60: 6134 | BL60: 5428 | BO60: -29 | BP60: -1 | BQ60: 660 | BR60: 361 | BS60: 0 | BT60: 0 | BU60: 299 | BV60: 0 | BW60: 0 | BX60: 0 | BY60: 299 | BZ60: -838 | CA60: 412 | CC60: -503 | CD60: -771 | CE60: 798 | CF60: 6134 | CG60: 5140 | CH60: 286 | CI60: 708 | CJ60: 22.5 | CL60: 62 | CM60: 1707 | CO60: 1.582857143 | CP60: 50.42376302 | CQ60: -2191.564148 | CU60: 37.32119636 | CV60: 492.0913884 | CW60: 25.29494266 | CX60: 7100.76157 | CY60: 2629 | CZ60: 539 | DA60: 11005 | DB60: -10466 | DC60: 6074 | DD60: 5776 | DG60: -24 | DH60: 1 | DI60: 1361 | DJ60: 343 | DK60: 0 | DL60: 0 | DM60: 1018 | DN60: 0 | DO60: 0 | DP60: 0 | DQ60: 1018 | DR60: 181 | DS60: 1324 | DU60: -625 | DV60: -851 | DW60: 1094 | DX60: 6074 | DY60: 5108 | DZ60: 306 | EA60: 660 | EB60: 22.5 | ED60: 88.27205882 | EE60: 8095 | EF60: 8652 | EG60: 7567 | EI60: 250 | EK60: -326 | EL60: 32 | EM60: 562 | EN60: -226 | EO60: 34 | EP60: 578 | EQ60: -238 | ER60: 8 | ES60: 0 | ET60: 0 | EU60: -150 | EV60: 900 | EW60: 300 | EX60: 0 | EY60: 500 | EZ60: 4831 | FA60: 3460 | FB60: 1371 | FC60: 367 | FD60: 5259 | FE60: 3433 | FF60: 1826 | FG60: 381 | FH60: 4909 | FI60: 2666 | FJ60: 2243 | FK60: 367 | FL60: 3383.084577 | FM60: 3802.185164 | FN60: 3639.718805 | FO60: 227.0222222 | FP60: 132.9948578 | FV60: 716 | FW60: -716
A61: 182 | B61: Jämsä | C61: 20607 | E61: 1.160365854 | F61: 35.70808406 | G61: -1782.743728 | K61: 59.55030901 | L61: 537.584316 | M61: 22.91787817 | N61: 8561.799389 | O61: 43359 | P61: 42359 | Q61: 164615 | R61: -122256 | S61: 84038 | T61: 42252 | W61: -355 | X61: 1640 | Y61: 5319 | Z61: 8183 | AA61: 4252 | AB61: 0 | AC61: 1388 | AD61: 247 | AE61: 0 | AF61: -120 | AG61: 1515 | AH61: 1766 | AI61: 5174 | AK61: -3490 | AL61: -4530 | AM61: 3643 | AN61: 84038 | AO61: 69472 | AP61: 8479 | AQ61: 6087 | AR61: 21 | AT61: 133 | AU61: 20182 | AW61: 0.8896318529 | AX61: 34.54164435 | AY61: -1889.356853 | BC61: 59.409993 | BD61: 335.3978793 | BE61: 13.84331139 | BF61: 8843.276187 | BG61: 43063 | BH61: 42473 | BI61: 165470 | BJ61: -122655 | BK61: 84863 | BL61: 42543 | BO61: -313 | BP61: 1057 | BQ61: 5495 | BR61: 8110 | BS61: 0 | BT61: 0 | BU61: -2615 | BV61: 247 | BW61: 0 | BX61: 0 | BY61: -2368 | BZ61: -602 | CA61: 5369 | CC61: -684 | CD61: -4532 | CE61: -1724 | CF61: 84863 | CG61: 69037 | CH61: 9669 | CI61: 6157 | CJ61: 21 | CL61: 98 | CM61: 19887 | CO61: 2.332056194 | CP61: 32.83733025 | CQ61: -1618.997335 | CU61: 60.11230045 | CV61: 805.4005129 | CW61: 32.1883276 | CX61: 9132.850606 | CY61: 43536 | CZ61: 41771 | DA61: 168593 | DB61: -126822 | DC61: 87372 | DD61: 51097 | DG61: -264 | DH61: 1094 | DI61: 12477 | DJ61: 8434 | DK61: 0 | DL61: 0 | DM61: 4043 | DN61: 247 | DO61: 0 | DP61: -75 | DQ61: 4215 | DR61: 3613 | DS61: 12452 | DU61: 2896 | DV61: -5176 | DW61: 4832 | DX61: 87372 | DY61: 70253 | DZ61: 11485 | EA61: 5634 | EB61: 21 | ED61: 171.8823529 | EE61: 102482 | EF61: 103228 | EG61: 106168 | EK61: -6534 | EL61: 501 | EM61: 4502 | EN61: -7504 | EO61: 126 | EP61: 285 | EQ61: -7819 | ER61: 143 | ES61: 56 | ET61: 4000 | EU61: 0 | EV61: 0 | EW61: 1025 | EX61: 4000 | EY61: -128 | EZ61: 42918 | FA61: 38390 | FB61: 4528 | FC61: 5961 | FD61: 41217 | FE61: 33410 | FF61: 7807 | FG61: 5590 | FH61: 39912 | FI61: 32433 | FJ61: 7479 | FK61: 5016 | FL61: 3377.735721 | FM61: 3184.570409 | FN61: 3060.190074 | FO61: 3345.380952 | FP61: 168.2194877 | FV61: 6948 | FW61: -6948
A62: 186 | B62: Järvenpää | C62: 43410 | F62: 54.60503975 | G62: -3951.485833 | K62: 44.60398251 | L62: 14.81225524 | M62: 0.5848251219 | N62: 9244.598019 | O62: 100690 | P62: 127520 | Q62: 333502 | R62: -205982 | S62: 187816 | T62: 27387 | W62: 456 | X62: 565 | Y62: 10242 | Z62: 22499 | AA62: 0 | AB62: 0 | AC62: -12257 | AD62: 170 | AE62: 0 | AF62: 0 | AG62: -12087 | AH62: 41920 | AI62: 135 | AK62: 642 | AL62: 0 | AM62: -55847 | AN62: 187816 | AO62: 168830 | AP62: 5198 | AQ62: 13788 | AR62: 19.75 | AT62: 146 | AU62: 43711 | AW62: -0.341276395 | AX62: 86.6968685 | AY62: -5201.551097 | BC62: 33.07471401 | BD62: 56.37025005 | BE62: 2.650993061 | BF62: 7761.295784 | BG62: 65950 | BH62: 51616 | BI62: 285483 | BJ62: -232567 | BK62: 193842 | BL62: 29139 | BO62: 195 | BP62: 544 | BQ62: -8847 | BR62: 23684 | BS62: 137 | BT62: 0 | BU62: -32394 | BV62: 150 | BW62: 0 | BX62: 0 | BY62: -32244 | BZ62: 9677 | CA62: -13166 | CC62: 6118 | CD62: -2750 | CE62: -55861 | CF62: 193842 | CG62: 174569 | CH62: 4677 | CI62: 14596 | CJ62: 19.75 | CL62: 271 | CM62: 44455 | CO62: 58.18112245 | CP62: 92.44803458 | CQ62: -5410.460016 | CU62: 30.57320928 | CV62: 463.1425037 | CW62: 24.38861213 | CX62: 6931.391295 | CY62: 65123 | CZ62: 40762 | DA62: 270914 | DB62: -230152 | DC62: 201450 | DD62: 50715 | DG62: -171 | DH62: 573 | DI62: 22415 | DJ62: 21477 | DK62: 0 | DL62: 0 | DM62: 938 | DN62: 133 | DO62: 0 | DP62: 0 | DQ62: 1071 | DR62: 10747 | DS62: 12634 | DU62: -175 | DV62: 0 | DW62: -13687 | DX62: 201450 | DY62: 182979 | DZ62: 4673 | EA62: 13798 | EB62: 19.75 | ED62: 226.2794118 | EE62: 195372 | EF62: 181344 | EG62: 180937 | EJ62: 2000 | EK62: -68676 | EL62: 551 | EM62: 12143 | EN62: -50488 | EO62: 784 | EP62: 7009 | EQ62: -37941 | ER62: 243 | ES62: 11377 | ET62: 0 | EU62: 44394 | EV62: 183000 | EW62: -124064 | EX62: 50000 | EY62: -12277 | EZ62: 135667 | FA62: 0 | FB62: 135667 | FC62: 4991 | FD62: 191852 | FE62: 174814 | FF62: 17038 | FG62: 4991 | FH62: 229575 | FI62: 210271 | FJ62: 19304 | FK62: 4991 | FL62: 7852.038701 | FM62: 9130.516346 | FN62: 9747.317512 | FO62: 9264.759494 | FP62: 208.4075918 | FV62: 2326 | FW62: -2326
A63: 202 | B63: Kaarina | C63: 33458 | E63: 7.367724868 | F63: 56.26532314 | G63: -2876.501883 | K63: 47.5784496 | L63: 267.2305577 | M63: 15.33374211 | N63: 6361.079562 | O63: 78576 | P63: 33714 | Q63: 196221 | R63: -162507 | S63: 139346 | T63: 27618 | W63: -245 | X63: 669 | Y63: 4881 | Z63: 8786 | AA63: 0 | AB63: 0 | AC63: -3905 | AD63: 17 | AE63: 0 | AF63: 0 | AG63: -3888 | AH63: 27350 | AI63: 2362 | AK63: -82 | AL63: -67 | AM63: -9794 | AN63: 139346 | AO63: 127265 | AP63: 4896 | AQ63: 7185 | AR63: 19.75 | AT63: 199 | AU63: 33937 | AW63: 0.2577698563 | AX63: 62.85677318 | AY63: -3152.252704 | BC63: 41.5521133 | BD63: 487.7272593 | BE63: 26.92305636 | BF63: 6612.193181 | BG63: 81452 | BH63: 35114 | BI63: 206974 | BJ63: -171510 | BK63: 145290 | BL63: 28272 | BO63: -1422 | BP63: 1294 | BQ63: 1924 | BR63: 11670 | BS63: 0 | BT63: 0 | BU63: -9746 | BV63: 17 | BW63: 0 | BX63: 0 | BY63: -9729 | BZ63: 17620 | CA63: -2075 | CC63: -139 | CD63: -1192 | CE63: -12290 | CF63: 145290 | CG63: 132499 | CH63: 5375 | CI63: 7416 | CJ63: 19.75 | CL63: 211 | CM63: 34667 | CO63: 8.142326733 | CP63: 61.42722386 | CQ63: -3017.480601 | CU63: 42.49086225 | CV63: 653.6187152 | CW63: 36.34154004 | CX63: 6564.686878 | CY63: 80831 | CZ63: 31823 | DA63: 206069 | DB63: -174246 | DC63: 150610 | DD63: 42557 | DG63: -1491 | DH63: 700 | DI63: 18130 | DJ63: 9598 | DK63: 0 | DL63: 0 | DM63: 8532 | DN63: 17 | DO63: 0 | DP63: 0 | DQ63: 8549 | DR63: 26167 | DS63: 15542 | DU63: -3150 | DV63: -817 | DW63: -162 | DX63: 150610 | DY63: 137875 | DZ63: 5762 | EA63: 6973 | EB63: 19.75 | ED63: 220.2352941 | EE63: 86051 | EF63: 92819 | EG63: 93653 | EK63: -16237 | EL63: 56 | EM63: 4025 | EN63: -15027 | EO63: 0 | EP63: 4812 | EQ63: -19324 | ER63: 132 | ES63: 3488 | ET63: 0 | EU63: 0 | EV63: 50000 | EW63: -33250 | EX63: 20000 | EY63: -15000 | EZ63: 69234 | FA63: 167 | FB63: 69067 | FC63: 2291 | FD63: 84792 | FE63: 48975 | FF63: 35817 | FG63: 2291 | FH63: 88975 | FI63: 68158 | FJ63: 20817 | FK63: 671 | FL63: 3636.678821 | FM63: 3934.849869 | FN63: 3883.578043 | FO63: 6981.012658 | FP63: 201.3734289 | FV63: 460 | FW63: -460
A64: 204 | B64: Kaavi | C64: 2990 | E64: 0.6894618834 | F64: 40.17966195 | G64: -2585.953177 | K64: 43.88418153 | L64: 420.735786 | M64: 17.38950956 | N64: 8831.103679 | O64: 7018 | P64: 3269 | Q64: 24982 | R64: -21713 | S64: 9219 | T64: 12893 | W64: -126 | X64: 213 | Y64: 486 | Z64: 776 | AA64: 0 | AB64: 0 | AC64: -290 | AD64: 13 | AE64: 0 | AF64: 0 | AG64: -277 | AH64: -490 | AI64: 704 | AK64: -214 | AL64: -763 | AM64: 1182 | AN64: 9219 | AO64: 7148 | AP64: 967 | AQ64: 1104 | AR64: 21.75 | AT64: 188 | AU64: 2893 | AW64: 0.6236226959 | AX64: 38.86466344 | AY64: -2365.710335 | BC64: 44.01189654 | BD64: 402.0048393 | BE64: 15.96085878 | BF64: 9193.225026 | BG64: 6900 | BH64: 3316 | BI64: 24656 | BJ64: -21340 | BK64: 9442 | BL64: 12468 | BO64: -111 | BP64: 184 | BQ64: 643 | BR64: 797 | BS64: 0 | BT64: 0 | BU64: -154 | BV64: 12 | BW64: 0 | BX64: 0 | BY64: -142 | BZ64: -632 | CA64: 542 | CC64: -589 | CD64: -1086 | CE64: 561 | CF64: 9442 | CG64: 7195 | CH64: 1099 | CI64: 1148 | CJ64: 22 | CL64: 118 | CM64: 2807 | CO64: 2.882198953 | CP64: 38.24069118 | CQ64: -2098.681867 | CU64: 47.10964111 | CV64: 1068.044175 | CW64: 41.5645535 | CX64: 9379.052369 | CY64: 6379 | CZ64: 3028 | DA64: 24138 | DB64: -21110 | DC64: 9833 | DD64: 13297 | DG64: -103 | DH64: 179 | DI64: 2096 | DJ64: 840 | DK64: 0 | DL64: 0 | DM64: 1256 | DN64: 48 | DO64: 0 | DP64: 0 | DQ64: 1304 | DR64: 672 | DS64: 2054 | DU64: 683 | DV64: -658 | DW64: 1386 | DX64: 9833 | DY64: 7458 | DZ64: 1304 | EA64: 1071 | EB64: 22 | ED64: 107.4117647 | EE64: 15203 | EF64: 15024 | EG64: 14812 | EJ64: 400 | EK64: -524 | EL64: 63 | EM64: 939 | EN64: -739 | EO64: 0 | EP64: 758 | EQ64: -1411 | ER64: 0 | ES64: 743 | ET64: 0 | EU64: 0 | EV64: 0 | EW64: 1000 | EX64: 0 | EY64: 0 | EZ64: 7982 | FA64: 6775 | FB64: 1207 | FC64: 507 | FD64: 7897 | FE64: 5739 | FF64: 2158 | FG64: 507 | FH64: 7239 | FI64: 5192 | FJ64: 2047 | FK64: 507 | FL64: 5546.488294 | FM64: 5766.678189 | FN64: 5905.59316 | FO64: 339 | FP64: 120.7695048 | FV64: 479 | FW64: -479
A65: 205 | B65: Kajaani | C65: 36973 | E65: 0.1901963403 | F65: 60.6591216 | G65: -4189.624861 | K65: 54.84854248 | L65: 136.2075028 | M65: 5.649644235 | N65: 8799.799854 | O65: 86629 | P65: 45115 | Q65: 286577 | R65: -241462 | S65: 135606 | T65: 103186 | W65: 3580 | X65: 652 | Y65: 1562 | Z65: 14882 | AA65: 0 | AB65: 0 | AC65: -13320 | AD65: 500 | AE65: 552 | AF65: 24 | AG65: -12244 | AH65: 57320 | AI65: -208 | AK65: -139 | AL65: -13688 | AM65: -19027 | AN65: 135606 | AO65: 120067 | AP65: 5397 | AQ65: 10142 | AR65: 21 | AT65: 235 | AU65: 36709 | AW65: 2.08598921 | AX65: 65.7909202 | AY65: 1589.88259 | BC65: 64.26089106 | BD65: 6115.802664 | BE65: 233.7826484 | BF65: 9548.475851 | BG65: 89966 | BH65: 43202 | BI65: 298956 | BJ65: -254859 | BK65: 138418 | BL65: 104003 | BO65: 2575 | BP65: 50798 | BQ65: 40935 | BR65: 17821 | BS65: 119904 | BT65: 0 | BU65: 143018 | BV65: -39 | BW65: -20000 | BX65: 14 | BY65: 122993 | BZ65: 180314 | CA65: 47546 | CC65: -10093 | CD65: -15428 | CE65: 143980 | CF65: 138418 | CG65: 122364 | CH65: 5465 | CI65: 10589 | CJ65: 21 | CL65: 5 | CM65: 36567 | CO65: 0.5102084792 | CP65: 61.3281263 | CQ65: 420.2193114 | CU65: 64.32455297 | CV65: 5182.312888 | CW65: 187.0561829 | CX65: 10112.17151 | CY65: 88360 | CZ65: 35310 | DA65: 297605 | DB65: -262295 | DC65: 141422 | DD65: 123803 | DG65: -1076 | DH65: 6174 | DI65: 8028 | DJ65: 16378 | DK65: 0 | DL65: 0 | DM65: -8350 | DN65: -3682 | DO65: 42 | DP65: 9 | DQ65: -11981 | DR65: 168333 | DS65: 6964 | DU65: 12182 | DV65: -17120 | DW65: -43437 | DX65: 141422 | DY65: 125951 | DZ65: 5821 | EA65: 9650 | EB65: 21 | ED65: 283.6985294 | EE65: 164648 | EF65: 171594 | EG65: 176446 | EK65: -21794 | EL65: 1064 | EM65: 1911 | EN65: -30514 | EO65: 686 | EP65: 126262 | EQ65: -50812 | ER65: 301 | ES65: 110 | ET65: 24000 | EU65: -2491 | EV65: 15460 | EW65: 14982 | EX65: 25000 | EY65: -15137 | EZ65: 126450 | FA65: 88598 | FB65: 37852 | FC65: 74196 | FD65: 141463 | FE65: 87686 | FF65: 53777 | FG65: 6216 | FH65: 134206 | FI65: 94401 | FJ65: 39805 | FK65: 6062 | FL65: 10379.43905 | FM65: 16321.99188 | FN65: 18154.75702 | FO65: 5997.666667 | FP65: 164.0185595 | FV65: 9462 | FW65: -9462
A66: 208 | B66: Kalajoki | C66: 12387 | E66: 2.364829396 | F66: 66.91013505 | G66: -2941.470897 | K66: 52.32986538 | L66: 1447.727456 | M66: 60.85822006 | N66: 8682.812626 | O66: 42041 | P66: 22001 | Q66: 86179 | R66: -64178 | S66: 39005 | T66: 30873 | W66: -91 | X66: 510 | Y66: 6119 | Z66: 7189 | AA66: 0 | AB66: 0 | AC66: -1070 | AD66: 54 | AE66: 0 | AF66: 0 | AG66: -1016 | AH66: 17271 | AI66: 5407 | AK66: -327 | AL66: -2479 | AM66: -7474 | AN66: 39005 | AO66: 31797 | AP66: 2129 | AQ66: 5079 | AR66: 20 | AT66: 48 | AU66: 12373 | AW66: 0.9333047394 | AX66: 65.39240267 | AY66: -3105.633234 | BC66: 51.90644835 | BD66: 1436.35335 | BE66: 63.16610513 | BF66: 8299.84644 | BG66: 42897 | BH66: 21961 | BI66: 90507 | BJ66: -68249 | BK66: 41540 | BL66: 31822 | BO66: 1 | BP66: 713 | BQ66: 5827 | BR66: 5866 | BS66: 0 | BT66: 0 | BU66: -39 | BV66: 54 | BW66: 0 | BX66: 0 | BY66: 15 | BZ66: 17286 | CA66: 5454 | CC66: 873 | CD66: -2884 | CE66: -2120 | CF66: 41540 | CG66: 34278 | CH66: 1911 | CI66: 5351 | CJ66: 21 | CL66: 39 | CM66: 12400 | CO66: 2.788908766 | CP66: 56.63188098 | CQ66: -2659.112903 | CU66: 55.07679214 | CV66: 1578.064516 | CW66: 70.05090281 | CX66: 8222.5 | CY66: 43109 | CZ66: 21216 | DA66: 93252 | DB66: -72036 | DC66: 42970 | DD66: 37804 | DG66: -10 | DH66: 472 | DI66: 9200 | DJ66: 5729 | DK66: 0 | DL66: 0 | DM66: 3471 | DN66: 54 | DO66: -2500 | DP66: 0 | DQ66: 1025 | DR66: 18311 | DS66: 8729 | DU66: 1490 | DV66: -3200 | DW66: 5028 | DX66: 42970 | DY66: 36015 | DZ66: 2079 | EA66: 4876 | EB66: 21 | ED66: 110.4338235 | EE66: 33066 | EF66: 35046 | EG66: 37063 | EK66: -16586 | EL66: 1967 | EM66: 1738 | EN66: -9345 | EO66: 762 | EP66: 1009 | EQ66: -4851 | ER66: 229 | ES66: 921 | ET66: 10000 | EU66: 0 | EV66: 6000 | EW66: -2000 | EX66: 0 | EY66: -2000 | EZ66: 43830 | FA66: 23946 | FB66: 19884 | FC66: 4653 | FD66: 44946 | FE66: 26746 | FF66: 18200 | FG66: 4455 | FH66: 39746 | FI66: 23230 | FJ66: 16516 | FK66: 4056 | FL66: 5524.905142 | FM66: 5722.864301 | FN66: 5349.274194 | FO66: 1715 | FP66: 138.3064516 | FV66: 3053 | FW66: -3053
A67: 211 | B67: Kangasala | C67: 31676 | E67: 0.7737379022 | F67: 43.05932195 | G67: -1385.212779 | K67: 58.94248279 | L67: 1033.305973 | M67: 50.73539217 | N67: 7433.798459 | O67: 85840 | P67: 44427 | Q67: 200379 | R67: -155952 | S67: 125371 | T67: 37444 | W67: -795 | X67: 1937 | Y67: 8005 | Z67: 11827 | AA67: 0 | AB67: 0 | AC67: -3822 | AD67: 7 | AE67: 2200 | AF67: 0 | AG67: -1615 | AH67: 53297 | AI67: 6374 | AK67: -1829 | AL67: -10600 | AM67: -12741 | AN67: 125371 | AO67: 114129 | AP67: 4094 | AQ67: 7148 | AR67: 21 | AT67: 134 | AU67: 31868 | AW67: 1.393070089 | AX67: 50.05467596 | AY67: -1667.440693 | BC67: 54.76080786 | BD67: 1416.687586 | BE67: 69.8310231 | BF67: 7404.888917 | BG67: 87922 | BH67: 44354 | BI67: 203175 | BJ67: -158821 | BK67: 131061 | BL67: 38573 | BO67: -720 | BP67: 3662 | BQ67: 13755 | BR67: 13335 | BS67: 0 | BT67: 0 | BU67: 420 | BV67: 7 | BW67: 0 | BX67: 0 | BY67: 427 | BZ67: 53725 | CA67: 12576 | CC67: 3800 | CD67: -10141 | CE67: -8609 | CF67: 131061 | CG67: 119533 | CH67: 4316 | CI67: 7212 | CJ67: 21 | CL67: 49 | CM67: 32214 | CO67: 2.544155947 | CP67: 48.69869425 | CQ67: -1415.409449 | CU67: 56.28308814 | CV67: 1883.963494 | CW67: 89.96442336 | CX67: 7643.540076 | CY67: 88196 | CZ67: 46892 | DA67: 206816 | DB67: -159924 | DC67: 137678 | DD67: 51539 | DG67: -622 | DH67: 2831 | DI67: 31502 | DJ67: 12710 | DK67: 0 | DL67: 0 | DM67: 18792 | DN67: -2506 | DO67: -5300 | DP67: 0 | DQ67: 10986 | DR67: 64711 | DS67: 30182 | DU67: 131 | DV67: -11936 | DW67: 5805 | DX67: 137678 | DY67: 126025 | DZ67: 4922 | EA67: 6731 | EB67: 21 | ED67: 40.92647059 | EE67: 85317 | EF67: 87101 | EG67: 90169 | EK67: -21177 | EL67: 20 | EM67: 2042 | EN67: -22477 | EO67: 0 | EP67: 1292 | EQ67: -26413 | ER67: 686 | ES67: 1350 | ET67: 5000 | EU67: 0 | EV67: 31000 | EW67: 0 | EX67: 16000 | EY67: 0 | EZ67: 47983 | FA67: 38842 | FB67: 9141 | FC67: 49 | FD67: 68842 | FE67: 57355 | FF67: 11487 | FG67: 39 | FH67: 72906 | FI67: 61083 | FJ67: 11823 | FK67: 28 | FL67: 3200.625079 | FM67: 4317.465796 | FN67: 4656.453716 | FO67: =(DY67/EB67) -> 6001.190476 | FP67: =(FO67/CM67)*1000 -> 186.2913788 | FV67: 7141 | FW67: =FV67*-1 -> -7141
A68: 213 | B68: Kangasniemi | C68: 5452 | E68: 0.591607565 | F68: 64.36385013 | G68: -3666.544387 | K68: 48.69179955 | L68: 150.9537784 | M68: 7.196641192 | N68: 7656.089508 | O68: 7872 | P68: 2946 | Q68: 38304 | R68: -35358 | S68: 18064 | T68: 18116 | W68: -96 | X68: 161 | Y68: 887 | Z68: 1669 | AA68: 0 | AB68: 0 | AC68: -782 | AD68: 0 | AE68: 0 | AF68: 0 | AG68: -782 | AH68: 5980 | AI68: 883 | AK68: 638 | AL68: -1578 | AM68: -764 | AN68: 18064 | AO68: 13689 | AP68: 2568 | AQ68: 1807 | AR68: 20.75 | AT68: 187 | AU68: 5356 | AW68: 0.312626549 | AX68: 65.54343738 | AY68: -3691.187453 | BC68: 46.5542102 | BD68: 476.2882748 | BE68: 22.06956625 | BF68: 7877.147125 | BG68: 8167 | BH68: 3000 | BI68: 39199 | BJ68: -36199 | BK68: 18513 | BL68: 18372 | BO68: -104 | BP68: 261 | BQ68: 843 | BR68: 1672 | BS68: 0 | BT68: 0 | BU68: -829 | BV68: 0 | BW68: 0 | BX68: 0 | BY68: -829 | BZ68: 5151 | CA68: 1058 | CC68: 548 | CD68: -1706 | CE68: -86 | CF68: 18513 | CG68: 14009 | CH68: 2660 | CI68: 1844 | CJ68: 20.75 | CL68: 151 | CM68: 5312 | CO68: 2.261181668 | CP68: 50.21790066 | CQ68: -2826.618976 | CU68: 53.76740716 | CV68: 415.4743976 | CW68: 19.33270135 | CX68: 7844.126506 | CY68: 8104 | CZ68: 3205 | DA68: 38895 | DB68: -35690 | DC68: 19437 | DD68: 20038 | DG68: -80 | DH68: 293 | DI68: 3998 | DJ68: 1623 | DK68: 0 | DL68: 0 | DM68: 2375 | DN68: 0 | DO68: 0 | DP68: 0 | DQ68: 2375 | DR68: 7528 | DS68: 3685 | DU68: -389 | DV68: -1714 | DW68: 4792 | DX68: 19437 | DY68: 14676 | DZ68: 2981 | EA68: 1780 | EB68: 21.5 | ED68: 102.375 | EE68: 27548 | EF68: 28049 | EG68: 27980 | EK68: -1745 | EL68: 90 | EM68: 8 | EN68: -1162 | EO68: 6 | EP68: 12 | EQ68: -962 | ER68: 14 | ES68: 2055 | ET68: 0 | EU68: 1100 | EV68: 0 | EW68: 2100 | EX68: 0 | EY68: -2100 | EZ68: 21350 | FA68: 11444 | FB68: 9906 | FC68: 1268 | FD68: 21743 | FE68: 9730 | FF68: 12013 | FG68: 1153 | FH68: 17929 | FI68: 8267 | FJ68: 9662 | FK68: 1142 | FL68: 5576.852531 | FM68: 5752.987304 | FN68: 5239.269578 | FO68: 682.6046512 | FP68: 128.5023816 | FV68: 1782 | FW68: -1782
A69: 214 | B69: Kankaanpää | C69: 11471 | E69: 0.2213057458 | F69: 70.4476292 | G69: -4361.694708 | K69: 22.26960875 | L69: 108.8832709 | M69: 5.025131998 | N69: 7908.726353 | O69: 21043 | P69: 9896 | Q69: 76464 | R69: -66568 | S69: 39778 | T69: 27313 | W69: -182 | X69: 1059 | Y69: 1400 | Z69: 4610 | AA69: 0 | AB69: 0 | AC69: -3210 | AD69: 0 | AE69: 0 | AF69: 0 | AG69: -3210 | AH69: -23 | AI69: 1275 | AK69: 1112 | AL69: -6970 | AM69: -5032 | AN69: 39778 | AO69: 33790 | AP69: 2546 | AQ69: 3442 | AR69: 21.5 | AT69: 209 | AU69: 11286 | AW69: 0.03273322422 | AX69: 81.32430081 | AY69: -5072.833599 | BC69: 16.22888799 | BD69: 97.11146553 | BE69: 4.367105881 | BF69: 8116.516038 | BG69: 20468 | BH69: 8978 | BI69: 76730 | BJ69: -67752 | BK69: 39523 | BL69: 27373 | BO69: -161 | BP69: 1085 | BQ69: 68 | BR69: 3671 | BS69: 0 | BT69: 0 | BU69: -3603 | BV69: 0 | BW69: 0 | BX69: 0 | BY69: -3603 | BZ69: -3625 | CA69: 75 | CC69: -468 | CD69: -7123 | CE69: -7223 | CF69: 39523 | CG69: 33520 | CH69: 2492 | CI69: 3511 | CJ69: 21.5 | CL69: 228 | CM69: 11163 | CO69: 0.8213270142 | CP69: 79.04423994 | CQ69: -5020.335035 | CU69: 18.94008927 | CV69: 402.9382782 | CW69: 18.32741683 | CX69: 8024.724536 | CY69: 20220 | CZ69: 8962 | DA69: 75273 | DB69: -66311 | DC69: 40468 | DD69: 31741 | DG69: -174 | DH69: 1030 | DI69: 6754 | DJ69: 3701 | DK69: 0 | DL69: 0 | DM69: 3053 | DN69: 0 | DO69: 0 | DP69: 0 | DQ69: 3053 | DR69: -572 | DS69: 6742 | DU69: -265 | DV69: -8262 | DW69: 1130 | DX69: 40468 | DY69: 34526 | DZ69: 2728 | EA69: 3214 | EB69: 21.75 | ED69: 182.9632353 | EE69: 48112 | EF69: 48510 | EG69: 47326 | EK69: -7186 | EL69: 670 | EM69: 209 | EN69: -7578 | EO69: 146 | EP69: 134 | EQ69: -5862 | ER69: 200 | ES69: 50 | ET69: 9000 | EU69: 0 | EV69: 14000 | EW69: 2529 | EX69: 11000 | EY69: -262 | EZ69: 43759 | FA69: 36636 | FB69: 7123 | FC69: 1508 | FD69: 53165 | FE69: 42374 | FF69: 10791 | FG69: 1472 | FH69: 55640 | FI69: 44411 | FJ69: 11229 | FK69: 1435 | FL69: 6366.750937 | FM69: 6933.28017 | FN69: 7156.857476 | FO69: 1587.402299 | FP69: 142.202123 | FV69: 3569 | FW69: -3569
A70: 216 | B70: Kannonkoski | C70: 1353 | E70: 0.792746114 | F70: 61.53796778 | G70: -3663.710273 | K70: 61.22300706 | L70: 2345.158906 | M70: 68.00616559 | N70: 12586.84405 | O70: 4297 | P70: 5623 | Q70: 14597 | R70: -8974 | S70: 4049 | T70: 5907 | W70: -6 | X70: 81 | Y70: 1057 | Z70: 1077 | AA70: 79 | AB70: 61 | AC70: -2 | AD70: 1 | AE70: 0 | AF70: 0 | AG70: -1 | AH70: 11651 | AI70: 1075 | AK70: 170 | AL70: -1337 | AM70: 46 | AN70: 4049 | AO70: 3034 | AP70: 574 | AQ70: 441 | AR70: 21 | AT70: 9 | AU70: 1339 | AW70: -1.582714972 | AX70: 63.21078743 | AY70: -3751.306945 | BC70: 49.46699467 | BD70: 2845.40702 | BE70: 71.04214559 | BF70: 14619.11875 | BG70: 4357 | BH70: 5689 | BI70: 15161 | BJ70: -9472 | BK70: 4304 | BL70: 5729 | BO70: -8 | BP70: -2378 | BQ70: -1825 | BR70: 1144 | BS70: 9 | BT70: 143 | BU70: -3103 | BV70: 1 | BW70: 0 | BX70: 0 | BY70: -3102 | BZ70: 8549 | CA70: 406 | CC70: 458 | CD70: -1448 | CE70: -86 | CF70: 4304 | CG70: 3217 | CH70: 634 | CI70: 453 | CJ70: 21 | CL70: 293 | CM70: 1323 | CO70: 0.09643916914 | CP70: 75 | CQ70: -4972.789116 | CU70: 50.35053342 | CV70: 2668.178382 | CW70: 60.61012325 | CX70: 16068.02721 | CY70: 3767 | CZ70: 4525 | DA70: 14081 | DB70: -9556 | DC70: 4314 | DD70: 6333 | DG70: -7 | DH70: -510 | DI70: 574 | DJ70: 1078 | DK70: 0 | DL70: 0 | DM70: -504 | DN70: 1 | DO70: 0 | DP70: 0 | DQ70: -503 | DR70: 8047 | DS70: -1155 | DU70: -122 | DV70: -6055 | DW70: -1580 | DX70: 4314 | DY70: 3187 | DZ70: 709 | EA70: 418 | EB70: 21 | ED70: 247.4338235 | EE70: 8378 | EF70: 8774 | EG70: 8488 | EJ70: 190 | EK70: -1029 | EL70: 0 | EM70: 0 | EN70: -523 | EO70: 13 | EP70: 18 | EQ70: -427 | ER70: 0 | ES70: 2 | ET70: 1300 | EU70: -160 | EV70: 1850 | EW70: -160 | EX70: 2367 | EY70: 5261 | EZ70: 8126 | FA70: 5858 | FB70: 2268 | FC70: 0 | FD70: 8366 | FE70: 6368 | FF70: 1998 | FG70: 0 | FH70: 9938 | FI70: 2681 | FJ70: 7257 | FK70: 0 | FL70: 8674.796748 | FM70: 9901.418969 | FN70: 11894.93575 | FO70: 151.7619048 | FP70: 114.7104344 | FV70: 707 | FW70: -707
A71: 217 | B71: Kannus | C71: 5502 | E71: -3.441176471 | F71: 53.61435239 | G71: -2806.434024 | K71: 44.87525868 | L71: 296.8011632 | M71: 16.76497061 | N71: 6461.832061 | O71: 9663 | P71: 3162 | Q71: 34165 | R71: -31003 | S71: 17779 | T71: 13339 | W71: 37 | X71: -1 | Y71: 151 | Z71: 1116 | AA71: 0 | AB71: 0 | AC71: -965 | AD71: 104 | AE71: 0 | AF71: 7 | AG71: -854 | AH71: 4944 | AI71: 151 | AK71: -6 | AL71: 0 | AM71: -1323 | AN71: 17779 | AO71: 15347 | AP71: 1153 | AQ71: 1279 | AR71: 21.5 | AT71: 244 | AU71: 5464 | AW71: 0.03052180548 | AX71: 53.30416763 | AY71: -3034.956076 | BC71: 42.71653543 | BD71: 245.6076135 | BE71: 13.62303927 | BF71: 6580.527086 | BG71: 9817 | BH71: 3240 | BI71: 34679 | BJ71: -31439 | BK71: 17802 | BL71: 13702 | BO71: 22 | BP71: -2 | BQ71: 85 | BR71: 1159 | BS71: 0 | BT71: 0 | BU71: -1074 | BV71: 104 | BW71: 0 | BX71: 0 | BY71: -970 | BZ71: 3974 | CA71: 60 | CC71: 713 | CD71: 0 | CE71: -1197 | CF71: 17802 | CG71: 15563 | CH71: 950 | CI71: 1289 | CJ71: 21.5 | CL71: 222 | CM71: 5426 | CO71: -123.6 | CP71: 46.57367945 | CQ71: -2541.098415 | CU71: 45.53445344 | CV71: 560.4496867 | CW71: 29.94321401 | CX71: 6831.736086 | CY71: 9780 | CZ71: 2757 | DA71: 36255 | DB71: -33498 | DC71: 19346 | DD71: 16613 | DG71: 25 | DH71: 6 | DI71: 2492 | DJ71: 1230 | DK71: 0 | DL71: 0 | DM71: 1262 | DN71: 100 | DO71: 0 | DP71: 0 | DQ71: 1362 | DR71: 5337 | DS71: 2486 | DU71: -28 | DV71: 0 | DW71: 1688 | DX71: 19346 | DY71: 16616 | DZ71: 1091 | EA71: 1639 | EB71: 21.5 | ED71: 239.375 | EE71: 21628 | EF71: 21810 | EG71: 23348 | EK71: -1474 | EL71: 0 | EM71: 0 | EN71: -1336 | EO71: 0 | EP71: 79 | EQ71: -825 | ER71: 0 | ES71: 27 | ET71: 0 | EU71: 1300 | EV71: 0 | EW71: 500 | EX71: 0 | EY71: -1500 | EZ71: 16000 | FA71: 0 | FB71: 16000 | FC71: 672 | FD71: 16500 | FE71: 0 | FF71: 16500 | FG71: 637 | FH71: 15000 | FI71: 0 | FJ71: 15000 | FK71: 3 | FL71: 5206.10687 | FM71: 5330.710102 | FN71: 5164.946554 | FO71: 772.8372093 | FP71: 142.432217 | FV71: 865 | FW71: -865
A72: 218 | B72: Karijoki | C72: 1274 | E72: 0.1660899654 | F72: 29.11341451 | G72: -1177.394035 | K72: 63.68795905 | L72: 906.5934066 | M72: 37.6036928 | N72: 8799.843014 | O72: 1642 | P72: 1264 | Q72: 9894 | R72: -8630 | S72: 4033 | T72: 4640 | W72: -23 | X72: 5 | Y72: 25 | Z72: 248 | AA72: 0 | AB72: 0 | AC72: -223 | AD72: 0 | AE72: 0 | AF72: 0 | AG72: -223 | AH72: 1857 | AI72: 45 | AK72: -41 | AL72: -266 | AM72: -949 | AN72: 4033 | AO72: 3509 | AP72: 281 | AQ72: 243 | AR72: 22 | AT72: 246 | AU72: 1245 | AW72: -1.187878788 | AX72: 32.05864261 | AY72: -1922.891566 | BC72: 58.81451803 | BD72: 428.1124498 | BE72: 17.77315914 | BF72: 8791.967871 | BG72: 1807 | BH72: 1062 | BI72: 10202 | BJ72: -9140 | BK72: 3838 | BL72: 4854 | BO72: -20 | BP72: 7 | BQ72: -461 | BR72: 271 | BS72: 0 | BT72: 0 | BU72: -732 | BV72: 0 | BW72: 0 | BX72: 0 | BY72: -732 | BZ72: 1125 | CA72: -461 | CC72: 37 | CD72: -262 | CE72: -893 | CF72: 3838 | CG72: 3270 | CH72: 282 | CI72: 286 | CJ72: 22 | CL72: 283 | CM72: 1207 | CO72: 6.185185185 | CP72: 29.58633094 | CQ72: -587.4067937 | CU72: 63.93410279 | CV72: 1884.009942 | CW72: 85.28668311 | CX72: 8062.966031 | CY72: 1695 | CZ72: 1137 | DA72: 9291 | DB72: -8154 | DC72: 4145 | DD72: 5838 | DG72: -17 | DH72: 7 | DI72: 1819 | DJ72: 329 | DK72: 0 | DL72: 0 | DM72: 1490 | DN72: 0 | DO72: 0 | DP72: 0 | DQ72: 1490 | DR72: 2615 | DS72: 1819 | DU72: -106 | DV72: -279 | DW72: 1686 | DX72: 4145 | DY72: 3557 | DZ72: 329 | EA72: 259 | EB72: 22 | ED72: 3 | EE72: 7518 | EF72: 7692 | EG72: 6936 | EJ72: 180 | EK72: -1027 | EL72: 0 | EM72: 33 | EN72: -462 | EO72: 26 | EP72: 4 | EQ72: -144 | ER72: 5 | ES72: 6 | ET72: 0 | EU72: 0 | EV72: 400 | EW72: 0 | EX72: 400 | EY72: 400 | EZ72: 1740 | FA72: 1498 | FB72: 242 | FC72: 0 | FD72: 1878 | FE72: 1619 | FF72: 259 | FG72: 0 | FH72: 2399 | FI72: 1700 | FJ72: 699 | FK72: 0 | FL72: 2381.475667 | FM72: 2727.710843 | FN72: 3447.390224 | FO72: 161.6818182 | FP72: 133.9534533 | FV72: 342 | FW72: -342
A73: 224 | B73: Karkkila | C73: 8778 | E73: 0.1370383874 | F73: 115.3029097 | G73: -6604.46571 | K73: 11.28334284 | L73: 313.7388927 | M73: 13.6875 | N73: 8366.370472 | O73: 13546 | P73: 6758 | Q73: 52789 | R73: -46031 | S73: 30720 | T73: 17786 | W73: -537 | X73: 124 | Y73: 2062 | Z73: 2957 | AA73: 0 | AB73: 0 | AC73: -895 | AD73: 0 | AE73: 0 | AF73: 0 | AG73: -895 | AH73: 759 | AI73: 1570 | AK73: 237 | AL73: -18630 | AM73: 762 | AN73: 30720 | AO73: 27267 | AP73: 1193 | AQ73: 2260 | AR73: 20.75 | AT73: 147 | AU73: 8714 | AW73: -0.01289972573 | AX73: 117.9633475 | AY73: -7014.803764 | BC73: 6.534131193 | BD73: 261.9921965 | BE73: 11.49340708 | BF73: 8320.174432 | BG73: 14534 | BH73: 6508 | BI73: 55601 | BJ73: -49093 | BK73: 30780 | BL73: 18097 | BO73: -495 | BP73: 107 | BQ73: -604 | BR73: 2897 | BS73: 0 | BT73: 0 | BU73: -3501 | BV73: 0 | BW73: 0 | BX73: 0 | BY73: -3501 | BZ73: -2742 | CA73: -873 | CC73: 1069 | CD73: -13656 | CE73: -3195 | CF73: 30780 | CG73: 27314 | CH73: 1218 | CI73: 2248 | CJ73: 20.75 | CL73: 254 | CM73: 8696 | CO73: 0.5458324218 | CP73: 102.8663243 | CQ73: -6627.299908 | CU73: 8.829012032 | CV73: 380.2897884 | CW73: 17.85108995 | CX73: 7775.75897 | CY73: 14785 | CZ73: 6899 | DA73: 57073 | DB73: -50174 | DC73: 31969 | DD73: 23058 | DG73: -402 | DH73: 128 | DI73: 4579 | DJ73: 2935 | DK73: 0 | DL73: 0 | DM73: 1644 | DN73: 0 | DO73: 0 | DP73: 0 | DQ73: 1644 | DR73: -1098 | DS73: 4308 | DU73: -840 | DV73: -8731 | DW73: 3214 | DX73: 31969 | DY73: 28608 | DZ73: 1287 | EA73: 2074 | EB73: 20.75 | ED73: 216.2058824 | EE73: 35247 | EF73: 37260 | EG73: 38378 | EJ73: 1000 | EK73: -1448 | EL73: 33 | EM73: 607 | EN73: -2729 | EO73: 55 | EP73: 352 | EQ73: -1401 | ER73: 22 | ES73: 285 | ET73: 35000 | EU73: -16500 | EV73: 9320 | EW73: 5200 | EX73: 7500 | EY73: -700 | EZ73: 59075 | FA73: 39932 | FB73: 19143 | FC73: 0 | FD73: 59939 | FE73: 39883 | FF73: 20056 | FG73: 0 | FH73: 58007 | FI73: 38901 | FJ73: 19106 | FK73: 0 | FL73: 7174.755069 | FM73: 7561.16594 | FN73: 7627.644894 | FO73: 1378.698795 | FP73: 158.5440197 | FV73: 3101 | FW73: -3101
A74: 226 | B74: Karstula | C74: 4031 | E74: 1809 | F74: 50.02235565 | G74: -1384.271893 | K74: 54.10325451 | L74: 2322.50062 | M74: 111.6307863 | N74: 7593.897296 | O74: 8073 | P74: 4423 | Q74: 29587 | R74: -25164 | S74: 12013 | T74: 14876 | W74: 62 | X74: 21 | Y74: 1808 | Z74: 1839 | AA74: 0 | AB74: 0 | AC74: -31 | AD74: 0 | AE74: 0 | AF74: 0 | AG74: -31 | AH74: 4052 | AI74: 1803 | AK74: 32 | AL74: 0 | AM74: 952 | AN74: 12013 | AO74: 9626 | AP74: 1298 | AQ74: 1089 | AR74: 21 | AT74: 58 | AU74: 3949 | AW74: -1.73103796 | AX74: 48.77237049 | AY74: -1282.349962 | BC74: 40.50727229 | BD74: 2451.000253 | BE74: 98.39669675 | BF74: 9091.922006 | BG74: 8245 | BH74: 4628 | BI74: 34950 | BJ74: -30310 | BK74: 12537 | BL74: 14685 | BO74: 51 | BP74: 32 | BQ74: -3005 | BR74: 1890 | BS74: 0 | BT74: 0 | BU74: -4895 | BV74: 0 | BW74: 0 | BX74: 0 | BY74: -4895 | BZ74: -843 | CA74: 1153 | CC74: -69 | CD74: 0 | CE74: 396 | CF74: 12537 | CG74: 10075 | CH74: 1373 | CI74: 1089 | CJ74: 21.5 | CL74: 289 | CM74: 3858 | CO74: 4189 | CP74: 46.64449637 | CQ74: -1437.013997 | CU74: 50.19546769 | CV74: 2437.273199 | CW74: 113.8377724 | CX74: 7814.670814 | CY74: 7387 | CZ74: 4225 | DA74: 29314 | DB74: -25089 | DC74: 12663 | DD74: 16547 | DG74: 53 | DH74: 14 | DI74: 4188 | DJ74: 1987 | DK74: 0 | DL74: 0 | DM74: 2201 | DN74: 0 | DO74: 0 | DP74: 0 | DQ74: 2201 | DR74: 1359 | DS74: -14 | DU74: 168 | DV74: 0 | DW74: -336 | DX74: 12663 | DY74: 10149 | DZ74: 1524 | EA74: 990 | EB74: 21.5 | ED74: 19.77205882 | EE74: 19257 | EF74: 19985 | EG74: 19646 | EJ74: 545 | EK74: -1022 | EL74: 100 | EM74: 71 | EN74: -965 | EO74: -1 | EP74: 209 | EQ74: -691 | ER74: 279 | ES74: 90 | ET74: 0 | EU74: 0 | EV74: 0 | EW74: 0 | EX74: 0 | EY74: 0 | EZ74: 13000 | FA74: 0 | FB74: 13000 | FC74: 611 | FD74: 13000 | FE74: 0 | FF74: 13000 | FG74: 575 | FH74: 13000 | FI74: 0 | FJ74: 13000 | FK74: 723 | FL74: 6008.930786 | FM74: 6708.027349 | FN74: 7203.214101 | FO74: 472.0465116 | FP74: 122.3552389 | FV74: 291 | FW74: -291
A75: 230 | B75: Karvia | C75: 2390 | E75: -0.6495327103 | F75: 31.25398648 | G75: -764.8535565 | K75: 73.53715545 | L75: 1075.732218 | M75: 55.9679728 | N75: 7015.481172 | O75: 3591 | P75: 1469 | Q75: 16088 | R75: -14619 | S75: 6411 | T75: 7798 | W75: -40 | X75: 271 | Y75: -179 | Z75: 923 | AA75: 0 | AB75: 0 | AC75: -1102 | AD75: 0 | AE75: 0 | AF75: 0 | AG75: -1102 | AH75: 8472 | AI75: -342 | AK75: 71 | AL75: -174 | AM75: -404 | AN75: 6411 | AO75: 5092 | AP75: 615 | AQ75: 704 | AR75: 20.5 | AT75: 271 | AU75: 2342 | AW75: -1.171946927 | AX75: 26.1919778 | AY75: -1134.073442 | BC75: 74.51315549 | BD75: 462.852263 | BE75: 22.66483359 | BF75: 7453.885568 | BG75: 3720 | BH75: 1191 | BI75: 16665 | BJ75: -15474 | BK75: 6814 | BL75: 7851 | BO75: -36 | BP75: 268 | BQ75: -577 | BR75: 903 | BS75: 0 | BT75: 0 | BU75: -1480 | BV75: 0 | BW75: 0 | BX75: 0 | BY75: -1480 | BZ75: 6992 | CA75: -487 | CC75: 88 | CD75: -347 | CE75: -825 | CF75: 6814 | CG75: 5453 | CH75: 637 | CI75: 724 | CJ75: 20.5 | CL75: 275 | CM75: 2322 | CO75: 4.284960422 | CP75: 21.67530728 | CQ75: -581.3953488 | CU75: 77.58682635 | CV75: 844.9612403 | CW75: 43.49407835 | CX75: 7090.86994 | CY75: 3617 | CZ75: 1190 | DA75: 15807 | DB75: -14617 | DC75: 6907 | DD75: 9070 | DG75: -32 | DH75: 264 | DI75: 1592 | DJ75: 840 | DK75: 0 | DL75: 0 | DM75: 752 | DN75: 0 | DO75: 0 | DP75: 0 | DQ75: 752 | DR75: 7743 | DS75: 1592 | DU75: 3 | DV75: -347 | DW75: 1316 | DX75: 6907 | DY75: 5551 | DZ75: 689 | EA75: 667 | EB75: 20.5 | ED75: 142.6691176 | EE75: 11182 | EF75: 11430 | EG75: 11084 | EJ75: 300 | EK75: -463 | EL75: 194 | EM75: 207 | EN75: -409 | EO75: 2 | EP75: 69 | EQ75: -277 | ER75: 0 | ES75: 1 | ET75: 0 | EU75: 0 | EV75: 0 | EW75: 0 | EX75: 0 | EY75: 0 | EZ75: 3126 | FA75: 2779 | FB75: 347 | FC75: 246 | FD75: 2779 | FE75: 2432 | FF75: 347 | FG75: 246 | FH75: 2431 | FI75: 2084 | FJ75: 347 | FK75: 246 | FL75: 4277.824268 | FM75: 3717.335611 | FN75: 3467.700258 | FO75: 270.7804878 | FP75: 116.6151972 | FV75: 17 | FW75: -17
A76: 231 | B76: Kaskinen | C76: 1262 | E76: 0.7078947368 | F76: 55.97243492 | G76: -4427.099842 | K76: 61.87281381 | L76: 15.05546751 | M76: 0.5666775617 | N76: 9697.305864 | O76: 4444 | P76: 3180 | Q76: 11490 | R76: -8310 | S76: 6662 | T76: 1912 | W76: -38 | X76: 5 | Y76: 231 | Z76: 1625 | AA76: 0 | AB76: 0 | AC76: -1394 | AD76: 0 | AE76: 0 | AF76: 0 | AG76: -1394 | AH76: 6080 | AI76: -358 | AK76: -188 | AL76: -342 | AM76: 76 | AN76: 6662 | AO76: 4970 | AP76: 1082 | AQ76: 610 | AR76: 22 | AT76: 179 | AU76: 1246 | AW76: -0.5836637589 | AX76: 59.97335702 | AY76: -4450.24077 | BC76: 60.48074138 | BD76: 20.86677368 | BE76: 0.6888292081 | BF76: 11056.98234 | BG76: 4599 | BH76: 3068 | BI76: 11721 | BJ76: -8653 | BK76: 6360 | BL76: 1832 | BO76: -45 | BP76: 1 | BQ76: -505 | BR76: 955 | BS76: 0 | BT76: 0 | BU76: -1460 | BV76: 0 | BW76: 0 | BX76: 0 | BY76: -1460 | BZ76: 5732 | CA76: -571 | CC76: -208 | CD76: -1200 | CE76: -1070 | CF76: 6360 | CG76: 4745 | CH76: 749 | CI76: 866 | CJ76: 22 | CL76: 286 | CM76: 1278 | CO76: 0.06406685237 | CP76: 63.39537976 | CQ76: -4739.43662 | CU76: 55.16078386 | CV76: 262.9107981 | CW76: 8.648801128 | CX76: 11095.46166 | CY76: 4531 | CZ76: 2953 | DA76: 11965 | DB76: -9012 | DC76: 6396 | DD76: 2685 | DG76: -21 | DH76: 8 | DI76: 56 | DJ76: 1059 | DK76: 0 | DL76: 0 | DM76: -1003 | DN76: 0 | DO76: 0 | DP76: 0 | DQ76: -1003 | DR76: 4776 | DS76: 28 | DU76: -89 | DV76: -1400 | DW76: -571 | DX76: 6396 | DY76: 4907 | DZ76: 814 | EA76: 675 | EB76: 22 | ED76: 292.7647059 | EE76: 5642 | EF76: 5573 | EG76: 5714 | EJ76: 175 | EK76: -367 | EL76: 33 | EM76: 768 | EN76: -810 | EO76: 5 | EP76: 306 | EQ76: -779 | ER76: 0 | ES76: 180 | ET76: 440 | EU76: 0 | EV76: -440 | EW76: 2482 | EX76: 7000 | EY76: -4534 | EZ76: 4040 | FA76: 1640 | FB76: 2400 | FC76: 0 | FD76: 4882 | FE76: 0 | FF76: 4882 | FG76: 0 | FH76: 5948 | FI76: 5200 | FJ76: 748 | FK76: 0 | FL76: 4313.787639 | FM76: 6292.134831 | FN76: 7194.053208 | FO76: 223.0454545 | FP76: 174.5269597 | FV76: 0 | FW76: 0
A77: 232 | B77: Kauhajoki | C77: 13375 | E77: 0.4384309831 | F77: 58.98940315 | G77: -4346.990654 | K77: 28.16777335 | L77: 968.5981308 | M77: 34.57091366 | N77: 10226.46729 | O77: 22251 | P77: 45184 | Q77: 126858 | R77: -81674 | S77: 44520 | T77: 38718 | W77: -727 | X77: 1075 | Y77: 1912 | Z77: 4483 | AA77: 0 | AB77: 0 | AC77: -2571 | AD77: 38 | AE77: 0 | AF77: 0 | AG77: -2533 | AH77: -13200 | AI77: 1782 | AK77: -625 | AL77: -5305 | AM77: -1018 | AN77: 44520 | AO77: 37191 | AP77: 3479 | AQ77: 3850 | AR77: 22 | AT77: 202 | AU77: 13184 | AW77: 1.140488689 | AX77: 61.20330041 | AY77: -4033.222087 | BC77: 30.78047557 | BD77: 1654.202063 | BE77: 56.43150835 | BF77: 10699.40837 | BG77: 22386 | BH77: 45874 | BI77: 128991 | BJ77: -83016 | BK77: 44798 | BL77: 39736 | BO77: -690 | BP77: 9960 | BQ77: 10788 | BR77: 4940 | BS77: 0 | BT77: 0 | BU77: 5848 | BV77: 37 | BW77: 0 | BX77: 0 | BY77: 5885 | BZ77: -7315 | CA77: 10150 | CC77: -219 | CD77: -5210 | CE77: 4726 | CF77: 44798 | CG77: 37263 | CH77: 3936 | CI77: 3599 | CJ77: 22 | CL77: 9 | CM77: 13007 | CO77: 0.9437656642 | CP77: 59.32359521 | CQ77: -4069.11663 | CU77: 30.81397821 | CV77: 1864.4576 | CW77: 61.41112275 | CX77: 11081.49458 | CY77: 24214 | CZ77: 46338 | DA77: 131571 | DB77: -85233 | DC77: 46156 | DD77: 44372 | DG77: -618 | DH77: 724 | DI77: 5401 | DJ77: 4754 | DK77: 0 | DL77: 0 | DM77: 647 | DN77: 35 | DO77: 0 | DP77: 0 | DQ77: 682 | DR77: -6633 | DS77: 5471 | DU77: 866 | DV77: -5760 | DW77: 22 | DX77: 46156 | DY77: 38875 | DZ77: 4009 | EA77: 3272 | EB77: 22 | ED77: 251.4632353 | EE77: 97454 | EF77: 99378 | EG77: 99990 | EI77: 1000 | EK77: -3552 | EL77: -7 | EM77: 759 | EN77: -6125 | EO77: 0 | EP77: 701 | EQ77: -5706 | ER77: 0 | ES77: 257 | ET77: 3500 | EU77: -1000 | EV77: 5500 | EW77: 2000 | EX77: 0 | EY77: 6000 | EZ77: 62889 | FA77: 55679 | FB77: 7210 | FC77: 1191 | FD77: 65179 | FE77: 55419 | FF77: 9760 | FG77: 1034 | FH77: 65420 | FI77: 49827 | FJ77: 15593 | FK77: 866 | FL77: 6989.009346 | FM77: 8225.500607 | FN77: 8538.633044 | FO77: 1767.045455 | FP77: 135.8534216 | FV77: 3128 | FW77: -3128
A78: 233 | B78: Kauhava | C78: 16022 | E78: 0.09201041249 | F78: 54.93313282 | G78: -2416.177756 | K78: 45.81041565 | L78: 929.5968044 | M78: 40.90926878 | N78: 8294.033204 | O78: 31382 | P78: 11391 | Q78: 111244 | R78: -99853 | S78: 52045 | T78: 48364 | W78: -283 | X78: 282 | Y78: 555 | Z78: 5984 | AA78: 0 | AB78: 0 | AC78: -5429 | AD78: 571 | AE78: 8 | AF78: 27 | AG78: -4823 | AH78: 9227 | AI78: 521 | AK78: -483 | AL78: -9624 | AM78: -10826 | AN78: 52045 | AO78: 44637 | AP78: 3319 | AQ78: 4089 | AR78: 21.75 | AT78: 240 | AU78: 15726 | AW78: -0.03753628874 | AX78: 58.33763687 | AY78: -3045.338929 | BC78: 39.4454856 | BD78: 1038.344143 | BE78: 46.09822029 | BF78: 8221.480351 | BG78: 31628 | BH78: 11117 | BI78: 115048 | BJ78: -103850 | BK78: 53598 | BL78: 49532 | BO78: -284 | BP78: 365 | BQ78: -639 | BR78: 8008 | BS78: 0 | BT78: 0 | BU78: -8647 | BV78: 1738 | BW78: 0 | BX78: 75 | BY78: -6834 | BZ78: 2393 | CA78: -505 | CC78: 5333 | CD78: -4611 | CE78: -9329 | CF78: 53598 | CG78: 46472 | CH78: 3262 | CI78: 3864 | CJ78: 21.75 | CL78: 243 | CM78: 15514 | CO78: 1.8742536 | CP78: 58.54923133 | CQ78: -3168.041769 | CU78: 40.03709217 | CV78: 1153.732113 | CW78: 50.50468858 | CX78: 8338.081733 | CY78: 29936 | CZ78: 9950 | DA78: 111339 | DB78: -101389 | DC78: 54372 | DD78: 57283 | DG78: -232 | DH78: 349 | DI78: 10383 | DJ78: 6231 | DK78: 0 | DL78: 0 | DM78: 4152 | DN78: 194 | DO78: 0 | DP78: 70 | DQ78: 4416 | DR78: 6808 | DS78: 10379 | DU78: -1703 | DV78: -5405 | DW78: -1713 | DX78: 54372 | DY78: 47212 | DZ78: 3490 | EA78: 3670 | EB78: 21.75 | ED78: 149.7205882 | EE78: 73044 | EF78: 76187 | EG78: 74644 | EJ78: 1800 | EK78: -11692 | EL78: 291 | EM78: 54 | EN78: -9350 | EO78: 393 | EP78: 133 | EQ78: -12385 | ER78: 183 | ES78: 110 | ET78: 10389 | EU78: 4709 | EV78: 15000 | EW78: -5053 | EX78: 12000 | EY78: 3563 | EZ78: 48127 | FA78: 38502 | FB78: 9625 | FC78: 2758 | FD78: 53463 | FE78: 48890 | FF78: 4573 | FG78: 2730 | FH78: 63621 | FI78: 55486 | FJ78: 8135 | FK78: 2264 | FL78: 7588.628136 | FM78: 8454.915427 | FN78: 9254.60874 | FO78: 2170.666667 | FP78: 139.9166344 | FV78: 4056 | FW78: -4056
A79: 235 | B79: Kauniainen | C79: 9615 | F79: 13.39984613 | G79: 101.0920437 | K79: 90.56787985 | L79: 914.300572 | M79: 39.03451254 | N79: 8549.349974 | O79: 32807 | P79: 15024 | Q79: 71769 | R79: -56745 | S79: 69149 | T79: -2284 | W79: 238 | X79: 115 | Y79: 10473 | Z79: 7245 | AA79: 0 | AB79: 0 | AC79: 3228 | AD79: 0 | AE79: 0 | AF79: 0 | AG79: 3228 | AH79: 54204 | AI79: 8774 | AK79: -31 | AL79: 0 | AM79: 50 | AN79: 69149 | AO79: 62301 | AP79: 1997 | AQ79: 4851 | AR79: 17 | AT79: 2 | AU79: 9797 | AW79: 6.024703202 | AX79: 17.92243083 | AY79: -411.8607737 | BC79: 87.78102312 | BD79: 682.7600286 | BE79: 28.21938787 | BF79: 8831.070736 | BG79: 35950 | BH79: 15831 | BI79: 75027 | BJ79: -59196 | BK79: 66993 | BL79: -1864 | BO79: 232 | BP79: 114 | BQ79: 6279 | BR79: 7799 | BS79: 0 | BT79: 0 | BU79: -1520 | BV79: 0 | BW79: 0 | BX79: 0 | BY79: -1520 | BZ79: 52713 | CA79: 3653 | CC79: 0 | CD79: 0 | CE79: -5099 | CF79: 66993 | CG79: 61069 | CH79: 1172 | CI79: 4752 | CJ79: 17 | CL79: 13 | CM79: 10178 | CO79: 1153.111111 | CP79: 17.81323837 | CQ79: 66.90901945 | CU79: 87.16683119 | CV79: 1307.82079 | CW79: 58.28213095 | CX79: 8190.41069 | CY79: 37228 | CZ79: 14069 | DA79: 77506 | DB79: -63437 | DC79: 69215 | DD79: 4325 | DG79: 225 | DH79: 41 | DI79: 10369 | DJ79: 8716 | DK79: 0 | DL79: 0 | DM79: 1653 | DN79: 0 | DO79: 0 | DP79: 0 | DQ79: 1653 | DR79: 54368 | DS79: 8922 | DU79: 817 | DV79: 0 | DW79: 4637 | DX79: 69215 | DY79: 63838 | DZ79: 1060 | EA79: 4317 | EB79: 17 | ED79: 32.86764706 | EE79: 30019 | EF79: 29384 | EG79: 29935 | EK79: -10400 | EL79: 0 | EM79: 1676 | EN79: -11480 | EO79: 0 | EP79: 2728 | EQ79: -5822 | ER79: 0 | ES79: 1537 | ET79: 0 | EU79: -2000 | EV79: 0 | EW79: 2000 | EX79: 0 | EY79: 2000 | EZ79: 0 | FA79: 0 | FB79: 0 | FC79: 5199 | FD79: 2000 | FE79: 0 | FF79: 2000 | FG79: 5131 | FH79: 4000 | FI79: 0 | FJ79: 4000 | FK79: 5064 | FL79: 2024.960998 | FM79: 2315.096458 | FN79: 2565.828257 | FO79: 3755.176471 | FP79: 368.9503312 | FV79: 0 | FW79: 0
A80: 236 | B80: Kaustinen | C80: 4273 | E80: 0.4797942689 | F80: 100.7268378 | G80: -7121.226305 | K80: 21.65528325 | L80: 219.2838755 | M80: 9.443999558 | N80: 8475.076059 | O80: 10734 | P80: 7557 | Q80: 31346 | R80: -23789 | S80: 14168 | T80: 10882 | W80: -241 | X80: 34 | Y80: 1054 | Z80: 1366 | AA80: 0 | AB80: 0 | AC80: -312 | AD80: 0 | AE80: 0 | AF80: 0 | AG80: -312 | AH80: -522 | AI80: 204 | AK80: 294 | AL80: -2470 | AM80: -741 | AN80: 14168 | AO80: 12180 | AP80: 1031 | AQ80: 957 | AR80: 21.5 | AT80: 141 | AU80: 4261 | AW80: -0.0141364665 | AX80: 106.337108 | AY80: -7533.208167 | BC80: 17.71223881 | BD80: 228.5848392 | BE80: 9.773202111 | BF80: 8536.963154 | BG80: 10945 | BH80: 7230 | BI80: 32251 | BJ80: -25021 | BK80: 13851 | BL80: 11063 | BO80: -220 | BP80: 38 | BQ80: -289 | BR80: 1456 | BS80: 0 | BT80: 0 | BU80: -1745 | BV80: 0 | BW80: 0 | BX80: 0 | BY80: -1745 | BZ80: -2268 | CA80: -546 | CC80: 369 | CD80: -2455 | CE80: -1582 | CF80: 13851 | CG80: 12079 | CH80: 810 | CI80: 962 | CJ80: 21.5 | CL80: 252 | CM80: 4228 | CO80: 1.325169555 | CP80: 98.39857147 | CQ80: -7217.360454 | CU80: 20.74171465 | CV80: 709.0823084 | CW80: 30.09957365 | CX80: 8598.628193 | CY80: 10448 | CZ80: 6548 | DA80: 31826 | DB80: -25278 | DC80: 14546 | DD80: 14187 | DG80: -188 | DH80: 51 | DI80: 3318 | DJ80: 1585 | DK80: 0 | DL80: 0 | DM80: 1733 | DN80: 0 | DO80: 0 | DP80: 0 | DQ80: 1733 | DR80: -535 | DS80: 3385 | DU80: -96 | DV80: -2455 | DW80: 1537 | DX80: 14546 | DY80: 12879 | DZ80: 796 | EA80: 871 | EB80: 22 | ED80: 94.31617647 | EE80: 18023 | EF80: 18678 | EG80: 18685 | EJ80: 590 | EK80: -2144 | EL80: 0 | EM80: 1199 | EN80: -1437 | EO80: 15 | EP80: 386 | EQ80: -1874 | ER80: 0 | ES80: 26 | ET80: 3017 | EU80: 300 | EV80: 0 | EW80: 3000 | EX80: 2000 | EY80: -6000 | EZ80: 28835 | FA80: 22379 | FB80: 6456 | FC80: 0 | FD80: 29379 | FE80: 19923 | FF80: 9456 | FG80: 0 | FH80: 30924 | FI80: 28468 | FJ80: 2456 | FK80: 0 | FL80: 11615.2586 | FM80: 11926.30838 | FN80: 12264.42763 | FO80: 585.4090909 | FP80: 138.4600499 | FV80: 1503 | FW80: -1503
A81: 239 | B81: Keitele | C81: 2244 | E81: 0.1531791908 | F81: 54.93392826 | G81: -3389.928699 | K81: 41.98926902 | L81: 286.9875223 | M81: 12.42454675 | N81: 8430.926916 | O81: 6136 | P81: 3153 | Q81: 17684 | R81: -14531 | S81: 6873 | T81: 7455 | W81: -11 | X81: 256 | Y81: 42 | Z81: 553 | AA81: 0 | AB81: 0 | AC81: -511 | AD81: 0 | AE81: 0 | AF81: 0 | AG81: -511 | AH81: -1095 | AI81: 15 | AK81: 5 | AL81: -335 | AM81: -839 | AN81: 6873 | AO81: 5713 | AP81: 618 | AQ81: 542 | AR81: 20.5 | AT81: 247 | AU81: 2202 | AW81: 1.136374161 | AX81: 52.43029185 | AY81: -3271.571299 | BC81: 43.23327184 | BD81: 455.9491371 | BE81: 20.13959112 | BF81: 8263.396912 | BG81: 6263 | BH81: 3131 | BI81: 17377 | BJ81: -14246 | BK81: 7134 | BL81: 8169 | BO81: -16 | BP81: 170 | BQ81: 1211 | BR81: 574 | BS81: 0 | BT81: 181 | BU81: 456 | BV81: 0 | BW81: 0 | BX81: 0 | BY81: 456 | BZ81: -639 | CA81: 1126 | CC81: -106 | CD81: 0 | CE81: 405 | CF81: 7134 | CG81: 5770 | CH81: 804 | CI81: 560 | CJ81: 20.5 | CL81: 22 | CM81: 2155 | CO81: 4.501915709 | CP81: 48.7347363 | CQ81: -3092.343387 | CU81: 46.03192136 | CV81: 653.3642691 | CW81: 26.71796205 | CX81: 8925.75406 | CY81: 5717 | CZ81: 2997 | DA81: 18229 | DB81: -15232 | DC81: 7469 | DD81: 8779 | DG81: -1 | DH81: 159 | DI81: 1174 | DJ81: 572 | DK81: 0 | DL81: 0 | DM81: 602 | DN81: 0 | DO81: 0 | DP81: 0 | DQ81: 602 | DR81: -38 | DS81: 1023 | DU81: 150 | DV81: -260 | DW81: 540 | DX81: 7469 | DY81: 5811 | DZ81: 1186 | EA81: 472 | EB81: 20.5 | ED81: 211.1691176 | EE81: 9501 | EF81: 8960 | EG81: 10985 | EK81: -883 | EL81: 0 | EM81: 29 | EN81: -802 | EO81: 57 | EP81: 24 | EQ81: -741 | ER81: 79 | ES81: 179 | ET81: 3000 | EU81: -1248 | EV81: 0 | EW81: -260 | EX81: 0 | EY81: 0 | EZ81: 8143 | FA81: 3333 | FB81: 4810 | FC81: 160 | FD81: 7883 | FE81: 3073 | FF81: 4810 | FG81: 137 | FH81: 7623 | FI81: 2854 | FJ81: 4769 | FK81: 114 | FL81: 8743.761141 | FM81: 9041.326067 | FN81: 9004.640371 | FO81: 283.4634146 | FP81: 131.5375474 | FV81: 61 | FW81: -61
A82: 240 | B82: Kemi | C82: 21021 | E82: -0.1453802365 | F82: 74.17779589 | G82: -4893.868037 | K82: 35.74916624 | L82: 68.36021122 | M82: 2.796718619 | N82: 8921.69735 | O82: 65080 | P82: 21142 | Q82: 158054 | R82: -136912 | S82: 86360 | T82: 44851 | W82: -428 | X82: 2174 | Y82: -3955 | Z82: 4616 | AA82: 0 | AB82: 0 | AC82: -8571 | AD82: 0 | AE82: 0 | AF82: 14 | AG82: -8557 | AH82: -2718 | AI82: -4583 | AK82: -3051 | AL82: -19586 | AM82: -13064 | AN82: 86360 | AO82: 72619 | AP82: 7185 | AQ82: 6556 | AR82: 21.75 | AT82: 285 | AU82: 20707 | AW82: -0.4695577727 | AX82: 81.57912146 | AY82: -5489.544598 | BC82: 30.11291072 | BD82: 65.5333945 | BE82: 2.783190888 | BF82: 8594.340078 | BG82: 62818 | BH82: 20343 | BI82: 160128 | BJ82: -139603 | BK82: 86724 | BL82: 44093 | BO82: -147 | BP82: 1063 | BQ82: -7870 | BR82: 5087 | BS82: 0 | BT82: 0 | BU82: -12957 | BV82: 0 | BW82: 0 | BX82: 2994 | BY82: -9963 | BZ82: -10795 | CA82: -8182 | CC82: 264 | CD82: -12491 | CE82: -12274 | CF82: 86724 | CG82: 74973 | CH82: 5132 | CI82: 6619 | CJ82: 21.75 | CL82: 284 | CM82: 20437 | CO82: 0.5680398572 | CP82: 73.29411262 | CQ82: -5411.704262 | CU82: 31.31768614 | CV82: 164.9459314 | CW82: 6.863244383 | CX82: 8772.128982 | CY82: 62753 | CZ82: 19646 | DA82: 159530 | DB82: -139884 | DC82: 88470 | DD82: 55903 | DG82: -78 | DH82: 2599 | DI82: 7010 | DJ82: 5094 | DK82: 0 | DL82: 0 | DM82: 1916 | DN82: 0 | DO82: 0 | DP82: 0 | DQ82: 1916 | DR82: -8878 | DS82: 7028 | DU82: 2157 | DV82: -12819 | DW82: 1039 | DX82: 88470 | DY82: 76160 | DZ82: 5946 | EA82: 6364 | EB82: 21.75 | ED82: 267.5808824 | EE82: 72499 | EF82: 76040 | EG82: 74091 | EJ82: 1500 | EK82: -9125 | EL82: 0 | EM82: 644 | EN82: -4777 | EO82: 0 | EP82: 685 | EQ82: -6411 | ER82: 0 | ES82: 422 | ET82: 20000 | EU82: 10000 | EV82: 13000 | EW82: 10000 | EX82: 13000 | EY82: 500 | EZ82: 95995 | FA82: 58003 | FB82: 37992 | FC82: 18949 | FD82: 106504 | FE82: 58835 | FF82: 47669 | FG82: 18949 | FH82: 107184 | FI82: 61107 | FJ82: 46077 | FK82: 17376 | FL82: 6438.561439 | FM82: 7206.307046 | FN82: 7868.13133 | FO82: 3501.609195 | FP82: 171.3367517 | FV82: 9559 | FW82: -9559
A83: 320 | B83: Kemijärvi | C83: 7370 | E83: 0.2723772859 | F83: 63.9231547 | G83: -4858.480326 | K83: 46.06501951 | L83: 300.8141113 | M83: 11.2652439 | N83: 9746.540027 | O83: 27916 | P83: 9482 | Q83: 64611 | R83: -55129 | S83: 29446 | T83: 25357 | W83: 189 | X83: 1318 | Y83: 1181 | Z83: 2419 | AA83: 0 | AB83: 0 | AC83: -1238 | AD83: 0 | AE83: 0 | AF83: 11 | AG83: -1227 | AH83: -4105 | AI83: 646 | AK83: 855 | AL83: -4961 | AM83: 1472 | AN83: 29446 | AO83: 23822 | AP83: 1298 | AQ83: 4326 | AR83: 21.5 | AT83: 190 | AU83: 7274 | AW83: 0.4679135682 | AX83: 66.66242808 | AY83: -5058.977179 | BC83: 45.36246507 | BD83: 135.5512785 | BE83: 4.891870217 | BF83: 10113.96756 | BG83: 26933 | BH83: 9219 | BI83: 64578 | BJ83: -55359 | BK83: 28496 | BL83: 25199 | BO83: 167 | BP83: 3589 | BQ83: 2092 | BR83: 2449 | BS83: 0 | BT83: 0 | BU83: -357 | BV83: 0 | BW83: 0 | BX83: 14 | BY83: -343 | BZ83: -4447 | CA83: 1882 | CC83: -1086 | CD83: -5284 | CE83: -700 | CF83: 28496 | CG83: 22775 | CH83: 1184 | CI83: 4537 | CJ83: 21.5 | CL83: 93 | CM83: 7191 | CO83: 0.8355420725 | CP83: 69.43519663 | CQ83: -5325.406758 | CU83: 43.69623499 | CV83: 695.3135864 | CW83: 22.94673842 | CX83: 11059.93603 | CY83: 25258 | CZ83: 9512 | DA83: 64839 | DB83: -55327 | DC83: 29589 | DD83: 29684 | DG83: 179 | DH83: 879 | DI83: 5004 | DJ83: 2584 | DK83: 0 | DL83: 0 | DM83: 2420 | DN83: 0 | DO83: -1 | DP83: 0 | DQ83: 2419 | DR83: -2028 | DS83: 4902 | DU83: -310 | DV83: -6034 | DW83: -1764 | DX83: 29589 | DY83: 24214 | DZ83: 1377 | EA83: 3998 | EB83: 21.5 | ED83: 134.6102941 | EE83: 26413 | EF83: 27201 | EG83: 29414 | EJ83: 1000 | EK83: -1576 | EL83: 100 | EM83: 2302 | EN83: -2849 | EO83: 0 | EP83: 267 | EQ83: -7002 | ER83: 0 | ES83: 336 | ET83: 7200 | EU83: -4000 | EV83: 10000 | EW83: -3000 | EX83: 11700 | EY83: 0 | EZ83: 32698 | FA83: 24664 | FB83: 8034 | FC83: 11529 | FD83: 34414 | FE83: 28880 | FF83: 5534 | FG83: 11706 | FH83: 40080 | FI83: 33819 | FJ83: 6261 | FK83: 11656 | FL83: 8987.516961 | FM83: 9228.347539 | FN83: 10448.47726 | FO83: 1126.232558 | FP83: 156.6169598 | FV83: 4403 | FW83: -4403
A84: 241 | B84: Keminmaa | C84: 8147 | E84: 0.1256560667 | F84: 42.99020271 | G84: -1439.057322 | K84: 52.80348394 | L84: 759.9116239 | M84: 39.88623928 | N84: 6953.970787 | O84: 19866 | P84: 4484 | Q84: 51725 | R84: -47241 | S84: 34855 | T84: 12410 | W84: -22 | X84: 173 | Y84: 175 | Z84: 1909 | AA84: 1569 | AB84: 867 | AC84: -1032 | AD84: 0 | AE84: 0 | AF84: 0 | AG84: -1032 | AH84: 2408 | AI84: 90 | AK84: -2595 | AL84: -3007 | AM84: 5527 | AN84: 34855 | AO84: 30057 | AP84: 1033 | AQ84: 3765 | AR84: 21.25 | AT84: 245 | AU84: 8079 | AW84: 0.3341714084 | AX84: 44.37809996 | AY84: -1484.218344 | BC84: 50.71349477 | BD84: 1036.266865 | BE84: 53.72138814 | BF84: 7040.722862 | BG84: 16453 | BH84: 3444 | BI84: 51866 | BJ84: -48422 | BK84: 35862 | BL84: 13114 | BO84: 76 | BP84: 109 | BQ84: 739 | BR84: 1688 | BS84: 3 | BT84: 0 | BU84: -946 | BV84: 0 | BW84: 0 | BX84: 0 | BY84: -946 | BZ84: 1461 | CA84: 739 | CC84: 1432 | CD84: -3461 | CE84: -543 | CF84: 35862 | CG84: 30785 | CH84: 1094 | CI84: 3983 | CJ84: 21.25 | CL84: 186 | CM84: 7984 | CO84: 1.453031731 | CP84: 35.64119078 | CQ84: -1365.981964 | CU84: 56.94267786 | CV84: 637.3997996 | CW84: 31.81060762 | CX84: 7313.627255 | CY84: 16390 | CZ84: 3480 | DA84: 51493 | DB84: -48013 | DC84: 36220 | DD84: 16196 | DG84: 24 | DH84: 26 | DI84: 4453 | DJ84: 1906 | DK84: 41 | DL84: 0 | DM84: 2588 | DN84: 0 | DO84: 0 | DP84: 0 | DQ84: 2588 | DR84: 4049 | DS84: 4463 | DU84: -1068 | DV84: -3011 | DW84: 834 | DX84: 36220 | DY84: 31240 | DZ84: 1399 | EA84: 3581 | EB84: 21.25 | ED84: 204.1176471 | EE84: 27358 | EF84: 31337 | EG84: 31138 | EK84: -1625 | EL84: 68 | EM84: 6994 | EN84: -1327 | EO84: 39 | EP84: 6 | EQ84: -3695 | ER84: 17 | ES84: 49 | ET84: 0 | EU84: 0 | EV84: 5000 | EW84: 700 | EX84: 0 | EY84: -700 | EZ84: 16274 | FA84: 12972 | FB84: 3302 | FC84: 5818 | FD84: 18514 | FE84: 15270 | FF84: 3244 | FG84: 5583 | FH84: 14803 | FI84: 11791 | FJ84: 3012 | FK84: 5373 | FL84: 3192.831717 | FM84: 3424.433717 | FN84: 3003.507014 | FO84: 1470.117647 | FP84: 184.1329718 | FV84: 2686 | FW84: -2686
A85: 322 | B85: Kemiönsaari | C85: 6724 | E85: 0.3196004994 | F85: 54.71965096 | G85: -3517.251636 | K85: 55.64868466 | L85: 293.5752528 | M85: 13.31885317 | N85: 8045.359905 | O85: 24097 | P85: 7422 | Q85: 50175 | R85: -42753 | S85: 22262 | T85: 21205 | W85: -207 | X85: 54 | Y85: 561 | Z85: 3610 | AA85: 0 | AB85: 0 | AC85: -3049 | AD85: 157 | AE85: 0 | AF85: 0 | AG85: -2892 | AH85: 14445 | AI85: 180 | AK85: 242 | AL85: -2196 | AM85: -733 | AN85: 22262 | AO85: 17833 | AP85: 1070 | AQ85: 3359 | AR85: 19.75 | AT85: 218 | AU85: 6640 | AW85: 0.4163996385 | AX85: 55.58815529 | AY85: -3574.096386 | BC85: 53.16875578 | BD85: 408.5843373 | BE85: 18.42419112 | BF85: 8094.427711 | BG85: 23976 | BH85: 7208 | BI85: 50235 | BJ85: -43024 | BK85: 22657 | BL85: 21601 | BO85: -172 | BP85: 32 | BQ85: 1094 | BR85: 3673 | BS85: 0 | BT85: 0 | BU85: -2579 | BV85: 143 | BW85: 0 | BX85: 0 | BY85: -2436 | BZ85: 12009 | CA85: 1057 | CC85: 55 | CD85: -2076 | CE85: -129 | CF85: 22657 | CG85: 18239 | CH85: 1064 | CI85: 3354 | CJ85: 19.75 | CL85: 146 | CM85: 6609 | CO85: 3.313282002 | CP85: 41.59870989 | CQ85: -2715.690725 | CU85: 59.79699609 | CV85: 296.5652898 | CW85: 13.90070922 | CX85: 7787.108488 | CY85: 23071 | CZ85: 6927 | DA85: 47727 | DB85: -40800 | DC85: 23300 | DD85: 24342 | DG85: -152 | DH85: 39 | DI85: 6729 | DJ85: 5335 | DK85: 0 | DL85: 0 | DM85: 1394 | DN85: 196 | DO85: 0 | DP85: 0 | DQ85: 1590 | DR85: 13742 | DS85: 6642 | DU85: -627 | DV85: -1922 | DW85: 5628 | DX85: 23300 | DY85: 18994 | DZ85: 1237 | EA85: 3069 | EB85: 19.75 | ED85: 34.88235294 | EE85: 20270 | EF85: 20394 | EG85: 18385 | EK85: -1517 | EL85: 147 | EM85: 457 | EN85: -1259 | EO85: 23 | EP85: 50 | EQ85: -1654 | ER85: 430 | ES85: 210 | ET85: 0 | EU85: -2000 | EV85: 0 | EW85: 3500 | EX85: 0 | EY85: -3500 | EZ85: 20001 | FA85: 17925 | FB85: 2076 | FC85: 1 | FD85: 21425 | FE85: 16003 | FF85: 5422 | FG85: 1 | FH85: 16003 | FI85: 14378 | FJ85: 1625 | FK85: 1 | FL85: 4642.772159 | FM85: 4831.475904 | FN85: 3887.728855 | FO85: 961.721519 | FP85: 145.5169495 | FV85: 3797 | FW85: -3797
A86: 244 | B86: Kempele | C86: 17923 | E86: 1.031412875 | F86: 64.9528121 | G86: -3145.176589 | K86: 47.47226206 | L86: 521.7318529 | M86: 27.15307998 | N86: 7013.279027 | O86: 45688 | P86: 14482 | Q86: 99835 | R86: -85353 | S86: 68664 | T86: 24038 | W86: -703 | X86: -28 | Y86: 6618 | Z86: 5144 | AA86: 0 | AB86: 0 | AC86: 1474 | AD86: -2338 | AE86: 3000 | AF86: 0 | AG86: 2136 | AH86: 13033 | AI86: 2283 | AK86: 446 | AL86: -6395 | AM86: -11561 | AN86: 68664 | AO86: 61290 | AP86: 3686 | AQ86: 3688 | AR86: 20.5 | AT86: 86 | AU86: 18355 | AW86: 0.2486965995 | AX86: 71.96893924 | AY86: -3845.164805 | BC86: 42.82055721 | BD86: 271.2612367 | BE86: 13.82908214 | BF86: 7159.575048 | BG86: 48110 | BH86: 14103 | BI86: 107818 | BJ86: -93476 | BK86: 71267 | BL86: 24608 | BO86: -695 | BP86: -3 | BQ86: 1701 | BR86: 5241 | BS86: 0 | BT86: 0 | BU86: -3540 | BV86: 729 | BW86: 0 | BX86: 0 | BY86: -2811 | BZ86: 10222 | CA86: -2406 | CC86: 128 | CD86: -6245 | CE86: -14208 | CF86: 71267 | CG86: 63456 | CH86: 3972 | CI86: 3839 | CJ86: 20.5 | CL86: 185 | CM86: 18796 | CO86: 1.020219149 | CP86: 65.54734499 | CQ86: -3751.117259 | CU86: 42.97503433 | CV86: 277.6654607 | CW86: 14.70697003 | CX86: 6891.147053 | CY86: 48837 | CZ86: 13133 | DA86: 113256 | DB86: -100123 | DC86: 74742 | DD86: 33123 | DG86: -624 | DH86: 32 | DI86: 7150 | DJ86: 6724 | DK86: 0 | DL86: 0 | DM86: 426 | DN86: 728 | DO86: 0 | DP86: 0 | DQ86: 1154 | DR86: 11376 | DS86: 4455 | DU86: 153 | DV86: -6995 | DW86: -71 | DX86: 74742 | DY86: 67226 | DZ86: 3917 | EA86: 3599 | EB86: 20.5 | ED86: 263.5514706 | EE86: 40815 | EF86: 44474 | EG86: 45304 | EK86: -18916 | EL86: 175 | EM86: 4897 | EN86: -16861 | EO86: 492 | EP86: 4567 | EQ86: -8706 | ER86: 497 | ES86: 3683 | ET86: 18000 | EU86: 0 | EV86: 15000 | EW86: 0 | EX86: 6500 | EY86: 0 | EZ86: 56563 | FA86: 50318 | FB86: 6245 | FC86: 0 | FD86: 65317 | FE86: 58322 | FF86: 6995 | FG86: 0 | FH86: 64822 | FI86: 57485 | FJ86: 7337 | FK86: 0 | FL86: 3966.523461 | FM86: 4385.344593 | FN86: 4413.226218 | FO86: 3279.317073 | FP86: 174.4688802 | FV86: 2648 | FW86: -2648
A87: 245 | B87: Kerava | C87: 36254 | E87: 1.555923961 | F87: 36.56053207 | G87: -1753.434104 | K87: 78.14650213 | L87: 154.9622111 | M87: 8.903057459 | N87: 6353.009323 | O87: 81011 | P87: 35059 | Q87: 196370 | R87: -161311 | S87: 152531 | T87: 21827 | W87: -25 | X87: 895 | Y87: 13917 | Z87: 13995 | AA87: 0 | AB87: 0 | AC87: -78 | AD87: 0 | AE87: 0 | AF87: 3 | AG87: -75 | AH87: 99893 | AI87: 10288 | AK87: -1448 | AL87: -8887 | AM87: -10921 | AN87: 152531 | AO87: 132745 | AP87: 9562 | AQ87: 10224 | AR87: 19.25 | AT87: 75 | AU87: 36756 | AW87: 1.108138664 | AX87: 39.61091064 | AY87: -2048.427468 | BC87: 76.12733255 | BD87: 111.6280335 | BE87: 5.846577578 | BF87: 6968.903036 | BG87: 85846 | BH87: 37419 | BI87: 209851 | BJ87: -172241 | BK87: 157421 | BL87: 23259 | BO87: -64 | BP87: 848 | BQ87: 9223 | BR87: 21953 | BS87: 14166 | BT87: 0 | BU87: 1436 | BV87: 0 | BW87: 0 | BX87: 0 | BY87: 1436 | BZ87: 101329 | CA87: 19031 | CC87: 337 | CD87: -7887 | CE87: -13365 | CF87: 157421 | CG87: 138903 | CH87: 7956 | CI87: 10562 | CJ87: 19.25 | CL87: 110 | CM87: 37105 | CO87: 1.899044869 | CP87: 44.11749782 | CQ87: -2525.023582 | CU87: 72.79919797 | CV87: 124.4576203 | CW87: 6.2763957 | CX87: 7237.757715 | CY87: 89030 | CZ87: 33534 | DA87: 220490 | DB87: -186956 | DC87: 162985 | DD87: 40154 | DG87: -168 | DH87: 842 | DI87: 16857 | DJ87: 16399 | DK87: 2733 | DL87: 0 | DM87: 3191 | DN87: 0 | DO87: 0 | DP87: 0 | DQ87: 3191 | DR87: 104519 | DS87: 12664 | DU87: 969 | DV87: -8762 | DW87: -18449 | DX87: 162985 | DY87: 145530 | DZ87: 7538 | EA87: 9917 | EB87: 19.25 | ED87: 242.3970588 | EE87: 85800 | EF87: 94665 | EG87: 101606 | EK87: -24914 | EL87: 29 | EM87: 3676 | EN87: -38192 | EO87: 215 | EP87: 5581 | EQ87: -39072 | ER87: 97 | ES87: 7862 | ET87: 15000 | EU87: 0 | EV87: 15000 | EW87: 0 | EX87: 20000 | EY87: 5000 | EZ87: 46655 | FA87: 29143 | FB87: 17512 | FC87: 5918 | FD87: 53768 | FE87: 36006 | FF87: 17762 | FG87: 5925 | FH87: 70006 | FI87: 45244 | FJ87: 24762 | FK87: 5938 | FL87: 4959.866497 | FM87: 5208.020459 | FN87: 5548.65921 | FO87: 7560 | FP87: 203.7461259 | FV87: 16684 | FW87: -16684
A88: 249 | B88: Keuruu | C88: 9762 | E88: 1.809728183 | F88: 82.03772607 | G88: -6413.644745 | K88: 39.92414036 | L88: 374.1036673 | M88: 15.17111867 | N88: 9000.51219 | O88: 36628 | P88: 23334 | Q88: 80122 | R88: -56788 | S88: 34273 | T88: 27327 | W88: -28 | X88: 244 | Y88: 5028 | Z88: 4903 | AA88: 0 | AB88: 0 | AC88: 125 | AD88: 0 | AE88: 0 | AF88: 0 | AG88: 125 | AH88: 9078 | AI88: 4458 | AK88: -478 | AL88: -2764 | AM88: 666 | AN88: 34273 | AO88: 29644 | AP88: 2473 | AQ88: 2156 | AR88: 21.5 | AT88: 42 | AU88: 9605 | AW88: 0.2406516338 | AX88: 86.23576893 | AY88: -6960.541385 | BC88: 37.62653644 | BD88: 102.6548673 | BE88: 3.983948636 | BF88: 9404.997397 | BG88: 36677 | BH88: 21776 | BI88: 81405 | BJ88: -59628 | BK88: 33713 | BL88: 27516 | BO88: -28 | BP88: 308 | BQ88: 1881 | BR88: 5031 | BS88: 0 | BT88: 0 | BU88: -3150 | BV88: 0 | BW88: 0 | BX88: 0 | BY88: -3150 | BZ88: 5931 | CA88: 2067 | CC88: -326 | CD88: -2415 | CE88: -4236 | CF88: 33713 | CG88: 28636 | CH88: 2666 | CI88: 2411 | CJ88: 21.5 | CL88: 131 | CM88: 9486 | CO88: 2.984723369 | CP88: 81.5233708 | CQ88: -6912.080961 | CU88: 38.99255006 | CV88: 199.1355682 | CW88: 7.776994484 | CX88: 9346.088973 | CY88: 36171 | CZ88: 20789 | DA88: 80197 | DB88: -59408 | DC88: 35431 | DD88: 31047 | DG88: 8 | DH88: 154 | DI88: 7232 | DJ88: 4970 | DK88: 0 | DL88: 0 | DM88: 2262 | DN88: 0 | DO88: 0 | DP88: 0 | DQ88: 2262 | DR88: 8194 | DS88: 7125 | DU88: 52 | DV88: -2425 | DW88: 1347 | DX88: 35431 | DY88: 30187 | DZ88: 3056 | EA88: 2188 | EB88: 21.5 | ED88: 99.35294118 | EE88: 33260 | EF88: 33709 | EG88: 33764 | EK88: -4872 | EL88: 36 | EM88: 1044 | EN88: -6471 | EO88: 0 | EP88: 168 | EQ88: -6021 | ER88: 0 | ES88: 243 | ET88: 500 | EU88: 1000 | EV88: 1800 | EW88: 4500 | EX88: 5000 | EY88: -3500 | EZ88: 54798 | FA88: 15928 | FB88: 38870 | FC88: 0 | FD88: 58683 | FE88: 15133 | FF88: 43550 | FG88: 0 | FH88: 57758 | FI88: 17240 | FJ88: 40518 | FK88: 0 | FL88: 10472.54661 | FM88: 11468.6101 | FN88: 11664.66371 | FO88: 1404.046512 | FP88: 148.0124933 | FV88: 2835 | FW88: -2835
A89: 250 | B89: Kihniö | C89: 1910 | E89: 1.029224905 | F89: 69.75478765 | G89: -3756.544503 | K89: 38.82381501 | L89: 1165.445026 | M89: 54.7463109 | N89: 7770.157068 | O89: 2959 | P89: 1678 | Q89: 13472 | R89: -11794 | S89: 5778 | T89: 6695 | W89: -128 | X89: 130 | Y89: 681 | Z89: 611 | AA89: 0 | AB89: 0 | AC89: 70 | AD89: 91 | AE89: 0 | AF89: 0 | AG89: 161 | AH89: -1006 | AI89: 343 | AK89: 665 | AL89: -658 | AM89: 211 | AN89: 5778 | AO89: 4554 | AP89: 664 | AQ89: 560 | AR89: 21.5 | AT89: 92 | AU89: 1865 | AW89: 0.3640567525 | AX89: 66.31322539 | AY89: -4110.455764 | BC89: 39.243514 | BD89: 552.2788204 | BE89: 24.87593463 | BF89: 8103.485255 | BG89: 3010 | BH89: 1352 | BI89: 13506 | BJ89: -12154 | BK89: 5717 | BL89: 6889 | BO89: -118 | BP89: -21 | BQ89: 313 | BR89: 599 | BS89: 0 | BT89: 0 | BU89: -286 | BV89: 85 | BW89: 0 | BX89: 0 | BY89: -201 | BZ89: -1207 | CA89: 315 | CC89: -90 | CD89: -659 | CE89: -479 | CF89: 5717 | CG89: 4493 | CH89: 682 | CI89: 542 | CJ89: 21.5 | CL89: 140 | CM89: 1822 | CO89: 1.774966711 | CP89: 61.10660722 | CQ89: -3705.817783 | CU89: 48.94239797 | CV89: 993.9626784 | CW89: 34.80491786 | CX89: 10423.71021 | CY89: 2829 | CZ89: 1299 | DA89: 13518 | DB89: -12219 | DC89: 5860 | DD89: 7643 | DG89: -107 | DH89: 47 | DI89: 1224 | DJ89: 588 | DK89: 2115 | DL89: 0 | DM89: 2751 | DN89: 281 | DO89: 0 | DP89: 0 | DQ89: 3032 | DR89: 1825 | DS89: 1193 | DU89: 78 | DV89: -642 | DW89: 3908 | DX89: 5860 | DY89: 4586 | DZ89: 780 | EA89: 494 | EB89: 21.5 | ED89: 147.7058824 | EE89: 9479 | EF89: 9498 | EG89: 9689 | EJ89: 260 | EK89: -565 | EL89: 32 | EM89: 401 | EN89: -796 | EO89: 1 | EP89: 1 | EQ89: -1497 | ER89: 13 | ES89: 4199 | ET89: 0 | EU89: 0 | EV89: 0 | EW89: 0 | EX89: 500 | EY89: 0 | EZ89: 8807 | FA89: 8148 | FB89: 659 | FC89: 120 | FD89: 8147 | FE89: 7506 | FF89: 641 | FG89: 132 | FH89: 8006 | FI89: 7365 | FJ89: 641 | FK89: 3122 | FL89: 5531.937173 | FM89: 5514.745308 | FN89: 5796.926454 | FO89: 213.3023256 | FP89: 117.0704312 | FV89: 226 | FW89: -226
A90: 256 | B90: Kinnula | C90: 1615 | F90: 57.4241857 | G90: -1757.275542 | K90: 62.94077867 | L90: 1223.529412 | M90: 48.51934073 | N90: 9204.334365 | O90: 3710 | P90: 2172 | Q90: 13644 | R90: -11472 | S90: 4603 | T90: 6580 | W90: 68 | X90: 6 | Y90: -215 | Z90: 855 | AA90: 0 | AB90: 0 | AC90: -1070 | AD90: 13 | AE90: 0 | AF90: 0 | AG90: -1057 | AH90: 4561 | AI90: -225 | AK90: -3 | AL90: 0 | AM90: -1359 | AN90: 4603 | AO90: 3669 | AP90: 569 | AQ90: 365 | AR90: 20.5 | AT90: 281 | AU90: 1620 | AW90: -0.2856299793 | AX90: 54.55155947 | AY90: -2334.567901 | BC90: 61.51741555 | BD90: 682.0987654 | BE90: 27.85008977 | BF90: 8939.506173 | BG90: 3810 | BH90: 2432 | BI90: 13722 | BJ90: -11281 | BK90: 4437 | BL90: 6533 | BO90: 54 | BP90: 13 | BQ90: -244 | BR90: 927 | BS90: 0 | BT90: 0 | BU90: -1171 | BV90: 13 | BW90: 0 | BX90: 0 | BY90: -1158 | BZ90: 3402 | CA90: -225 | CC90: 430 | CD90: 0 | CE90: -819 | CF90: 4437 | CG90: 3403 | CH90: 615 | CI90: 419 | CJ90: 21 | CL90: 266 | CM90: 1597 | CP90: 52.32598811 | CQ90: -2635.566688 | CU90: 60.33486992 | CV90: 654.9780839 | CW90: 25.08310886 | CX90: 9530.995617 | CY90: 3779 | CZ90: 1981 | DA90: 13606 | DB90: -11625 | DC90: 4961 | DD90: 7353 | DG90: 65 | DH90: -237 | DI90: 517 | DJ90: 894 | DK90: 0 | DL90: 0 | DM90: -377 | DN90: 13 | DO90: 0 | DP90: 0 | DQ90: -364 | DR90: 3038 | DS90: 760 | DU90: 200 | DV90: 0 | DW90: -581 | DX90: 4961 | DY90: 3872 | DZ90: 707 | EA90: 382 | EB90: 21 | ED90: 270.6029412 | EE90: 8159 | EF90: 8116 | EG90: 8299 | EK90: -1165 | EL90: 15 | EM90: 16 | EN90: -761 | EO90: 12 | EP90: 155 | EQ90: -1358 | ER90: 0 | ES90: 17 | ET90: 0 | EU90: 0 | EV90: 0 | EW90: 100 | EX90: 2700 | EY90: -2700 | EZ90: 5900 | FA90: 0 | FB90: 5900 | FC90: 100 | FD90: 6000 | FE90: 0 | FF90: 6000 | FG90: 100 | FH90: 6000 | FI90: 2700 | FJ90: 3300 | FK90: 0 | FL90: 5695.975232 | FM90: 6412.345679 | FN90: 6947.401378 | FO90: 184.3809524 | FP90: 115.4545726 | FV90: 115 | FW90: -115
A91: 257 | B91: Kirkkonummi | C91: 39262 | E91: 0.9051768324 | F91: 69.90326372 | G91: -3590.723855 | K91: 32.42196311 | L91: 510.4936071 | M91: 26.57566169 | N91: 7011.308644 | O91: 96878 | P91: 32529 | Q91: 231457 | R91: -198928 | S91: 189347 | T91: 21466 | W91: -947 | X91: 428 | Y91: 11366 | Z91: 15554 | AA91: 0 | AB91: 189 | AC91: -4377 | AD91: 18 | AE91: 0 | AF91: 60 | AG91: -4299 | AH91: 22655 | AI91: 7614 | AK91: 247 | AL91: -12661 | AM91: -18769 | AN91: 189347 | AO91: 171177 | AP91: 6599 | AQ91: 11571 | AR91: 19.5 | AT91: 114 | AU91: 39586 | AW91: -0.06220572673 | AX91: 89.53976424 | AY91: -4823.624514 | BC91: 21.95961586 | BD91: 399.2573132 | BE91: 18.47413255 | BF91: 7888.26858 | BG91: 100958 | BH91: 34217 | BI91: 248385 | BJ91: -214168 | BK91: 189933 | BL91: 22202 | BO91: -1095 | BP91: 483 | BQ91: -2645 | BR91: 17602 | BS91: 0 | BT91: 0 | BU91: -20247 | BV91: 16 | BW91: 0 | BX91: -22 | BY91: -20253 | BZ91: 2402 | CA91: -6319 | CC91: -4749 | CD91: -15556 | CE91: -49284 | CF91: 189933 | CG91: 171819 | CH91: 6289 | CI91: 11825 | CJ91: 19.75 | CL91: 251 | CM91: 40082 | CO91: 1.249160134 | CP91: 98.13878064 | CQ91: -5483.508807 | CU91: 20.55355689 | CV91: 740.7065516 | CW91: 33.1329171 | CX91: 8159.797415 | CY91: 100874 | CZ91: 29664 | DA91: 247551 | DB91: -217887 | DC91: 202035 | DD91: 42100 | DG91: -1091 | DH91: 453 | DI91: 25610 | DJ91: 18303 | DK91: 54 | DL91: 0 | DM91: 7361 | DN91: 15 | DO91: 0 | DP91: 0 | DQ91: 7376 | DR91: 9778 | DS91: 23284 | DU91: -5394 | DV91: -20270 | DW91: -29426 | DX91: 202035 | DY91: 185022 | DZ91: 6124 | EA91: 10889 | EB91: 19.75 | ED91: 163.8235294 | EE91: 102904 | EF91: 111717 | EG91: 111465 | EK91: -30147 | EL91: 0 | EM91: 3764 | EN91: -47194 | EO91: 0 | EP91: 4229 | EQ91: -58072 | ER91: 2560 | ES91: 2802 | ET91: 35000 | EU91: -8498 | EV91: 55000 | EW91: 5000 | EX91: 69999 | EY91: -6000 | EZ91: 123405 | FA91: 70849 | FB91: 52556 | FC91: 890 | FD91: 167849 | FE91: 105579 | FF91: 62270 | FG91: 890 | FH91: 211576 | FI91: 151047 | FJ91: 60529 | FK91: 699 | FL91: 4453.186287 | FM91: 5910.726014 | FN91: 7173.64403 | FO91: 9368.202532 | FP91: 233.7259251 | FV91: 7251 | FW91: -7251
A92: 260 | B92: Kitee | C92: 10358 | E92: 1.698626045 | F92: 13.04699123 | G92: -372.079552 | K92: 79.78898724 | L92: 430.585055 | M92: 20.57169575 | N92: 7639.795327 | O92: 15373 | P92: 8668 | Q92: 72691 | R92: -64023 | S92: 32159 | T92: 37145 | W92: -41 | X92: 395 | Y92: 5635 | Z92: 2909 | AA92: 0 | AB92: 0 | AC92: 2726 | AD92: 71 | AE92: 0 | AF92: 0 | AG92: 2797 | AH92: 19655 | AI92: 6352 | AK92: 302 | AL92: -3296 | AM92: 3587 | AN92: 32159 | AO92: 27147 | AP92: 2167 | AQ92: 2845 | AR92: 21.5 | AT92: 34 | AU92: 10136 | AW92: 6.223073975 | AX92: 10.93033065 | AY92: -155.1894238 | BC92: 81.43980662 | BD92: 470.7971586 | BE92: 22.21573154 | BF92: 7735.102605 | BG92: 16052 | BH92: 8837 | BI92: 74604 | BJ92: -65767 | BK92: 32236 | BL92: 37168 | BO92: -24 | BP92: 410 | BQ92: 4023 | BR92: 2871 | BS92: 0 | BT92: 0 | BU92: 1152 | BV92: 39 | BW92: 0 | BX92: 0 | BY92: 1191 | BZ92: 20572 | CA92: 4282 | CC92: -348 | CD92: -1312 | CE92: 2516 | CF92: 32236 | CG92: 27059 | CH92: 2199 | CI92: 2978 | CJ92: 21 | CL92: 59 | CM92: 9933 | CO92: 8.92578125 | CP92: 11.37706536 | CQ92: 216.3495419 | CU92: 80.70678885 | CV92: 915.3327293 | CW92: 40.93575764 | CX92: 8161.481929 | CY92: 16383 | CZ92: 8298 | DA92: 76648 | DB92: -68350 | DC92: 32672 | DD92: 42127 | DG92: -15 | DH92: 394 | DI92: 6828 | DJ92: 3763 | DK92: 0 | DL92: 0 | DM92: 3065 | DN92: 28 | DO92: 0 | DP92: 0 | DQ92: 3093 | DR92: 23665 | DS92: 7019 | DU92: -305 | DV92: -741 | DW92: 3864 | DX92: 32672 | DY92: 27559 | DZ92: 2464 | EA92: 2649 | EB92: 21 | ED92: 140.6544118 | EE92: 50475 | EF92: 51620 | EG92: 52889 | EK92: -2867 | EL92: 38 | EM92: 64 | EN92: -2183 | EO92: 317 | EP92: 100 | EQ92: -3510 | ER92: 176 | ES92: 179 | ET92: 0 | EU92: 0 | EV92: 0 | EW92: 0 | EX92: 1540 | EY92: 0 | EZ92: 4805 | FA92: 3493 | FB92: 1312 | FC92: 575 | FD92: 3493 | FE92: 2657 | FF92: 836 | FG92: 837 | FH92: 4293 | FI92: 3362 | FJ92: 931 | FK92: 108 | FL92: 1947.866383 | FM92: 1928.176796 | FN92: 2109.735226 | FO92: 1312.333333 | FP92: 132.1185275 | FV92: 3565 | FW92: -3565
A93: 261 | B93: Kittilä | C93: 6436 | E93: 1.101673745 | F93: 42.38083898 | G93: -3417.184587 | K93: 57.06004782 | L93: 126.0099441 | M93: 4.812313045 | N93: 9557.489124 | O93: 26720 | P93: 9092 | Q93: 55790 | R93: -46698 | S93: 28580 | T93: 21114 | W93: -241 | X93: 1414 | Y93: 4169 | Z93: 2644 | AA93: 0 | AB93: 0 | AC93: 1525 | AD93: 169 | AE93: 0 | AF93: 0 | AG93: 1694 | AH93: 14464 | AI93: 2567 | AK93: 182 | AL93: -3762 | AM93: 2458 | AN93: 28580 | AO93: 19614 | AP93: 1926 | AQ93: 7040 | AR93: 20.25 | AT93: 16 | AU93: 6453 | AW93: 2.341940243 | AX93: 39.80931822 | AY93: -3058.577406 | BC93: 60.48514192 | BD93: 251.3559585 | BE93: 9.207166296 | BF93: 9964.51263 | BG93: 26997 | BH93: 7730 | BI93: 56383 | BJ93: -48653 | BK93: 30552 | BL93: 22867 | BO93: -176 | BP93: 1583 | BQ93: 6173 | BR93: 2799 | BS93: 0 | BT93: 0 | BU93: 3374 | BV93: 162 | BW93: 0 | BX93: 0 | BY93: 3536 | BZ93: 18681 | CA93: 5897 | CC93: -539 | CD93: -2888 | CE93: 1758 | CF93: 30552 | CG93: 20938 | CH93: 2580 | CI93: 7034 | CJ93: 20.25 | CL93: 8 | CM93: 6436 | CO93: 3.96339203 | CP93: 32.4384339 | CQ93: -2574.891237 | CU93: 65.93570774 | CV93: 300.4972032 | CW93: 10.9196238 | CX93: 10044.43754 | CY93: 26947 | CZ93: 8165 | DA93: 57982 | DB93: -49817 | DC93: 31340 | DD93: 25369 | DG93: -115 | DH93: 1661 | DI93: 8438 | DJ93: 4623 | DK93: 0 | DL93: 0 | DM93: 3815 | DN93: -1359 | DO93: 1550 | DP93: 0 | DQ93: 4006 | DR93: 22687 | DS93: 7817 | DU93: -513 | DV93: -2043 | DW93: 4391 | DX93: 31340 | DY93: 22001 | DZ93: 2733 | EA93: 6606 | EB93: 20.25 | ED93: 5 | EE93: 21380 | EF93: 21679 | EG93: 23197 | EK93: -1714 | EL93: 30 | EM93: 1575 | EN93: -4470 | EO93: 22 | EP93: 309 | EQ93: -4081 | ER93: 25 | ES93: 630 | ET93: 5 | EU93: -262 | EV93: 2 | EW93: 2126 | EX93: 2 | EY93: -1845 | EZ93: 17380 | FA93: 13618 | FB93: 3762 | FC93: 467 | FD93: 16620 | FE93: 10732 | FF93: 5888 | FG93: 301 | FH93: 12734 | FI93: 8691 | FJ93: 4043 | FK93: 601 | FL93: 6835.301429 | FM93: 7723.694406 | FN93: 8125.077688 | FO93: 1086.469136 | FP93: 168.8112392 | FV93: 2822 | FW93: -2822
A94: 263 | B94: Kiuruvesi | C94: 8153 | E94: 0.7189977799 | F94: 58.62777934 | G94: -3314.976082 | K94: 45.5304481 | L94: 799.4603214 | M94: 35.88340875 | N94: 8131.97596 | O94: 14940 | P94: 6663 | Q94: 58967 | R94: -52304 | S94: 23055 | T94: 30688 | W94: -199 | X94: 811 | Y94: 2051 | Z94: 3141 | AA94: 0 | AB94: 459 | AC94: -1549 | AD94: 19 | AE94: 0 | AF94: 0 | AG94: -1530 | AH94: -141 | AI94: 1610 | AK94: 426 | AL94: -2937 | AM94: -1913 | AN94: 23055 | AO94: 19533 | AP94: 1814 | AQ94: 1708 | AR94: 20.75 | AT94: 136 | AU94: 7998 | AW94: 0.1194411859 | AX94: 63.49001932 | AY94: -3660.290073 | BC94: 40.51887949 | BD94: 823.2058015 | BE94: 35.83970889 | BF94: 8383.72093 | BG94: 15208 | BH94: 6969 | BI94: 61202 | BJ94: -54154 | BK94: 23546 | BL94: 30052 | BO94: -185 | BP94: 1100 | BQ94: 359 | BR94: 3639 | BS94: 0 | BT94: 0 | BU94: -3280 | BV94: 19 | BW94: 0 | BX94: 0 | BY94: -3261 | BZ94: -3402 | CA94: 482 | CC94: -781 | CD94: -2267 | CE94: -2437 | CF94: 23546 | CG94: 19910 | CH94: 1917 | CI94: 1719 | CJ94: 20.75 | CL94: 214 | CM94: 7854 | CO94: 2.851781653 | CP94: 53.19666538 | CQ94: -3235.421441 | CU94: 45.15255571 | CV94: 1013.623631 | CW94: 42.96943393 | CX94: 8610.134963 | CY94: 14692 | CZ94: 7897 | DA94: 60868 | DB94: -52971 | DC94: 24546 | DD94: 35054 | DG94: -151 | DH94: 875 | DI94: 7353 | DJ94: 3945 | DK94: 0 | DL94: 0 | DM94: 3408 | DN94: 2 | DO94: 0 | DP94: 0 | DQ94: 3410 | DR94: 8 | DS94: 6608 | DU94: 105 | DV94: -2468 | DW94: 3772 | DX94: 24546 | DY94: 20758 | DZ94: 2225 | EA94: 1563 | EB94: 21.75 | ED94: 49.99264706 | EE94: 38538 | EF94: 39822 | EG94: 39819 | EJ94: 900 | EK94: -3964 | EL94: 419 | EM94: 22 | EN94: -3302 | EO94: 317 | EP94: 66 | EQ94: -3984 | ER94: 280 | ES94: 868 | ET94: 0 | EU94: 1800 | EV94: 5000 | EW94: 0 | EX94: 240 | EY94: 1000 | EZ94: 30242 | FA94: 12975 | FB94: 17267 | FC94: 919 | FD94: 32975 | FE94: 15508 | FF94: 17467 | FG94: 729 | FH94: 31747 | FI94: 13677 | FJ94: 18070 | FK94: 604 | FL94: 6908.867901 | FM94: 7203.550888 | FN94: 7096.384008 | FO94: 954.3908046 | FP94: 121.5165272 | FV94: 3038 | FW94: -3038
A95: 265 | B95: Kivijärvi | C95: 1103 | E95: 0.2157434402 | F95: 49.74772957 | G95: -2675.430644 | K95: 58.84529978 | L95: 1341.795104 | M95: 51.06825487 | N95: 9590.208522 | O95: 2065 | P95: 1596 | Q95: 9632 | R95: -8036 | S95: 3489 | T95: 4825 | W95: -35 | X95: -204 | Y95: 39 | Z95: 777 | AA95: 0 | AB95: 0 | AC95: -738 | AD95: 20 | AE95: 0 | AF95: 0 | AG95: -718 | AH95: 3123 | AI95: 39 | AK95: 248 | AL95: -308 | AM95: -313 | AN95: 3489 | AO95: 2441 | AP95: 609 | AQ95: 439 | AR95: 21.5 | AT95: 239 | AU95: 1096 | AW95: -2.982344952 | AX95: 45.94150847 | AY95: -2693.430657 | BC95: 43.67071525 | BD95: 843.9781022 | BE95: 28.10964949 | BF95: 10958.94161 | BG95: 2033 | BH95: 1537 | BI95: 9685 | BJ95: -8148 | BK95: 3571 | BL95: 4637 | BO95: -33 | BP95: -1707 | BQ95: -1680 | BR95: 620 | BS95: 0 | BT95: 0 | BU95: -2300 | BV95: 20 | BW95: 0 | BX95: 0 | BY95: -2280 | BZ95: 843 | CA95: 150 | CC95: -102 | CD95: -308 | CE95: 4 | CF95: 3571 | CG95: 2464 | CH95: 660 | CI95: 447 | CJ95: 21.5 | CL95: 294 | CM95: 1107 | CO95: 3.4575 | CP95: 55.56185616 | CQ95: -3246.612466 | CU95: 48.04469274 | CV95: 1540.198735 | CW95: 61.70798215 | CX95: 9110.207769 | CY95: 1916 | CZ95: 1559 | DA95: 9195 | DB95: -7636 | DC95: 3894 | DD95: 5128 | DG95: -35 | DH95: -3 | DI95: 1348 | DJ95: 699 | DK95: 0 | DL95: 0 | DM95: 649 | DN95: 20 | DO95: 0 | DP95: 0 | DQ95: 669 | DR95: 1513 | DS95: -402 | DU95: 21 | DV95: -365 | DW95: -604 | DX95: 3894 | DY95: 2680 | DZ95: 753 | EA95: 461 | EB95: 21.75 | ED95: 9 | EE95: 6422 | EF95: 6379 | EG95: 6256 | EK95: -396 | EL95: 44 | EM95: 0 | EN95: -274 | EO95: 101 | EP95: 27 | EQ95: -442 | ER95: 197 | ES95: 43 | ET95: 0 | EU95: 0 | EV95: 0 | EW95: 0 | EX95: 1708 | EY95: 0 | EZ95: 4250 | FA95: 3942 | FB95: 308 | FC95: 360 | FD95: 3942 | FE95: 3634 | FF95: 308 | FG95: 360 | FH95: 5285 | FI95: 4863 | FJ95: 422 | FK95: 402 | FL95: 7793.291024 | FM95: 8514.59854 | FN95: 10299.00632 | FO95: 123.2183908 | FP95: 111.3083928 | FV95: 97 | FW95: -97
A96: 271 | B96: Kokemäki | C96: 7226 | E96: 0.6382695507 | F96: 59.28616155 | G96: -3532.798229 | K96: 29.41190677 | L96: 136.5900913 | M96: 7.038292468 | N96: 7083.448658 | O96: 16499 | P96: 4763 | Q96: 46266 | R96: -41503 | S96: 25801 | T96: 17346 | W96: 33 | X96: 109 | Y96: 1786 | Z96: 1590 | AA96: 0 | AB96: 455 | AC96: -259 | AD96: 0 | AE96: 0 | AF96: 0 | AG96: -259 | AH96: 21 | AI96: 1327 | AK96: 232 | AL96: -2873 | AM96: -81 | AN96: 25801 | AO96: 22047 | AP96: 1229 | AQ96: 2525 | AR96: 21.75 | AT96: 140 | AU96: 7103 | AW96: 0.1607071113 | AX96: 60.00863878 | AY96: -3871.603548 | BC96: 27.70549109 | BD96: 3.660425172 | BE96: 0.1780688258 | BF96: 7503.02689 | BG96: 17184 | BH96: 4945 | BI96: 48291 | BJ96: -43346 | BK96: 25863 | BL96: 17810 | BO96: 34 | BP96: 66 | BQ96: 427 | BR96: 1658 | BS96: 93 | BT96: 0 | BU96: -1138 | BV96: 0 | BW96: 0 | BX96: 0 | BY96: -1138 | BZ96: -744 | CA96: 484 | CC96: 239 | CD96: -2364 | CE96: -1632 | CF96: 25863 | CG96: 22135 | CH96: 1247 | CI96: 2481 | CJ96: 21.75 | CL96: 208 | CM96: 7013 | CO96: 1.266622633 | CP96: 58.85791282 | CQ96: -3819.050335 | CU96: 31.86108291 | CV96: 343.6475118 | CW96: 15.16089002 | CX96: 8273.349494 | CY96: 17014 | CZ96: 4776 | DA96: 47159 | DB96: -42383 | DC96: 26590 | DD96: 21327 | DG96: 5 | DH96: 100 | DI96: 5639 | DJ96: 2300 | DK96: 0 | DL96: 0 | DM96: 3339 | DN96: 0 | DO96: 0 | DP96: 0 | DQ96: 3339 | DR96: 2595 | DS96: 5579 | DU96: -171 | DV96: -4428 | DW96: 864 | DX96: 26590 | DY96: 22895 | DZ96: 1302 | EA96: 2393 | EB96: 21.75 | ED96: 84.24264706 | EE96: 24547 | EF96: 25780 | EG96: 24880 | EJ96: 700 | EK96: -1578 | EL96: 162 | EM96: 8 | EN96: -2159 | EO96: 0 | EP96: 43 | EQ96: -4801 | ER96: 8 | ES96: 78 | ET96: 0 | EU96: 1800 | EV96: 2500 | EW96: 500 | EX96: 10458 | EY96: -5000 | EZ96: 22202 | FA96: 10339 | FB96: 11863 | FC96: 4954 | FD96: 22838 | FE96: 10225 | FF96: 12613 | FG96: 5069 | FH96: 23867 | FI96: 16077 | FJ96: 7790 | FK96: 3654 | FL96: 4741.489067 | FM96: 4837.392651 | FN96: 5097.39056 | FO96: 1052.643678 | FP96: 150.0989132 | FV96: 2577 | FW96: -2577
A97: 272 | B97: Kokkola | C97: 47657 | E97: 0.1661060347 | F97: 76.76693469 | G97: -4671.968441 | K97: 44.55333357 | L97: 176.5113205 | M97: 7.439449888 | N97: 8660.133873 | O97: 96984 | P97: 45568 | Q97: 311029 | R97: -265461 | S97: 188014 | T97: 87938 | W97: -1759 | X97: 2644 | Y97: 11376 | Z97: 15085 | AA97: 0 | AB97: 0 | AC97: -3709 | AD97: 322 | AE97: 2194 | AF97: 148 | AG97: -1045 | AH97: 13759 | AI97: 9283 | AK97: -986 | AL97: -77814 | AM97: -3961 | AN97: 188014 | AO97: 156967 | AP97: 15715 | AQ97: 15332 | AR97: 21.75 | AT97: 144 | AU97: 47681 | AW97: 0.4512604532 | AX97: 77.04671523 | AY97: -4900.987815 | BC97: 43.36584385 | BD97: 235.7123382 | BE97: 10.63714178 | BF97: 8088.169292 | BG97: 100013 | BH97: 44984 | BI97: 320050 | BJ97: -273234 | BK97: 195196 | BL97: 89006 | BO97: -2026 | BP97: 2873 | BQ97: 11815 | BR97: 15059 | BS97: 0 | BT97: 0 | BU97: -3244 | BV97: 452 | BW97: 137 | BX97: 162 | BY97: -2493 | BZ97: 11374 | CA97: 7817 | CC97: 5791 | CD97: -40982 | CE97: -9714 | CF97: 195196 | CG97: 162710 | CH97: 16757 | CI97: 15729 | CJ97: 21.75 | CL97: 111 | CM97: 47772 | CO97: 0.74231542 | CP97: 78.62331167 | CQ97: -4741.815289 | CU97: 42.72433852 | CV97: 912.3963828 | CW97: 40.58193547 | CX97: 8206.229591 | CY97: 99442 | CZ97: 43100 | DA97: 324628 | DB97: -281528 | DC97: 201924 | DD97: 109533 | DG97: -2247 | DH97: 2097 | DI97: 29779 | DJ97: 17459 | DK97: 0 | DL97: 0 | DM97: 12320 | DN97: -1677 | DO97: 2180 | DP97: -486 | DQ97: 12337 | DR97: 24055 | DS97: 28509 | DU97: 1499 | DV97: -40937 | DW97: 12872 | DX97: 201924 | DY97: 168285 | DZ97: 19140 | EA97: 14499 | EB97: 21.5 | ED97: 174.9044118 | EE97: 183505 | EF97: 187835 | EG97: 193630 | EK97: -23100 | EL97: 1541 | EM97: 8315 | EN97: -23678 | EO97: 332 | EP97: 5815 | EQ97: -18814 | ER97: 1128 | ES97: 2049 | ET97: 52900 | EU97: 1000 | EV97: 43300 | EW97: 0 | EX97: 43500 | EY97: 20860 | EZ97: 220573 | FA97: 180256 | FB97: 40317 | FC97: 2948 | FD97: 222890 | FE97: 184988 | FF97: 37902 | FG97: 3361 | FH97: 246315 | FI97: 187552 | FJ97: 58763 | FK97: 9255 | FL97: 8573.619825 | FM97: 8869.235125 | FN97: 9506.070502 | FO97: 7827.209302 | FP97: 163.8451248 | FV97: 25357 | FW97: -25357
B98: KOKO MAA (Manner-Suomi) | C98: 5488130 | E98: 1.121866706 | F98: 58.68132053 | G98: -2782.626505 | K98: 59.51387859 | L98: 888.605044 | M98: 41.79885351 | N98: 7759.563093 | O98: 13574638 | P98: 7812168 | Q98: 36914895 | R98: -29102727 | S98: 22321220 | T98: 8456755 | W98: 77497 | X98: 312458 | Y98: 2065203 | Z98: 2192453 | AA98: 45943 | AB98: 26114 | AC98: -107421 | AD98: -11544 | AE98: 49922 | AF98: 44732 | AG98: -24311 | AH98: 11261407 | AI98: 1569289 | AK98: -95006 | AL98: -1822844 | AM98: -1214884 | AN98: 22321220 | AO98: 18664568 | AP98: 1866127 | AQ98: 1790525 | AR98: 19.87 | AT98: - | AU98: 5495408 | AW98: 0.7093755419 | AX98: 62.06715478 | AY98: -3029.554312 | BC98: 57.82762771 | BD98: 920.9359887 | BE98: 41.94892614 | BF98: 8013.116588 | BG98: 13513374 | BH98: 7546090 | BI98: 37903026 | BJ98: -30356936 | BK98: 22912315 | BL98: 8640795 | BO98: 68795 | BP98: 482647 | BQ98: 1747616 | BR98: 2305725 | BS98: 403902 | BT98: 9885 | BU98: -164092 | BV98: -4535 | BW98: 8374 | BX98: 28188 | BY98: -132065 | BZ98: 11087957 | CA98: 1298911 | CC98: -66136 | CD98: -1779142 | CE98: -1434149 | CF98: 22912315 | CG98: 19142606 | CH98: 1902907 | CI98: 1866802 | CJ98: 19.9 | CL98: - | CM98: 5503664 | CO98: 1.988638614 | CP98: 59.95643965 | CQ98: -2940.769277 | CU98: 57.95873446 | CV98: 1172.770903 | CW98: 52.56590898 | CX98: 8143.326882 | CY98: 13613209 | CZ98: 7208017 | DA98: 38429313 | DB98: -31221279 | DC98: 23825588 | DD98: 11005673 | DG98: 58142 | DH98: 404863 | DI98: 4072987 | DJ98: 2397525 | DK98: 90574 | DL98: 9330 | DM98: 1756706 | DN98: -25237 | DO98: -96451 | DP98: -61014 | DQ98: 1574004 | DR98: 12581318 | DS98: 3702496 | DU98: -31312 | DV98: -1966295 | DW98: 381794 | DX98: 23825588 | DY98: 20124065 | DZ98: 1956930 | EA98: 1744593 | EB98: 19.98 | ED98: - | EE98: 18314272 | EF98: 19288076 | EG98: 19605831 | EI98: 10000 | EJ98: 60000 | EK98: -3649545 | EL98: 120782 | EM98: 744590 | EN98: -4048365 | EO98: 138051 | EP98: 1177254 | EQ98: -4312042 | ER98: 185133 | ES98: 806207 | ET98: 2263664 | EU98: 148751 | EV98: 2830766 | EW98: 632620 | EX98: 3338105 | EY98: -762131 | EZ98: 16729981 | FA98: 11682746 | FB98: 5047235 | FC98: 5765559 | FD98: 18420037 | FE98: 12599485 | FF98: 5820552 | FG98: 5548348 | FH98: 19033385 | FI98: 13927122 | FJ98: 5106263 | FK98: 5670611 | FL98: 6557.643678 | FM98: 7105.3243 | FN98: 7480.922891 | FO98: 1007210.46 | FP98: 183.0072585 | FV98: 1315633 | FW98: -1315633
A99: 273 | B99: Kolari | C99: 3834 | E99: 2.798183653 | F99: 29.16233322 | G99: -1603.286385 | K99: 67.68202325 | L99: 552.9473135 | M99: 22.65885798 | N99: 8907.146583 | O99: 14743 | P99: 4475 | Q99: 30894 | R99: -26419 | S99: 14856 | T99: 14322 | W99: -70 | X99: 12 | Y99: 2701 | Z99: 1552 | AA99: 0 | AB99: 0 | AC99: 1149 | AD99: 14 | AE99: 0 | AF99: 0 | AG99: 1163 | AH99: 13426 | AI99: 2633 | AK99: -27 | AL99: -919 | AM99: 1003 | AN99: 14856 | AO99: 10418 | AP99: 762 | AQ99: 3676 | AR99: 20 | AT99: 13 | AU99: 3846 | AW99: 2.868826341 | AX99: 26.34558464 | AY99: -957.6183047 | BC99: 70.10850202 | BD99: 1064.222569 | BE99: 43.86086727 | BF99: 8856.214249 | BG99: 15360 | BH99: 5012 | BI99: 32111 | BJ99: -27099 | BK99: 15113 | BL99: 14674 | BO99: -57 | BP99: 12 | BQ99: 2643 | BR99: 1551 | BS99: 0 | BT99: 0 | BU99: 1092 | BV99: 14 | BW99: 0 | BX99: 0 | BY99: 1106 | BZ99: 14533 | CA99: 2558 | CC99: 105 | CD99: -921 | CE99: 1910 | CF99: 15113 | CG99: 10485 | CH99: 847 | CI99: 3781 | CJ99: 20 | CL99: 12 | CM99: 3925 | CO99: 3.723287671 | CP99: 24.53920912 | CQ99: -487.8980892 | CU99: 71.74675386 | CV99: 1375.796178 | CW99: 55.46644154 | CX99: 9053.503185 | CY99: 15782 | CZ99: 4130 | DA99: 33179 | DB99: -29049 | DC99: 15114 | DD99: 16635 | DG99: -48 | DH99: 17 | DI99: 2669 | DJ99: 1605 | DK99: 0 | DL99: 0 | DM99: 1064 | DN99: 14 | DO99: 0 | DP99: 0 | DQ99: 1078 | DR99: 15612 | DS99: 2639 | DU99: -81 | DV99: -681 | DW99: 1684 | DX99: 15114 | DY99: 10750 | DZ99: 943 | EA99: 3421 | EB99: 20 | ED99: 144.6838235 | EE99: 11987 | EF99: 12584 | EG99: 13330 | EK99: -1899 | EL99: 70 | EM99: 199 | EN99: -962 | EO99: 4 | EP99: 310 | EQ99: -1075 | ER99: 50 | ES99: 70 | ET99: 0 | EU99: 0 | EV99: 0 | EW99: 0 | EX99: 0 | EY99: 0 | EZ99: 6111 | FA99: 5192 | FB99: 919 | FC99: 1066 | FD99: 5191 | FE99: 4510 | FF99: 681 | FG99: 573 | FH99: 4510 | FI99: 4025 | FJ99: 485 | FK99: 718 | FL99: 2578.247261 | FM99: 3728.549142 | FN99: 3665.477707 | FO99: 537.5 | FP99: 136.9426752 | FV99: 1391 | FW99: -1391
A100: 275 | B100: Konnevesi | C100: 2698 | E100: 0.08264862252 | F100: 118.6592074 | G100: -8502.22387 | K100: 30.36283672 | L100: 547.0719051 | M100: 21.97324415 | N100: 9087.472202 | O100: 8943 | P100: 3562 | Q100: 21272 | R100: -17710 | S100: 8917 | T100: 8792 | W100: -178 | X100: 150 | Y100: -29 | Z100: 1365 | AA100: 0 | AB100: 0 | AC100: -1394 | AD100: 0 | AE100: 0 | AF100: 0 | AG100: -1394 | AH100: 2601 | AI100: -29 | AK100: 171 | AL100: -1869 | AM100: -951 | AN100: 8917 | AO100: 7329 | AP100: 806 | AQ100: 782 | AR100: 22 | AT100: 256 | AU100: 2627 | AW100: -1.27485834 | AX100: 122.9943176 | AY100: -8940.616673 | BC100: 15.73358521 | BD100: 510.0875523 | BE100: 17.76930064 | BF100: 10477.73125 | BG100: 9178 | BH100: 3417 | BI100: 25048 | BJ100: -21631 | BK100: 8824 | BL100: 8525 | BO100: -190 | BP100: 155 | BQ100: -4317 | BR100: 1232 | BS100: 0 | BT100: 0 | BU100: -5549 | BV100: 0 | BW100: 0 | BX100: 0 | BY100: -5549 | BZ100: -2948 | CA100: -495 | CC100: 112 | CD100: -1952 | CE100: -610 | CF100: 8824 | CG100: 7138 | CH100: 874 | CI100: 812 | CJ100: 22 | CL100: 295 | CM100: 2593 | CO100: 1.029691211 | CP100: 120.1156868 | CQ100: -9559.969148 | CU100: 19.44195978 | CV100: 634.4003085 | CW100: 25.51417159 | CX100: 9075.588122 | CY100: 8858 | CZ100: 3970 | DA100: 20532 | DB100: -16562 | DC100: 8704 | DD100: 10492 | DG100: -172 | DH100: -52 | DI100: 2410 | DJ100: 1169 | DK100: 0 | DL100: 0 | DM100: 1241 | DN100: 0 | DO100: 0 | DP100: 0 | DQ100: 1241 | DR100: -1707 | DS100: -1214 | DU100: -680 | DV100: -2335 | DW100: -1367 | DX100: 8704 | DY100: 7034 | DZ100: 940 | EA100: 730 | EB100: 22 | ED100: 56.03676471 | EE100: 10500 | EF100: 10099 | EG100: 9800 | EJ100: 360 | EK100: -1117 | EL100: 172 | EM100: 23 | EN100: -258 | EO100: 26 | EP100: 117 | EQ100: -214 | ER100: 3 | ES100: 58 | ET100: 1864 | EU100: 66 | EV100: 1200 | EW100: 1023 | EX100: 3548 | EY100: 1861 | EZ100: 21604 | FA100: 19735 | FB100: 1869 | FC100: 837 | FD100: 21875 | FE100: 18983 | FF100: 2892 | FG100: 774 | FH100: 24949 | FI100: 20196 | FJ100: 4753 | FK100: 711 | FL100: 10363.97331 | FM100: 11118.38599 | FN100: 12655.99691 | FO100: 319.7272727 | FP100: 123.3040003 | FV100: 846 | FW100: -846
A101: 276 | B101: Kontiolahti | C101: 14849 | E101: 0.09216131781 | F101: 52.77202504 | G101: -2608.458482 | K101: 45.68004793 | L101: 140.2114621 | M101: 7.737964321 | N101: 6613.778706 | O101: 24031 | P101: 11689 | Q101: 83688 | R101: -71999 | S101: 49314 | T101: 23015 | W101: -551 | X101: 311 | Y101: 90 | Z101: 3829 | AA101: 36 | AB101: 0 | AC101: -3703 | AD101: 80 | AE101: 0 | AF101: 0 | AG101: -3623 | AH101: 15667 | AI101: -65 | AK101: -109 | AL101: -6483 | AM101: -6844 | AN101: 49314 | AO101: 45058 | AP101: 1444 | AQ101: 2812 | AR101: 20.5 | AT101: 250 | AU101: 14821 | AW101: 0.9652728864 | AX101: 52.63777566 | AY101: -2613.116524 | BC101: 44.58360594 | BD101: 310.6403077 | BE101: 17.57307037 | BF101: 6452.128736 | BG101: 24649 | BH101: 11231 | BI101: 83014 | BJ101: -71783 | BK101: 52704 | BL101: 24397 | BO101: -466 | BP101: 322 | BQ101: 5174 | BR101: 5134 | BS101: 0 | BT101: 0 | BU101: 40 | BV101: 173 | BW101: 0 | BX101: 0 | BY101: 213 | BZ101: 15880 | CA101: 4695 | CC101: 362 | CD101: -6712 | CE101: -118 | CF101: 52704 | CG101: 47876 | CH101: 1923 | CI101: 2905 | CJ101: 20.5 | CL101: 73 | CM101: 14857 | CO101: 1.501697678 | CP101: 53.74448407 | CQ101: -2368.042 | CU101: 45.38768952 | CV101: 835.6330349 | CW101: 45.35647796 | CX101: 6724.641583 | CY101: 24293 | CZ101: 10610 | DA101: 83772 | DB101: -73162 | DC101: 54019 | DD101: 29870 | DG101: -414 | DH101: 324 | DI101: 10637 | DJ101: 4731 | DK101: 0 | DL101: 0 | DM101: 5906 | DN101: 80 | DO101: -4500 | DP101: 0 | DQ101: 1486 | DR101: 17366 | DS101: 11500 | DU101: -30 | DV101: -6943 | DW101: 3239 | DX101: 54019 | DY101: 49067 | DZ101: 2340 | EA101: 2612 | EB101: 20.5 | ED101: 126.5514706 | EE101: 50463 | EF101: 48747 | EG101: 49525 | EK101: -7474 | EL101: 448 | EM101: 247 | EN101: -5394 | EO101: 75 | EP101: 506 | EQ101: -8773 | ER101: 0 | ES101: 512 | ET101: 5000 | EU101: 6000 | EV101: 10000 | EW101: -3366 | EX101: 10000 | EY101: 795 | EZ101: 36971 | FA101: 24758 | FB101: 12213 | FC101: 23 | FD101: 39821 | FE101: 27814 | FF101: 12007 | FG101: 44 | FH101: 43674 | FI101: 30570 | FJ101: 13104 | FK101: 45 | FL101: 4643.275641 | FM101: 4835.301262 | FN101: 4809.786633 | FO101: 2393.512195 | FP101: 161.1033314 | FV101: 5816 | FW101: -5816
A102: 280 | B102: Korsnäs | C102: 2122 | E102: 0.2892156863 | F102: 18.02025607 | G102: -929.3119698 | K102: 71.10220067 | L102: 211.1215834 | M102: 9.197885026 | N102: 8377.945335 | O102: 5846 | P102: 2525 | Q102: 15177 | R102: -12652 | S102: 6639 | T102: 6535 | W102: -30 | X102: 9 | Y102: 501 | Z102: 1035 | AA102: 0 | AB102: 0 | AC102: -534 | AD102: 320 | AE102: 0 | AF102: 0 | AG102: -214 | AH102: 5130 | AI102: 501 | AK102: 20 | AL102: -1806 | AM102: -166 | AN102: 6639 | AO102: 5066 | AP102: 852 | AQ102: 721 | AR102: 21 | AT102: 145 | AU102: 2077 | AW102: 1.380156076 | AX102: 25.99137931 | AY102: -1249.39817 | BC102: 65.34045035 | BD102: 588.8300433 | BE102: 27.37444042 | BF102: 7851.227732 | BG102: 5971 | BH102: 2328 | BI102: 15633 | BJ102: -13305 | BK102: 6917 | BL102: 6995 | BO102: -24 | BP102: 12 | BQ102: 595 | BR102: 1277 | BS102: 0 | BT102: 0 | BU102: -682 | BV102: 568 | BW102: 0 | BX102: 0 | BY102: -114 | BZ102: 5015 | CA102: 595 | CC102: 5 | CD102: 0 | CE102: -52 | CF102: 6917 | CG102: 5472 | CH102: 717 | CI102: 728 | CJ102: 21.5 | CL102: 94 | CM102: 2068 | CO102: 27.27777778 | CP102: 31.26297789 | CQ102: -1831.72147 | CU102: 61.14003471 | CV102: 465.1837524 | CW102: 19.95056818 | CX102: 8510.638298 | CY102: 6292 | CZ102: 2228 | DA102: 15914 | DB102: -13686 | DC102: 6606 | DD102: 7540 | DG102: -15 | DH102: 28 | DI102: 473 | DJ102: 1300 | DK102: 0 | DL102: 0 | DM102: -827 | DN102: 576 | DO102: 0 | DP102: 0 | DQ102: -251 | DR102: 4764 | DS102: 473 | DU102: 34 | DV102: 0 | DW102: -1195 | DX102: 6606 | DY102: 5300 | DZ102: 648 | EA102: 658 | EB102: 21.5 | ED102: 282.6911765 | EE102: 7570 | EF102: 7893 | EG102: 7685 | EK102: -759 | EL102: 92 | EM102: 0 | EN102: -650 | EO102: 3 | EP102: 0 | EQ102: -1668 | ER102: 0 | ES102: 0 | ET102: 0 | EU102: 1078 | EV102: 1000 | EW102: -78 | EX102: 0 | EY102: 822 | EZ102: 862 | FA102: 684 | FB102: 178 | FC102: 0 | FD102: 2184 | FE102: 506 | FF102: 1678 | FG102: 0 | FH102: 3006 | FI102: 328 | FJ102: 2678 | FK102: 0 | FL102: 1514.137606 | FM102: 2440.539239 | FN102: 3114.603482 | FO102: 246.5116279 | FP102: 119.2029148 | FV102: 240 | FW102: -240
A103: 284 | B103: Koski tl | C103: 2340 | F103: 20.56325181 | G103: -513.2478632 | K103: 76.31136951 | L103: 760.6837607 | M103: 34.76748542 | N103: 7985.897436 | O103: 7204 | P103: 3312 | Q103: 17620 | R103: -14308 | S103: 6712 | T103: 7517 | W103: 0 | X103: 18 | Y103: -61 | Z103: 793 | AA103: 0 | AB103: 0 | AC103: -854 | AD103: 40 | AE103: 0 | AF103: 0 | AG103: -814 | AH103: 3520 | AI103: -56 | AK103: 618 | AL103: 0 | AM103: -1064 | AN103: 6712 | AO103: 5587 | AP103: 599 | AQ103: 526 | AR103: 19.5 | AT103: 260 | AU103: 2308 | AW103: 7.131034483 | AX103: 18.33988593 | AY103: -692.8076256 | BC103: 77.34999664 | BD103: 337.5216638 | BE103: 15.32968514 | BF103: 8036.395147 | BG103: 7358 | BH103: 3512 | BI103: 17561 | BJ103: -14049 | BK103: 6966 | BL103: 7581 | BO103: 0 | BP103: 19 | BQ103: 517 | BR103: 817 | BS103: 0 | BT103: 0 | BU103: -300 | BV103: 40 | BW103: 0 | BX103: 0 | BY103: -260 | BZ103: 3260 | CA103: 495 | CC103: -308 | CD103: 0 | CE103: -408 | CF103: 6966 | CG103: 5858 | CH103: 580 | CI103: 528 | CJ103: 19.5 | CL103: 116 | CM103: 2292 | CO103: 19.57281553 | CP103: 21.92028051 | CQ103: -446.3350785 | CU103: 74.80620155 | CV103: 1049.30192 | CW103: 45.48316062 | CX103: 8420.593368 | CY103: 7354 | CZ103: 3373 | DA103: 17404 | DB103: -14031 | DC103: 7535 | DD103: 8485 | DG103: -3 | DH103: 27 | DI103: 2013 | DJ103: 789 | DK103: 0 | DL103: 0 | DM103: 1224 | DN103: -467 | DO103: 0 | DP103: 0 | DQ103: 757 | DR103: 4018 | DS103: 2018 | DU103: 111 | DV103: -100 | DW103: 586 | DX103: 7535 | DY103: 6366 | DZ103: 704 | EA103: 465 | EB103: 20 | ED103: 64.09558824 | EE103: 8768 | EF103: 8531 | EG103: 8273 | EK103: -1062 | EL103: 50 | EM103: 4 | EN103: -985 | EO103: 53 | EP103: 29 | EQ103: -1788 | ER103: 298 | ES103: 58 | ET103: 0 | EU103: 0 | EV103: 0 | EW103: 0 | EX103: 500 | EY103: 100 | EZ103: 0 | FA103: 0 | FB103: 0 | FC103: 0 | FD103: 0 | FE103: 0 | FF103: 0 | FG103: 0 | FH103: 500 | FI103: 400 | FJ103: 100 | FK103: 0 | FL103: 616.6666667 | FM103: 590.1213172 | FN103: 743.4554974 | FO103: 318.3 | FP103: 138.8743455 | FV103: 100 | FW103: -100
A104: 285 | B104: Kotka | C104: 52883 | E104: 0.1662898047 | F104: 91.94370275 | G104: -4013.066581 | K104: 43.5292875 | L104: 1767.940548 | M104: 66.89715673 | N104: 9646.124463 | O104: 150538 | P104: 86184 | Q104: 399115 | R104: -312931 | S104: 212482 | T104: 112200 | W104: 199 | X104: -13 | Y104: 11937 | Z104: 20032 | AA104: 7872 | AB104: 0 | AC104: -223 | AD104: 271 | AE104: 0 | AF104: 0 | AG104: 48 | AH104: -6211 | AI104: 10647 | AK104: -32259 | AL104: -78673 | AM104: -3003 | AN104: 212482 | AO104: 187770 | AP104: 9500 | AQ104: 15212 | AR104: 21.5 | AT104: 150 | AU104: 52126 | AW104: 0.5467381814 | AX104: 79.59655579 | AY104: -4109.177762 | BC104: 48.17982089 | BD104: 835.0918927 | BE104: 34.0681902 | BF104: 8947.013007 | BG104: 92676 | BH104: 81165 | BI104: 393669 | BJ104: -310247 | BK104: 218060 | BL104: 112480 | BO104: 748 | BP104: -109 | BQ104: 20932 | BR104: 21647 | BS104: 586 | BT104: 0 | BU104: -129 | BV104: 271 | BW104: 0 | BX104: 0 | BY104: 142 | BZ104: 9128 | CA104: 17323 | CC104: 4747 | CD104: -29246 | CE104: -17089 | CF104: 218060 | CG104: 193221 | CH104: 9538 | CI104: 15301 | CJ104: 21.5 | CL104: 56 | CM104: 51668 | CO104: 2.371822803 | CP104: 74.39986926 | CQ104: -3530.405667 | CU104: 47.97691354 | CV104: 1317.004722 | CW104: 57.28099732 | CX104: 8392.080204 | CY104: 92174 | CZ104: 74842 | DA104: 398533 | DB104: -323691 | DC104: 225262 | DD104: 135894 | DG104: -2007 | DH104: 3164 | DI104: 38622 | DJ104: 36649 | DK104: 0 | DL104: 0 | DM104: 1973 | DN104: 271 | DO104: 0 | DP104: 0 | DQ104: 2244 | DR104: 11370 | DS104: 47618 | DU104: -2795 | DV104: -14065 | DW104: 31430 | DX104: 225262 | DY104: 200183 | DZ104: 10994 | EA104: 14085 | EB104: 21.5 | ED104: 105.3970588 | EE104: 184404 | EF104: 247423 | EG104: 262043 | EK104: -24660 | EL104: 247 | EM104: 10763 | EN104: -41245 | EO104: 1457 | EP104: 5376 | EQ104: -18666 | ER104: 815 | ES104: 1663 | ET104: 0 | EU104: 100108 | EV104: 0 | EW104: 4676 | EX104: 0 | EY104: 11269 | EZ104: 322101 | FA104: 109367 | FB104: 212734 | FC104: 5263 | FD104: 297061 | FE104: 95302 | FF104: 201759 | FG104: 5263 | FH104: 294264 | FI104: 52026 | FJ104: 242238 | FK104: 5263 | FL104: 10535.06798 | FM104: 10462.20696 | FN104: 9850.778044 | FO104: 9310.837209 | FP104: 180.205102 | FV104: 26950 | FW104: -26950
A105: 286 | B105: Kouvola | C105: 83177 | E105: -0.1342439351 | F105: 54.63740921 | G105: -3052.52654 | K105: 48.68898472 | L105: 320.2928694 | M105: 15.01828642 | N105: 7784.303353 | O105: 239493 | P105: 71324 | Q105: 584511 | R105: -513187 | S105: 331075 | T105: 170036 | W105: -620 | X105: 6947 | Y105: -5749 | Z105: 20279 | AA105: 0 | AB105: 0 | AC105: -26028 | AD105: 102 | AE105: 0 | AF105: 5 | AG105: -25921 | AH105: 10140 | AI105: -7417 | AK105: 2410 | AL105: -21322 | AM105: -37357 | AN105: 331075 | AO105: 283094 | AP105: 27768 | AQ105: 20213 | AR105: 20.75 | AT105: 268 | AU105: 82113 | AW105: -0.05330581294 | AX105: 63.64670461 | AY105: -3715.087745 | BC105: 43.16779646 | BD105: 339.4712165 | BE105: 15.52240093 | BF105: 7982.463191 | BG105: 150723 | BH105: 52221 | BI105: 578792 | BJ105: -523161 | BK105: 338080 | BL105: 172333 | BO105: -860 | BP105: 8422 | BQ105: -5186 | BR105: 22575 | BS105: 0 | BT105: 0 | BU105: -27761 | BV105: 102 | BW105: 0 | BX105: 0 | BY105: -27659 | BZ105: -13653 | CA105: -4618 | CC105: 5266 | CD105: -24023 | CE105: -45781 | CF105: 338080 | CG105: 286569 | CH105: 23064 | CI105: 28447 | CJ105: 20.75 | CL105: 250 | CM105: 81187 | CO105: 1.853980829 | CP105: 50.60741543 | CQ105: -3180.238215 | CU105: 48.12951093 | CV105: 350.4625125 | CW105: 16.42889459 | CX105: 7786.209615 | CY105: 142960 | CZ105: 49790 | DA105: 569660 | DB105: -519870 | DC105: 354743 | DD105: 213734 | DG105: -788 | DH105: 10733 | DI105: 58552 | DJ105: 27503 | DK105: 0 | DL105: 0 | DM105: 31049 | DN105: 102 | DO105: 0 | DP105: 0 | DQ105: 31151 | DR105: 17955 | DS105: 72272 | DU105: -372 | DV105: -30310 | DW105: 45516 | DX105: 354743 | DY105: 302676 | DZ105: 25999 | EA105: 26068 | EB105: 21.25 | ED105: 122.5220588 | EE105: 261731 | EF105: 382710 | EG105: 385279 | EJ105: 3300 | EK105: -33288 | EL105: 1078 | EM105: 2270 | EN105: -46962 | EO105: 4800 | EP105: 999 | EQ105: -30259 | ER105: 2308 | ES105: 1195 | ET105: 43500 | EU105: 10798 | EV105: 70000 | EW105: 34089 | EX105: 33000 | EY105: -48542 | EZ105: 232688 | FA105: 178960 | FB105: 53728 | FC105: 42416 | FD105: 312755 | FE105: 220300 | FF105: 92455 | FG105: 46372 | FH105: 266903 | FI105: 219690 | FJ105: 47213 | FK105: 46140 | FL105: 4420.019957 | FM105: 5956.291939 | FN105: 5936.911082 | FO105: 14243.57647 | FP105: 175.4415913 | FV105: 21744 | FW105: -21744
A106: 287 | B106: Kristiinankaupunki | C106: 6596 | E106: 0.6227764888 | F106: 70.03981292 | G106: -3966.191631 | K106: 39.38323575 | L106: 914.7968466 | M106: 36.12106998 | N106: 9243.935719 | O106: 22048 | P106: 8072 | Q106: 48609 | R106: -40537 | S106: 23469 | T106: 20205 | W106: -393 | X106: 84 | Y106: 2828 | Z106: 2550 | AA106: 0 | AB106: 0 | AC106: 278 | AD106: 0 | AE106: 0 | AF106: 0 | AG106: 278 | AH106: 9746 | AI106: 2340 | AK106: -1934 | AL106: -4779 | AM106: -3049 | AN106: 23469 | AO106: 19548 | AP106: 1369 | AQ106: 2552 | AR106: 21.5 | AT106: 64 | AU106: 6486 | AW106: 0.3005957648 | AX106: 67.11249237 | AY106: -4595.898859 | BC106: 35.96458512 | BD106: 565.2173913 | BE106: 20.44227508 | BF106: 10092.0444 | BG106: 23523 | BH106: 8695 | BI106: 52847 | BJ106: -44152 | BK106: 24648 | BL106: 20714 | BO106: -369 | BP106: 64 | BQ106: 905 | BR106: 3095 | BS106: 0 | BT106: 0 | BU106: -2190 | BV106: 0 | BW106: 0 | BX106: 0 | BY106: -2190 | BZ106: 7556 | CA106: 2112 | CC106: 687 | CD106: -5389 | CE106: -3565 | CF106: 24648 | CG106: 20363 | CH106: 1408 | CI106: 2877 | CJ106: 21.5 | CL106: 159 | CM106: 6404 | CO106: 0.754005655 | CP106: 71.36509721 | CQ106: -4734.072455 | CU106: 33.63206976 | CV106: 1107.276702 | CW106: 40.88419739 | CX106: 9885.384135 | CY106: 23440 | CZ106: 8820 | DA106: 52847 | DB106: -44027 | DC106: 25119 | DD106: 23002 | DG106: -321 | DH106: -94 | DI106: 3679 | DJ106: 3594 | DK106: 0 | DL106: 0 | DM106: 85 | DN106: 0 | DO106: 0 | DP106: 0 | DQ106: 85 | DR106: 7639 | DS106: 2774 | DU106: -425 | DV106: -4984 | DW106: -479 | DX106: 25119 | DY106: 20980 | DZ106: 1486 | EA106: 2653 | EB106: 21.5 | ED106: 196.0588235 | EE106: 21675 | EF106: 24361 | EG106: 22767 | EK106: -7165 | EL106: 1303 | EM106: 473 | EN106: -6830 | EO106: 565 | EP106: 588 | EQ106: -4977 | ER106: 60 | ES106: 1664 | ET106: 13112 | EU106: 0 | EV106: 4000 | EW106: 410 | EX106: 7680 | EY106: 364 | EZ106: 27716 | FA106: 23261 | FB106: 4455 | FC106: 0 | FD106: 26737 | FE106: 21872 | FF106: 4865 | FG106: 0 | FH106: 29799 | FI106: 24569 | FJ106: 5230 | FK106: 0 | FL106: 5611.43117 | FM106: 5865.710762 | FN106: 6586.35228 | FO106: 975.8139535 | FP106: 152.3756954 | FV106: 2310 | FW106: -2310
A107: 288 | B107: Kruunupyy | C107: 6509 | E107: 0.4729290742 | F107: 57.1129461 | G107: -3610.38562 | K107: 31.76054758 | L107: 26.11768321 | M107: 1.363466567 | N107: 6991.703795 | O107: 9900 | P107: 2559 | Q107: 41094 | R107: -38535 | S107: 23584 | T107: 16364 | W107: -328 | X107: 334 | Y107: 1419 | Z107: 1464 | AA107: 0 | AB107: 0 | AC107: -45 | AD107: 0 | AE107: 0 | AF107: 0 | AG107: -45 | AH107: 5973 | AI107: 1398 | AK107: 896 | AL107: -3366 | AM107: 724 | AN107: 23584 | AO107: 19461 | AP107: 2316 | AQ107: 1807 | AR107: 22 | AT107: 157 | AU107: 6428 | AW107: 0.5854920418 | AX107: 63.240012 | AY107: -4052.738021 | BC107: 30.21304724 | BD107: 104.3870566 | BE107: 4.871409818 | BF107: 7821.406347 | BG107: 9985 | BH107: 3248 | BI107: 41519 | BJ107: -38271 | BK107: 24129 | BL107: 15950 | BO107: -282 | BP107: 229 | BQ107: 1755 | BR107: 1192 | BS107: 0 | BT107: 0 | BU107: 563 | BV107: 0 | BW107: 0 | BX107: 0 | BY107: 563 | BZ107: 6536 | CA107: 1138 | CC107: -71 | CD107: -3685 | CE107: -2511 | CF107: 24129 | CG107: 20132 | CH107: 2193 | CI107: 1804 | CJ107: 22 | CL107: 97 | CM107: 6416 | CO107: 1.126119917 | CP107: 61.76432263 | CQ107: -4010.754364 | CU107: 34.54787723 | CV107: 250.7793017 | CW107: 11.70356716 | CX107: 7821.072319 | CY107: 10001 | CZ107: 2620 | DA107: 41294 | DB107: -38674 | DC107: 24590 | DD107: 18836 | DG107: -241 | DH107: 150 | DI107: 4661 | DJ107: 1511 | DK107: 0 | DL107: 0 | DM107: 3150 | DN107: 0 | DO107: 0 | DP107: 0 | DQ107: 3150 | DR107: 9693 | DS107: 4548 | DU107: -419 | DV107: -4112 | DW107: 317 | DX107: 24590 | DY107: 20637 | DZ107: 2259 | EA107: 1694 | EB107: 22 | ED107: 118.4926471 | EE107: 28735 | EF107: 28992 | EG107: 28867 | EK107: -717 | EL107: 4 | EM107: 39 | EN107: -4746 | EO107: 186 | EP107: 911 | EQ107: -4532 | ER107: 151 | ES107: 150 | ET107: 4189 | EU107: -1613 | EV107: 5679 | EW107: 602 | EX107: 5895 | EY107: -1224 | EZ107: 21600 | FA107: 15529 | FB107: 6071 | FC107: 0 | FD107: 24196 | FE107: 17106 | FF107: 7090 | FG107: 0 | FH107: 24755 | FI107: 18563 | FJ107: 6192 | FK107: 0 | FL107: 3881.702258 | FM107: 4452.08463 | FN107: 4689.993766 | FO107: 938.0454545 | FP107: 146.204092 | FV107: 1528 | FW107: -1528
A108: 290 | B108: Kuhmo | C108: 8329 | E108: -0.1102172164 | F108: 70.34899409 | G108: -2601.272662 | K108: 41.35844721 | L108: 2579.901549 | M108: 103.5231382 | N108: 9096.170008 | O108: 15722 | P108: 6672 | Q108: 67164 | R108: -60492 | S108: 27788 | T108: 32246 | W108: -125 | X108: -18 | Y108: -601 | Z108: 2546 | AA108: 0 | AB108: 0 | AC108: -3147 | AD108: 43 | AE108: 0 | AF108: 0 | AG108: -3104 | AH108: -182 | AI108: -655 | AK108: -42 | AL108: -3539 | AM108: -4025 | AN108: 27788 | AO108: 22756 | AP108: 2888 | AQ108: 2144 | AR108: 21.5 | AT108: 269 | AU108: 8190 | AW108: 0.2787359001 | AX108: 72.26227724 | AY108: -2720.512821 | BC108: 39.82788892 | BD108: 2731.990232 | BE108: 111.4201615 | BF108: 8949.69475 | BG108: 15495 | BH108: 5809 | BI108: 66242 | BJ108: -60433 | BK108: 28258 | BL108: 32092 | BO108: -120 | BP108: 1517 | BQ108: 1314 | BR108: 2939 | BS108: 0 | BT108: 0 | BU108: -1625 | BV108: 43 | BW108: 0 | BX108: 0 | BY108: -1582 | BZ108: -1764 | CA108: 1117 | CC108: 622 | CD108: -3226 | CE108: -720 | CF108: 28258 | CG108: 23205 | CH108: 2912 | CI108: 2141 | CJ108: 21.5 | CL108: 148 | CM108: 8042 | CO108: 0.6604712042 | CP108: 69.66364167 | CQ108: -2576.100473 | CU108: 38.41359426 | CV108: 3028.226809 | CW108: 119.3502021 | CX108: 9261.004725 | CY108: 14737 | CZ108: 6332 | DA108: 68525 | DB108: -62193 | DC108: 28987 | DD108: 35025 | DG108: -119 | DH108: 643 | DI108: 2343 | DJ108: 3245 | DK108: 0 | DL108: 0 | DM108: -902 | DN108: 43 | DO108: 0 | DP108: 0 | DQ108: -859 | DR108: -2625 | DS108: 2746 | DU108: -677 | DV108: -3640 | DW108: 1575 | DX108: 28987 | DY108: 23643 | DZ108: 3356 | EA108: 1988 | EB108: 22 | ED108: 277.6544118 | EE108: 45107 | EF108: 45066 | EG108: 48283 | EK108: -3833 | EL108: 341 | EM108: 122 | EN108: -2836 | EO108: 276 | EP108: 723 | EQ108: -1354 | ER108: 39 | ES108: 144 | ET108: 9000 | EU108: -5500 | EV108: 7000 | EW108: 0 | EX108: 0 | EY108: 3000 | EZ108: 36486 | FA108: 33260 | FB108: 3226 | FC108: 149 | FD108: 40260 | FE108: 36620 | FF108: 3640 | FG108: 50 | FH108: 39621 | FI108: 33338 | FJ108: 6283 | FK108: 50 | FL108: 6673.670309 | FM108: 7610.37851 | FN108: 7908.604825 | FO108: 1074.681818 | FP108: 133.6336506 | FV108: 3111 | FW108: -3111
A109: 291 | B109: Kuhmoinen | C109: 2238 | E109: 24.92 | F109: 17.10153878 | G109: 335.1206434 | K109: 82.78566421 | L109: 1556.300268 | M109: 60.21955379 | N109: 9432.975871 | O109: 4219 | P109: 2746 | Q109: 18326 | R109: -15580 | S109: 8040 | T109: 8645 | W109: 91 | X109: 47 | Y109: 1243 | Z109: 1108 | AA109: 0 | AB109: 0 | AC109: 135 | AD109: 0 | AE109: 0 | AF109: 0 | AG109: 135 | AH109: 6210 | AI109: 1228 | AK109: 571 | AL109: -47 | AM109: -1339 | AN109: 8040 | AO109: 5685 | AP109: 1013 | AQ109: 1342 | AR109: 20.75 | AT109: 28 | AU109: 2206 | AW109: 1.99682035 | AX109: 24.15471444 | AY109: 104.7144152 | BC109: 77.77592252 | BD109: 1617.407072 | BE109: 64.51919742 | BF109: 9150.045331 | BG109: 4590 | BH109: 2933 | BI109: 18634 | BJ109: -15701 | BK109: 8139 | BL109: 8241 | BO109: 72 | BP109: 189 | BQ109: 940 | BR109: 1203 | BS109: 0 | BT109: 0 | BU109: -263 | BV109: 0 | BW109: 0 | BX109: 0 | BY109: -263 | BZ109: 5947 | CA109: 940 | CC109: -739 | CD109: -47 | CE109: -553 | CF109: 8139 | CG109: 5657 | CH109: 1110 | CI109: 1372 | CJ109: 20.75 | CL109: 51 | CM109: 2161 | CO109: 41.1372549 | CP109: 27.31094467 | CQ109: 363.257751 | CU109: 75.19725422 | CV109: 2218.880148 | CW109: 85.07145288 | CX109: 9520.12957 | CY109: 4586 | CZ109: 2705 | DA109: 18661 | DB109: -15956 | DC109: 8757 | DD109: 9233 | DG109: 58 | DH109: 2 | DI109: 2094 | DJ109: 1665 | DK109: 0 | DL109: 0 | DM109: 429 | DN109: 0 | DO109: 0 | DP109: 0 | DQ109: 429 | DR109: 6376 | DS109: 1973 | DU109: -314 | DV109: -47 | DW109: 656 | DX109: 8757 | DY109: 6141 | DZ109: 1227 | EA109: 1389 | EB109: 21.75 | ED109: 43.94852941 | EE109: 12249 | EF109: 12263 | EG109: 12240 | EK109: -2653 | EL109: 14 | EM109: 72 | EN109: -1496 | EO109: 3 | EP109: 0 | EQ109: -1536 | ER109: 12 | ES109: 207 | ET109: 0 | EU109: -300 | EV109: 0 | EW109: 2000 | EX109: 0 | EY109: 1500 | EZ109: 465 | FA109: 418 | FB109: 47 | FC109: 537 | FD109: 2418 | FE109: 371 | FF109: 2047 | FG109: 526 | FH109: 3871 | FI109: 324 | FJ109: 3547 | FK109: 721 | FL109: 3202.412869 | FM109: 3766.999093 | FN109: 4021.286441 | FO109: 282.3448276 | FP109: 130.6547097 | FV109: 780 | FW109: -780
A110: 297 | B110: Kuopio | C110: 118664 | E110: 0.7288845972 | F110: 55.48425233 | G110: -3176.709027 | K110: 53.74720392 | L110: 341.2492416 | M110: 15.64721251 | N110: 7960.265961 | O110: 327176 | P110: 210324 | Q110: 830447 | R110: -620123 | S110: 441274 | T110: 197256 | W110: 3614 | X110: 9564 | Y110: 31585 | Z110: 48135 | AA110: 13284 | AB110: 898 | AC110: -4164 | AD110: 216 | AE110: 0 | AF110: 0 | AG110: -3948 | AH110: 102143 | AI110: 31335 | AK110: -6587 | AL110: -44781 | AM110: -34976 | AN110: 441274 | AO110: 378301 | AP110: 24219 | AQ110: 38754 | AR110: 20.5 | AT110: 130 | AU110: 119282 | AW110: 0.3467387096 | AX110: 58.07427341 | AY110: -3551.893831 | BC110: 53.92654447 | BD110: 295.4175819 | BE110: 11.17751855 | BF110: 9646.811757 | BG110: 338519 | BH110: 186664 | BI110: 870959 | BJ110: -660008 | BK110: 464000 | BL110: 203289 | BO110: 4234 | BP110: 4971 | BQ110: 16486 | BR110: 54646 | BS110: 92867 | BT110: 0 | BU110: 54707 | BV110: 211 | BW110: 0 | BX110: 0 | BY110: 54918 | BZ110: 157061 | CA110: 11469 | CC110: 2649 | CD110: -51734 | CE110: 74613 | CF110: 464000 | CG110: 399893 | CH110: 24028 | CI110: 40079 | CJ110: 20.5 | CL110: 161 | CM110: 120210 | CO110: 1.097540836 | CP110: 62.12089382 | CQ110: -3545.71999 | CU110: 51.50270478 | CV110: 828.9410199 | CW110: 36.42396976 | CX110: 8306.713252 | CY110: 331526 | CZ110: 182647 | DA110: 872198 | DB110: -689551 | DC110: 486187 | DD110: 248504 | DG110: 7134 | DH110: 4948 | DI110: 57222 | DJ110: 47831 | DK110: 9213 | DL110: 0 | DM110: 18604 | DN110: 171 | DO110: 0 | DP110: 402 | DQ110: 19177 | DR110: 176238 | DS110: 53668 | DU110: 4020 | DV110: -51788 | DW110: -6765 | DX110: 486187 | DY110: 421596 | DZ110: 27485 | EA110: 37106 | EB110: 20.75 | ED110: 235.3455882 | EE110: 393377 | EF110: 414031 | EG110: 416629 | EK110: -86501 | EL110: 1551 | EM110: 18639 | EN110: -123173 | EO110: 1657 | EP110: 184660 | EQ110: -81676 | ER110: 2923 | ES110: 18320 | ET110: 83000 | EU110: -25000 | EV110: 105000 | EW110: 0 | EX110: 115000 | EY110: 0 | EZ110: 343027 | FA110: 294293 | FB110: 48734 | FC110: 135416 | FD110: 396294 | FE110: 346506 | FF110: 49788 | FG110: 256682 | FH110: 459505 | FI110: 396608 | FJ110: 62897 | FK110: 260756 | FL110: 8053.487157 | FM110: 9020.044936 | FN110: 9714.574495 | FO110: 20317.87952 | FP110: 169.0198779 | FV110: 12990 | FW110: -12990
A111: 300 | B111: Kuortane | C111: 3572 | E111: -482.6666667 | F111: 35.58320487 | G111: -2035.834267 | K111: 63.66973824 | L111: 376.8197088 | M111: 17.62981304 | N111: 7801.511758 | O111: 7444 | P111: 2973 | Q111: 25966 | R111: -22993 | S111: 10776 | T111: 13497 | W111: 38 | X111: 138 | Y111: 1456 | Z111: 1217 | AA111: 0 | AB111: 0 | AC111: 239 | AD111: 0 | AE111: 0 | AF111: 0 | AG111: 239 | AH111: 2604 | AI111: 1411 | AK111: 147 | AL111: -5 | AM111: -338 | AN111: 10776 | AO111: 9230 | AP111: 707 | AQ111: 839 | AR111: 21 | AT111: 70 | AU111: 3551 | AW111: 0.7826086957 | AX111: 41.4786785 | AY111: -2533.652492 | BC111: 59.42723267 | BD111: 364.1227823 | BE111: 15.84612027 | BF111: 8387.214869 | BG111: 7685 | BH111: 2990 | BI111: 26551 | BJ111: -23561 | BK111: 11113 | BL111: 13381 | BO111: -30 | BP111: 31 | BQ111: 934 | BR111: 1268 | BS111: 0 | BT111: 0 | BU111: -334 | BV111: 0 | BW111: 0 | BX111: 0 | BY111: -334 | BZ111: 2256 | CA111: 940 | CC111: -33 | CD111: -338 | CE111: -1756 | CF111: 11113 | CG111: 9561 | CH111: 722 | CI111: 830 | CJ111: 21 | CL111: 103 | CM111: 3534 | CO111: 6.873350923 | CP111: 41.21814961 | CQ111: -2747.594793 | CU111: 59.71656622 | CV111: 428.1267685 | CW111: 18.03720155 | CX111: 8663.554046 | CY111: 7768 | CZ111: 2992 | DA111: 26796 | DB111: -23804 | DC111: 11546 | DD111: 14818 | DG111: -25 | DH111: 29 | DI111: 2564 | DJ111: 1229 | DK111: 0 | DL111: 0 | DM111: 1335 | DN111: 0 | DO111: 0 | DP111: 0 | DQ111: 1335 | DR111: 3591 | DS111: 2533 | DU111: 234 | DV111: -338 | DW111: -803 | DX111: 11546 | DY111: 9895 | DZ111: 826 | EA111: 825 | EB111: 21 | ED111: 120.5073529 | EE111: 16315 | EF111: 16551 | EG111: 16699 | EK111: -1868 | EL111: 28 | EM111: 91 | EN111: -2800 | EO111: 84 | EP111: 20 | EQ111: -3422 | ER111: 55 | ES111: 31 | ET111: 5000 | EU111: -5100 | EV111: 0 | EW111: 1560 | EX111: 0 | EY111: 1240 | EZ111: 6874 | FA111: 5336 | FB111: 1538 | FC111: 2175 | FD111: 8096 | FE111: 4998 | FF111: 3098 | FG111: 2145 | FH111: 8998 | FI111: 4660 | FJ111: 4338 | FK111: 2117 | FL111: 4348.824188 | FM111: 5237.116305 | FN111: 5757.21562 | FO111: 471.1904762 | FP111: 133.3306384 | FV111: 0 | FW111: 0
A112: 301 | B112: Kurikka | C112: 20952 | E112: 1.004982448 | F112: 65.33219237 | G112: -2678.216877 | K112: 54.29835203 | L112: 1770.093547 | M112: 80.74847442 | N112: 8001.193204 | O112: 44258 | P112: 21077 | Q112: 147481 | R112: -126404 | S112: 63772 | T112: 61226 | W112: 7 | X112: 9570 | Y112: 8171 | Z112: 6714 | AA112: 0 | AB112: 0 | AC112: 1457 | AD112: 313 | AE112: 0 | AF112: 0 | AG112: 1770 | AH112: 22516 | AI112: 8350 | AK112: 141 | AL112: -8127 | AM112: -2717 | AN112: 63772 | AO112: 55377 | AP112: 4019 | AQ112: 4376 | AR112: 21 | AT112: 74 | AU112: 20678 | AW112: 0.3682198484 | AX112: 64.11487191 | AY112: -2666.989071 | BC112: 52.22288235 | BD112: 1749.105329 | BE112: 77.6840693 | BF112: 8218.202921 | BG112: 44862 | BH112: 20161 | BI112: 152925 | BJ112: -132764 | BK112: 64910 | BL112: 60761 | BO112: 135 | BP112: 10590 | BQ112: 3632 | BR112: 14932 | BS112: 0 | BT112: 0 | BU112: -11300 | BV112: 305 | BW112: 0 | BX112: 0 | BY112: -10995 | BZ112: 11520 | CA112: 3377 | CC112: 50 | CD112: -11236 | CE112: 153 | CF112: 64910 | CG112: 56851 | CH112: 3524 | CI112: 4535 | CJ112: 21 | CL112: 137 | CM112: 20456 | CO112: 1.263470468 | CP112: 60.20552526 | CQ112: -2477.708252 | CU112: 52.38881385 | CV112: 1989.147438 | CW112: 86.77781803 | CX112: 8366.640594 | CY112: 43820 | CZ112: 18182 | DA112: 156433 | DB112: -138251 | DC112: 67889 | DD112: 69433 | DG112: 277 | DH112: 11923 | DI112: 11271 | DJ112: 7261 | DK112: 0 | DL112: 0 | DM112: 4010 | DN112: 292 | DO112: 0 | DP112: 0 | DQ112: 4302 | DR112: 12809 | DS112: 11417 | DU112: -64 | DV112: -8831 | DW112: 7335 | DX112: 67889 | DY112: 59870 | DZ112: 3868 | EA112: 4151 | EB112: 21 | ED112: 208.1470588 | EE112: 91337 | EF112: 95484 | EG112: 99634 | EK112: -11182 | EL112: 20 | EM112: 95 | EN112: -5068 | EO112: 81 | EP112: 1763 | EQ112: -4763 | ER112: 130 | ES112: 551 | ET112: 3201 | EU112: 6000 | EV112: 12442 | EW112: -1000 | EX112: 7000 | EY112: -3000 | EZ112: 81362 | FA112: 58367 | FB112: 22995 | FC112: 24033 | FD112: 81568 | FE112: 58736 | FF112: 22832 | FG112: 23379 | FH112: 76737 | FI112: 55852 | FJ112: 20885 | FK112: 23449 | FL112: 6436.330661 | FM112: 6638.214528 | FN112: 6451.456785 | FO112: 2850.952381 | FP112: 139.3699834 | FV112: 1962 | FW112: -1962
A113: 304 | B113: Kustavi | C113: 926 | E113: 1.901098901 | F113: 27.39775173 | G113: -649.0280778 | K113: 77.35088926 | L113: 1265.658747 | M113: 51.72046911 | N113: 8931.965443 | O113: 2643 | P113: 1588 | Q113: 7661 | R113: -6073 | S113: 4471 | T113: 2303 | W113: -21 | X113: -9 | Y113: 671 | Z113: 385 | AA113: 0 | AB113: 0 | AC113: 286 | AD113: 28 | AE113: 0 | AF113: 0 | AG113: 314 | AH113: 3633 | AI113: 667 | AK113: 161 | AL113: -343 | AM113: 460 | AN113: 4471 | AO113: 2827 | AP113: 223 | AQ113: 1421 | AR113: 18.75 | AT113: 11 | AU113: 949 | AW113: 1.205557535 | AX113: 37.98373182 | AY113: -1265.542677 | BC113: 71.80725087 | BD113: 1412.012645 | BE113: 53.65291795 | BF113: 9605.900948 | BG113: 2591 | BH113: 1396 | BI113: 7691 | BJ113: -6295 | BK113: 4586 | BL113: 2132 | BO113: -20 | BP113: 0 | BQ113: 403 | BR113: 392 | BS113: 0 | BT113: 0 | BU113: 11 | BV113: 28 | BW113: 0 | BX113: 0 | BY113: 39 | BZ113: 3672 | CA113: 403 | CC113: -34 | CD113: -353 | CE113: -544 | CF113: 4586 | CG113: 2913 | CH113: 232 | CI113: 1441 | CJ113: 18.5 | CL113: 53 | CM113: 962 | CO113: 2.147321429 | CP113: 34.65024402 | CQ113: -1117.463617 | CU113: 73.7400298 | CV113: 1215.176715 | CW113: 47.65300424 | CX113: 9307.692308 | CY113: 2763 | CZ113: 1530 | DA113: 7646 | DB113: -6116 | DC113: 4653 | DD113: 2423 | DG113: -20 | DH113: 2 | DI113: 942 | DJ113: 412 | DK113: 0 | DL113: 0 | DM113: 530 | DN113: -472 | DO113: 0 | DP113: 0 | DQ113: 58 | DR113: 3730 | DS113: 937 | DU113: -197 | DV113: -428 | DW113: 120 | DX113: 4653 | DY113: 3114 | DZ113: 258 | EA113: 1281 | EB113: 18.25 | ED113: 39.91911765 | EE113: 3946 | EF113: 4117 | EG113: 3843 | EK113: -223 | EL113: 10 | EM113: 6 | EN113: -1046 | EO113: 50 | EP113: 49 | EQ113: -860 | ER113: 19 | ES113: 24 | ET113: 0 | EU113: 0 | EV113: 780 | EW113: 0 | EX113: 850 | EY113: 0 | EZ113: 1656 | FA113: 1342 | FB113: 314 | FC113: 0 | FD113: 2084 | FE113: 1698 | FF113: 386 | FG113: 0 | FH113: 2505 | FI113: 2056 | FJ113: 449 | FK113: 0 | FL113: 4332.613391 | FM113: 4635.40569 | FN113: 4951.143451 | FO113: 170.630137 | FP113: 177.3702048 | FV113: 174 | FW113: -174
A114: 305 | B114: Kuusamo | C114: 15207 | E114: 0.3834124245 | F114: 43.27082859 | G114: -589.0050635 | K114: 60.65669293 | L114: 2130.334714 | M114: 87.4175877 | N114: 8894.916815 | O114: 51921 | P114: 23143 | Q114: 115834 | R114: -92691 | S114: 51250 | T114: 44886 | W114: -454 | X114: 96 | Y114: 3087 | Z114: 5135 | AA114: 0 | AB114: 0 | AC114: -2048 | AD114: 0 | AE114: 0 | AF114: 417 | AG114: -1631 | AH114: 15450 | AI114: 2785 | AK114: -3487 | AL114: -8804 | AM114: -5891 | AN114: 51250 | AO114: 40189 | AP114: 3843 | AQ114: 7218 | AR114: 20 | AT114: 167 | AU114: 15134 | AW114: 0.7392201258 | AX114: 37.46096694 | AY114: -780.8907097 | BC114: 62.74230146 | BD114: 1659.970926 | BE114: 70.04346431 | BF114: 8650.191622 | BG114: 52372 | BH114: 22401 | BI114: 119513 | BJ114: -96328 | BK114: 52605 | BL114: 45725 | BO114: -371 | BP114: 1661 | BQ114: 3292 | BR114: 6023 | BS114: 0 | BT114: 0 | BU114: -2731 | BV114: 0 | BW114: 0 | BX114: 474 | BY114: -2257 | BZ114: 13192 | CA114: 3298 | CC114: 1658 | CD114: -5255 | CE114: -2859 | CF114: 52605 | CG114: 41462 | CH114: 3766 | CI114: 7377 | CJ114: 20 | CL114: 120 | CM114: 15213 | CO114: 1.595646788 | CP114: 37.4395479 | CQ114: -1005.915993 | CU114: 61.47929087 | CV114: 1549.530007 | CW114: 61.84693071 | CX114: 9144.81036 | CY114: 51545 | CZ114: 24238 | DA114: 120695 | DB114: -96457 | DC114: 53888 | DD114: 51454 | DG114: -337 | DH114: 123 | DI114: 8671 | DJ114: 7929 | DK114: 0 | DL114: 0 | DM114: 742 | DN114: 0 | DO114: 0 | DP114: 862 | DQ114: 1604 | DR114: 14796 | DS114: 8211 | DU114: -1068 | DV114: -5305 | DW114: -2520 | DX114: 53888 | DY114: 42693 | DZ114: 4396 | EA114: 6799 | EB114: 20 | ED114: 198.0735294 | EE114: 47350 | EF114: 46775 | EG114: 46407 | EK114: -9896 | EL114: 843 | EM114: 377 | EN114: -6324 | EO114: 45 | EP114: 122 | EQ114: -12997 | ER114: 1581 | ES114: 685 | ET114: 15375 | EU114: 0 | EV114: 0 | EW114: 0 | EX114: 7000 | EY114: 0 | EZ114: 34637 | FA114: 29382 | FB114: 5255 | FC114: 4545 | FD114: 29381 | FE114: 24426 | FF114: 4955 | FG114: 4100 | FH114: 31076 | FI114: 23096 | FJ114: 7980 | FK114: 4273 | FL114: 3952.587624 | FM114: 3609.752874 | FN114: 3866.232827 | FO114: 2134.65 | FP114: 140.3174916 | FV114: 4686 | FW114: -4686
A115: 312 | B115: Kyyjärvi | C115: 1343 | E115: 0.478021978 | F115: 119.7414222 | G115: -4577.810871 | K115: 32.11407316 | L115: 4208.488459 | M115: 178.7367874 | N115: 8594.192107 | O115: 2569 | P115: 1549 | Q115: 10440 | R115: -8891 | S115: 4384 | T115: 4149 | W115: 4 | X115: 439 | Y115: 85 | Z115: 470 | AA115: 0 | AB115: 0 | AC115: -385 | AD115: 0 | AE115: 0 | AF115: 0 | AG115: -385 | AH115: 211 | AI115: 83 | AK115: -67 | AL115: -180 | AM115: -653 | AN115: 4384 | AO115: 3406 | AP115: 597 | AQ115: 381 | AR115: 21.75 | AT115: 226 | AU115: 1313 | AW115: -1.077786688 | AX115: 107.1726439 | AY115: -4145.468393 | BC115: 11.0674483 | BD115: 4581.873572 | BE115: 167.8263528 | BF115: 9964.965727 | BG115: 2531 | BH115: 2034 | BI115: 12782 | BJ115: -10745 | BK115: 4415 | BL115: 4342 | BO115: 2 | BP115: 471 | BQ115: -1515 | BR115: 2662 | BS115: 196 | BT115: 0 | BU115: -3981 | BV115: 0 | BW115: 0 | BX115: 0 | BY115: -3981 | BZ115: -3769 | CA115: 149 | CC115: 134 | CD115: -140 | CE115: 662 | CF115: 4415 | CG115: 3310 | CH115: 720 | CI115: 385 | CJ115: 21.75 | CL115: 291 | CM115: 1288 | CO115: 13.14705882 | CP115: 120.5323869 | CQ115: -4972.826087 | CU115: 5.808553407 | CV115: 5257.763975 | CW115: 237.2832869 | CX115: 8087.732919 | CY115: 2333 | CZ115: 1516 | DA115: 10189 | DB115: -8673 | DC115: 4656 | DD115: 5121 | DG115: 51 | DH115: 184 | DI115: 1339 | DJ115: 2219 | DK115: 0 | DL115: 0 | DM115: -880 | DN115: 0 | DO115: 0 | DP115: 0 | DQ115: -880 | DR115: -4649 | DS115: -908 | DU115: -300 | DV115: -100 | DW115: -1002 | DX115: 4656 | DY115: 3324 | DZ115: 927 | EA115: 405 | EB115: 22.5 | ED115: 27.83088235 | EE115: 6865 | EF115: 6865 | EG115: 6808 | EI115: 200 | EJ115: 180 | EK115: -811 | EL115: 32 | EM115: 43 | EN115: -196 | EO115: 0 | EP115: 709 | EQ115: -114 | ER115: 0 | ES115: 20 | ET115: 0 | EU115: 1100 | EV115: 0 | EW115: -100 | EX115: 0 | EY115: 2200 | EZ115: 11192 | FA115: 152 | FB115: 11040 | FC115: 613 | FD115: 10952 | FE115: 52 | FF115: 10900 | FG115: 570 | FH115: 13052 | FI115: 52 | FJ115: 13000 | FK115: 527 | FL115: 12299.32986 | FM115: 12939.83244 | FN115: 15223.60248 | FO115: 147.7333333 | FP115: 114.699793 | FV115: 780 | FW115: -780
A116: 316 | B116: Kärkölä | C116: 4451 | E116: 0.4931129477 | F116: 44.51875769 | G116: -1857.784767 | K116: 54.31451004 | L116: 470.2314087 | M116: 28.22109346 | N116: 6081.779375 | O116: 5921 | P116: 2491 | Q116: 25724 | R116: -23233 | S116: 15664 | T116: 7861 | W116: -70 | X116: 8 | Y116: 230 | Z116: 936 | AA116: 0 | AB116: 0 | AC116: -706 | AD116: 0 | AE116: 0 | AF116: 0 | AG116: -706 | AH116: 3920 | AI116: 210 | AK116: 414 | AL116: -598 | AM116: -367 | AN116: 15664 | AO116: 13911 | AP116: 616 | AQ116: 1137 | AR116: 21.75 | AT116: 230 | AU116: 4368 | AW116: 0.1476483429 | AX116: 80.61685622 | AY116: -3013.736264 | BC116: 38.90114185 | BD116: 1747.02381 | BE116: 85.35009499 | BF116: 7471.153846 | BG116: 6071 | BH116: 2737 | BI116: 26365 | BJ116: -23628 | BK116: 15837 | BL116: 7980 | BO116: -59 | BP116: 124 | BQ116: 254 | BR116: 956 | BS116: 0 | BT116: 0 | BU116: -702 | BV116: 0 | BW116: 0 | BX116: 0 | BY116: -702 | BZ116: 3465 | CA116: 134 | CC116: 608 | CD116: -598 | CE116: -5171 | CF116: 15837 | CG116: 14235 | CH116: 698 | CI116: 904 | CJ116: 22 | CL116: 210 | CM116: 4326 | CO116: 9.197979798 | CP116: 63.40740741 | CQ116: -2675.913084 | CU116: 47.44051517 | CV116: 1247.803976 | CW116: 66.7254809 | CX116: 6825.705039 | CY116: 6136 | CZ116: 2619 | DA116: 25339 | DB116: -22720 | DC116: 17244 | DD116: 9837 | DG116: 29 | DH116: 133 | DI116: 4523 | DJ116: 1071 | DK116: 0 | DL116: 0 | DM116: 3452 | DN116: 0 | DO116: 0 | DP116: 0 | DQ116: 3452 | DR116: 6917 | DS116: 4510 | DU116: -1358 | DV116: -465 | DW116: 1444 | DX116: 17244 | DY116: 15411 | DZ116: 837 | EA116: 996 | EB116: 22 | ED116: 25.81617647 | EE116: 17367 | EF116: 17960 | EG116: 16865 | EK116: -597 | EL116: 0 | EM116: 20 | EN116: -5531 | EO116: 0 | EP116: 226 | EQ116: -3682 | ER116: 600 | ES116: 16 | ET116: 0 | EU116: 0 | EV116: 0 | EW116: 10000 | EX116: 6000 | EY116: -7000 | EZ116: 8292 | FA116: 7694 | FB116: 598 | FC116: 3638 | FD116: 17694 | FE116: 7229 | FF116: 10465 | FG116: 3536 | FH116: 16229 | FI116: 12164 | FJ116: 4065 | FK116: 3434 | FL116: 2094.136149 | FM116: 4266.941392 | FN116: 4074.895978 | FO116: 700.5 | FP116: 161.9278779 | FV116: 524 | FW116: -524
A117: 317 | B117: Kärsämäki | C117: 2613 | E117: 1.092445328 | F117: 88.6047858 | G117: -1613.088404 | K117: 40.89446589 | L117: 3653.272101 | M117: 157.1127745 | N117: 8487.179487 | O117: 5795 | P117: 2215 | Q117: 19889 | R117: -17674 | S117: 7030 | T117: 11483 | W117: -37 | X117: 242 | Y117: 1044 | Z117: 628 | AA117: 0 | AB117: 0 | AC117: 416 | AD117: 0 | AE117: 55 | AF117: 0 | AG117: 471 | AH117: 5457 | AI117: 1128 | AK117: -3793 | AL117: -951 | AM117: 507 | AN117: 7030 | AO117: 5855 | AP117: 589 | AQ117: 586 | AR117: 21.5 | AT117: 73 | AU117: 2576 | AW117: 0.859654097 | AX117: 70.75716736 | AY117: -1512.810559 | BC117: 48.37545126 | BD117: 3781.444099 | BE117: 161.7370241 | BF117: 8533.773292 | BG117: 5633 | BH117: 1952 | BI117: 19532 | BJ117: -17580 | BK117: 7511 | BL117: 10942 | BO117: -48 | BP117: 637 | BQ117: 1462 | BR117: 638 | BS117: 0 | BT117: 0 | BU117: 824 | BV117: 0 | BW117: 55 | BX117: 0 | BY117: 879 | BZ117: 6336 | CA117: 1477 | CC117: 3805 | CD117: -976 | CE117: 787 | CF117: 7511 | CG117: 6295 | CH117: 621 | CI117: 595 | CJ117: 21.5 | CL117: 19 | CM117: 2538 | CO117: 1.865092749 | CP117: 66.39988567 | CQ117: -1016.548463 | CU117: 51.76600823 | CV117: 4182.821119 | CW117: 177.0222486 | CX117: 8624.507486 | CY117: 5482 | CZ117: 1910 | DA117: 19697 | DB117: -17787 | DC117: 7023 | DD117: 12058 | DG117: -54 | DH117: 907 | DI117: 2147 | DJ117: 719 | DK117: 0 | DL117: 0 | DM117: 1428 | DN117: 0 | DO117: 55 | DP117: 0 | DQ117: 1483 | DR117: 7821 | DS117: 2119 | DU117: 59 | DV117: -1121 | DW117: 1360 | DX117: 7023 | DY117: 5788 | DZ117: 702 | EA117: 533 | EB117: 21.5 | ED117: 71.14705882 | EE117: 12210 | EF117: 12145 | EG117: 12478 | EK117: -825 | EL117: 172 | EM117: 32 | EN117: -891 | EO117: 163 | EP117: 38 | EQ117: -802 | ER117: 0 | ES117: 43 | ET117: 0 | EU117: 531 | EV117: 0 | EW117: 932 | EX117: 3950 | EY117: -3500 | EZ117: 12490 | FA117: 7713 | FB117: 4777 | FC117: 1420 | FD117: 12445 | FE117: 6824 | FF117: 5621 | FG117: 1890 | FH117: 11774 | FI117: 10035 | FJ117: 1739 | FK117: 1435 | FL117: 7485.64868 | FM117: 8148.291925 | FN117: 8774.62569 | FO117: 269.2093023 | FP117: 106.0714351 | FV117: 1691 | FW117: -1691
A118: 398 | B118: Lahti | C118: 119951 | E118: 0.7865087235 | F118: 117.2652615 | G118: -6017.907312 | K118: 40.44263458 | L118: 733.9330227 | M118: 34.03364691 | N118: 7871.197406 | O118: 159265 | P118: 92614 | Q118: 714825 | R118: -622211 | S118: 465139 | T118: 191367 | W118: -3891 | X118: 15264 | Y118: 45668 | Z118: 45146 | AA118: 0 | AB118: 0 | AC118: 522 | AD118: 227 | AE118: 0 | AF118: -115 | AG118: 634 | AH118: 152662 | AI118: 40630 | AK118: -7400 | AL118: -61600 | AM118: -60822 | AN118: 465139 | AO118: 396744 | AP118: 27427 | AQ118: 40968 | AR118: 20.75 | AT118: 77 | AU118: 119823 | AW118: 0.3188904932 | AX118: 121.5037462 | AY118: -6701.601529 | BC118: 38.12084027 | BD118: 336.3377649 | BE118: 15.23875652 | BF118: 8055.99092 | BG118: 161824 | BH118: 93283 | BI118: 745758 | BJ118: -651477 | BK118: 475356 | BL118: 193870 | BO118: -4639 | BP118: 13333 | BQ118: 26443 | BR118: 47927 | BS118: 941 | BT118: 0 | BU118: -20543 | BV118: 227 | BW118: 0 | BX118: 0 | BY118: -20316 | BZ118: 131404 | CA118: 25956 | CC118: -16174 | CD118: -44601 | CE118: -66186 | CF118: 475356 | CG118: 403837 | CH118: 29403 | CI118: 42116 | CJ118: 20.75 | CL118: 119 | CM118: 119984 | CO118: 2.004780846 | CP118: 112.1207732 | CQ118: -6248.058074 | CU118: 39.42273179 | CV118: 606.7892386 | CW118: 29.33834821 | CX118: 7549.098213 | CY118: 163827 | CZ118: 88073 | DA118: 756311 | DB118: -668238 | DC118: 504619 | DD118: 243834 | DG118: -3482 | DH118: 16154 | DI118: 92887 | DJ118: 50704 | DK118: 0 | DL118: 0 | DM118: 42183 | DN118: 273 | DO118: 0 | DP118: -136 | DQ118: 42320 | DR118: 173724 | DS118: 93281 | DU118: -30959 | DV118: -40345 | DW118: 9338 | DX118: 504619 | DY118: 434333 | DZ118: 32227 | EA118: 38059 | EB118: 20.75 | ED118: 97.33823529 | EE118: 479686 | EF118: 504871 | EG118: 504647 | EK118: -117711 | EL118: 653 | EM118: 15606 | EN118: -102365 | EO118: 628 | EP118: 9595 | EQ118: -94469 | ER118: 1304 | ES118: 9222 | ET118: 110000 | EU118: -6255 | EV118: 90000 | EW118: -771 | EX118: 60000 | EY118: 12264 | EZ118: 797162 | FA118: 715116 | FB118: 82046 | FC118: 463551 | FD118: 841790 | FE118: 764770 | FF118: 77020 | FG118: 478109 | FH118: 873709 | FI118: 792120 | FJ118: 81589 | FK118: 433734 | FL118: 9682.320281 | FM118: 9955.94335 | FN118: 10364.06521 | FO118: 20931.71084 | FP118: 174.4541843 | FV118: 19835 | FW118: -19835
A119: 399 | B119: Laihia | C119: 8058 | E119: 0.2253685027 | F119: 73.23805324 | G119: -4033.382973 | K119: 29.22475349 | L119: 55.84512286 | M119: 2.887607461 | N119: 7058.94763 | O119: 18738 | P119: 5648 | Q119: 49486 | R119: -43838 | S119: 29190 | T119: 15050 | W119: -158 | X119: 177 | Y119: 421 | Z119: 1953 | AA119: 0 | AB119: 0 | AC119: -1532 | AD119: 105 | AE119: 0 | AF119: 0 | AG119: -1427 | AH119: -2593 | AI119: 271 | AK119: -1682 | AL119: -2418 | AM119: -1931 | AN119: 29190 | AO119: 26941 | AP119: 1015 | AQ119: 1234 | AR119: 21.75 | AT119: 229 | AU119: 8017 | AW119: 0.2766775052 | AX119: 74.16044411 | AY119: -4232.38119 | BC119: 28.50078132 | BD119: 260.4465511 | BE119: 13.20671669 | BF119: 7198.079082 | BG119: 16249 | BH119: 4842 | BI119: 49962 | BJ119: -45120 | BK119: 30725 | BL119: 15591 | BO119: -149 | BP119: 86 | BQ119: 1133 | BR119: 2045 | BS119: 945 | BT119: 0 | BU119: 33 | BV119: 34 | BW119: 0 | BX119: 0 | BY119: 67 | BZ119: -2527 | CA119: 1011 | CC119: 1666 | CD119: -2710 | CE119: -587 | CF119: 30725 | CG119: 28304 | CH119: 998 | CI119: 1423 | CJ119: 21.75 | CL119: 158 | CM119: 7996 | CO119: 1.467793031 | CP119: 63.26707001 | CQ119: -3960.605303 | CU119: 32.62245794 | CV119: 161.4557279 | CW119: 8.433981851 | CX119: 6987.368684 | CY119: 16275 | CZ119: 4973 | DA119: 51413 | DB119: -46440 | DC119: 31291 | DD119: 19272 | DG119: -122 | DH119: 38 | DI119: 4039 | DJ119: 2073 | DK119: 0 | DL119: 0 | DM119: 1966 | DN119: 0 | DO119: 0 | DP119: 0 | DQ119: 1966 | DR119: -561 | DS119: 3980 | DU119: -255 | DV119: -2710 | DW119: 2463 | DX119: 31291 | DY119: 28891 | DZ119: 1046 | EA119: 1354 | EB119: 21.75 | ED119: 225.2720588 | EE119: 24709 | EF119: 24903 | EG119: 25535 | EJ119: 800 | EK119: -4806 | EL119: 233 | EM119: 2371 | EN119: -3515 | EO119: 60 | EP119: 1857 | EQ119: -1604 | ER119: 8 | ES119: 79 | ET119: 5000 | EU119: 1500 | EV119: 4000 | EW119: 0 | EX119: 0 | EY119: 0 | EZ119: 31285 | FA119: 19908 | FB119: 11377 | FC119: 812 | FD119: 32575 | FE119: 20865 | FF119: 11710 | FG119: 2112 | FH119: 29865 | FI119: 18155 | FJ119: 11710 | FK119: 2067 | FL119: 5073.343261 | FM119: 5383.93414 | FN119: 5174.962481 | FO119: 1328.321839 | FP119: 166.1232915 | FV119: 926 | FW119: -926
A120: 400 | B120: Laitila | C120: 8647 | E120: 10.7721519 | F120: 54.97416899 | G120: -2981.496473 | K120: 52.59190254 | L120: 269.2263213 | M120: 12.73370298 | N120: 7717.127327 | O120: 27410 | P120: 9486 | Q120: 57253 | R120: -47767 | S120: 29006 | T120: 20352 | W120: -28 | X120: 111 | Y120: 1674 | Z120: 2698 | AA120: 0 | AB120: 0 | AC120: -1024 | AD120: 121 | AE120: 0 | AF120: 0 | AG120: -903 | AH120: 4921 | AI120: 1674 | AK120: 715 | AL120: -130 | AM120: -7419 | AN120: 29006 | AO120: 24995 | AP120: 1948 | AQ120: 2063 | AR120: 20.5 | AT120: 175 | AU120: 8588 | AW120: 0.03333002678 | AX120: 61.48264826 | AY120: -3669.888216 | BC120: 47.45341961 | BD120: 162.5523987 | BE120: 7.61906186 | BF120: 7787.261295 | BG120: 27899 | BH120: 9119 | BI120: 59563 | BJ120: -50444 | BK120: 30346 | BL120: 20212 | BO120: -10 | BP120: 12 | BQ120: 116 | BR120: 2786 | BS120: 0 | BT120: 0 | BU120: -2670 | BV120: 121 | BW120: 0 | BX120: 0 | BY120: -2549 | BZ120: 2372 | CA120: 116 | CC120: 462 | CD120: -1130 | CE120: -5933 | CF120: 30346 | CG120: 26313 | CH120: 1934 | CI120: 2099 | CJ120: 20.75 | CL120: 225 | CM120: 8468 | CO120: 3.946621622 | CP120: 58.58382495 | CQ120: -3820.028342 | CU120: 48.88900688 | CV120: 145.0165328 | CW120: 6.727201777 | CX120: 7868.209731 | CY120: 28279 | CZ120: 9059 | DA120: 58321 | DB120: -49262 | DC120: 30985 | DD120: 24030 | DG120: -25 | DH120: 88 | DI120: 5816 | DJ120: 3010 | DK120: 0 | DL120: 0 | DM120: 2806 | DN120: 121 | DO120: 0 | DP120: 0 | DQ120: 2927 | DR120: 5299 | DS120: 5746 | DU120: -183 | DV120: -1455 | DW120: -771 | DX120: 30985 | DY120: 27007 | DZ120: 2097 | EA120: 1881 | EB120: 20.75 | ED120: 141.6617647 | EE120: 22042 | EF120: 25197 | EG120: 21843 | EK120: -9314 | EL120: 2 | EM120: 219 | EN120: -6061 | EO120: 8 | EP120: 4 | EQ120: -6731 | ER120: 0 | ES120: 214 | ET120: 10000 | EU120: -1100 | EV120: 0 | EW120: 5500 | EX120: 10000 | EY120: -8600 | EZ120: 23085 | FA120: 8955 | FB120: 14130 | FC120: 774 | FD120: 27455 | FE120: 7825 | FF120: 19630 | FG120: 774 | FH120: 27400 | FI120: 15500 | FJ120: 11900 | FK120: 774 | FL120: 4083.150226 | FM120: 5552.049371 | FN120: 5519.130846 | FO120: 1301.542169 | FP120: 153.7012481 | FV120: 271 | FW120: -271
A121: 407 | B121: Lapinjärvi | C121: 2665 | E121: 0.04594594595 | F121: 51.32330332 | G121: -3118.198874 | K121: 46.24857469 | L121: 22.51407129 | M121: 1.077384759 | N121: 7627.39212 | O121: 4972 | P121: 2941 | Q121: 19038 | R121: -16097 | S121: 8456 | T121: 6822 | W121: -31 | X121: 834 | Y121: -16 | Z121: 581 | AA121: 0 | AB121: 0 | AC121: -597 | AD121: 0 | AE121: 0 | AF121: 0 | AG121: -597 | AH121: 816 | AI121: -57 | AK121: -290 | AL121: -337 | AM121: -916 | AN121: 8456 | AO121: 7362 | AP121: 549 | AQ121: 545 | AR121: 20.5 | AT121: 254 | AU121: 2606 | AW121: 0.1816593886 | AX121: 53.74694831 | AY121: -3283.576362 | BC121: 43.04794903 | BD121: 277.8204144 | BE121: 12.57363087 | BF121: 8064.850345 | BG121: 4892 | BH121: 2776 | BI121: 19497 | BJ121: -16714 | BK121: 8840 | BL121: 7226 | BO121: -33 | BP121: 855 | BQ121: 174 | BR121: 584 | BS121: 0 | BT121: 0 | BU121: -410 | BV121: 0 | BW121: 0 | BX121: 0 | BY121: -410 | BZ121: 407 | CA121: 238 | CC121: 131 | CD121: -402 | CE121: -273 | CF121: 8840 | CG121: 7678 | CH121: 601 | CI121: 561 | CJ121: 20.5 | CL121: 203 | CM121: 2621 | CO121: 6.944444444 | CP121: 45.37032474 | CQ121: -2180.083937 | CU121: 51.8289193 | CV121: 917.2071728 | CW121: 45.43364573 | CX121: 7368.561618 | CY121: 4422 | CZ121: 2839 | DA121: 18272 | DB121: -15433 | DC121: 8781 | DD121: 8679 | DG121: -27 | DH121: 970 | DI121: 2970 | DJ121: 712 | DK121: 0 | DL121: 0 | DM121: 2258 | DN121: 0 | DO121: -1000 | DP121: 0 | DQ121: 1258 | DR121: 1665 | DS121: 2943 | DU121: -242 | DV121: -402 | DW121: 2596 | DX121: 8781 | DY121: 7630 | DZ121: 619 | EA121: 532 | EB121: 21 | ED121: 13 | EE121: 11587 | EF121: 12213 | EG121: 11796 | EJ121: 360 | EK121: -910 | EL121: 0 | EM121: 51 | EN121: -1087 | EO121: 28 | EP121: 548 | EQ121: -610 | ER121: 13 | ES121: 250 | ET121: 1000 | EU121: -400 | EV121: 1000 | EW121: 100 | EX121: 0 | EY121: 0 | EZ121: 7258 | FA121: 3956 | FB121: 3302 | FC121: 251 | FD121: 7956 | FE121: 4554 | FF121: 3402 | FG121: 251 | FH121: 7554 | FI121: 4152 | FJ121: 3402 | FK121: 251 | FL121: 6647.654784 | FM121: 7514.198005 | FN121: 6978.252575 | FO121: 363.3333333 | FP121: 138.6239349 | FV121: 213 | FW121: -213
A122: 402 | B122: Lapinlahti | C122: 9617 | E122: 1.172220389 | F122: 54.32304074 | G122: -3492.149319 | K122: 50.03974081 | L122: 17.57304773 | M122: 0.8557733661 | N122: 7495.164812 | O122: 30671 | P122: 7308 | Q122: 64433 | R122: -57125 | S122: 29188 | T122: 30251 | W122: 107 | X122: 889 | Y122: 3310 | Z122: 2784 | AA122: 0 | AB122: 0 | AC122: 526 | AD122: 59 | AE122: 0 | AF122: 0 | AG122: 585 | AH122: 1600 | AI122: 3324 | AK122: 315 | AL122: -2788 | AM122: -1256 | AN122: 29188 | AO122: 25409 | AP122: 1555 | AQ122: 2224 | AR122: 21.25 | AT122: 97 | AU122: 9485 | AW122: 0.5594798805 | AX122: 55.67325592 | AY122: -3727.042699 | BC122: 48.63916649 | BD122: 3.057459146 | BE122: 0.1424898366 | BF122: 7831.945177 | BG122: 31425 | BH122: 7702 | BI122: 66670 | BJ122: -58968 | BK122: 30200 | BL122: 29784 | BO122: 292 | BP122: 832 | BQ122: 2140 | BR122: 2686 | BS122: 0 | BT122: 0 | BU122: -546 | BV122: 59 | BW122: 0 | BX122: 0 | BY122: -487 | BZ122: 1113 | CA122: 2378 | CC122: 202 | CD122: -2737 | CE122: -2203 | CF122: 30200 | CG122: 26302 | CH122: 1645 | CI122: 2253 | CJ122: 21.25 | CL122: 115 | CM122: 9358 | CO122: 1.587438017 | CP122: 58.66316331 | CQ122: -4052.147895 | CU122: 47.04537116 | CV122: 218.3158795 | CW122: 9.441806579 | CX122: 8439.623851 | CY122: 32597 | CZ122: 7473 | DA122: 68462 | DB122: -60989 | DC122: 30831 | DD122: 33641 | DG122: 194 | DH122: 871 | DI122: 4548 | DJ122: 2679 | DK122: 0 | DL122: 0 | DM122: 1869 | DN122: 59 | DO122: 0 | DP122: 0 | DQ122: 1928 | DR122: 3041 | DS122: 4619 | DU122: 70 | DV122: -2771 | DW122: -2605 | DX122: 30831 | DY122: 26879 | DZ122: 1897 | EA122: 2055 | EB122: 21.25 | ED122: 233.3308824 | EE122: 25036 | EF122: 25934 | EG122: 26505 | EK122: -4613 | EL122: 0 | EM122: 33 | EN122: -4621 | EO122: 0 | EP122: 40 | EQ122: -7483 | ER122: 217 | ES122: 42 | ET122: 2000 | EU122: 0 | EV122: 4000 | EW122: 525 | EX122: 7000 | EY122: -525 | EZ122: 28443 | FA122: 25773 | FB122: 2670 | FC122: 10805 | FD122: 30231 | FE122: 27035 | FF122: 3196 | FG122: 10351 | FH122: 33935 | FI122: 30943 | FJ122: 2992 | FK122: 10351 | FL122: 5696.37101 | FM122: 5920.084344 | FN122: 6405.107929 | FO122: 1264.894118 | FP122: 135.1671423 | FV122: 1488 | FW122: -1488
A123: 403 | B123: Lappajärvi | C123: 3078 | E123: 0.3897637795 | F123: 60.93494606 | G123: -2047.433398 | K123: 53.92358447 | L123: 976.6081871 | M123: 37.01221158 | N123: 9630.929175 | O123: 4814 | P123: 4329 | Q123: 22646 | R123: -18317 | S123: 9318 | T123: 10825 | W123: -39 | X123: 54 | Y123: 1841 | Z123: 1739 | AA123: 0 | AB123: 0 | AC123: 102 | AD123: 27 | AE123: 0 | AF123: 0 | AG123: 129 | AH123: 1297 | AI123: -53 | AK123: -4113 | AL123: -4786 | AM123: 5342 | AN123: 9318 | AO123: 7532 | AP123: 757 | AQ123: 1029 | AR123: 21 | AT123: 22 | AU123: 2996 | AW123: 0.4818104392 | AX123: 41.29856763 | AY123: -2805.740988 | BC123: 63.89220218 | BD123: 77.10280374 | BE123: 3.249007745 | BF123: 8661.88251 | BG123: 4573 | BH123: 2554 | BI123: 22839 | BJ123: -20285 | BK123: 9693 | BL123: 11071 | BO123: -17 | BP123: 14 | BQ123: 476 | BR123: 906 | BS123: 0 | BT123: 0 | BU123: -430 | BV123: 27 | BW123: 0 | BX123: 0 | BY123: -403 | BZ123: 894 | CA123: 476 | CC123: 4610 | CD123: -300 | CE123: -1922 | CF123: 9693 | CG123: 8040 | CH123: 656 | CI123: 997 | CJ123: 21.5 | CL123: 149 | CM123: 2925 | CO123: 2.616407982 | CP123: 64.10373444 | CQ123: -4463.247863 | CU123: 52.84706169 | CV123: 425.982906 | CW123: 15.41713278 | CX123: 10085.12821 | CY123: 4294 | CZ123: 2393 | DA123: 22944 | DB123: -20551 | DC123: 9475 | DD123: 12232 | DG123: -13 | DH123: 11 | DI123: 1154 | DJ123: 921 | DK123: 0 | DL123: 0 | DM123: 233 | DN123: 27 | DO123: 0 | DP123: 0 | DQ123: 260 | DR123: 1154 | DS123: 1145 | DU123: -154 | DV123: -425 | DW123: -4484 | DX123: 9475 | DY123: 8124 | DZ123: 648 | EA123: 703 | EB123: 21.5 | ED123: 257.5073529 | EE123: 15895 | EF123: 16130 | EG123: 16538 | EK123: -2172 | EL123: 202 | EM123: 7365 | EN123: -2792 | EO123: 251 | EP123: 143 | EQ123: -5940 | ER123: 302 | ES123: 9 | ET123: 0 | EU123: 850 | EV123: 0 | EW123: 0 | EX123: 5000 | EY123: 500 | EZ123: 7700 | FA123: 600 | FB123: 7100 | FC123: 1810 | FD123: 7400 | FE123: 300 | FF123: 7100 | FG123: 1810 | FH123: 12475 | FI123: 4625 | FJ123: 7850 | FK123: 1970 | FL123: 4953.216374 | FM123: 5005.006676 | FN123: 7076.239316 | FO123: 377.8604651 | FP123: 129.183065 | FV123: 651 | FW123: -651
A124: 405 | B124: Lappeenranta | C124: 72699 | E124: 0.6017170149 | F124: 61.01064713 | G124: -3029.656529 | K124: 49.42386321 | L124: 522.6481795 | M124: 28.33164796 | N124: 6733.338835 | O124: 99779 | P124: 42948 | Q124: 431461 | R124: -388513 | S124: 290688 | T124: 106908 | W124: 6775 | X124: 3135 | Y124: 18993 | Z124: 22268 | AA124: 0 | AB124: 0 | AC124: -3275 | AD124: -352 | AE124: 293 | AF124: 48 | AG124: -3286 | AH124: 59210 | AI124: 24986 | AK124: 6354 | AL124: -32586 | AM124: 6230 | AN124: 290688 | AO124: 243607 | AP124: 22310 | AQ124: 24771 | AR124: 21 | AT124: 132 | AU124: 72634 | AW124: 0.9057366213 | AX124: 63.68158984 | AY124: -3193.779773 | BC124: 48.23344001 | BD124: 607.2225129 | BE124: 29.4451212 | BF124: 7527.094749 | BG124: 103121 | BH124: 46050 | BI124: 436615 | BJ124: -389688 | BK124: 295558 | BL124: 109860 | BO124: 5274 | BP124: 5440 | BQ124: 26444 | BR124: 26247 | BS124: 0 | BT124: 0 | BU124: 197 | BV124: 119 | BW124: 33 | BX124: 0 | BY124: 349 | BZ124: 59557 | CA124: 12359 | CC124: -1551 | CD124: -62709 | CE124: -22478 | CF124: 295558 | CG124: 247955 | CH124: 21726 | CI124: 25877 | CJ124: 21 | CL124: 68 | CM124: 72662 | CO124: 1.228004838 | CP124: 59.54295664 | CQ124: -3051.705155 | CU124: 47.06064126 | CV124: 782.59613 | CW124: 38.5405158 | CX124: 7411.618177 | CY124: 104252 | CZ124: 40479 | DA124: 463144 | DB124: -422665 | DC124: 305197 | DD124: 144505 | DG124: 5235 | DH124: 4029 | DI124: 36301 | DJ124: 30939 | DK124: 0 | DL124: 0 | DM124: 5362 | DN124: 161 | DO124: 168 | DP124: 0 | DQ124: 5691 | DR124: 65248 | DS124: 51164 | DU124: -1326 | DV124: -29138 | DW124: 10521 | DX124: 305197 | DY124: 255268 | DZ124: 25511 | EA124: 24418 | EB124: 21 | ED124: 228.2941176 | EE124: 304974 | EF124: 304937 | EG124: 327277 | EJ124: 3300 | EK124: -23631 | EL124: 1913 | EM124: 2962 | EN124: -45944 | EO124: 1465 | EP124: 9642 | EQ124: -44198 | ER124: 1556 | ES124: 1999 | ET124: 20000 | EU124: -809 | EV124: 70000 | EW124: 15386 | EX124: 70000 | EY124: -40194 | EZ124: 204647 | FA124: 91389 | FB124: 113258 | FC124: 129756 | FD124: 227324 | FE124: 132252 | FF124: 95072 | FG124: 119769 | FH124: 227993 | FI124: 180750 | FJ124: 47243 | FK124: 119736 | FL124: 6601.64514 | FM124: 6827.862984 | FN124: 6976.397567 | FO124: 12155.61905 | FP124: 167.2899046 | FV124: 21416 | FW124: -21416
A125: 408 | B125: Lapua | C125: 14427 | E125: 0.6845905669 | F125: 79.79295678 | G125: -4473.695155 | K125: 37.83661425 | L125: 596.1045262 | M125: 27.84875262 | N125: 7812.850905 | O125: 40728 | P125: 12639 | Q125: 92199 | R125: -79560 | S125: 47777 | T125: 35853 | W125: -346 | X125: 355 | Y125: 4079 | Z125: 4994 | AA125: 0 | AB125: 0 | AC125: -915 | AD125: 0 | AE125: 0 | AF125: 0 | AG125: -915 | AH125: 16691 | AI125: 3594 | AK125: -62 | AL125: -6132 | AM125: -9163 | AN125: 47777 | AO125: 42420 | AP125: 2343 | AQ125: 3014 | AR125: 21.5 | AT125: 118 | AU125: 14278 | AW125: 0.4172958133 | AX125: 90.99426021 | AY125: -5521.081384 | BC125: 33.17791321 | BD125: 585.3761031 | BE125: 25.00692663 | BF125: 8544.123827 | BG125: 42583 | BH125: 12799 | BI125: 95772 | BJ125: -82820 | BK125: 49872 | BL125: 36810 | BO125: -378 | BP125: 285 | BQ125: 3769 | BR125: 5386 | BS125: 0 | BT125: 0 | BU125: -1617 | BV125: 0 | BW125: 0 | BX125: 0 | BY125: -1617 | BZ125: 15074 | CA125: 3061 | CC125: 62 | CD125: -7432 | CE125: -13998 | CF125: 49872 | CG125: 44615 | CH125: 2326 | CI125: 2931 | CJ125: 21.5 | CL125: 102 | CM125: 14221 | CO125: 1.148396193 | CP125: 85.42158956 | CQ125: -5610.857183 | CU125: 35.35601243 | CV125: 440.4050348 | CW125: 18.96902383 | CX125: 8474.228254 | CY125: 43185 | CZ125: 12140 | DA125: 95984 | DB125: -83844 | DC125: 50679 | DD125: 42767 | DG125: -375 | DH125: 118 | DI125: 9345 | DJ125: 6134 | DK125: 0 | DL125: 0 | DM125: 3211 | DN125: 0 | DO125: 0 | DP125: 0 | DQ125: 3211 | DR125: 19485 | DS125: 9275 | DU125: -623 | DV125: -8082 | DW125: -3978 | DX125: 50679 | DY125: 45582 | DZ125: 2323 | EA125: 2774 | EB125: 21.5 | ED125: 155.7647059 | EE125: 37559 | EF125: 38872 | EG125: 39118 | EK125: -14333 | EL125: 148 | EM125: 1428 | EN125: -17990 | EO125: 82 | EP125: 849 | EQ125: -16111 | ER125: 96 | ES125: 2762 | ET125: 14000 | EU125: 0 | EV125: 18000 | EW125: 2000 | EX125: 10000 | EY125: 1000 | EZ125: 55292 | FA125: 33259 | FB125: 22033 | FC125: 1811 | FD125: 67858 | FE125: 42776 | FF125: 25082 | FG125: 1748 | FH125: 70776 | FI125: 44029 | FJ125: 26747 | FK125: 474 | FL125: 7020.517086 | FM125: 7877.083625 | FN125: 8625.835033 | FO125: 2120.093023 | FP125: 149.0818524 | FV125: 2937 | FW125: -2937
A126: 410 | B126: Laukaa | C126: 18927 | E126: 67.22222222 | F126: 94.29762007 | G126: -5512.653881 | K126: 25.30605047 | L126: 71.64368363 | M126: 4.018707524 | N126: 6507.053416 | O126: 41046 | P126: 13673 | Q126: 115842 | R126: -102169 | S126: 66130 | T126: 36587 | W126: 546 | X126: 705 | Y126: 1799 | Z126: 5814 | AA126: 0 | AB126: 0 | AC126: -4015 | AD126: 0 | AE126: 0 | AF126: 0 | AG126: -4015 | AH126: 4941 | AI126: 1320 | AK126: -292 | AL126: -11 | AM126: -4984 | AN126: 66130 | AO126: 58865 | AP126: 2511 | AQ126: 4754 | AR126: 21.5 | AT126: 216 | AU126: 18903 | AW126: 0.241888636 | AX126: 96.07838199 | AY126: -5635.560493 | BC126: 22.51859451 | BD126: 272.0732159 | BE126: 14.04045655 | BF126: 7072.898482 | BG126: 42742 | BH126: 13474 | BI126: 116749 | BJ126: -103275 | BK126: 67580 | BL126: 38055 | BO126: 491 | BP126: 309 | BQ126: 3160 | BR126: 7108 | BS126: 0 | BT126: 0 | BU126: -3948 | BV126: 0 | BW126: 0 | BX126: 0 | BY126: -3948 | BZ126: 993 | CA126: 1936 | CC126: 1293 | CD126: -10011 | CE126: -3099 | CF126: 67580 | CG126: 60024 | CH126: 2696 | CI126: 4860 | CJ126: 21.5 | CL126: 141 | CM126: 18823 | CO126: 1.274629211 | CP126: 84.58828274 | CQ126: -5675.450247 | CU126: 24.90691984 | CV126: 76.98029007 | CW126: 3.622797764 | CX126: 7755.830633 | CY126: 43434 | CZ126: 13169 | DA126: 119166 | DB126: -105997 | DC126: 71756 | DD126: 46488 | DG126: 281 | DH126: 275 | DI126: 12803 | DJ126: 8705 | DK126: 0 | DL126: 0 | DM126: 4098 | DN126: 0 | DO126: 0 | DP126: 0 | DQ126: 4098 | DR126: 5091 | DS126: 13108 | DU126: -116 | DV126: -10007 | DW126: -1165 | DX126: 71756 | DY126: 63721 | DZ126: 2857 | EA126: 5178 | EB126: 21.5 | ED126: 143.6764706 | EE126: 58244 | EF126: 56901 | EG126: 57549 | EK126: -7182 | EL126: 3 | EM126: 875 | EN126: -6892 | EO126: 44 | EP126: 1813 | EQ126: -16447 | ER126: 674 | ES126: 1500 | ET126: 0 | EU126: 4000 | EV126: 0 | EW126: 20000 | EX126: 34994 | EY126: -29000 | EZ126: 88091 | FA126: 18080 | FB126: 70011 | FC126: 22805 | FD126: 98080 | FE126: 8067 | FF126: 90013 | FG126: 22003 | FH126: 94067 | FI126: 33052 | FJ126: 61015 | FK126: 21230 | FL126: 6769.37708 | FM126: 7650.108448 | FN126: 7827.817032 | FO126: 2963.767442 | FP126: 157.4545738 | FV126: 63 | FW126: -63
A127: 416 | B127: Lemi | C127: 3043 | E127: -1.57994186 | F127: 49.96431904 | G127: -2645.087085 | K127: 33.80449234 | L127: 166.6118962 | M127: 8.710110138 | N127: 6981.925731 | O127: 4979 | P127: 1704 | Q127: 19317 | R127: -17613 | S127: 10283 | T127: 6230 | W127: -20 | X127: 10 | Y127: -1110 | Z127: 660 | AA127: 0 | AB127: 0 | AC127: -1770 | AD127: 0 | AE127: 0 | AF127: 0 | AG127: -1770 | AH127: -2206 | AI127: -1647 | AK127: 330 | AL127: -665 | AM127: -2863 | AN127: 10283 | AO127: 9046 | AP127: 421 | AQ127: 816 | AR127: 21 | AT127: 290 | AU127: 2971 | AW127: -0.01872001872 | AX127: 48.15090725 | AY127: -2891.618984 | BC127: 30.53940687 | BD127: 19.52204645 | BE127: 1.041830709 | BF127: 6839.447997 | BG127: 5181 | BH127: 1775 | BI127: 18836 | BJ127: -17061 | BK127: 10290 | BL127: 6728 | BO127: -80 | BP127: 20 | BQ127: -103 | BR127: 579 | BS127: 0 | BT127: 0 | BU127: -682 | BV127: 0 | BW127: 0 | BX127: 0 | BY127: -682 | BZ127: -2887 | CA127: -294 | CC127: 145 | CD127: -848 | CE127: -501 | CF127: 10290 | CG127: 9048 | CH127: 401 | CI127: 841 | CJ127: 21 | CL127: 241 | CM127: 2964 | CO127: 1.290353391 | CP127: 39.42293609 | CQ127: -2337.044534 | CU127: 34.60768901 | CV127: 260.1214575 | CW127: 13.65628185 | CX127: 6952.42915 | CY127: 4714 | CZ127: 1726 | DA127: 19154 | DB127: -17428 | DC127: 10838 | DD127: 7920 | DG127: -83 | DH127: 17 | DI127: 1264 | DJ127: 570 | DK127: 0 | DL127: 0 | DM127: 694 | DN127: 0 | DO127: 0 | DP127: 0 | DQ127: 694 | DR127: -2194 | DS127: 1664 | DU127: 23 | DV127: -960 | DW127: 1581 | DX127: 10838 | DY127: 9537 | DZ127: 458 | EA127: 843 | EB127: 22 | ED127: 248.4411765 | EE127: 12907 | EF127: 12354 | EG127: 12530 | EI127: 420 | EJ127: 410 | EK127: -1232 | EL127: 0 | EM127: 16 | EN127: -551 | EO127: 28 | EP127: 316 | EQ127: -406 | ER127: 14 | ES127: 309 | ET127: 1540 | EU127: 15 | EV127: 2875 | EW127: 96 | EX127: 0 | EY127: -96 | EZ127: 5476 | FA127: 4672 | FB127: 804 | FC127: 582 | FD127: 7599 | FE127: 6543 | FF127: 1056 | FG127: 582 | FH127: 6543 | FI127: 5573 | FJ127: 970 | FK127: 582 | FL127: 3712.454814 | FM127: 4331.538203 | FN127: 3970.985155 | FO127: 433.5 | FP127: 146.2550607 | FV127: 110 | FW127: -110
A128: 418 | B128: Lempäälä | C128: 23206 | E128: 0.7499148984 | F128: 71.34223171 | G128: -3809.747479 | K128: 37.26032996 | L128: 209.0407653 | M128: 10.98941783 | N128: 6943.031974 | O128: 60075 | P128: 26532 | Q128: 134865 | R128: -108333 | S128: 91950 | T128: 22293 | W128: -428 | X128: 692 | Y128: 6174 | Z128: 10740 | AA128: 0 | AB128: 0 | AC128: -4566 | AD128: -298 | AE128: 412 | AF128: 0 | AG128: -4452 | AH128: 11820 | AI128: 4848 | AK128: -1690 | AL128: -8378 | AM128: -9565 | AN128: 91950 | AO128: 82103 | AP128: 4275 | AQ128: 5572 | AR128: 20.5 | AT128: 131 | AU128: 23523 | AW128: 0.7053510476 | AX128: 71.48870152 | AY128: -3877.694172 | BC128: 43.68893729 | BD128: 108.3620287 | BE128: 4.260141122 | BF128: 9284.232453 | BG128: 62968 | BH128: 27419 | BI128: 140848 | BJ128: -113149 | BK128: 97179 | BL128: 23652 | BO128: -326 | BP128: 706 | BQ128: 8062 | BR128: 10828 | BS128: 25640 | BT128: 0 | BU128: 22874 | BV128: -469 | BW128: -13818 | BX128: 0 | BY128: 8587 | BZ128: 20408 | CA128: 5984 | CC128: -5260 | CD128: -14786 | CE128: 27237 | CF128: 97179 | CG128: 87219 | CH128: 4091 | CI128: 5869 | CJ128: 20.5 | CL128: 76 | CM128: 23828 | CO128: 1.615010056 | CP128: 73.77482424 | CQ128: -3782.272956 | CU128: 43.50936619 | CV128: 560.0134296 | CW128: 29.20647866 | CX128: 6998.615075 | CY128: 61112 | CZ128: 19864 | DA128: 141639 | DB128: -121775 | DC128: 102520 | DD128: 33512 | DG128: -47 | DH128: 678 | DI128: 14888 | DJ128: 8529 | DK128: 0 | DL128: 0 | DM128: 6359 | DN128: 1273 | DO128: -1006 | DP128: 0 | DQ128: 6626 | DR128: 27034 | DS128: 12607 | DU128: 675 | DV128: -9078 | DW128: 962 | DX128: 102520 | DY128: 92572 | DZ128: 4756 | EA128: 5192 | EB128: 20.5 | ED128: 173.8970588 | EE128: 56153 | EF128: 57607 | EG128: 60422 | EK128: -17674 | EL128: 1134 | EM128: 2127 | EN128: -32792 | EO128: 1899 | EP128: 52146 | EQ128: -15665 | ER128: 1138 | ES128: 2882 | ET128: 8500 | EU128: 5000 | EV128: 18000 | EW128: 8500 | EX128: 12000 | EY128: 4586 | EZ128: 75113 | FA128: 58910 | FB128: 16203 | FC128: 397 | FD128: 86827 | FE128: 62199 | FF128: 24628 | FG128: 30261 | FH128: 90749 | FI128: 61696 | FJ128: 29053 | FK128: 30261 | FL128: 5556.235456 | FM128: 6563.746121 | FN128: 7067.86134 | FO128: 4515.707317 | FP128: 189.5126455 | FV128: 5084 | FW128: -5084
A129: 420 | B129: Leppävirta | C129: 9650 | E129: 1.493853941 | F129: 25.44367536 | G129: -1151.606218 | K129: 73.870935 | L129: 395.2331606 | M129: 18.26292866 | N129: 7899.067358 | O129: 20894 | P129: 9432 | Q129: 67492 | R129: -58060 | S129: 34685 | T129: 24798 | W129: -86 | X129: 609 | Y129: 1946 | Z129: 3414 | AA129: 0 | AB129: 0 | AC129: -1468 | AD129: -724 | AE129: 820 | AF129: 13 | AG129: -1359 | AH129: 4175 | AI129: 1863 | AK129: -99 | AL129: -1263 | AM129: -4192 | AN129: 34685 | AO129: 29588 | AP129: 2598 | AQ129: 2499 | AR129: 21 | AT129: 170 | AU129: 9454 | AW129: 0.4240687679 | AX129: 27.3974598 | AY129: -1418.235667 | BC129: 70.26211326 | BD129: 336.5771102 | BE129: 15.83257222 | BF129: 7759.361117 | BG129: 21161 | BH129: 9898 | BI129: 68705 | BJ129: -58802 | BK129: 34789 | BL129: 23969 | BO129: -71 | BP129: 750 | BQ129: 635 | BR129: 3902 | BS129: 0 | BT129: 426 | BU129: -3693 | BV129: -342 | BW129: 580 | BX129: 0 | BY129: -3455 | BZ129: 721 | CA129: 783 | CC129: 387 | CD129: -1083 | CE129: -2444 | CF129: 34789 | CG129: 29588 | CH129: 2627 | CI129: 2574 | CJ129: 21 | CL129: 201 | CM129: 9402 | CO129: 5.526785714 | CP129: 24.70700204 | CQ129: -1032.014465 | CU129: 71.15944361 | CV129: 675.920017 | CW129: 32.14978725 | CX129: 7673.79281 | CY129: 20891 | CZ129: 9585 | DA129: 68119 | DB129: -58534 | DC129: 35500 | DD129: 28470 | DG129: -49 | DH129: 716 | DI129: 6103 | DJ129: 4709 | DK129: 0 | DL129: 0 | DM129: 1394 | DN129: 253 | DO129: -1240 | DP129: 0 | DQ129: 407 | DR129: 1127 | DS129: 5676 | DU129: 107 | DV129: -1033 | DW129: 3395 | DX129: 35500 | DY129: 30016 | DZ129: 3144 | EA129: 2340 | EB129: 21 | ED129: 159.7941176 | EE129: 39250 | EF129: 39148 | EG129: 38050 | EK129: -7232 | EL129: 1065 | EM129: 112 | EN129: -3422 | EO129: 117 | EP129: 78 | EQ129: -2459 | ER129: -6 | ES129: 184 | ET129: 1792 | EU129: 0 | EV129: 0 | EW129: 3000 | EX129: 0 | EY129: 1000 | EZ129: 8565 | FA129: 7482 | FB129: 1083 | FC129: 4761 | FD129: 10483 | FE129: 6450 | FF129: 4033 | FG129: 4715 | FH129: 10450 | FI129: 5517 | FJ129: 4933 | FK129: 5165 | FL129: 3760.621762 | FM129: 4038.184895 | FN129: 4110.189321 | FO129: 1429.333333 | FP129: 152.024392 | FV129: 611 | FW129: -611
A130: 421 | B130: Lestijärvi | C130: 737 | E130: -2.584269663 | F130: 39.73091708 | G130: -2831.750339 | K130: 69.9751089 | L130: 483.0393487 | M130: 16.43146181 | N130: 10729.98643 | O130: 2290 | P130: 1899 | Q130: 7516 | R130: -5617 | S130: 2420 | T130: 2965 | W130: -22 | X130: -1 | Y130: -255 | Z130: 309 | AA130: 0 | AB130: 0 | AC130: -564 | AD130: 0 | AE130: 0 | AF130: 0 | AG130: -564 | AH130: 1068 | AI130: -395 | AK130: 272 | AL130: -64 | AM130: -695 | AN130: 2420 | AO130: 1763 | AP130: 384 | AQ130: 273 | AR130: 21 | AT130: 289 | AU130: 719 | AW130: -0.3649304432 | AX130: 52.72 | AY130: -3713.49096 | BC130: 58.62861921 | BD130: 1155.771905 | BE130: 37.3678699 | BF130: 11289.29068 | BG130: 2326 | BH130: 2012 | BI130: 7642 | BJ130: -5630 | BK130: 2381 | BL130: 3107 | BO130: -23 | BP130: -1 | BQ130: -166 | BR130: 502 | BS130: 0 | BT130: 0 | BU130: -668 | BV130: 0 | BW130: 0 | BX130: 0 | BY130: -668 | BZ130: 400 | CA130: -166 | CC130: 16 | CD130: -4 | CE130: -584 | CF130: 2381 | CG130: 1728 | CH130: 381 | CI130: 272 | CJ130: 21 | CL130: 273 | CM130: 722 | CO130: 6 | CP130: 103.8494863 | CQ130: -9164.819945 | CU130: 39.42411777 | CV130: 965.3739612 | CW130: 21.12121212 | CX130: 16682.82548 | CY130: 2841 | CZ130: 2316 | DA130: 7879 | DB130: -5563 | DC130: 2541 | DD130: 3222 | DG130: -17 | DH130: 2 | DI130: 185 | DJ130: 329 | DK130: 0 | DL130: 0 | DM130: -144 | DN130: 0 | DO130: 0 | DP130: 0 | DQ130: -144 | DR130: 254 | DS130: 185 | DU130: -640 | DV130: -10 | DW130: -3946 | DX130: 2541 | DY130: 1853 | DZ130: 443 | EA130: 245 | EB130: 21 | ED130: 280.6764706 | EE130: 4400 | EF130: 4554 | EG130: 4226 | EI130: 110 | EK130: -300 | EL130: 0 | EM130: 0 | EN130: -429 | EO130: 0 | EP130: 11 | EQ130: -4131 | ER130: 0 | ES130: 0 | ET130: 0 | EU130: 0 | EV130: 902 | EW130: -10 | EX130: 3791 | EY130: -6 | EZ130: 1774 | FA130: 1760 | FB130: 14 | FC130: 461 | FD130: 2662 | FE130: 2646 | FF130: 16 | FG130: 461 | FH130: 6436 | FI130: 6418 | FJ130: 18 | FK130: 461 | FL130: 5358.208955 | FM130: 7070.93185 | FN130: 12333.79501 | FO130: 88.23809524 | FP130: 122.2134283 | FV130: 502 | FW130: -502
A131: 422 | B131: Lieksa | C131: 11098 | E131: 2.624680851 | F131: 15.9545694 | G131: 538.475401 | K131: 81.45041538 | L131: 622.4544963 | M131: 29.50375025 | N131: 7700.57668 | O131: 16024 | P131: 10453 | Q131: 80894 | R131: -70441 | S131: 38545 | T131: 37374 | W131: 5 | X131: 542 | Y131: 6025 | Z131: 3421 | AA131: 0 | AB131: 0 | AC131: 2604 | AD131: 94 | AE131: -1000 | AF131: 0 | AG131: 1698 | AH131: 17878 | AI131: 6020 | AK131: -5286 | AL131: -2207 | AM131: 3847 | AN131: 38545 | AO131: 30785 | AP131: 4483 | AQ131: 3277 | AR131: 21 | AT131: 35 | AU131: 10884 | AW131: 3.686532763 | AX131: 17.18268972 | AY131: 657.0194781 | BC131: 80.59238401 | BD131: 658.5814039 | BE131: 29.95900607 | BF131: 8023.70452 | BG131: 16191 | BH131: 9645 | BI131: 83296 | BJ131: -70868 | BK131: 38548 | BL131: 37236 | BO131: 20 | BP131: 547 | BQ131: 5483 | BR131: 4549 | BS131: 0 | BT131: 0 | BU131: 934 | BV131: 95 | BW131: 0 | BX131: 0 | BY131: 1029 | BZ131: 18907 | CA131: 5449 | CC131: -1966 | CD131: -2383 | CE131: 1186 | CF131: 38548 | CG131: 31086 | CH131: 4257 | CI131: 3205 | CJ131: 21 | CL131: 31 | CM131: 10719 | CO131: 4.101018011 | CP131: 14.94329184 | CQ131: 784.2149454 | CU131: 81.61272047 | CV131: 803.7130329 | CW131: 33.82756358 | CX131: 8672.077619 | CY131: 15697 | CZ131: 17195 | DA131: 88277 | DB131: -71082 | DC131: 39429 | DD131: 41434 | DG131: 46 | DH131: 551 | DI131: 10378 | DJ131: 5043 | DK131: 0 | DL131: 0 | DM131: 5335 | DN131: -6897 | DO131: 7000 | DP131: 0 | DQ131: 5438 | DR131: 23454 | DS131: 11573 | DU131: 1366 | DV131: -2458 | DW131: 1868 | DX131: 39429 | DY131: 31798 | DZ131: 4644 | EA131: 2987 | EB131: 21 | ED131: 44.95588235 | EE131: 59644 | EF131: 62546 | EG131: 68114 | EK131: -3164 | EL131: 959 | EM131: 32 | EN131: -4318 | EO131: 3 | EP131: 52 | EQ131: -9807 | ER131: 0 | ES131: 102 | ET131: 0 | EU131: 39 | EV131: 3500 | EW131: 14 | EX131: 0 | EY131: -35 | EZ131: 8255 | FA131: 6008 | FB131: 2247 | FC131: 458 | FD131: 9385 | FE131: 6875 | FF131: 2510 | FG131: 458 | FH131: 6893 | FI131: 4725 | FJ131: 2168 | FK131: 270 | FL131: 3370.336998 | FM131: 3434.490996 | FN131: 3587.368225 | FO131: =(DY131/EB131) -> 1514.190476 | FP131: =(FO131/CM131)*1000 -> 141.262289 | FV131: 1317 | FW131: =FV131*-1 -> -1317
A132: 423 | B132: Lieto | C132: 19831 | E132: 0.8712795726 | F132: 75.75101579 | G132: -4037.517019 | K132: 28.02757841 | L132: 309.7675357 | M132: 16.90678701 | N132: 6687.559881 | O132: 53860 | P132: 25246 | Q132: 116839 | R132: -91593 | S132: 75125 | T132: 19733 | W132: -428 | X132: 124 | Y132: 2961 | Z132: 7580 | AA132: 0 | AB132: 0 | AC132: -4619 | AD132: 95 | AE132: 0 | AF132: 0 | AG132: -4524 | AH132: 3992 | AI132: -553 | AK132: 903 | AL132: -3467 | AM132: -7576 | AN132: 75125 | AO132: 67828 | AP132: 3640 | AQ132: 3657 | AR132: 19.5 | AT132: 197 | AU132: 19994 | AW132: 0.5618327936 | AX132: 78.86080767 | AY132: -4200.060018 | BC132: 25.31631106 | BD132: 379.0137041 | BE132: 21.12653142 | BF132: 6548.164449 | BG132: 55046 | BH132: 23417 | BI132: 117810 | BJ132: -94393 | BK132: 79437 | BL132: 20637 | BO132: -453 | BP132: 135 | BQ132: 5363 | BR132: 7820 | BS132: 0 | BT132: 0 | BU132: -2457 | BV132: 5 | BW132: 0 | BX132: 0 | BY132: -2452 | BZ132: 1540 | CA132: 3175 | CC132: -1062 | CD132: -2441 | CE132: -4130 | CF132: 79437 | CG132: 71842 | CH132: 3850 | CI132: 3745 | CJ132: 19.5 | CL132: 99 | CM132: 20146 | CO132: 5.296149694 | CP132: 71.06354525 | CQ132: -4005.162315 | CU132: 29.70726739 | CV132: 373.9203812 | CW132: 20.6224124 | CX132: 6618.087958 | CY132: 54490 | CZ132: 21974 | DA132: 118534 | DB132: -96560 | DC132: 82718 | DD132: 28410 | DG132: -305 | DH132: 117 | DI132: 14380 | DJ132: 7367 | DK132: 0 | DL132: 0 | DM132: 7013 | DN132: 5 | DO132: 0 | DP132: 0 | DQ132: 7018 | DR132: 8558 | DS132: 12525 | DU132: -534 | DV132: -2441 | DW132: 3288 | DX132: 82718 | DY132: 74945 | DZ132: 3879 | EA132: 3894 | EB132: 19.5 | ED132: 128.5661765 | EE132: 45440 | EF132: 45926 | EG132: 47057 | EK132: -11847 | EL132: 104 | EM132: 4720 | EN132: -10175 | EO132: 19 | EP132: 2851 | EQ132: -12005 | ER132: 514 | ES132: 2254 | ET132: 0 | EU132: 12500 | EV132: 12500 | EW132: -5500 | EX132: 0 | EY132: 0 | EZ132: 69233 | FA132: 27290 | FB132: 41943 | FC132: 513 | FD132: 73792 | FE132: 37351 | FF132: 36441 | FG132: 490 | FH132: 71351 | FI132: 34916 | FJ132: 36435 | FK132: 472 | FL132: 4463.264586 | FM132: 4640.892268 | FN132: 4612.528542 | FO132: 3843.333333 | FP132: 190.7740163 | FV132: 2603 | FW132: -2603
A133: 425 | B133: Liminka | C133: 10161 | E133: 2.193877551 | F133: 58.82815754 | G133: -3059.147722 | K133: 55.60371877 | L133: 378.013975 | M133: 17.30650059 | N133: 7972.443657 | O133: 28824 | P133: 8536 | Q133: 59258 | R133: -50722 | S133: 32098 | T133: 24187 | W133: -143 | X133: 22 | Y133: 5442 | Z133: 3812 | AA133: 0 | AB133: 0 | AC133: 1630 | AD133: -3599 | AE133: 2078 | AF133: 0 | AG133: 109 | AH133: 8264 | AI133: 4802 | AK133: -724 | AL133: -2400 | AM133: -11831 | AN133: 32098 | AO133: 30159 | AP133: 684 | AQ133: 1255 | AR133: 21.5 | AT133: 37 | AU133: 10191 | AW133: 0.8752628778 | AX133: 66.98336936 | AY133: -3435.580414 | BC133: 51.54703976 | BD133: 661.171622 | BE133: 32.91359974 | BF133: 7332.155824 | BG133: 29655 | BH133: 8283 | BI133: 62337 | BJ133: -54054 | BK133: 33743 | BL133: 24598 | BO133: -164 | BP133: 26 | BQ133: 4149 | BR133: 4830 | BS133: 0 | BT133: 0 | BU133: -681 | BV133: -3539 | BW133: 4321 | BX133: 0 | BY133: 101 | BZ133: 8364 | CA133: 3334 | CC133: 1056 | CD133: -3400 | CE133: -3868 | CF133: 33743 | CG133: 31728 | CH133: 698 | CI133: 1317 | CJ133: 21.5 | CL133: 55 | CM133: 10238 | CO133: 1.57392556 | CP133: 59.49354726 | CQ133: -3430.357492 | CU133: 53.99304247 | CV133: 417.2689979 | CW133: 20.19740421 | CX133: 7540.730611 | CY133: 30113 | CZ133: 7338 | DA133: 64064 | DB133: -56726 | DC133: 35312 | DD133: 29025 | DG133: -150 | DH133: 30 | DI133: 7491 | DJ133: 4524 | DK133: 0 | DL133: 0 | DM133: 2967 | DN133: 386 | DO133: -3000 | DP133: 0 | DQ133: 353 | DR133: 8717 | DS133: 7215 | DU133: -379 | DV133: -4700 | DW133: 859 | DX133: 35312 | DY133: 33249 | DZ133: 861 | EA133: 1202 | EB133: 21.5 | ED133: 114.4632353 | EE133: 20055 | EF133: 22465 | EG133: 23819 | EK133: -19201 | EL133: 130 | EM133: 2438 | EN133: -8730 | EO133: 475 | EP133: 1053 | EQ133: -7094 | ER133: 16 | ES133: 722 | ET133: 10000 | EU133: 5000 | EV133: 6000 | EW133: 3000 | EX133: 0 | EY133: 0 | EZ133: 30550 | FA133: 19150 | FB133: 11400 | FC133: 647 | FD133: 36152 | FE133: 20452 | FF133: 15700 | FG133: 1540 | FH133: 31453 | FI133: 17153 | FJ133: 14300 | FK133: 1388 | FL133: 4471.213463 | FM133: 5021.882053 | FN133: 4705.508888 | FO133: 1546.465116 | FP133: 151.0514863 | FV133: 1949 | FW133: -1949
A134: 426 | B134: Liperi | C134: 12145 | E134: 0.6023644752 | F134: 52.30599876 | G134: -3072.54014 | K134: 34.13862708 | L134: 228.1597365 | M134: 11.76816569 | N134: 7076.574722 | O134: 20784 | P134: 12575 | Q134: 75250 | R134: -62675 | S134: 39488 | T134: 26970 | W134: -243 | X134: 338 | Y134: 3878 | Z134: 2857 | AA134: 0 | AB134: 0 | AC134: 1021 | AD134: 119 | AE134: 0 | AF134: 0 | AG134: 1140 | AH134: 5056 | AI134: 3506 | AK134: 164 | AL134: -6636 | AM134: -88 | AN134: 39488 | AO134: 35753 | AP134: 1338 | AQ134: 2397 | AR134: 21.5 | AT134: 104 | AU134: 12084 | AW134: 0.5249279576 | AX134: 54.35038101 | AY134: -3143.495531 | BC134: 32.58186142 | BD134: 303.9556438 | BE134: 15.45251789 | BF134: 7179.659053 | BG134: 21188 | BH134: 11849 | BI134: 76936 | BJ134: -65087 | BK134: 40749 | BL134: 26533 | BO134: -233 | BP134: 335 | BQ134: 2297 | BR134: 2951 | BS134: 0 | BT134: 0 | BU134: -654 | BV134: 119 | BW134: 0 | BX134: 0 | BY134: -535 | BZ134: 4522 | CA134: 2109 | CC134: -97 | CD134: -6471 | CE134: -654 | CF134: 40749 | CG134: 36988 | CH134: 1345 | CI134: 2416 | CJ134: 21.5 | CL134: 133 | CM134: 11994 | CO134: 0.7016216216 | CP134: 60.22353558 | CQ134: -3424.712356 | CU134: 29.08650888 | CV134: 646.8234117 | CW134: 29.37173264 | CX134: 8038.01901 | CY134: 20974 | CZ134: 11675 | DA134: 79570 | DB134: -67895 | DC134: 41381 | DD134: 30868 | DG134: -273 | DH134: 835 | DI134: 4916 | DJ134: 4118 | DK134: 0 | DL134: 0 | DM134: 798 | DN134: 119 | DO134: 0 | DP134: 0 | DQ134: 917 | DR134: 5088 | DS134: 6024 | DU134: -359 | DV134: -7124 | DW134: -2599 | DX134: 41381 | DY134: 37662 | DZ134: 1430 | EA134: 2289 | EB134: 21.5 | ED134: 253.4779412 | EE134: 48399 | EF134: 49397 | EG134: 51852 | EK134: -3752 | EL134: 0 | EM134: 158 | EN134: -3052 | EO134: 85 | EP134: 204 | EQ134: -9276 | ER134: 518 | ES134: 135 | ET134: 8000 | EU134: -1090 | EV134: 9000 | EW134: -895 | EX134: 15000 | EY134: -654 | EZ134: 33442 | FA134: 24656 | FB134: 8786 | FC134: 1433 | FD134: 35076 | FE134: 26849 | FF134: 8227 | FG134: 1433 | FH134: 42298 | FI134: 33730 | FJ134: 8568 | FK134: 1408 | FL134: 4051.29683 | FM134: 4173.618007 | FN134: 4900.950475 | FO134: 1751.72093 | FP134: 146.0497691 | FV134: 3322 | FW134: -3322
